Workbook

Sheet MENÙ
A1: DATI GENERALI
F3: ='iP1'!A56 -> Amministratore | L3: ='iP1'!A5 -> Condominio "TERMICO"
F4: ='iP1'!A57 -> Pietro CHIEFARI | L4: ='iP1'!A6 -> Via dei MILLE 22-30-38
F5: ='iP1'!A58 -> Via Mazzini, 14 | L5: ='iP1'!A7 -> 88068 SOVERATO CZ | AE5: Codice Condominio-Esercizio
F6: ='iP1'!A59 -> 88068 - SOVERATO (CZ) | K6: =IF('iP1'!A8<>"","C.F. " & 'iP1'!A8,"") -> C.F. 80000000796 | N6: =IF('iP1'!A9<>"",'iP1'!A9,"") ->  | AA6: =IF('iP1'!A60<>"",'iP1'!A60,'iP1'!A61) -> cell. 328-7569407 | AE6: ='iP1'!A12 & "-" & 'iP1'!A37 -> Termico-2021-2022
F8: Giornale aggiornato al 2-4-2022 | AE8: ='iP1'!A39 -> 2022-09-30
E9: FUNZIONI DI GESTIONE DEL CONDOMINIO
E42: FUNZIONI DI GESTIONE DEL PROGRAMMA
F43: GUIDE ALL'UTILIZZO | K43: DATI GENERALI | P43: ADATTAMENTO AL CONDOMINIO | U43: SCELTE UTILIZZATORE | Z43: OPERAZIONI SUL CONDOMINIO | AE43: FINE UTILIZZO PROGRAMMA

Sheet iP1 (hidden)
A1: Possono essere variati solo i valori delle celle senza sfondo colorato. | E1: 0
A2: ='iP1'!A5 -> Condominio "TERMICO" | B2: DATI ESERCIZIO
A3: VALORE | B3: TIPO | C3: INDICAZIONE SUL DATO
A4: DATI GENERALI
A5: Condominio "TERMICO" | B5: Testo | C5: Nome ufficiale del Condominio
A6: Via dei MILLE 22-30-38 | B6: Testo | C6: Indirizzo di Ubicazione del condominio
A7: 88068 SOVERATO CZ | B7: Testo | C7: Città
A8: 80000000796 | B8: Testo | C8: Codice Fiscale del Condominio
B9: Testo | C9: Indirizzo e-mail del Condominio
B10: Testo | C10: Indirizzo pec del Condominio
B11: Testo | C11: Sito WEB
A12: Termico | B12: Testo | C12: Codice GOICO del Condominio (attribuito dall'utilizzatore)
A13: IT02 J076 0104 4000 0114 2786 471 | B13: Testo | C13: IBAN del conto corrente condominiale
A14: CONDOMINIO TERMICO - SOVERATO | B14: Testo | C14: Intestazione del conto corrente condominiale | D14: (max 68 car.)
A15: DENOMINAZIONI DELLE TABELLE DI RIPARTIZIONE DEL CONDOMINIO | D15: NOME
A16: PROPRIETÀ GENERALE | B16: Testo | C16: Tabella n. 1 - (solo i primi 12 caratteri saranno usati) | D16: Tabella A
A17: UTILIZZO | B17: Testo | C17: Tabella n. 2 - (solo i primi 12 caratteri saranno usati) | D17: Tabella B
A18: POTENZA INSTALLATA | B18: Testo | C18: Tabella n. 3 - (solo i primi 12 caratteri saranno usati) | D18: Tabella C
A19: NUMERO TERMOSIFONI | B19: Testo | C19: Tabella n. 4 - (solo i primi 12 caratteri saranno usati) | D19: Tabella D
A20: CONSUMI | B20: Testo | C20: Tabella n. 5 - (solo i primi 12 caratteri saranno usati) | D20: Tabella E
A32: DATA E MODALITÀ DI APPROVAZIONE DELLE TABELLE MILLESIMALI
A33: 2016-12-16 | B33: Data | C33: Data di approvazione delle TABELLE MILLESIMALI
A34: DELIBERA ASSEMBLEARE | B34: Testo | C34: Modalità di approvazione
A36: DATI ESERCIZIO
A37: 2021-2022 | B37: Testo | C37: Esercizio condominiale gestito
A38: 2021-05-05 | B38: Data | C38: Data redazione BILANCIO PREVENTIVO e PIANO DEI CONTI per l'Esercizio
A39: =TODAY() -> 2022-09-30 | B39: Data | C39: Data alla quale sono eseguiti i calcoli dei prospetti contabili. (nel corso dell'esercizio si pone la formula "=OGGI()" a fine esercizio si pone direttamente la data del 31-12 dell'anno dell'esercizio)
A40: 01/10/2021-30/09/2022 | B40: Testo | C40: Inizio-Fine Esercizio (gg/mm/aaaa-gg/mm/aaaa)
A41: DATE di SCADENZA dei PAGAMENTI
A42: 2021-11-30 | B42: Data | C42: Conguaglio a debito per l'esercizio precedente
A43: 2021-11-30 | B43: Data | C43: 1a Rata trimestrale (di solito uguale a quella dell'esercizio precedente)
A44: 2021-12-31 | B44: Data | C44: 2a Rata trimestrale (con detrazione di 1/3 credito esercizio precedente)
A45: 2022-01-31 | B45: Data | C45: 3a Rata trimestrale (con detrazione di 1/3 credito esercizio precedente)
A46: 2022-02-28 | B46: Data | C46: 4a Rata trimestrale (con detrazione di 1/3 credito esercizio precedente)
A47: 2021-06-15 | B47: Data | C47: Data approvazione RENDICONTO esercizio precedente e BILANCIO PREVENTIVO esercizio in corso
A50: DILAZIONI concesse dall'Assemblea
A51: 30 | B51: Numero | C51: Numero di giorni di dilazione per pagamento rate
A52: 15 | B52: Numero | C52: Numero di giorni di dilazione per pagamento conguagli
A55: DATI AMMINISTRATORE
A56: Amministratore | B56: Testo | C56: Caratteristica di chi amministra, ovvero "in qualità di"
A57: Pietro CHIEFARI | B57: Testo | C57: Titolo professionale, Cognome e Nome o Ragione Sociale
A58: Via Mazzini, 14 | B58: Testo | C58: Indirizzo
A59: 88068 - SOVERATO (CZ) | B59: Testo | C59: CAP - Città -Provincia
B60: Testo | C60: Telefono
A61: cell. 328-7569407 | B61: Testo | C61: Cellulare
A62: piasoft@piasoft.it | B62: Testo | C62: Indirizzo e-mail
B63: Testo | C63: Indirizzo pec
A71: 0 | E71: 0

Sheet iP2 (hidden)
A1: ='iP1'!A5 -> Condominio "TERMICO" | D1: ADATTAMENTO DEI PROSPETTTI AL CONDOMINIO | E1: 0
A2: I prospetti della procedura, sia di input che di output, hanno un numero massimo di righe e colonne, fissato dalla procedura stessa. In considerazione del fatto che il numero così fissato potrebbe essere sovrabbondante per il particolare condominio, la procedura automaticamente nasconde le righe e le colonne non necessarie per quel condominio, al fine di migliorare la leggibilità dei prospetti. Per farlo, utilizza i valori dei parametri forniti dall'utilizzatore nelle celle senza sfondo colorato del prospetto sottostante. I contenuti delle celle con sfondo colorato non possono essere variati così come le posizioni delle celle. Non saranno accettati valori dei parametri superiori a quelli massimi riportati nella colonna B. L'adattamento sarà fatto automaticamente dalla procedura quando si disattiva questo foglio, visualizzandone un altro.
A3: PARAMETRI DI ADATTAMENTO
A4: VALORE | B4: VALORE MAX | C4: TIPO | D4: Descrizione e indicazioni sul PARAMETRO
A5: PARAMETRI relativi al CONDOMINIO
A7: 24 | B7: 99 | C7: NUMERO | D7: Numero di UNITÀ IMMOBILIARI CATASTALI (UI)
A8: 23 | B8: 99 | C8: NUMERO | D8: Numero di Condomini o proprietari delle UNITÀ IMMOBILIARI CATASTALI
A9: 5 | B9: 99 | C9: NUMERO | D9: Numero di Inquilini delle U.I. del Condominio
A13: NUMERO di CAPITOLI e VOCI nei PIANI DEI CONTI CONDOMINIALI
A14: 10 | B14: 10 | C14: NUMERO | D14: Numero massimo di Capitoli nel piano dei conti delle USCITE
A15: 7 | B15: 15 | C15: NUMERO | D15: Numero di voci del capitolo S.01 delle USCITE
A16: 1 | B16: 10 | C16: NUMERO | D16: Numero di voci del capitolo S.02 delle USCITE
A17: 2 | B17: 10 | C17: NUMERO | D17: Numero di voci del capitolo S.03 delle USCITE
A18: 4 | B18: 10 | C18: NUMERO | D18: Numero di voci del capitolo S.04 delle USCITE
A19: 2 | B19: 10 | C19: NUMERO | D19: Numero di voci del capitolo S.05 delle USCITE
A20: 1 | B20: 5 | C20: NUMERO | D20: Numero di voci del capitolo S.06 delle USCITE
A21: 2 | B21: 5 | C21: NUMERO | D21: Numero di voci del capitolo S.07 delle USCITE
A22: 2 | B22: 5 | C22: NUMERO | D22: Numero di voci del capitolo L delle USCITE
A23: 2 | B23: 5 | C23: NUMERO | D23: Numero di voci del capitolo U delle USCITE
A25: 4 | B25: 4 | C25: NUMERO | D25: Numero massimo di Capitoli nel piano dei conti delle ENTRATE
A26: 1 | B26: 10 | C26: NUMERO | D26: Numero di voci del capitolo E delle ENTRATE
A27: 3 | B27: 5 | C27: NUMERO | D27: Numero di voci del capitolo V delle ENTRATE
A28: 0 | B28: 10 | C28: NUMERO | D28: Numero di voci del capitolo F delle Entrate (= 2 x numero FONDI SPECIALI)
A30: 4 | B30: 4 | C30: NUMERO | D30: Numero massimo di Capitoli nel piano dei conti dei CREDITI
A31: 5 | B31: 5 | C31: NUMERO | D31: Numero di voci del capitolo C.01 dei CREDITI
A32: 5 | B32: 5 | C32: NUMERO | D32: Numero di voci del capitolo C.02 dei CREDITI
A33: 1 | B33: 1 | C33: NUMERO | D33: Numero di voci del capitolo C.06 dei CREDITI
A35: 4 | B35: 4 | C35: NUMERO | D35: Numero massimo di Capitoli nel piano dei conti dei DEBITI
A36: 5 | B36: 5 | C36: NUMERO | D36: Numero di voci del capitolo D.01 dei DEBITI
A37: 5 | B37: 5 | C37: NUMERO | D37: Numero di voci del capitolo D.02 dei DEBITI (sempre 5)
A38: 5 | B38: 5 | C38: NUMERO | D38: Numero di voci del capitolo D.03 dei DEBITI
A50: PARAMETRI RELATIVI AD ALTRE GESTIONI
A51: 1 | B51: 1 | C51: NUMERO | D51: Numero altre gestioni con le quali la gestione interagisce (solo Gestione Ordinaria)
A53: PARAMETRI relativi all'esistenza di spese personali nel Preventivo
A54: 1 | C54: NUMERO | D54: 0 - Preventivo senza spese personali --- 1 - Preventivo con spese personali
A61: 0 | E61: 0

Sheet iP3 (hidden)
A1: ='iP1'!A5 -> Condominio "TERMICO" | C1: SCELTE dell'UTILIZZATORE | D1: 0
A2: È consentito immettere e/o variare solo i valori delle celle senza sfondo colorato, non è consentito spostare alcuna cella.
A3: DATO | B3: TIPO | C3: Indicazioni varie sul dato
A4: OPZIONI NELLA CREAZIONE DEI FILE PDF DELLE COMUNICAZIONI
A5: 1 | B5: Testo | C5: 0 - per creare un file della comunicazione per ogni condomino. 1 - per creare un unico file della comunicazione per tutti i condomini.
A6: 0 | B6: Testo | C6: 0 - per cancellare la cartella EXCEL utilizzata per la creazione del file PDF. 1 - per mantenere la cartella EXCEL utilizzata per la creazione del file PDF.
A7: Tabella B | B7: Testo | C7: Tabella i cui millesimi sono riportati nell'intestazione della comunicazione. (Nel caso di comunicazione generica, la comunicazione sarà redatta solo per i condomini che hanno millesimi diversi da zero nella tabella indicata.)
A8: Adobe Acrobat Reader DC | B8: Testo | C8: Programma di lettura dei PDF (Vivamente consigliato AdobeAcrobat Reader DC)
A9: 0 | B9: Testo | C9: 0 - per non riportare la data di stampa sulla copertina 1 - per riportare la data di stampa sulla copertina
A10: SOVERATO | B10: Testo | C10: Luogo della comunicazione
A11: =TODAY() -> 2022-09-30 | B11: Data | C11: Data della comunicazione. (si può porre "=OGGI()" o direttamente una data nel formato gg-mm-aaaa)
A12: TESTO sui PULSANTI dei PROMEMORIA
A13: CONSEGNE COMUNICAZ. | B13: Testo | C13: Pulsante PROMEMORIA 1 [ max. 22 caratteri]
A14: SCADENZE | B14: Testo | C14: Pulsante PROMEMORIA 2 [ max. 22 caratteri]
A17: TESTO per le INTESTAZIONI e PIÈ DI PAGINA delle PAGINE da STAMPARE
A18: Condominio "Termico" | B18: Testo | C18: Intestazione [compatibilmente con la larghezza della pagina]
A19: Condominio TERMICO | B19: Testo | C19: Piè di pagina [compatibilmente con la larghezza della pagina]
A23: ALTRI PARAMETRI A SCELTA DALL'UTILIZZATORE
A24: 0 | B24: Testo | C24: 0 - stampa elenco condomini uso amministratore. 1 - stampa elenco condomini uso esterno.
A25: 3 | B25: Testo | C25: 1 - Stampa Tabella per Unità Immobiliari. 2 - Stampa Tabella per Unità Immobiliari e per Condomini. 3 - Stampa Tabella per Unità Immobiliari, per Condomini e per Fruitori.
A26: 0 | B26: Testo | C26: 0 - stampa pagine interne fascicolo PDF in bianco e nero. 1 - stampa pagine interne fascicolo PDF a colori. L'opzione non è valida per il fascicolo del Bilancio Preventivo e del Rendiconto
A28: U2022-054 | B28: Testo | C28: Numero ultima lettera-ricevuta emessa per pagamento quote condominiali. (U[anno esercizio]-[stringa di tre lettere che interpetrata come numero sarà incrementata all'emissione della successiva lettera-ricevuta])
A30: 0 | D30: 0

Sheet iCONDOMINI (hidden)
A1: È consentito variare i dati delle sole celle senza sfondo colorato. I dati necessari hanno l'intestazione di colonna in rosso. | N1: 0
A7: ='iP1'!A5 -> Condominio "TERMICO"
C8: CONDOMINI e INQUILINI
A9: N. | B9: DATI IDENTIFICATIVI | E9: DATI DI CONTATTO
B10: CODICE | C10: DENOMINAZIONE | D10: S | E10: REFERENTE | F10: INDIRIZZO | G10: CAP | H10: CITTÀ | I10: PROV. | J10: TELEFONO | K10: CELLULLARE | L10: INDIRIZZO EMAIL | M10: INDIRIZZO PEC
A11: 1 | B11: C01 | C11: Condomino01 | D11: M | F11: Via Corrado Alvaro trav. 4 n. 13 | G11: 89044 | H11: LOCRI | I11: RC
A12: 2 | B12: C02 | C12: Condomino02 | D12: P | E12: CHIEFARI PIETRO | F12: Viale CUTURELLA 2/D | G12: 88068 | H12: SOVERATO | I12: CZ
A13: 3 | B13: C03 | C13: Condomino03 | D13: F | F13: Via dei MILLE 86 | G13: 88068 | H13: SOVERATO | I13: CZ
A14: 4 | B14: C04 | C14: Condomino04 S.r.l. | D14: D | F14: Via dei MILLE 16/18 | G14: 88068 | H14: SOVERATO | I14: CZ
A15: 5 | B15: C05 | C15: Condomino05 | D15: T | F15: Via dei MILLE 38 | G15: 88068 | H15: SOVERATO | I15: CZ
A16: 6 | B16: C06 | C16: Condomino06 | D16: M | F16: Via NAZIONALE 255 | G16: 88060 | H16: BADOLATO | I16: CZ
A17: 7 | B17: C07 | C17: Condomino07 | D17: F | F17: Via dei MILLE 22 | G17: 88068 | H17: SOVERATO | I17: CZ
A18: 8 | B18: C08 | C18: Eredi Condomino08 | D18: P | F18: Via MONTI IBLEI 1 | G18: 88068 | H18: SOVERATO | I18: CZ
A19: 9 | B19: C09 | C19: Condomino09 S.r.l. | D19: D | F19: Via dei MILLE 86 | G19: 88068 | H19: SOVERATO | I19: CZ
A20: 10 | B20: C10 | C20: Condomino10 | D20: M | F20: Via dei MILLE 22 | G20: 88068 | H20: SOVERATO | I20: CZ
A21: 11 | B21: C11 | C21: Condomino11 | D21: F | F21: Via SPASARI 33 | G21: 88100 | H21: CATANZARO | I21: CZ
A22: 12 | B22: C12 | C22: Condomino12 | D22: M | F22: Via dei MILLE 30 | G22: 88068 | H22: SOVERATO | I22: CZ
A23: 13 | B23: C13 | C23: Condomino13 | D23: M | F23: Via dei MILLE 38 | G23: 88068 | H23: SOVERATO | I23: CZ
A24: 14 | B24: C14 | C24: Condomino14 | D24: M | F24: Via dei MILLE 30 | G24: 88068 | H24: SOVERATO | I24: CZ
A25: 15 | B25: C15 | C25: Condomino15 | D25: M | F25: Via dei MILLE 20/18 | G25: 88068 | H25: SOVERATO | I25: CZ
A26: 16 | B26: C16 | C26: Condomino16 | D26: T | F26: Via dei MILLE 30 | G26: 88068 | H26: SOVERATO | I26: CZ
A27: 17 | B27: C17 | C27: Condomino17 | D27: R | F27: Via dei MILLE 22 | G27: 88068 | H27: SOVERATO | I27: CZ
A28: 18 | B28: C18 | C28: Condomino18 | D28: F | F28: Viale Bruno BUOZZI 31/A9 | G28: 00173 | H28: ROMA | I28: RM
A29: 19 | B29: C19 | C29: Condomino19 | D29: M | F29: Via dei MILLE 38 | G29: 88068 | H29: SOVERATO | I29: CZ
A30: 20 | B30: C20 | C30: Condomino20 | D30: M | F30: Via MONTI PELORITANI 3 | G30: 88068 | H30: SOVERATO | I30: CZ
A31: 21 | B31: C21 | C31: Condomino21 | D31: F | F31: Via dei MILLE 30 | G31: 88068 | H31: SOVERATO | I31: CZ
A32: 22 | B32: C22 | C32: Condomino22 | D32: F | F32: Via dei MILLE 38 | G32: 88068 | H32: SOVERATO | I32: CZ
A33: 23 | B33: C23 | C33: Condomino23 | D33: M | F33: Via dei MILLE 38 | G33: 88068 | H33: SOVERATO | I33: CZ
A34: 24 | B34: I01 | C34: Inquilino1 | D34: M | F34: Via dei MILLE 38 | G34: 88068 | H34: SOVERATO | I34: CZ
A35: 25 | B35: I02 | C35: Inquilino2 | D35: M | F35: Via dei MILLE 38 | G35: 88068 | H35: SOVERATO | I35: CZ
A36: 26 | B36: I03 | C36: Inquilino3 | D36: M | F36: Via dei MILLE 38 | G36: 88068 | H36: SOVERATO | I36: CZ
A37: 27 | B37: I04 | C37: Inquilino4 | D37: M | F37: Via dei MILLE 38 | G37: 88068 | H37: SOVERATO | I37: CZ
A38: 28 | B38: I05 | C38: Inquilino5 | D38: M | F38: Via dei MILLE 38 | G38: 88068 | H38: SOVERATO | I38: CZ
A39: 29
A40: 30
A41: 31
A42: 32
A43: 33
A44: 34
A45: 35
A46: 36
A47: 37
A48: 38
A49: 39
A50: 40
A51: 41
A52: 42
A53: 43
A54: 44
A55: 45
A56: 46
A57: 47
A58: 48
A59: 49
A60: 50
A61: 51
A62: 52
A63: 53
A64: 54
A65: 55
A66: 56
A67: 57
A68: 58
A69: 59
A70: 60
A71: 61
A72: 62
A73: 63
A74: 64
A75: 65
A76: 66
A77: 67
A78: 68
A79: 69
A80: 70
A81: 71
A82: 72
A83: 73
A84: 74
A85: 75
A86: 76
A87: 77
A88: 78
A89: 79
A90: 80
A91: 81
A92: 82
A93: 83
A94: 84
A95: 85
A96: 86
A97: 87
A98: 88
A99: 89
A100: 90
A101: 91
A102: 92
A103: 93
A104: 94
A105: 95
A106: 96
A107: 97
A108: 98
A109: 99
A111: 0 | N111: 0

Sheet iUI (hidden)
A1: È consentito variare i dati delle sole celle senza sfondo colorato. I dati necessari hanno l'intestazione di colonna in rosso. | W1: 0
A6: ='iP1'!A5 -> Condominio "TERMICO"
A7: UNITÀ IMMOBILIARI CATASTALI
A9: IDENTIFICATIVI CONDOMINIALI | D9: PROPRIETÀ | F9: IDENTIFICATIVI CATASTALI | P9: UBICAZIONE CATASTALE | V9: DESTINAZIONE CATASTALE
A10: n° U.I. | B10: Codice Unità Immobiliare Catastale | C10: Codice Condomino | D10: Codice Fruitore | E10: Denominazione Condomino/Inquilino | F10: Codice Catastale Comune | G10: Foglio | H10: Particella | I10: Subalterno | J10: Zona Censuaria | K10: Categoria | L10: Classe | M10: Consistenza (vani) | N10: Consistenza (mq) | O10: Rendita (euro) | P10: Odonimo | Q10: Civico | R10: Edificio | S10: Scala | T10: Piano | U10: Interno | V10: Utilizzazione Catastale
A11: 1 | B11: U01 | C11: C20 | D11: I01 | E11: =IF(C11<>"",IFERROR(VLOOKUP(C11,iCONDOMINI!$B$11:$C$109,2,FALSE),"") & " / " & IFERROR(VLOOKUP(D11,iCONDOMINI!$B$11:$C$109,2,FALSE),""),"") -> Condomino20 / Inquilino1 | F11: I872 | G11: 2 | H11: 326 | I11: 75 | J11: U | K11: A/2 | L11: U | M11: 7,5 | O11: 426.08 | P11: Via dei MILLE | Q11: 38 | R11: A | S11: A | T11: S1-P2 | U11: 2 | V11: ABITAZIONE
A12: 2 | B12: U02 | C12: C09 | D12: C09 | E12: =IF(C12<>"",IFERROR(VLOOKUP(C12,iCONDOMINI!$B$11:$C$109,2,FALSE),"") & " / " & IFERROR(VLOOKUP(D12,iCONDOMINI!$B$11:$C$109,2,FALSE),""),"") -> Condomino09 S.r.l. / Condomino09 S.r.l. | F12: I872 | G12: 2 | H12: 326 | I12: 58 | J12: U | K12: C/1 | L12: 2 | N12: 116 | O12: 1102.33 | P12: Via dei MILLE | Q12: 38 | R12: A | S12: A | T12: PT | V12: NEGOZIO
A13: 3 | B13: U03 | C13: C03 | D13: C03 | E13: =IF(C13<>"",IFERROR(VLOOKUP(C13,iCONDOMINI!$B$11:$C$109,2,FALSE),"") & " / " & IFERROR(VLOOKUP(D13,iCONDOMINI!$B$11:$C$109,2,FALSE),""),"") -> Condomino03 / Condomino03 | F13: I872 | G13: 2 | H13: 326 | I13: 76 | J13: U | K13: A/10 | L13: U | M13: 3,5 | O13: 343.44 | P13: Via dei MILLE | Q13: 38 | R13: A | S13: A | T13: PT | V13: STUDIO
A14: 4 | B14: U04 | C14: C04 | D14: C04 | E14: =IF(C14<>"",IFERROR(VLOOKUP(C14,iCONDOMINI!$B$11:$C$109,2,FALSE),"") & " / " & IFERROR(VLOOKUP(D14,iCONDOMINI!$B$11:$C$109,2,FALSE),""),"") -> Condomino04 S.r.l. / Condomino04 S.r.l. | F14: I872 | G14: 2 | H14: 326 | I14: 60 | J14: U | K14: C/1 | L14: 2 | N14: 122 | O14: 1159.34 | P14: Via dei MILLE | Q14: 30 | R14: B | S14: B | T14: PT | V14: NEGOZIO
A15: 5 | B15: U05 | C15: C23 | D15: C23 | E15: =IF(C15<>"",IFERROR(VLOOKUP(C15,iCONDOMINI!$B$11:$C$109,2,FALSE),"") & " / " & IFERROR(VLOOKUP(D15,iCONDOMINI!$B$11:$C$109,2,FALSE),""),"") -> Condomino23 / Condomino23 | F15: I872 | G15: 2 | H15: 326 | I15: 61 | J15: U | K15: C/1 | L15: 2 | N15: 161 | O15: 1529.95 | P15: Via dei MILLE | Q15: 30 | R15: B | S15: B | T15: PT | V15: NEGOZIO
A16: 6 | B16: U06 | C16: C15 | D16: C15 | E16: =IF(C16<>"",IFERROR(VLOOKUP(C16,iCONDOMINI!$B$11:$C$109,2,FALSE),"") & " / " & IFERROR(VLOOKUP(D16,iCONDOMINI!$B$11:$C$109,2,FALSE),""),"") -> Condomino15 / Condomino15 | F16: I872 | G16: 2 | H16: 326 | I16: 62 | J16: U | K16: C/1 | L16: 2 | N16: 140 | O16: 1330.39 | P16: Via dei MILLE | Q16: 22 | R16: C | S16: C | T16: PT | V16: NEGOZIO
A17: 7 | B17: U07 | C17: C05 | D17: C05 | E17: =IF(C17<>"",IFERROR(VLOOKUP(C17,iCONDOMINI!$B$11:$C$109,2,FALSE),"") & " / " & IFERROR(VLOOKUP(D17,iCONDOMINI!$B$11:$C$109,2,FALSE),""),"") -> Condomino05 / Condomino05 | F17: I872 | G17: 2 | H17: 326 | I17: 7 | J17: U | K17: A/2 | L17: U | M17: 7 | O17: 397,67 | P17: Via dei MILLE | Q17: 38 | R17: A | S17: A | T17: P1 | U17: 1 | V17: ABITAZIONE
A18: 8 | B18: U08 | C18: C13 | D18: C13 | E18: =IF(C18<>"",IFERROR(VLOOKUP(C18,iCONDOMINI!$B$11:$C$109,2,FALSE),"") & " / " & IFERROR(VLOOKUP(D18,iCONDOMINI!$B$11:$C$109,2,FALSE),""),"") -> Condomino13 / Condomino13 | F18: I872 | G18: 2 | H18: 326 | I18: 8 | J18: U | K18: A/2 | L18: U | M18: 6,5 | O18: 369.27 | P18: Via dei MILLE | Q18: 38 | R18: A | S18: A | T18: P1 | U18: 2 | V18: ABITAZIONE
A19: 9 | B19: U09 | C19: C11 | D19: C11 | E19: =IF(C19<>"",IFERROR(VLOOKUP(C19,iCONDOMINI!$B$11:$C$109,2,FALSE),"") & " / " & IFERROR(VLOOKUP(D19,iCONDOMINI!$B$11:$C$109,2,FALSE),""),"") -> Condomino11 / Condomino11 | F19: I872 | G19: 2 | H19: 326 | I19: 10 | J19: U | K19: A/2 | L19: U | M19: 6 | O19: 340.86 | P19: Via dei MILLE | Q19: 38 | R19: A | S19: A | T19: P2 | U19: 4 | V19: ABITAZIONE
A20: 10 | B20: U10 | C20: C19 | D20: C19 | E20: =IF(C20<>"",IFERROR(VLOOKUP(C20,iCONDOMINI!$B$11:$C$109,2,FALSE),"") & " / " & IFERROR(VLOOKUP(D20,iCONDOMINI!$B$11:$C$109,2,FALSE),""),"") -> Condomino19 / Condomino19 | F20: I872 | G20: 2 | H20: 326 | I20: 79 | J20: U | K20: A/2 | L20: U | M20: 6,5 | O20: 369.27 | P20: Via dei MILLE | Q20: 38 | R20: A | S20: A | T20: P3-P4 | U20: 5 | V20: ABITAZIONE
A21: 11 | B21: U11 | C21: C22 | D21: C22 | E21: =IF(C21<>"",IFERROR(VLOOKUP(C21,iCONDOMINI!$B$11:$C$109,2,FALSE),"") & " / " & IFERROR(VLOOKUP(D21,iCONDOMINI!$B$11:$C$109,2,FALSE),""),"") -> Condomino22 / Condomino22 | F21: I872 | G21: 2 | H21: 326 | I21: 80 | J21: U | K21: A/3 | L21: 2 | M21: 6 | O21: 189.02 | P21: Via dei MILLE | Q21: 38 | R21: A | S21: A | T21: P3 | U21: 6 | V21: ABITAZIONE
A22: 12 | B22: U12 | C22: C21 | D22: C21 | E22: =IF(C22<>"",IFERROR(VLOOKUP(C22,iCONDOMINI!$B$11:$C$109,2,FALSE),"") & " / " & IFERROR(VLOOKUP(D22,iCONDOMINI!$B$11:$C$109,2,FALSE),""),"") -> Condomino21 / Condomino21 | F22: I872 | G22: 2 | H22: 326 | I22: 14 | J22: U | K22: A/2 | L22: U | M22: 6 | O22: 340.86 | P22: Via dei MILLE | Q22: 38 | R22: A | S22: A | T22: P1 | U22: 1 | V22: ABITAZIONE
A23: 13 | B23: U13 | C23: C18 | D23: I02 | E23: =IF(C23<>"",IFERROR(VLOOKUP(C23,iCONDOMINI!$B$11:$C$109,2,FALSE),"") & " / " & IFERROR(VLOOKUP(D23,iCONDOMINI!$B$11:$C$109,2,FALSE),""),"") -> Condomino18 / Inquilino2 | F23: I872 | G23: 2 | H23: 326 | I23: 15 | J23: U | K23: A/2 | L23: U | M23: 6 | O23: 340.86 | P23: Via dei MILLE | Q23: 30 | R23: B | S23: B | T23: P1 | U23: 2 | V23: ABITAZIONE
A24: 14 | B24: U14 | C24: C14 | D24: C14 | E24: =IF(C24<>"",IFERROR(VLOOKUP(C24,iCONDOMINI!$B$11:$C$109,2,FALSE),"") & " / " & IFERROR(VLOOKUP(D24,iCONDOMINI!$B$11:$C$109,2,FALSE),""),"") -> Condomino14 / Condomino14 | F24: I872 | G24: 2 | H24: 326 | I24: 16 | J24: U | K24: A/2 | L24: U | M24: 5,5 | O24: 312.46 | P24: Via dei MILLE | Q24: 30 | R24: B | S24: B | T24: P1 | U24: 2 | V24: ABITAZIONE
A25: 15 | B25: U15 | C25: C02 | D25: I03 | E25: =IF(C25<>"",IFERROR(VLOOKUP(C25,iCONDOMINI!$B$11:$C$109,2,FALSE),"") & " / " & IFERROR(VLOOKUP(D25,iCONDOMINI!$B$11:$C$109,2,FALSE),""),"") -> Condomino02 / Inquilino3 | F25: I872 | G25: 2 | H25: 326 | I25: 17 | J25: U | K25: A/3 | L25: 4 | M25: 4 | O25: 171.46 | P25: Via dei MILLE | Q25: 30 | R25: B | S25: B | T25: P2 | U25: 4 | V25: ABITAZIONE
A26: 16 | B26: U16 | C26: C16 | D26: C16 | E26: =IF(C26<>"",IFERROR(VLOOKUP(C26,iCONDOMINI!$B$11:$C$109,2,FALSE),"") & " / " & IFERROR(VLOOKUP(D26,iCONDOMINI!$B$11:$C$109,2,FALSE),""),"") -> Condomino16 / Condomino16 | F26: I872 | G26: 2 | H26: 326 | I26: 83 | J26: U | K26: A/2 | L26: U | M26: 6 | O26: 340.86 | P26: Via dei MILLE | Q26: 30 | R26: B | S26: B | T26: P3 | U26: 4 | V26: ABITAZIONE
A27: 17 | B27: U17 | C27: C12 | D27: C12 | E27: =IF(C27<>"",IFERROR(VLOOKUP(C27,iCONDOMINI!$B$11:$C$109,2,FALSE),"") & " / " & IFERROR(VLOOKUP(D27,iCONDOMINI!$B$11:$C$109,2,FALSE),""),"") -> Condomino12 / Condomino12 | F27: I872 | G27: 2 | H27: 326 | I27: 81 | J27: U | K27: A/2 | L27: U | M27: 6 | O27: 340.86 | P27: Via dei MILLE | Q27: 30 | R27: B | S27: B | T27: P3-P4 | U27: 6 | V27: ABITAZIONE
A28: 18 | B28: U18 | C28: C06 | D28: C06 | E28: =IF(C28<>"",IFERROR(VLOOKUP(C28,iCONDOMINI!$B$11:$C$109,2,FALSE),"") & " / " & IFERROR(VLOOKUP(D28,iCONDOMINI!$B$11:$C$109,2,FALSE),""),"") -> Condomino06 / Condomino06 | F28: I872 | G28: 2 | H28: 326 | I28: 21 | J28: U | K28: A/2 | L28: U | M28: 6 | O28: 340.86 | P28: Via dei MILLE | Q28: 30 | R28: B | S28: B | T28: P1 | U28: 1 | V28: ABITAZIONE
A29: 19 | B29: U19 | C29: C07 | D29: C07 | E29: =IF(C29<>"",IFERROR(VLOOKUP(C29,iCONDOMINI!$B$11:$C$109,2,FALSE),"") & " / " & IFERROR(VLOOKUP(D29,iCONDOMINI!$B$11:$C$109,2,FALSE),""),"") -> Condomino07 / Condomino07 | F29: I872 | G29: 2 | H29: 326 | I29: 22 | J29: U | K29: A/2 | L29: U | M29: 7 | O29: 397.67 | P29: Via dei MILLE | Q29: 22 | R29: C | S29: C | T29: P1 | U29: 4 | V29: ABITAZIONE
A30: 20 | B30: U20 | C30: C17 | D30: C17 | E30: =IF(C30<>"",IFERROR(VLOOKUP(C30,iCONDOMINI!$B$11:$C$109,2,FALSE),"") & " / " & IFERROR(VLOOKUP(D30,iCONDOMINI!$B$11:$C$109,2,FALSE),""),"") -> Condomino17 / Condomino17 | F30: I872 | G30: 2 | H30: 326 | I30: 23 | J30: U | K30: A/1 | L30: U | M30: 6 | O30: 557.77 | P30: Via dei MILLE | Q30: 22 | R30: C | S30: C | T30: P2 | U30: 3 | V30: ABITAZIONE
A31: 21 | B31: U21 | C31: C01 | D31: C01 | E31: =IF(C31<>"",IFERROR(VLOOKUP(C31,iCONDOMINI!$B$11:$C$109,2,FALSE),"") & " / " & IFERROR(VLOOKUP(D31,iCONDOMINI!$B$11:$C$109,2,FALSE),""),"") -> Condomino01 / Condomino01 | F31: I872 | G31: 2 | H31: 326 | I31: 24 | J31: U | K31: A/2 | L31: U | M31: 6,5 | O31: 369.27 | P31: Via dei MILLE | Q31: 22 | R31: C | S31: C | T31: P2 | U31: 4 | V31: ABITAZIONE
A32: 22 | B32: U22 | C32: C10 | D32: I04 | E32: =IF(C32<>"",IFERROR(VLOOKUP(C32,iCONDOMINI!$B$11:$C$109,2,FALSE),"") & " / " & IFERROR(VLOOKUP(D32,iCONDOMINI!$B$11:$C$109,2,FALSE),""),"") -> Condomino10 / Inquilino4 | F32: I872 | G32: 2 | H32: 326 | I32: 82 | J32: U | K32: A/2 | L32: U | M32: 9,5 | O32: 539.7 | P32: Via dei MILLE | Q32: 22 | R32: C | S32: C | T32: P3-P4 | U32: 5 | V32: ABITAZIONE
A33: 23 | B33: U23 | C33: C08 | D33: C08 | E33: =IF(C33<>"",IFERROR(VLOOKUP(C33,iCONDOMINI!$B$11:$C$109,2,FALSE),"") & " / " & IFERROR(VLOOKUP(D33,iCONDOMINI!$B$11:$C$109,2,FALSE),""),"") -> Eredi Condomino08 / Eredi Condomino08 | F33: I872 | G33: 2 | H33: 326 | I33: 73 | J33: U | K33: C/2 | L33: 1 | N33: 61 | O33: 66.16 | P33: Via dei MILLE | Q33: 22 | R33: C | S33: C | T33: P4 | V33: SOFFITTA
A34: 24 | B34: U24 | C34: C12 | D34: I05 | E34: =IF(C34<>"",IFERROR(VLOOKUP(C34,iCONDOMINI!$B$11:$C$109,2,FALSE),"") & " / " & IFERROR(VLOOKUP(D34,iCONDOMINI!$B$11:$C$109,2,FALSE),""),"") -> Condomino12 / Inquilino5 | F34: I872 | G34: 2 | H34: 326 | I34: 78 | J34: U | K34: C/2 | L34: 2 | N34: 24 | O34: 30.99 | P34: Via dei MILLE | Q34: 38 | R34: A | S34: A | T34: P4 | V34: SOFFITTA
A35: 25 | B35: U25 | E35: =IF(C35<>"",IFERROR(VLOOKUP(C35,iCONDOMINI!$B$11:$C$109,2,FALSE),"") & " / " & IFERROR(VLOOKUP(D35,iCONDOMINI!$B$11:$C$109,2,FALSE),""),"") -> 
A36: 26 | B36: U26 | E36: =IF(C36<>"",IFERROR(VLOOKUP(C36,iCONDOMINI!$B$11:$C$109,2,FALSE),"") & " / " & IFERROR(VLOOKUP(D36,iCONDOMINI!$B$11:$C$109,2,FALSE),""),"") -> 
A37: 27 | B37: U27 | E37: =IF(C37<>"",IFERROR(VLOOKUP(C37,iCONDOMINI!$B$11:$C$109,2,FALSE),"") & " / " & IFERROR(VLOOKUP(D37,iCONDOMINI!$B$11:$C$109,2,FALSE),""),"") -> 
A38: 28 | B38: U28 | E38: =IF(C38<>"",IFERROR(VLOOKUP(C38,iCONDOMINI!$B$11:$C$109,2,FALSE),"") & " / " & IFERROR(VLOOKUP(D38,iCONDOMINI!$B$11:$C$109,2,FALSE),""),"") -> 
A39: 29 | B39: U29 | E39: =IF(C39<>"",IFERROR(VLOOKUP(C39,iCONDOMINI!$B$11:$C$109,2,FALSE),"") & " / " & IFERROR(VLOOKUP(D39,iCONDOMINI!$B$11:$C$109,2,FALSE),""),"") -> 
A40: 30 | B40: U30 | E40: =IF(C40<>"",IFERROR(VLOOKUP(C40,iCONDOMINI!$B$11:$C$109,2,FALSE),"") & " / " & IFERROR(VLOOKUP(D40,iCONDOMINI!$B$11:$C$109,2,FALSE),""),"") -> 
A41: 31 | B41: U31 | E41: =IF(C41<>"",IFERROR(VLOOKUP(C41,iCONDOMINI!$B$11:$C$109,2,FALSE),"") & " / " & IFERROR(VLOOKUP(D41,iCONDOMINI!$B$11:$C$109,2,FALSE),""),"") -> 
A42: 32 | B42: U32 | E42: =IF(C42<>"",IFERROR(VLOOKUP(C42,iCONDOMINI!$B$11:$C$109,2,FALSE),"") & " / " & IFERROR(VLOOKUP(D42,iCONDOMINI!$B$11:$C$109,2,FALSE),""),"") -> 
A43: 33 | B43: U33 | E43: =IF(C43<>"",IFERROR(VLOOKUP(C43,iCONDOMINI!$B$11:$C$109,2,FALSE),"") & " / " & IFERROR(VLOOKUP(D43,iCONDOMINI!$B$11:$C$109,2,FALSE),""),"") -> 
A44: 34 | B44: U34 | E44: =IF(C44<>"",IFERROR(VLOOKUP(C44,iCONDOMINI!$B$11:$C$109,2,FALSE),"") & " / " & IFERROR(VLOOKUP(D44,iCONDOMINI!$B$11:$C$109,2,FALSE),""),"") -> 
A45: 35 | B45: U35 | E45: =IF(C45<>"",IFERROR(VLOOKUP(C45,iCONDOMINI!$B$11:$C$109,2,FALSE),"") & " / " & IFERROR(VLOOKUP(D45,iCONDOMINI!$B$11:$C$109,2,FALSE),""),"") -> 
A46: 36 | B46: U36 | E46: =IF(C46<>"",IFERROR(VLOOKUP(C46,iCONDOMINI!$B$11:$C$109,2,FALSE),"") & " / " & IFERROR(VLOOKUP(D46,iCONDOMINI!$B$11:$C$109,2,FALSE),""),"") -> 
A47: 37 | B47: U37 | E47: =IF(C47<>"",IFERROR(VLOOKUP(C47,iCONDOMINI!$B$11:$C$109,2,FALSE),"") & " / " & IFERROR(VLOOKUP(D47,iCONDOMINI!$B$11:$C$109,2,FALSE),""),"") -> 
A48: 38 | B48: U38 | E48: =IF(C48<>"",IFERROR(VLOOKUP(C48,iCONDOMINI!$B$11:$C$109,2,FALSE),"") & " / " & IFERROR(VLOOKUP(D48,iCONDOMINI!$B$11:$C$109,2,FALSE),""),"") -> 
A49: 39 | B49: U39 | E49: =IF(C49<>"",IFERROR(VLOOKUP(C49,iCONDOMINI!$B$11:$C$109,2,FALSE),"") & " / " & IFERROR(VLOOKUP(D49,iCONDOMINI!$B$11:$C$109,2,FALSE),""),"") -> 
A50: 40 | B50: U40 | E50: =IF(C50<>"",IFERROR(VLOOKUP(C50,iCONDOMINI!$B$11:$C$109,2,FALSE),"") & " / " & IFERROR(VLOOKUP(D50,iCONDOMINI!$B$11:$C$109,2,FALSE),""),"") -> 
A51: 41 | B51: U41 | E51: =IF(C51<>"",IFERROR(VLOOKUP(C51,iCONDOMINI!$B$11:$C$109,2,FALSE),"") & " / " & IFERROR(VLOOKUP(D51,iCONDOMINI!$B$11:$C$109,2,FALSE),""),"") -> 
A52: 42 | B52: U42 | E52: =IF(C52<>"",IFERROR(VLOOKUP(C52,iCONDOMINI!$B$11:$C$109,2,FALSE),"") & " / " & IFERROR(VLOOKUP(D52,iCONDOMINI!$B$11:$C$109,2,FALSE),""),"") -> 
A53: 43 | B53: U43 | E53: =IF(C53<>"",IFERROR(VLOOKUP(C53,iCONDOMINI!$B$11:$C$109,2,FALSE),"") & " / " & IFERROR(VLOOKUP(D53,iCONDOMINI!$B$11:$C$109,2,FALSE),""),"") -> 
A54: 44 | B54: U44 | E54: =IF(C54<>"",IFERROR(VLOOKUP(C54,iCONDOMINI!$B$11:$C$109,2,FALSE),"") & " / " & IFERROR(VLOOKUP(D54,iCONDOMINI!$B$11:$C$109,2,FALSE),""),"") -> 
A55: 45 | B55: U45 | E55: =IF(C55<>"",IFERROR(VLOOKUP(C55,iCONDOMINI!$B$11:$C$109,2,FALSE),"") & " / " & IFERROR(VLOOKUP(D55,iCONDOMINI!$B$11:$C$109,2,FALSE),""),"") -> 
A56: 46 | B56: U46 | E56: =IF(C56<>"",IFERROR(VLOOKUP(C56,iCONDOMINI!$B$11:$C$109,2,FALSE),"") & " / " & IFERROR(VLOOKUP(D56,iCONDOMINI!$B$11:$C$109,2,FALSE),""),"") -> 
A57: 47 | B57: U47 | E57: =IF(C57<>"",IFERROR(VLOOKUP(C57,iCONDOMINI!$B$11:$C$109,2,FALSE),"") & " / " & IFERROR(VLOOKUP(D57,iCONDOMINI!$B$11:$C$109,2,FALSE),""),"") -> 
A58: 48 | B58: U48 | E58: =IF(C58<>"",IFERROR(VLOOKUP(C58,iCONDOMINI!$B$11:$C$109,2,FALSE),"") & " / " & IFERROR(VLOOKUP(D58,iCONDOMINI!$B$11:$C$109,2,FALSE),""),"") -> 
A59: 49 | B59: U49 | E59: =IF(C59<>"",IFERROR(VLOOKUP(C59,iCONDOMINI!$B$11:$C$109,2,FALSE),"") & " / " & IFERROR(VLOOKUP(D59,iCONDOMINI!$B$11:$C$109,2,FALSE),""),"") -> 
A60: 50 | B60: U50 | E60: =IF(C60<>"",IFERROR(VLOOKUP(C60,iCONDOMINI!$B$11:$C$109,2,FALSE),"") & " / " & IFERROR(VLOOKUP(D60,iCONDOMINI!$B$11:$C$109,2,FALSE),""),"") -> 
A61: 51 | B61: U51 | E61: =IF(C61<>"",IFERROR(VLOOKUP(C61,iCONDOMINI!$B$11:$C$109,2,FALSE),"") & " / " & IFERROR(VLOOKUP(D61,iCONDOMINI!$B$11:$C$109,2,FALSE),""),"") -> 
A62: 52 | B62: U52 | E62: =IF(C62<>"",IFERROR(VLOOKUP(C62,iCONDOMINI!$B$11:$C$109,2,FALSE),"") & " / " & IFERROR(VLOOKUP(D62,iCONDOMINI!$B$11:$C$109,2,FALSE),""),"") -> 
A63: 53 | B63: U53 | E63: =IF(C63<>"",IFERROR(VLOOKUP(C63,iCONDOMINI!$B$11:$C$109,2,FALSE),"") & " / " & IFERROR(VLOOKUP(D63,iCONDOMINI!$B$11:$C$109,2,FALSE),""),"") -> 
A64: 54 | B64: U54 | E64: =IF(C64<>"",IFERROR(VLOOKUP(C64,iCONDOMINI!$B$11:$C$109,2,FALSE),"") & " / " & IFERROR(VLOOKUP(D64,iCONDOMINI!$B$11:$C$109,2,FALSE),""),"") -> 
A65: 55 | B65: U55 | E65: =IF(C65<>"",IFERROR(VLOOKUP(C65,iCONDOMINI!$B$11:$C$109,2,FALSE),"") & " / " & IFERROR(VLOOKUP(D65,iCONDOMINI!$B$11:$C$109,2,FALSE),""),"") -> 
A66: 56 | B66: U56 | E66: =IF(C66<>"",IFERROR(VLOOKUP(C66,iCONDOMINI!$B$11:$C$109,2,FALSE),"") & " / " & IFERROR(VLOOKUP(D66,iCONDOMINI!$B$11:$C$109,2,FALSE),""),"") -> 
A67: 57 | B67: U57 | E67: =IF(C67<>"",IFERROR(VLOOKUP(C67,iCONDOMINI!$B$11:$C$109,2,FALSE),"") & " / " & IFERROR(VLOOKUP(D67,iCONDOMINI!$B$11:$C$109,2,FALSE),""),"") -> 
A68: 58 | B68: U58 | E68: =IF(C68<>"",IFERROR(VLOOKUP(C68,iCONDOMINI!$B$11:$C$109,2,FALSE),"") & " / " & IFERROR(VLOOKUP(D68,iCONDOMINI!$B$11:$C$109,2,FALSE),""),"") -> 
A69: 59 | B69: U59 | E69: =IF(C69<>"",IFERROR(VLOOKUP(C69,iCONDOMINI!$B$11:$C$109,2,FALSE),"") & " / " & IFERROR(VLOOKUP(D69,iCONDOMINI!$B$11:$C$109,2,FALSE),""),"") -> 
A70: 60 | B70: U60 | E70: =IF(C70<>"",IFERROR(VLOOKUP(C70,iCONDOMINI!$B$11:$C$109,2,FALSE),"") & " / " & IFERROR(VLOOKUP(D70,iCONDOMINI!$B$11:$C$109,2,FALSE),""),"") -> 
A71: 61 | B71: U61 | E71: =IF(C71<>"",IFERROR(VLOOKUP(C71,iCONDOMINI!$B$11:$C$109,2,FALSE),"") & " / " & IFERROR(VLOOKUP(D71,iCONDOMINI!$B$11:$C$109,2,FALSE),""),"") -> 
A72: 62 | B72: U62 | E72: =IF(C72<>"",IFERROR(VLOOKUP(C72,iCONDOMINI!$B$11:$C$109,2,FALSE),"") & " / " & IFERROR(VLOOKUP(D72,iCONDOMINI!$B$11:$C$109,2,FALSE),""),"") -> 
A73: 63 | B73: U63 | E73: =IF(C73<>"",IFERROR(VLOOKUP(C73,iCONDOMINI!$B$11:$C$109,2,FALSE),"") & " / " & IFERROR(VLOOKUP(D73,iCONDOMINI!$B$11:$C$109,2,FALSE),""),"") -> 
A74: 64 | B74: U64 | E74: =IF(C74<>"",IFERROR(VLOOKUP(C74,iCONDOMINI!$B$11:$C$109,2,FALSE),"") & " / " & IFERROR(VLOOKUP(D74,iCONDOMINI!$B$11:$C$109,2,FALSE),""),"") -> 
A75: 65 | B75: U65 | E75: =IF(C75<>"",IFERROR(VLOOKUP(C75,iCONDOMINI!$B$11:$C$109,2,FALSE),"") & " / " & IFERROR(VLOOKUP(D75,iCONDOMINI!$B$11:$C$109,2,FALSE),""),"") -> 
A76: 66 | B76: U66 | E76: =IF(C76<>"",IFERROR(VLOOKUP(C76,iCONDOMINI!$B$11:$C$109,2,FALSE),"") & " / " & IFERROR(VLOOKUP(D76,iCONDOMINI!$B$11:$C$109,2,FALSE),""),"") -> 
A77: 67 | B77: U67 | E77: =IF(C77<>"",IFERROR(VLOOKUP(C77,iCONDOMINI!$B$11:$C$109,2,FALSE),"") & " / " & IFERROR(VLOOKUP(D77,iCONDOMINI!$B$11:$C$109,2,FALSE),""),"") -> 
A78: 68 | B78: U68 | E78: =IF(C78<>"",IFERROR(VLOOKUP(C78,iCONDOMINI!$B$11:$C$109,2,FALSE),"") & " / " & IFERROR(VLOOKUP(D78,iCONDOMINI!$B$11:$C$109,2,FALSE),""),"") -> 
A79: 69 | B79: U69 | E79: =IF(C79<>"",IFERROR(VLOOKUP(C79,iCONDOMINI!$B$11:$C$109,2,FALSE),"") & " / " & IFERROR(VLOOKUP(D79,iCONDOMINI!$B$11:$C$109,2,FALSE),""),"") -> 
A80: 70 | B80: U70 | E80: =IF(C80<>"",IFERROR(VLOOKUP(C80,iCONDOMINI!$B$11:$C$109,2,FALSE),"") & " / " & IFERROR(VLOOKUP(D80,iCONDOMINI!$B$11:$C$109,2,FALSE),""),"") -> 
A81: 71 | B81: U71 | E81: =IF(C81<>"",IFERROR(VLOOKUP(C81,iCONDOMINI!$B$11:$C$109,2,FALSE),"") & " / " & IFERROR(VLOOKUP(D81,iCONDOMINI!$B$11:$C$109,2,FALSE),""),"") -> 
A82: 72 | B82: U72 | E82: =IF(C82<>"",IFERROR(VLOOKUP(C82,iCONDOMINI!$B$11:$C$109,2,FALSE),"") & " / " & IFERROR(VLOOKUP(D82,iCONDOMINI!$B$11:$C$109,2,FALSE),""),"") -> 
A83: 73 | B83: U73 | E83: =IF(C83<>"",IFERROR(VLOOKUP(C83,iCONDOMINI!$B$11:$C$109,2,FALSE),"") & " / " & IFERROR(VLOOKUP(D83,iCONDOMINI!$B$11:$C$109,2,FALSE),""),"") -> 
A84: 74 | B84: U74 | E84: =IF(C84<>"",IFERROR(VLOOKUP(C84,iCONDOMINI!$B$11:$C$109,2,FALSE),"") & " / " & IFERROR(VLOOKUP(D84,iCONDOMINI!$B$11:$C$109,2,FALSE),""),"") -> 
A85: 75 | B85: U75 | E85: =IF(C85<>"",IFERROR(VLOOKUP(C85,iCONDOMINI!$B$11:$C$109,2,FALSE),"") & " / " & IFERROR(VLOOKUP(D85,iCONDOMINI!$B$11:$C$109,2,FALSE),""),"") -> 
A86: 76 | B86: U76 | E86: =IF(C86<>"",IFERROR(VLOOKUP(C86,iCONDOMINI!$B$11:$C$109,2,FALSE),"") & " / " & IFERROR(VLOOKUP(D86,iCONDOMINI!$B$11:$C$109,2,FALSE),""),"") -> 
A87: 77 | B87: U77 | E87: =IF(C87<>"",IFERROR(VLOOKUP(C87,iCONDOMINI!$B$11:$C$109,2,FALSE),"") & " / " & IFERROR(VLOOKUP(D87,iCONDOMINI!$B$11:$C$109,2,FALSE),""),"") -> 
A88: 78 | B88: U78 | E88: =IF(C88<>"",IFERROR(VLOOKUP(C88,iCONDOMINI!$B$11:$C$109,2,FALSE),"") & " / " & IFERROR(VLOOKUP(D88,iCONDOMINI!$B$11:$C$109,2,FALSE),""),"") -> 
A89: 79 | B89: U79 | E89: =IF(C89<>"",IFERROR(VLOOKUP(C89,iCONDOMINI!$B$11:$C$109,2,FALSE),"") & " / " & IFERROR(VLOOKUP(D89,iCONDOMINI!$B$11:$C$109,2,FALSE),""),"") -> 
A90: 80 | B90: U80 | E90: =IF(C90<>"",IFERROR(VLOOKUP(C90,iCONDOMINI!$B$11:$C$109,2,FALSE),"") & " / " & IFERROR(VLOOKUP(D90,iCONDOMINI!$B$11:$C$109,2,FALSE),""),"") -> 
A91: 81 | B91: U81 | E91: =IF(C91<>"",IFERROR(VLOOKUP(C91,iCONDOMINI!$B$11:$C$109,2,FALSE),"") & " / " & IFERROR(VLOOKUP(D91,iCONDOMINI!$B$11:$C$109,2,FALSE),""),"") -> 
A92: 82 | B92: U82 | E92: =IF(C92<>"",IFERROR(VLOOKUP(C92,iCONDOMINI!$B$11:$C$109,2,FALSE),"") & " / " & IFERROR(VLOOKUP(D92,iCONDOMINI!$B$11:$C$109,2,FALSE),""),"") -> 
A93: 83 | B93: U83 | E93: =IF(C93<>"",IFERROR(VLOOKUP(C93,iCONDOMINI!$B$11:$C$109,2,FALSE),"") & " / " & IFERROR(VLOOKUP(D93,iCONDOMINI!$B$11:$C$109,2,FALSE),""),"") -> 
A94: 84 | B94: U84 | E94: =IF(C94<>"",IFERROR(VLOOKUP(C94,iCONDOMINI!$B$11:$C$109,2,FALSE),"") & " / " & IFERROR(VLOOKUP(D94,iCONDOMINI!$B$11:$C$109,2,FALSE),""),"") -> 
A95: 85 | B95: U85 | E95: =IF(C95<>"",IFERROR(VLOOKUP(C95,iCONDOMINI!$B$11:$C$109,2,FALSE),"") & " / " & IFERROR(VLOOKUP(D95,iCONDOMINI!$B$11:$C$109,2,FALSE),""),"") -> 
A96: 86 | B96: U86 | E96: =IF(C96<>"",IFERROR(VLOOKUP(C96,iCONDOMINI!$B$11:$C$109,2,FALSE),"") & " / " & IFERROR(VLOOKUP(D96,iCONDOMINI!$B$11:$C$109,2,FALSE),""),"") -> 
A97: 87 | B97: U87 | E97: =IF(C97<>"",IFERROR(VLOOKUP(C97,iCONDOMINI!$B$11:$C$109,2,FALSE),"") & " / " & IFERROR(VLOOKUP(D97,iCONDOMINI!$B$11:$C$109,2,FALSE),""),"") -> 
A98: 88 | B98: U88 | E98: =IF(C98<>"",IFERROR(VLOOKUP(C98,iCONDOMINI!$B$11:$C$109,2,FALSE),"") & " / " & IFERROR(VLOOKUP(D98,iCONDOMINI!$B$11:$C$109,2,FALSE),""),"") -> 
A99: 89 | B99: U89 | E99: =IF(C99<>"",IFERROR(VLOOKUP(C99,iCONDOMINI!$B$11:$C$109,2,FALSE),"") & " / " & IFERROR(VLOOKUP(D99,iCONDOMINI!$B$11:$C$109,2,FALSE),""),"") -> 
A100: 90 | B100: U90 | E100: =IF(C100<>"",IFERROR(VLOOKUP(C100,iCONDOMINI!$B$11:$C$109,2,FALSE),"") & " / " & IFERROR(VLOOKUP(D100,iCONDOMINI!$B$11:$C$109,2,FALSE),""),"") -> 
A101: 91 | B101: U91 | E101: =IF(C101<>"",IFERROR(VLOOKUP(C101,iCONDOMINI!$B$11:$C$109,2,FALSE),"") & " / " & IFERROR(VLOOKUP(D101,iCONDOMINI!$B$11:$C$109,2,FALSE),""),"") -> 
A102: 92 | B102: U92 | E102: =IF(C102<>"",IFERROR(VLOOKUP(C102,iCONDOMINI!$B$11:$C$109,2,FALSE),"") & " / " & IFERROR(VLOOKUP(D102,iCONDOMINI!$B$11:$C$109,2,FALSE),""),"") -> 
A103: 93 | B103: U93 | E103: =IF(C103<>"",IFERROR(VLOOKUP(C103,iCONDOMINI!$B$11:$C$109,2,FALSE),"") & " / " & IFERROR(VLOOKUP(D103,iCONDOMINI!$B$11:$C$109,2,FALSE),""),"") -> 
A104: 94 | B104: U94 | E104: =IF(C104<>"",IFERROR(VLOOKUP(C104,iCONDOMINI!$B$11:$C$109,2,FALSE),"") & " / " & IFERROR(VLOOKUP(D104,iCONDOMINI!$B$11:$C$109,2,FALSE),""),"") -> 
A105: 95 | B105: U95 | E105: =IF(C105<>"",IFERROR(VLOOKUP(C105,iCONDOMINI!$B$11:$C$109,2,FALSE),"") & " / " & IFERROR(VLOOKUP(D105,iCONDOMINI!$B$11:$C$109,2,FALSE),""),"") -> 
A106: 96 | B106: U96 | E106: =IF(C106<>"",IFERROR(VLOOKUP(C106,iCONDOMINI!$B$11:$C$109,2,FALSE),"") & " / " & IFERROR(VLOOKUP(D106,iCONDOMINI!$B$11:$C$109,2,FALSE),""),"") -> 
A107: 97 | B107: U97 | E107: =IF(C107<>"",IFERROR(VLOOKUP(C107,iCONDOMINI!$B$11:$C$109,2,FALSE),"") & " / " & IFERROR(VLOOKUP(D107,iCONDOMINI!$B$11:$C$109,2,FALSE),""),"") -> 
A108: 98 | B108: U98 | E108: =IF(C108<>"",IFERROR(VLOOKUP(C108,iCONDOMINI!$B$11:$C$109,2,FALSE),"") & " / " & IFERROR(VLOOKUP(D108,iCONDOMINI!$B$11:$C$109,2,FALSE),""),"") -> 
A109: 99 | B109: U99 | E109: =IF(C109<>"",IFERROR(VLOOKUP(C109,iCONDOMINI!$B$11:$C$109,2,FALSE),"") & " / " & IFERROR(VLOOKUP(D109,iCONDOMINI!$B$11:$C$109,2,FALSE),""),"") -> 
A111: 0 | W111: 0

Sheet nPC (hidden)
A1: ='iP1'!A5 -> Condominio "TERMICO"
A2: IL PIANO DEI CONTI
A3: La procedura GSRIS gestisce la contabilità condominiale con il metodo del Piano dei Conti. Con tale metodo ad ogni operazione o rilevazione contabile è assegnato uno o più codici di conto, al fine di caratterizzare l'operazione attribuendole così sia una causale di raggruppamento e sia una conseguente modalità di trattamento contabile. Il piano dei conti è costituito dall'insieme di tutti i conti utilizzabili nella tenuta delle scritture contabili relative alla gestione economico-finanziaria del condominio. Il piano dei conti è suddiviso in più piani parziali dei conti : 1 - PIANO DELLE USCITE 2 - PIANO DELLE ENTRATE 3 - PIANO DEI CREDITI 4 - PIANO DEI DEBITI
A4: Un piano parziale dei conti si presenta sotto forma di un prospetto che associa le descrizioni delle operazioni contabili (di pagamento, di incasso, ecc.) normalmente eseguite dall'amministratore e designate come causale o intestazione o oggetto del conto o voce di bilancio ad una stringa alfanumerica di tre o quattro campi separati da punti (codice del conto). Il primo campo del CODICE CONTO è detto Sezione ed è costituito da una sola lettera maiuscola. Il secondo campo è costituito di solito da un numero a due cifre ed indica il capitolo o mastro della sezione, quale causale comune che raggruppa i sottoconti o voci individuati dal terzo campo, sempre di tipo numerico a due cifre. Per alcune voci si potrebbe avere un ulteriore campo che fornisce una ulteriore suddivisione per gli elementi che costituiscono la voce.
A5: PIANO DELLE USCITE. Le sezioni sono sei e sono individuati dalle lettere S, L, G, P, U e R. Il piano dei conti delle uscite condominiali, a differenza di quello per aziende, prevede, per i conti relativi a spese, un’ulteriore indicazione che è quella della tabella millesimale da utilizzare per ripartire la spesa fra i singoli condomini.
A6: PIANO DELLE ENTRATE. Le sezioni sono quattro: Q - A - E - V.
A7: PIANO DEI CREDITI. La sezione è una sola la C con cinque capitoli (manca il capitolo 05).
A8: PIANO DEI DEBITI. La sezione è una sola la D con cinque capitoli (manca il capitolo 01).

Sheet iPCU (hidden)
A1: È consentito variare i dati delle sole celle senza sfondo colorato. I dati necessari hanno l'intestazione di colonna in rosso. | D1: 0
A6: ='iP1'!A5 -> Condominio "TERMICO"
A7: PIANO GENERALE DEI CONTI
A8: PIANO DELLE USCITE
A9: SEZIONI, CAPITOLI e VOCI | B9: CODICE CONTO | C9: TABELLA RIPARTO
A11: SPESE GENERALI | B11: S.01
A12: POSTALI, TELEGRAFICHE, TELEFONICHE E WEB | B12: S.01.01 | C12: B
A13: DIRITTI BOLLI TASSE | B13: S.01.02 | C13: B
A14: COMPENSI AMMINISTRATORE | B14: S.01.03 | C14: B
A15: COMPENSI A TERZI (consulenti, ...) | B15: S.01.04 | C15: B
A16: SPESE LEGALI, CONTRATTUALI e RECUPERO CREDITI | B16: S.01.05 | C16: A
A17: ALTRE SPESE GENERALI CONDOMINI | B17: S.01.06 | C17: A
A18: ALTRE SPESE GENERALI UTILIZZATORI | B18: S.01.07 | C18: B
B19: S.01.08
B20: S.01.09
B21: S.01.10
B22: S.01.11
B23: S.01.12
B24: S.01.13
B25: S.01.14
B26: S.01.15
A27: PULIZIE | B27: S.02
A28: PULIZIA LOCALI CALDAIA | B28: S.02.01 | C28: B
B29: S.02.02
B30: S.02.03
B31: S.02.04
B32: S.02.05
B33: S.02.06
B34: S.02.07
B35: S.02.08
B36: S.02.09
B37: S.02.10
A38: MANUTENZIONE ORDINARIA | B38: S.03
A39: CANONE MANTENZIONE CALDAIA ED IMPIANTO | B39: S.03.01 | C39: B
A40: SPESE VARIE DI MANUTENZIONE ORDINARIA | B40: S.03.02 | C40: B
B41: S.03.03
B42: S.03.04
B43: S.03.05
B44: S.03.06
B45: S.03.07
B46: S.03.08
B47: S.03.09
B48: S.03.10
A49: CONSUMI DI ENERGIA | B49: S.04
A50: CONSUMO GAS (Quota rapportata alla potenza termica) | B50: S.04.01 | C50: C
A51: CONSUMO ENERGIA ELETTRICA (Quota rapportata alla potenza termica) | B51: S.04.02 | C51: C
A52: CONSUMO GAS (Quota rapportata al consumo) | B52: S.04.03 | C52: E
A53: CONSUMO ENERGIA ELETTRICA (Quota rapportata al consumo) | B53: S.04.04 | C53: E
B54: S.04.05
B55: S.04.06
B56: S.04.07
B57: S.04.08
B58: S.04.09
B59: S.04.10
A60: MANUTENZIONE STRAORDINARIA | B60: S.05
A61: MANUTENZIONE STRAORDINARIA CALDAIA | B61: S.05.01 | C61: A
A62: MANUTENZIONE STRAORDINARIA IMPIANTO | B62: S.05.02 | C62: A
B63: S.05.03
B64: S.05.04
B65: S.05.05
B66: S.05.06
B67: S.05.07
B68: S.05.08
B69: S.05.09
B70: S.05.10
A71: SPESE VARIE A CARICO DEI CONDOMINI | B71: S.06
A72: VARIE IMPREVISTE ED ALTRE SPESE DOCUMENTATE CONDOMINI | B72: S.06.01 | C72: A
B73: S.06.02
B74: S.06.03
B75: S.06.04
B76: S.06.05
A77: SPESE VARIE A CARICO DEGLI UTILIZZATORI | B77: S.07
A78: VARIE IMPREVISTE ED ALTRE SPESE DOCUMENTATE UTILIZZATORI | B78: S.07.01 | C78: B
A79: SPESE PER RIPARTIZIONE COSTI LETTURE CONSUMI CONTATORI RISCALDAMENTO | B79: S.07.02 | C79: D
B80: S.07.03
B81: S.07.04
B82: S.07.05
A83: USCITE PER COSTITUZIONE DEPOSITI PRESSO TERZI e PRESTITI A TERZI | B83: L
A84: DEPOSITI CAUZIONALI | B84: L.01.01 | C84: A
A85: PRESTITI A TERZI | B85: L.01.02 | C85: A
B86: L.01.03
B87: L.01.04
B88: L.01.05
A89: SPESE PERSONALI o ASSEGNATE DIRETTAMENTE AI CONDOMINI E AGLI INQUILINI | B89: P
A90: =iCONDOMINI!C11 -> Condomino01 | B90: P.01.01
A91: =iCONDOMINI!C12 -> Condomino02 | B91: P.01.02
A92: =iCONDOMINI!C13 -> Condomino03 | B92: P.01.03
A93: =iCONDOMINI!C14 -> Condomino04 S.r.l. | B93: P.01.04
A94: =iCONDOMINI!C15 -> Condomino05 | B94: P.01.05
A95: =iCONDOMINI!C16 -> Condomino06 | B95: P.01.06
A96: =iCONDOMINI!C17 -> Condomino07 | B96: P.01.07
A97: =iCONDOMINI!C18 -> Eredi Condomino08 | B97: P.01.08
A98: =iCONDOMINI!C19 -> Condomino09 S.r.l. | B98: P.01.09
A99: =iCONDOMINI!C20 -> Condomino10 | B99: P.01.10
A100: =iCONDOMINI!C21 -> Condomino11 | B100: P.01.11
A101: =iCONDOMINI!C22 -> Condomino12 | B101: P.01.12
A102: =iCONDOMINI!C23 -> Condomino13 | B102: P.01.13
A103: =iCONDOMINI!C24 -> Condomino14 | B103: P.01.14
A104: =iCONDOMINI!C25 -> Condomino15 | B104: P.01.15
A105: =iCONDOMINI!C26 -> Condomino16 | B105: P.01.16
A106: =iCONDOMINI!C27 -> Condomino17 | B106: P.01.17
A107: =iCONDOMINI!C28 -> Condomino18 | B107: P.01.18
A108: =iCONDOMINI!C29 -> Condomino19 | B108: P.01.19
A109: =iCONDOMINI!C30 -> Condomino20 | B109: P.01.20
A110: =iCONDOMINI!C31 -> Condomino21 | B110: P.01.21
A111: =iCONDOMINI!C32 -> Condomino22 | B111: P.01.22
A112: =iCONDOMINI!C33 -> Condomino23 | B112: P.01.23
A113: =iCONDOMINI!C34 -> Inquilino1 | B113: P.01.24
A114: =iCONDOMINI!C35 -> Inquilino2 | B114: P.01.25
A115: =iCONDOMINI!C36 -> Inquilino3 | B115: P.01.26
A116: =iCONDOMINI!C37 -> Inquilino4 | B116: P.01.27
A117: =iCONDOMINI!C38 -> Inquilino5 | B117: P.01.28
A118: =iCONDOMINI!C39 -> 0 | B118: P.01.29
A119: =iCONDOMINI!C40 -> 0 | B119: P.01.30
A120: =iCONDOMINI!C41 -> 0 | B120: P.01.31
A121: =iCONDOMINI!C42 -> 0 | B121: P.01.32
A122: =iCONDOMINI!C43 -> 0 | B122: P.01.33
A123: =iCONDOMINI!C44 -> 0 | B123: P.01.34
A124: =iCONDOMINI!C45 -> 0 | B124: P.01.35
A125: =iCONDOMINI!C46 -> 0 | B125: P.01.36
A126: =iCONDOMINI!C47 -> 0 | B126: P.01.37
A127: =iCONDOMINI!C48 -> 0 | B127: P.01.38
A128: =iCONDOMINI!C49 -> 0 | B128: P.01.39
A129: =iCONDOMINI!C50 -> 0 | B129: P.01.40
A130: =iCONDOMINI!C51 -> 0 | B130: P.01.41
A131: =iCONDOMINI!C52 -> 0 | B131: P.01.42
A132: =iCONDOMINI!C53 -> 0 | B132: P.01.43
A133: =iCONDOMINI!C54 -> 0 | B133: P.01.44
A134: =iCONDOMINI!C55 -> 0 | B134: P.01.45
A135: =iCONDOMINI!C56 -> 0 | B135: P.01.46
A136: =iCONDOMINI!C57 -> 0 | B136: P.01.47
A137: =iCONDOMINI!C58 -> 0 | B137: P.01.48
A138: =iCONDOMINI!C59 -> 0 | B138: P.01.49
A139: =iCONDOMINI!C60 -> 0 | B139: P.01.50
A140: =iCONDOMINI!C61 -> 0 | B140: P.01.51
A141: =iCONDOMINI!C62 -> 0 | B141: P.01.52
A142: =iCONDOMINI!C63 -> 0 | B142: P.01.53
A143: =iCONDOMINI!C64 -> 0 | B143: P.01.54
A144: =iCONDOMINI!C65 -> 0 | B144: P.01.55
A145: =iCONDOMINI!C66 -> 0 | B145: P.01.56
A146: =iCONDOMINI!C67 -> 0 | B146: P.01.57
A147: =iCONDOMINI!C68 -> 0 | B147: P.01.58
A148: =iCONDOMINI!C69 -> 0 | B148: P.01.59
A149: =iCONDOMINI!C70 -> 0 | B149: P.01.60
A150: =iCONDOMINI!C71 -> 0 | B150: P.01.61
A151: =iCONDOMINI!C72 -> 0 | B151: P.01.62
A152: =iCONDOMINI!C73 -> 0 | B152: P.01.63
A153: =iCONDOMINI!C74 -> 0 | B153: P.01.64
A154: =iCONDOMINI!C75 -> 0 | B154: P.01.65
A155: =iCONDOMINI!C76 -> 0 | B155: P.01.66
A156: =iCONDOMINI!C77 -> 0 | B156: P.01.67
A157: =iCONDOMINI!C78 -> 0 | B157: P.01.68
A158: =iCONDOMINI!C79 -> 0 | B158: P.01.69
A159: =iCONDOMINI!C80 -> 0 | B159: P.01.70
A160: =iCONDOMINI!C81 -> 0 | B160: P.01.71
A161: =iCONDOMINI!C82 -> 0 | B161: P.01.72
A162: =iCONDOMINI!C83 -> 0 | B162: P.01.73
A163: =iCONDOMINI!C84 -> 0 | B163: P.01.74
A164: =iCONDOMINI!C85 -> 0 | B164: P.01.75
A165: =iCONDOMINI!C86 -> 0 | B165: P.01.76
A166: =iCONDOMINI!C87 -> 0 | B166: P.01.77
A167: =iCONDOMINI!C88 -> 0 | B167: P.01.78
A168: =iCONDOMINI!C89 -> 0 | B168: P.01.79
A169: =iCONDOMINI!C90 -> 0 | B169: P.01.80
A170: =iCONDOMINI!C91 -> 0 | B170: P.01.81
A171: =iCONDOMINI!C92 -> 0 | B171: P.01.82
A172: =iCONDOMINI!C93 -> 0 | B172: P.01.83
A173: =iCONDOMINI!C94 -> 0 | B173: P.01.84
A174: =iCONDOMINI!C95 -> 0 | B174: P.01.85
A175: =iCONDOMINI!C96 -> 0 | B175: P.01.86
A176: =iCONDOMINI!C97 -> 0 | B176: P.01.87
A177: =iCONDOMINI!C98 -> 0 | B177: P.01.88
A178: =iCONDOMINI!C99 -> 0 | B178: P.01.89
A179: =iCONDOMINI!C100 -> 0 | B179: P.01.90
A180: =iCONDOMINI!C101 -> 0 | B180: P.01.91
A181: =iCONDOMINI!C102 -> 0 | B181: P.01.92
A182: =iCONDOMINI!C103 -> 0 | B182: P.01.93
A183: =iCONDOMINI!C104 -> 0 | B183: P.01.94
A184: =iCONDOMINI!C105 -> 0 | B184: P.01.95
A185: =iCONDOMINI!C106 -> 0 | B185: P.01.96
A186: =iCONDOMINI!C107 -> 0 | B186: P.01.97
A187: =iCONDOMINI!C108 -> 0 | B187: P.01.98
A188: =iCONDOMINI!C109 -> 0 | B188: P.01.99
A189: RESTITUZIONI, PAGAMENTI DEBITI E VERSAMENTI R.A. | B189: U | C189: U
A190: Restituzioni a Condomini versamenti in eccesso per l'esercizio precedente | B190: U.01.nc
A191: Pagamenti Debiti v/s Terzi | B191: U.02.00
B192: U.03.00
B193: U.04.00
B194: U.05.00
A195: PRESTITI A GESTIONE ORDINARIA | C195: R
A196: Prestito a Gestione Ordinaria | B196: R.01.01
A197: =IF(LEN('iP1'!A28)>0,"PRESTITO a " &'iP1'!A28,"") -> 
A198: =IF(LEN('iP1'!A29)>0,"PRESTITO a " &'iP1'!A29,"") -> 
A199: =IF(LEN('iP1'!A30)>0,"PRESTITO a " &'iP1'!A30,"") -> 
A200: =IF(LEN('iP1'!A31)>0,"PRESTITO a " &'iP1'!A31,"") -> 
A202: =IF(LEN('iP1'!A27)>0,"USCITE per " &'iP1'!A27,"") -> 
A203: =IF(LEN('iP1'!A28)>0,"USCITE per " &'iP1'!A28,"") -> 
A204: =IF(LEN('iP1'!A29)>0,"USCITE per " &'iP1'!A29,"") -> 
A205: =IF(LEN('iP1'!A30)>0,"USCITE per " &'iP1'!A30,"") -> 
A206: =IF(LEN('iP1'!A31)>0,"USCITE per " &'iP1'!A31,"") -> 
... 1 more rows

Sheet iPCE (hidden)
A1: È consentito variare i dati delle sole celle senza sfondo colorato. I dati necessari hanno l'intestazione di colonna in rosso. | E1: 0
A7: ='iP1'!A5 -> Condominio "TERMICO"
A8: PIANO GENERALE DEI CONTI
A9: PIANO DELLE ENTRATE
A10: SEZIONI, CAPITOLI e VOCI | B10: CODICI CONTO
A11: INCASSO CONTRIBUTI CONDOMINIALI | B11: Q.01 QUOTE Esercizio in corso | C11: Q.02 CONGUAGLIO Esercizio precedente | D11: Q.03 ARRETRATI
A12: =iCONDOMINI!C11 -> Condomino01 | B12: Q.01.01 | C12: Q.02.01 | D12: Q.03.01
A13: =iCONDOMINI!C12 -> Condomino02 | B13: Q.01.02 | C13: Q.02.02 | D13: Q.03.02
A14: =iCONDOMINI!C13 -> Condomino03 | B14: Q.01.03 | C14: Q.02.03 | D14: Q.03.03
A15: =iCONDOMINI!C14 -> Condomino04 S.r.l. | B15: Q.01.04 | C15: Q.02.04 | D15: Q.03.04
A16: =iCONDOMINI!C15 -> Condomino05 | B16: Q.01.05 | C16: Q.02.05 | D16: Q.03.05
A17: =iCONDOMINI!C16 -> Condomino06 | B17: Q.01.06 | C17: Q.02.06 | D17: Q.03.06
A18: =iCONDOMINI!C17 -> Condomino07 | B18: Q.01.07 | C18: Q.02.07 | D18: Q.03.07
A19: =iCONDOMINI!C18 -> Eredi Condomino08 | B19: Q.01.08 | C19: Q.02.08 | D19: Q.03.08
A20: =iCONDOMINI!C19 -> Condomino09 S.r.l. | B20: Q.01.09 | C20: Q.02.09 | D20: Q.03.09
A21: =iCONDOMINI!C20 -> Condomino10 | B21: Q.01.10 | C21: Q.02.10 | D21: Q.03.10
A22: =iCONDOMINI!C21 -> Condomino11 | B22: Q.01.11 | C22: Q.02.11 | D22: Q.03.11
A23: =iCONDOMINI!C22 -> Condomino12 | B23: Q.01.12 | C23: Q.02.12 | D23: Q.03.12
A24: =iCONDOMINI!C23 -> Condomino13 | B24: Q.01.13 | C24: Q.02.13 | D24: Q.03.13
A25: =iCONDOMINI!C24 -> Condomino14 | B25: Q.01.14 | C25: Q.02.14 | D25: Q.03.14
A26: =iCONDOMINI!C25 -> Condomino15 | B26: Q.01.15 | C26: Q.02.15 | D26: Q.03.15
A27: =iCONDOMINI!C26 -> Condomino16 | B27: Q.01.16 | C27: Q.02.16 | D27: Q.03.16
A28: =iCONDOMINI!C27 -> Condomino17 | B28: Q.01.17 | C28: Q.02.17 | D28: Q.03.17
A29: =iCONDOMINI!C28 -> Condomino18 | B29: Q.01.18 | C29: Q.02.18 | D29: Q.03.18
A30: =iCONDOMINI!C29 -> Condomino19 | B30: Q.01.19 | C30: Q.02.19 | D30: Q.03.19
A31: =iCONDOMINI!C30 -> Condomino20 | B31: Q.01.20 | C31: Q.02.20 | D31: Q.03.20
A32: =iCONDOMINI!C31 -> Condomino21 | B32: Q.01.21 | C32: Q.02.21 | D32: Q.03.21
A33: =iCONDOMINI!C32 -> Condomino22 | B33: Q.01.22 | C33: Q.02.22 | D33: Q.03.22
A34: =iCONDOMINI!C33 -> Condomino23 | B34: Q.01.23 | C34: Q.02.23 | D34: Q.03.23
A35: =iCONDOMINI!C34 -> Inquilino1 | B35: Q.01.24 | C35: Q.02.24 | D35: Q.03.24
A36: =iCONDOMINI!C35 -> Inquilino2 | B36: Q.01.25 | C36: Q.02.25 | D36: Q.03.25
A37: =iCONDOMINI!C36 -> Inquilino3 | B37: Q.01.26 | C37: Q.02.26 | D37: Q.03.26
A38: =iCONDOMINI!C37 -> Inquilino4 | B38: Q.01.27 | C38: Q.02.27 | D38: Q.03.27
A39: =iCONDOMINI!C38 -> Inquilino5 | B39: Q.01.28 | C39: Q.02.28 | D39: Q.03.28
A40: =iCONDOMINI!C39 -> 0 | B40: Q.01.29 | C40: Q.02.29 | D40: Q.03.29
A41: =iCONDOMINI!C40 -> 0 | B41: Q.01.30 | C41: Q.02.30 | D41: Q.03.30
A42: =iCONDOMINI!C41 -> 0 | B42: Q.01.31 | C42: Q.02.31 | D42: Q.03.31
A43: =iCONDOMINI!C42 -> 0 | B43: Q.01.32 | C43: Q.02.32 | D43: Q.03.32
A44: =iCONDOMINI!C43 -> 0 | B44: Q.01.33 | C44: Q.02.33 | D44: Q.03.33
A45: =iCONDOMINI!C44 -> 0 | B45: Q.01.34 | C45: Q.02.34 | D45: Q.03.34
A46: =iCONDOMINI!C45 -> 0 | B46: Q.01.35 | C46: Q.02.35 | D46: Q.03.35
A47: =iCONDOMINI!C46 -> 0 | B47: Q.01.36 | C47: Q.02.36 | D47: Q.03.36
A48: =iCONDOMINI!C47 -> 0 | B48: Q.01.37 | C48: Q.02.37 | D48: Q.03.37
A49: =iCONDOMINI!C48 -> 0 | B49: Q.01.38 | C49: Q.02.38 | D49: Q.03.38
A50: =iCONDOMINI!C49 -> 0 | B50: Q.01.39 | C50: Q.02.39 | D50: Q.03.39
A51: =iCONDOMINI!C50 -> 0 | B51: Q.01.40 | C51: Q.02.40 | D51: Q.03.40
A52: =iCONDOMINI!C51 -> 0 | B52: Q.01.41 | C52: Q.02.41 | D52: Q.03.41
A53: =iCONDOMINI!C52 -> 0 | B53: Q.01.42 | C53: Q.02.42 | D53: Q.03.42
A54: =iCONDOMINI!C53 -> 0 | B54: Q.01.43 | C54: Q.02.43 | D54: Q.03.43
A55: =iCONDOMINI!C54 -> 0 | B55: Q.01.44 | C55: Q.02.44 | D55: Q.03.44
A56: =iCONDOMINI!C55 -> 0 | B56: Q.01.45 | C56: Q.02.45 | D56: Q.03.45
A57: =iCONDOMINI!C56 -> 0 | B57: Q.01.46 | C57: Q.02.46 | D57: Q.03.46
A58: =iCONDOMINI!C57 -> 0 | B58: Q.01.47 | C58: Q.02.47 | D58: Q.03.47
A59: =iCONDOMINI!C58 -> 0 | B59: Q.01.48 | C59: Q.02.48 | D59: Q.03.48
A60: =iCONDOMINI!C59 -> 0 | B60: Q.01.49 | C60: Q.02.49 | D60: Q.03.49
A61: =iCONDOMINI!C60 -> 0 | B61: Q.01.50 | C61: Q.02.50 | D61: Q.03.50
A62: =iCONDOMINI!C61 -> 0 | B62: Q.01.51 | C62: Q.02.51 | D62: Q.03.51
A63: =iCONDOMINI!C62 -> 0 | B63: Q.01.52 | C63: Q.02.52 | D63: Q.03.52
A64: =iCONDOMINI!C63 -> 0 | B64: Q.01.53 | C64: Q.02.53 | D64: Q.03.53
A65: =iCONDOMINI!C64 -> 0 | B65: Q.01.54 | C65: Q.02.54 | D65: Q.03.54
A66: =iCONDOMINI!C65 -> 0 | B66: Q.01.55 | C66: Q.02.55 | D66: Q.03.55
A67: =iCONDOMINI!C66 -> 0 | B67: Q.01.56 | C67: Q.02.56 | D67: Q.03.56
A68: =iCONDOMINI!C67 -> 0 | B68: Q.01.57 | C68: Q.02.57 | D68: Q.03.57
A69: =iCONDOMINI!C68 -> 0 | B69: Q.01.58 | C69: Q.02.58 | D69: Q.03.58
A70: =iCONDOMINI!C69 -> 0 | B70: Q.01.59 | C70: Q.02.59 | D70: Q.03.59
A71: =iCONDOMINI!C70 -> 0 | B71: Q.01.60 | C71: Q.02.60 | D71: Q.03.60
A72: =iCONDOMINI!C71 -> 0 | B72: Q.01.61 | C72: Q.02.61 | D72: Q.03.61
A73: =iCONDOMINI!C72 -> 0 | B73: Q.01.62 | C73: Q.02.62 | D73: Q.03.62
A74: =iCONDOMINI!C73 -> 0 | B74: Q.01.63 | C74: Q.02.63 | D74: Q.03.63
A75: =iCONDOMINI!C74 -> 0 | B75: Q.01.64 | C75: Q.02.64 | D75: Q.03.64
A76: =iCONDOMINI!C75 -> 0 | B76: Q.01.65 | C76: Q.02.65 | D76: Q.03.65
A77: =iCONDOMINI!C76 -> 0 | B77: Q.01.66 | C77: Q.02.66 | D77: Q.03.66
A78: =iCONDOMINI!C77 -> 0 | B78: Q.01.67 | C78: Q.02.67 | D78: Q.03.67
A79: =iCONDOMINI!C78 -> 0 | B79: Q.01.68 | C79: Q.02.68 | D79: Q.03.68
A80: =iCONDOMINI!C79 -> 0 | B80: Q.01.69 | C80: Q.02.69 | D80: Q.03.69
A81: =iCONDOMINI!C80 -> 0 | B81: Q.01.70 | C81: Q.02.70 | D81: Q.03.70
A82: =iCONDOMINI!C81 -> 0 | B82: Q.01.71 | C82: Q.02.71 | D82: Q.03.71
A83: =iCONDOMINI!C82 -> 0 | B83: Q.01.72 | C83: Q.02.72 | D83: Q.03.72
A84: =iCONDOMINI!C83 -> 0 | B84: Q.01.73 | C84: Q.02.73 | D84: Q.03.73
A85: =iCONDOMINI!C84 -> 0 | B85: Q.01.74 | C85: Q.02.74 | D85: Q.03.74
A86: =iCONDOMINI!C85 -> 0 | B86: Q.01.75 | C86: Q.02.75 | D86: Q.03.75
A87: =iCONDOMINI!C86 -> 0 | B87: Q.01.76 | C87: Q.02.76 | D87: Q.03.76
A88: =iCONDOMINI!C87 -> 0 | B88: Q.01.77 | C88: Q.02.77 | D88: Q.03.77
A89: =iCONDOMINI!C88 -> 0 | B89: Q.01.78 | C89: Q.02.78 | D89: Q.03.78
A90: =iCONDOMINI!C89 -> 0 | B90: Q.01.79 | C90: Q.02.79 | D90: Q.03.79
A91: =iCONDOMINI!C90 -> 0 | B91: Q.01.80 | C91: Q.02.80 | D91: Q.03.80
A92: =iCONDOMINI!C91 -> 0 | B92: Q.01.81 | C92: Q.02.81 | D92: Q.03.81
A93: =iCONDOMINI!C92 -> 0 | B93: Q.01.82 | C93: Q.02.82 | D93: Q.03.82
A94: =iCONDOMINI!C93 -> 0 | B94: Q.01.83 | C94: Q.02.83 | D94: Q.03.83
A95: =iCONDOMINI!C94 -> 0 | B95: Q.01.84 | C95: Q.02.84 | D95: Q.03.84
A96: =iCONDOMINI!C95 -> 0 | B96: Q.01.85 | C96: Q.02.85 | D96: Q.03.85
A97: =iCONDOMINI!C96 -> 0 | B97: Q.01.86 | C97: Q.02.86 | D97: Q.03.86
A98: =iCONDOMINI!C97 -> 0 | B98: Q.01.87 | C98: Q.02.87 | D98: Q.03.87
A99: =iCONDOMINI!C98 -> 0 | B99: Q.01.88 | C99: Q.02.88 | D99: Q.03.88
A100: =iCONDOMINI!C99 -> 0 | B100: Q.01.89 | C100: Q.02.89 | D100: Q.03.89
A101: =iCONDOMINI!C100 -> 0 | B101: Q.01.90 | C101: Q.02.90 | D101: Q.03.90
A102: =iCONDOMINI!C101 -> 0 | B102: Q.01.91 | C102: Q.02.91 | D102: Q.03.91
A103: =iCONDOMINI!C102 -> 0 | B103: Q.01.92 | C103: Q.02.92 | D103: Q.03.92
A104: =iCONDOMINI!C103 -> 0 | B104: Q.01.93 | C104: Q.02.93 | D104: Q.03.93
A105: =iCONDOMINI!C104 -> 0 | B105: Q.01.94 | C105: Q.02.94 | D105: Q.03.94
A106: =iCONDOMINI!C105 -> 0 | B106: Q.01.95 | C106: Q.02.95 | D106: Q.03.95
A107: =iCONDOMINI!C106 -> 0 | B107: Q.01.96 | C107: Q.02.96 | D107: Q.03.96
A108: =iCONDOMINI!C107 -> 0 | B108: Q.01.97 | C108: Q.02.97 | D108: Q.03.97
A109: =iCONDOMINI!C108 -> 0 | B109: Q.01.98 | C109: Q.02.98 | D109: Q.03.98
A110: =iCONDOMINI!C109 -> 0 | B110: Q.01.99 | C110: Q.02.99 | D110: Q.03.99
A111: RIMBORSI e ABBUONI SU SPESE GESTIONE ORDINARIA | B111: A
A112: ="Spese già ripartite con TABELLA " &'iP1'!D16 -> Spese già ripartite con TABELLA Tabella A | B112: A.01.01
A113: ="Spese già ripartite con TABELLA " &'iP1'!D17 -> Spese già ripartite con TABELLA Tabella B | B113: A.01.02
A114: ="Spese già ripartite con TABELLA " &'iP1'!D18 -> Spese già ripartite con TABELLA Tabella C | B114: A.01.03
A115: ="Spese già ripartite con TABELLA " &'iP1'!D19 -> Spese già ripartite con TABELLA Tabella D | B115: A.01.04
A116: ="Spese già ripartite con TABELLA " &'iP1'!D20 -> Spese già ripartite con TABELLA Tabella E | B116: A.01.05
A117: ="Spese già ripartite con TABELLA " &'iP1'!D21 -> Spese già ripartite con TABELLA | B117: A.01.06
A118: ="Spese già ripartite con TABELLA " &'iP1'!D22 -> Spese già ripartite con TABELLA | B118: A.01.07
A119: ="Spese già ripartite con TABELLA " &'iP1'!D23 -> Spese già ripartite con TABELLA | B119: A.01.08
A120: ="Spese già ripartite con TABELLA " &'iP1'!D24 -> Spese già ripartite con TABELLA | B120: A.01.09
A121: ="Spese già ripartite con TABELLA " &'iP1'!D25 -> Spese già ripartite con TABELLA | B121: A.01.10
A122: RENDITE, ALTRE ENTRATE E PROVENTI DIVERSI | B122: E
A123: Entrate varie | B123: E.01.01
B124: E.01.02
B125: E.01.03
B126: E.01.04
B127: E.01.05
B128: E.01.06
B129: E.01.07
B130: E.01.08
B131: E.01.09
B132: E.01.10
A144: PRESTITI RICEVUTI e PARTITE DI GIRO | B144: V
A145: Anticipazione di cassa da Amministratore | B145: V.01.01
A146: Prestiti ricevuti da terzi e condomini | B146: V.01.02
A147: Prestito da Gestione Ordinaria | B147: V.01.03
B148: V.01.04
B149: V.01.05
A151: =IF(LEN('iP1'!A27)>0,"Anticipazione da GESTIONE SPECIALE "&'iP1'!A27,"") -> 
A152: =IF(LEN('iP1'!A28)>0,"Anticipazione da GESTIONE SPECIALE "&'iP1'!A28,"") -> 
A153: =IF(LEN('iP1'!A29)>0,"Anticipazione da GESTIONE SPECIALE "&'iP1'!A29,"") -> 
A154: =IF(LEN('iP1'!A30)>0,"Anticipazione da GESTIONE SPECIALE "&'iP1'!A30,"") -> 
A155: =IF(LEN('iP1'!A31)>0,"Anticipazione da GESTIONE SPECIALE "&'iP1'!A31,"") -> 
A157: 0 | E157: 0

Sheet iPCDC (hidden)
A1: È consentito variare i dati delle sole celle senza sfondo colorato. I dati necessari hanno l'intestazione di colonna in rosso. | G1: 0
A7: ='iP1'!A5 -> Condominio "TERMICO"
A8: PIANO GENERALE DEI CONTI
A9: PIANO DEI CREDITI | D9: PIANO DEI DEBITI
A10: CAPITOLI e VOCI | B10: CODICE CONTO | D10: CAPITOLI e VOCI | E10: CODICI CONTO
A11: da DEPOSITI di DENARO presso Terzi | B11: C.01
A12: =iPCU!A84 -> DEPOSITI CAUZIONALI | B12: C.01.01.YY
A13: =iPCU!A85 -> PRESTITI A TERZI | B13: C.01.02.YY
A14: =iPCU!A86 -> 0 | B14: C.01.03.YY
A15: =iPCU!A87 -> 0 | B15: C.01.04.YY | D15: =A15 -> 0
A16: =iPCU!A88 -> 0 | B16: C.01.05.YY | D16: =A16 -> 0
A17: da TERZI PRIVATI | B17: C.02 | D17: v/s TERZI PRIVATI | E17: D.02
A18: da FORNITORI | B18: C.02.01.YY | D18: v/s FORNITORI per FATTURE RICEVUTE | E18: D.02.01.YY
A19: da DEBITORI DIVERSI | B19: C.02.02.YY | D19: v/s FORNITORI per AVVISI DI FATTURA RICEVUTI | E19: D.02.02.YY
B20: C.02.03.YY | D20: v/s FORNITORI per IMPEGNI DI SPESA | E20: D.02.03.YY
B21: C.02.04.YY | D21: v/s TERZI per PRESTITI RICEVUTI | E21: D.02.04.YY
B22: C.02.05.YY | D22: v/s CREDITORI DIVERSI | E22: D.02.05.YY
A23: da TERZI PUBBLICI | B23: C.03 | D23: v/s TERZI PUBBLICI | E23: D.03
A24: da ERARIO | B24: C.03.01.YY | D24: v/s ERARIO per RITENUTE ACCONTO SU SPESE | E24: D.03.01.YY
A25: da altri Enti Pubblici | B25: C.03.02.YY | D25: v/s ERARIO per TRIBUTI | E25: D.03.02.YY
B26: C.03.03.YY | D26: v/s ERARIO per R.A. SU PAGAMENTI DEBITI | E26: D.03.03.YY
B27: C.03.04.YY | E27: D.03.04.YY
B28: C.03.05.YY | E28: D.03.05.YY
A29: da CONDOMINI e FRUITORI | B29: C.04 | D29: v/s CONDOMINI e FRUITORI | E29: D.04 | F29: D.05
A30: =iCONDOMINI!C11 -> Condomino01 | B30: C.04.01.YY | D30: =iCONDOMINI!C11 -> Condomino01 | E30: D.04.01 | F30: D.05.01
A31: =iCONDOMINI!C12 -> Condomino02 | B31: C.04.02.YY | D31: =iCONDOMINI!C12 -> Condomino02 | E31: D.04.02 | F31: D.05.02
A32: =iCONDOMINI!C13 -> Condomino03 | B32: C.04.03.YY | D32: =iCONDOMINI!C13 -> Condomino03 | E32: D.04.03 | F32: D.05.03
A33: =iCONDOMINI!C14 -> Condomino04 S.r.l. | B33: C.04.04.YY | D33: =iCONDOMINI!C14 -> Condomino04 S.r.l. | E33: D.04.04 | F33: D.05.04
A34: =iCONDOMINI!C15 -> Condomino05 | B34: C.04.05.YY | D34: =iCONDOMINI!C15 -> Condomino05 | E34: D.04.05 | F34: D.05.05
A35: =iCONDOMINI!C16 -> Condomino06 | B35: C.04.06.YY | D35: =iCONDOMINI!C16 -> Condomino06 | E35: D.04.06 | F35: D.05.06
A36: =iCONDOMINI!C17 -> Condomino07 | B36: C.04.07.YY | D36: =iCONDOMINI!C17 -> Condomino07 | E36: D.04.07 | F36: D.05.07
A37: =iCONDOMINI!C18 -> Eredi Condomino08 | B37: C.04.08.YY | D37: =iCONDOMINI!C18 -> Eredi Condomino08 | E37: D.04.08 | F37: D.05.08
A38: =iCONDOMINI!C19 -> Condomino09 S.r.l. | B38: C.04.09.YY | D38: =iCONDOMINI!C19 -> Condomino09 S.r.l. | E38: D.04.09 | F38: D.05.09
A39: =iCONDOMINI!C20 -> Condomino10 | B39: C.04.10.YY | D39: =iCONDOMINI!C20 -> Condomino10 | E39: D.04.10 | F39: D.05.10
A40: =iCONDOMINI!C21 -> Condomino11 | B40: C.04.11.YY | D40: =iCONDOMINI!C21 -> Condomino11 | E40: D.04.11 | F40: D.05.11
A41: =iCONDOMINI!C22 -> Condomino12 | B41: C.04.12.YY | D41: =iCONDOMINI!C22 -> Condomino12 | E41: D.04.12 | F41: D.05.12
A42: =iCONDOMINI!C23 -> Condomino13 | B42: C.04.13.YY | D42: =iCONDOMINI!C23 -> Condomino13 | E42: D.04.13 | F42: D.05.13
A43: =iCONDOMINI!C24 -> Condomino14 | B43: C.04.14.YY | D43: =iCONDOMINI!C24 -> Condomino14 | E43: D.04.14 | F43: D.05.14
A44: =iCONDOMINI!C25 -> Condomino15 | B44: C.04.15.YY | D44: =iCONDOMINI!C25 -> Condomino15 | E44: D.04.15 | F44: D.05.15
A45: =iCONDOMINI!C26 -> Condomino16 | B45: C.04.16.YY | D45: =iCONDOMINI!C26 -> Condomino16 | E45: D.04.16 | F45: D.05.16
A46: =iCONDOMINI!C27 -> Condomino17 | B46: C.04.17.YY | D46: =iCONDOMINI!C27 -> Condomino17 | E46: D.04.17 | F46: D.05.17
A47: =iCONDOMINI!C28 -> Condomino18 | B47: C.04.18.YY | D47: =iCONDOMINI!C28 -> Condomino18 | E47: D.04.18 | F47: D.05.18
A48: =iCONDOMINI!C29 -> Condomino19 | B48: C.04.19.YY | D48: =iCONDOMINI!C29 -> Condomino19 | E48: D.04.19 | F48: D.05.19
A49: =iCONDOMINI!C30 -> Condomino20 | B49: C.04.20.YY | D49: =iCONDOMINI!C30 -> Condomino20 | E49: D.04.20 | F49: D.05.20
A50: =iCONDOMINI!C31 -> Condomino21 | B50: C.04.21.YY | D50: =iCONDOMINI!C31 -> Condomino21 | E50: D.04.21 | F50: D.05.21
A51: =iCONDOMINI!C32 -> Condomino22 | B51: C.04.22.YY | D51: =iCONDOMINI!C32 -> Condomino22 | E51: D.04.22 | F51: D.05.22
A52: =iCONDOMINI!C33 -> Condomino23 | B52: C.04.23.YY | D52: =iCONDOMINI!C33 -> Condomino23 | E52: D.04.23 | F52: D.05.23
A53: =iCONDOMINI!C34 -> Inquilino1 | B53: C.04.24.YY | D53: =iCONDOMINI!C34 -> Inquilino1 | E53: D.04.24 | F53: D.05.24
A54: =iCONDOMINI!C35 -> Inquilino2 | B54: C.04.25.YY | D54: =iCONDOMINI!C35 -> Inquilino2 | E54: D.04.25 | F54: D.05.25
A55: =iCONDOMINI!C36 -> Inquilino3 | B55: C.04.26.YY | D55: =iCONDOMINI!C36 -> Inquilino3 | E55: D.04.26 | F55: D.05.26
A56: =iCONDOMINI!C37 -> Inquilino4 | B56: C.04.27.YY | D56: =iCONDOMINI!C37 -> Inquilino4 | E56: D.04.27 | F56: D.05.27
A57: =iCONDOMINI!C38 -> Inquilino5 | B57: C.04.28.YY | D57: =iCONDOMINI!C38 -> Inquilino5 | E57: D.04.28 | F57: D.05.28
A58: =iCONDOMINI!C39 -> 0 | B58: C.04.29.YY | D58: =iCONDOMINI!C39 -> 0 | E58: D.04.29 | F58: D.05.29
A59: =iCONDOMINI!C40 -> 0 | B59: C.04.30.YY | D59: =iCONDOMINI!C40 -> 0 | E59: D.04.30 | F59: D.05.30
A60: =iCONDOMINI!C41 -> 0 | B60: C.04.31.YY | D60: =iCONDOMINI!C41 -> 0 | E60: D.04.31 | F60: D.05.31
A61: =iCONDOMINI!C42 -> 0 | B61: C.04.32.YY | D61: =iCONDOMINI!C42 -> 0 | E61: D.04.32 | F61: D.05.32
A62: =iCONDOMINI!C43 -> 0 | B62: C.04.33.YY | D62: =iCONDOMINI!C43 -> 0 | E62: D.04.33 | F62: D.05.33
A63: =iCONDOMINI!C44 -> 0 | B63: C.04.34.YY | D63: =iCONDOMINI!C44 -> 0 | E63: D.04.34 | F63: D.05.34
A64: =iCONDOMINI!C45 -> 0 | B64: C.04.35.YY | D64: =iCONDOMINI!C45 -> 0 | E64: D.04.35 | F64: D.05.35
A65: =iCONDOMINI!C46 -> 0 | B65: C.04.36.YY | D65: =iCONDOMINI!C46 -> 0 | E65: D.04.36 | F65: D.05.36
A66: =iCONDOMINI!C47 -> 0 | B66: C.04.37.YY | D66: =iCONDOMINI!C47 -> 0 | E66: D.04.37 | F66: D.05.37
A67: =iCONDOMINI!C48 -> 0 | B67: C.04.38.YY | D67: =iCONDOMINI!C48 -> 0 | E67: D.04.38 | F67: D.05.38
A68: =iCONDOMINI!C49 -> 0 | B68: C.04.39.YY | D68: =iCONDOMINI!C49 -> 0 | E68: D.04.39 | F68: D.05.39
A69: =iCONDOMINI!C50 -> 0 | B69: C.04.40.YY | D69: =iCONDOMINI!C50 -> 0 | E69: D.04.40 | F69: D.05.40
A70: =iCONDOMINI!C51 -> 0 | B70: C.04.41.YY | D70: =iCONDOMINI!C51 -> 0 | E70: D.04.41 | F70: D.05.41
A71: =iCONDOMINI!C52 -> 0 | B71: C.04.42.YY | D71: =iCONDOMINI!C52 -> 0 | E71: D.04.42 | F71: D.05.42
A72: =iCONDOMINI!C53 -> 0 | B72: C.04.43.YY | D72: =iCONDOMINI!C53 -> 0 | E72: D.04.43 | F72: D.05.43
A73: =iCONDOMINI!C54 -> 0 | B73: C.04.44.YY | D73: =iCONDOMINI!C54 -> 0 | E73: D.04.44 | F73: D.05.44
A74: =iCONDOMINI!C55 -> 0 | B74: C.04.45.YY | D74: =iCONDOMINI!C55 -> 0 | E74: D.04.45 | F74: D.05.45
A75: =iCONDOMINI!C56 -> 0 | B75: C.04.46.YY | D75: =iCONDOMINI!C56 -> 0 | E75: D.04.46 | F75: D.05.46
A76: =iCONDOMINI!C57 -> 0 | B76: C.04.47.YY | D76: =iCONDOMINI!C57 -> 0 | E76: D.04.47 | F76: D.05.47
A77: =iCONDOMINI!C58 -> 0 | B77: C.04.48.YY | D77: =iCONDOMINI!C58 -> 0 | E77: D.04.48 | F77: D.05.48
A78: =iCONDOMINI!C59 -> 0 | B78: C.04.49.YY | D78: =iCONDOMINI!C59 -> 0 | E78: D.04.49 | F78: D.05.49
A79: =iCONDOMINI!C60 -> 0 | B79: C.04.50.YY | D79: =iCONDOMINI!C60 -> 0 | E79: D.04.50 | F79: D.05.50
A80: =iCONDOMINI!C61 -> 0 | B80: C.04.51.YY | D80: =iCONDOMINI!C61 -> 0 | E80: D.04.51 | F80: D.05.51
A81: =iCONDOMINI!C62 -> 0 | B81: C.04.52.YY | D81: =iCONDOMINI!C62 -> 0 | E81: D.04.52 | F81: D.05.52
A82: =iCONDOMINI!C63 -> 0 | B82: C.04.53.YY | D82: =iCONDOMINI!C63 -> 0 | E82: D.04.53 | F82: D.05.53
A83: =iCONDOMINI!C64 -> 0 | B83: C.04.54.YY | D83: =iCONDOMINI!C64 -> 0 | E83: D.04.54 | F83: D.05.54
A84: =iCONDOMINI!C65 -> 0 | B84: C.04.55.YY | D84: =iCONDOMINI!C65 -> 0 | E84: D.04.55 | F84: D.05.55
A85: =iCONDOMINI!C66 -> 0 | B85: C.04.56.YY | D85: =iCONDOMINI!C66 -> 0 | E85: D.04.56 | F85: D.05.56
A86: =iCONDOMINI!C67 -> 0 | B86: C.04.57.YY | D86: =iCONDOMINI!C67 -> 0 | E86: D.04.57 | F86: D.05.57
A87: =iCONDOMINI!C68 -> 0 | B87: C.04.58.YY | D87: =iCONDOMINI!C68 -> 0 | E87: D.04.58 | F87: D.05.58
A88: =iCONDOMINI!C69 -> 0 | B88: C.04.59.YY | D88: =iCONDOMINI!C69 -> 0 | E88: D.04.59 | F88: D.05.59
A89: =iCONDOMINI!C70 -> 0 | B89: C.04.60.YY | D89: =iCONDOMINI!C70 -> 0 | E89: D.04.60 | F89: D.05.60
A90: =iCONDOMINI!C71 -> 0 | B90: C.04.61.YY | D90: =iCONDOMINI!C71 -> 0 | E90: D.04.61 | F90: D.05.61
A91: =iCONDOMINI!C72 -> 0 | B91: C.04.62.YY | D91: =iCONDOMINI!C72 -> 0 | E91: D.04.62 | F91: D.05.62
A92: =iCONDOMINI!C73 -> 0 | B92: C.04.63.YY | D92: =iCONDOMINI!C73 -> 0 | E92: D.04.63 | F92: D.05.63
A93: =iCONDOMINI!C74 -> 0 | B93: C.04.64.YY | D93: =iCONDOMINI!C74 -> 0 | E93: D.04.64 | F93: D.05.64
A94: =iCONDOMINI!C75 -> 0 | B94: C.04.65.YY | D94: =iCONDOMINI!C75 -> 0 | E94: D.04.65 | F94: D.05.65
A95: =iCONDOMINI!C76 -> 0 | B95: C.04.66.YY | D95: =iCONDOMINI!C76 -> 0 | E95: D.04.66 | F95: D.05.66
A96: =iCONDOMINI!C77 -> 0 | B96: C.04.67.YY | D96: =iCONDOMINI!C77 -> 0 | E96: D.04.67 | F96: D.05.67
A97: =iCONDOMINI!C78 -> 0 | B97: C.04.68.YY | D97: =iCONDOMINI!C78 -> 0 | E97: D.04.68 | F97: D.05.68
A98: =iCONDOMINI!C79 -> 0 | B98: C.04.69.YY | D98: =iCONDOMINI!C79 -> 0 | E98: D.04.69 | F98: D.05.69
A99: =iCONDOMINI!C80 -> 0 | B99: C.04.70.YY | D99: =iCONDOMINI!C80 -> 0 | E99: D.04.70 | F99: D.05.70
A100: =iCONDOMINI!C81 -> 0 | B100: C.04.71.YY | D100: =iCONDOMINI!C81 -> 0 | E100: D.04.71 | F100: D.05.71
A101: =iCONDOMINI!C82 -> 0 | B101: C.04.72.YY | D101: =iCONDOMINI!C82 -> 0 | E101: D.04.72 | F101: D.05.72
A102: =iCONDOMINI!C83 -> 0 | B102: C.04.73.YY | D102: =iCONDOMINI!C83 -> 0 | E102: D.04.73 | F102: D.05.73
A103: =iCONDOMINI!C84 -> 0 | B103: C.04.74.YY | D103: =iCONDOMINI!C84 -> 0 | E103: D.04.74 | F103: D.05.74
A104: =iCONDOMINI!C85 -> 0 | B104: C.04.75.YY | D104: =iCONDOMINI!C85 -> 0 | E104: D.04.75 | F104: D.05.75
A105: =iCONDOMINI!C86 -> 0 | B105: C.04.76.YY | D105: =iCONDOMINI!C86 -> 0 | E105: D.04.76 | F105: D.05.76
A106: =iCONDOMINI!C87 -> 0 | B106: C.04.77.YY | D106: =iCONDOMINI!C87 -> 0 | E106: D.04.77 | F106: D.05.77
A107: =iCONDOMINI!C88 -> 0 | B107: C.04.78.YY | D107: =iCONDOMINI!C88 -> 0 | E107: D.04.78 | F107: D.05.78
A108: =iCONDOMINI!C89 -> 0 | B108: C.04.79.YY | D108: =iCONDOMINI!C89 -> 0 | E108: D.04.79 | F108: D.05.79
A109: =iCONDOMINI!C90 -> 0 | B109: C.04.80.YY | D109: =iCONDOMINI!C90 -> 0 | E109: D.04.80 | F109: D.05.80
A110: =iCONDOMINI!C91 -> 0 | B110: C.04.81.YY | D110: =iCONDOMINI!C91 -> 0 | E110: D.04.81 | F110: D.05.81
A111: =iCONDOMINI!C92 -> 0 | B111: C.04.82.YY | D111: =iCONDOMINI!C92 -> 0 | E111: D.04.82 | F111: D.05.82
A112: =iCONDOMINI!C93 -> 0 | B112: C.04.83.YY | D112: =iCONDOMINI!C93 -> 0 | E112: D.04.83 | F112: D.05.83
A113: =iCONDOMINI!C94 -> 0 | B113: C.04.84.YY | D113: =iCONDOMINI!C94 -> 0 | E113: D.04.84 | F113: D.05.84
A114: =iCONDOMINI!C95 -> 0 | B114: C.04.85.YY | D114: =iCONDOMINI!C95 -> 0 | E114: D.04.85 | F114: D.05.85
A115: =iCONDOMINI!C96 -> 0 | B115: C.04.86.YY | D115: =iCONDOMINI!C96 -> 0 | E115: D.04.86 | F115: D.05.86
A116: =iCONDOMINI!C97 -> 0 | B116: C.04.87.YY | D116: =iCONDOMINI!C97 -> 0 | E116: D.04.87 | F116: D.05.87
A117: =iCONDOMINI!C98 -> 0 | B117: C.04.88.YY | D117: =iCONDOMINI!C98 -> 0 | E117: D.04.88 | F117: D.05.88
A118: =iCONDOMINI!C99 -> 0 | B118: C.04.89.YY | D118: =iCONDOMINI!C99 -> 0 | E118: D.04.89 | F118: D.05.89
A119: =iCONDOMINI!C100 -> 0 | B119: C.04.90.YY | D119: =iCONDOMINI!C100 -> 0 | E119: D.04.90 | F119: D.05.90
A120: =iCONDOMINI!C101 -> 0 | B120: C.04.91.YY | D120: =iCONDOMINI!C101 -> 0 | E120: D.04.91 | F120: D.05.91
A121: =iCONDOMINI!C102 -> 0 | B121: C.04.92.YY | D121: =iCONDOMINI!C102 -> 0 | E121: D.04.92 | F121: D.05.92
A122: =iCONDOMINI!C103 -> 0 | B122: C.04.93.YY | D122: =iCONDOMINI!C103 -> 0 | E122: D.04.93 | F122: D.05.93
A123: =iCONDOMINI!C104 -> 0 | B123: C.04.94.YY | D123: =iCONDOMINI!C104 -> 0 | E123: D.04.94 | F123: D.05.94
A124: =iCONDOMINI!C105 -> 0 | B124: C.04.95.YY | D124: =iCONDOMINI!C105 -> 0 | E124: D.04.95 | F124: D.05.95
A125: =iCONDOMINI!C106 -> 0 | B125: C.04.96.YY | D125: =iCONDOMINI!C106 -> 0 | E125: D.04.96 | F125: D.05.96
A126: =iCONDOMINI!C107 -> 0 | B126: C.04.97.YY | D126: =iCONDOMINI!C107 -> 0 | E126: D.04.97 | F126: D.05.97
A127: =iCONDOMINI!C108 -> 0 | B127: C.04.98.YY | D127: =iCONDOMINI!C108 -> 0 | E127: D.04.98 | F127: D.05.98
A128: =iCONDOMINI!C109 -> 0 | B128: C.04.99.YY | D128: =iCONDOMINI!C109 -> 0 | E128: D.04.99 | F128: D.05.99
A129: da GESTIONE ORDINARIA | B129: C.06 | D129: v/s GESTIONE ORDINARIA | E129: D.06
A130: Gestione Ordinaria | B130: C.06.01 | D130: Gestione Ordinaria | E130: D.06.01
A131: =IF('iP1'!A28<>"","Da " & 'iP1'!A28,"") ->  | D131: =IF('iP1'!A28<>"","v/s " & 'iP1'!A28,"") -> 
A132: =IF('iP1'!A29<>"","Da " & 'iP1'!A29,"") ->  | D132: =IF('iP1'!A29<>"","v/s " & 'iP1'!A29,"") -> 
A133: =IF('iP1'!A30<>"","Da " & 'iP1'!A30,"") ->  | D133: =IF('iP1'!A30<>"","v/s " & 'iP1'!A30,"") -> 
A134: =IF('iP1'!A31<>"","Da " & 'iP1'!A31,"") ->  | D134: =IF('iP1'!A31<>"","v/s " & 'iP1'!A31,"") -> 
A136: 0 | G136: 0

Sheet iFCD (hidden)
A1: È consentito variare i dati delle sole celle senza sfondo colorato. I dati necessari hanno l'intestazione di colonna in rosso. | K1: 0
A8: ='iP1'!A5 -> Condominio "TERMICO"
A9: n. | B9: Cognome/ Ditta | C9: Nome/ Forma societaria | D9: Codice Fiscale | E9: Sesso | F9: Data nascita | G9: Comune di nascita | H9: Prov. nascita | I9: Domicilio fiscale | J9: Codice
B10: FORNITORI DI OPERE, PRESTAZIONI E SERVIZI (Somme erogate da attestare con Certificazione Unica) | J10: F
A11: 1 | B11: SAMUELE | C11: Saverio | D11: SSSSSS77T30B758X | E11: M | F11: 1968-11-30 | G11: CARDINALE | H11: CZ | I11: Via Luca - 88064 CHIARAVALLE CENTRALE (CZ) | J11: F-01
A12: 2 | B12: MAI ANTINCENDIO | C12: Snc | D12: 03622650794 | I12: Via Palermo, snc - 88054 SERSALE (CZ) | J12: F-02
A13: 3 | B13: OTIR SERVIZI | C13: Srl | D13: 01729590033 | I13: Viale LIBIA, 44 00199 ROMA (RM) | J13: F-03
A14: 4 | B14: Pippo | C14: Pippo | D14: PPPPPP67D21K324A | E14: M | F14: 1970-02-21 | G14: STILO | H14: RC | I14: Via Cavour, 28 - 88060 SATRIANO (CZ) | J14: F-04
A15: 5 | B15: SPURGHI PERFETTI | C15: Srl | D15: 02984760796 | I15: VIA Martiri di GERACE - 88060 GUARDAVALLE (CZ) | J15: F-05
A16: 6 | B16: Consulente | C16: Fiscale | D16: PPPCCM59S15I872J | E16: M | F16: 1959-10-25 | G16: SOVERATO | H16: CZ | I16: Via Giotto 72 - 88060 SATRIANO (CZ) | J16: F-06
A17: 7 | B17: CHIEFARI | C17: Pietro | D17: CCCPTR37F21I872Y | E17: M | F17: 1937-01-21 | G17: SANT'ANDREA JONIO | H17: CZ | I17: ViaLe CUTURELLA 2/D - 88068 SOVERATO (CZ) | J17: F-07
A18: 8 | B18: AVVOCATO | C18: Giuseppe | D18: VVVGPP84S10C352Z | E18: M | F18: 10/11/1984 | G18: CATANZARO | H18: CZ | I18: Via Sandro Botticelli, 11 - 88060 SANT'ANDREA JONIO (CZ) | J18: F-08
A19: 9 | B19: FALEGNAMERIA | C19: Srl | D19: 02384400194 | I19: Via Arlecchino,99 - 88040 SETTINGIANO (CZ) | J19: F-09
A20: 10 | B20: ELETTRICISTA | C20: Giuseppe | D20: ZZZGPP59R03C352P | E20: M | F20: 03/10/1959 | G20: CATANZARO | H20: CZ | I20: Viale Piave, 18 - 88100 CATANZARO (CZ) | J20: F-10
A21: 11
A22: 12
A23: 13
A24: 14
A25: 15
A26: 16
A27: 17
A28: 18
A29: 19
A30: 20
B31: UTENZE e FORNITORI DI BENI (Somme erogate da non attestare con Certificazione Unica) | J31: C
A32: 1 | B32: Gas Pulito SpA | J32: C-01
A33: 2 | B33: Cartoleria MINERVA | J33: C-02
A34: 3 | B34: ENEL ENERGIA | J34: C-03
A35: 4
A36: 5
A37: 6
A38: 7
A39: 8
A40: 9
A41: 10
B42: CREDITORI PUBBLICI PER IMPOSTE E TASSE | J42: A
A43: 1 | B43: ERARIO | J43: A-01
A44: 2
A45: 3
A46: 4
A47: 5
B48: CREDITORI VARI PRIVATI | J48: Z
A49: 1 | B49: Amministratore | J49: Z-01
A50: 2
A51: 3
A52: 4
A53: 5
B54: CREDITORI ALTRE GESTIONI e FONDI STESSO CONDOMINIO | J54: U
A55: 1 | B55: GESTIONE ORDINARIA | J55: U-01
A56: 2
A57: 3
A58: 4
A59: 5
B60: DEBITORI TERZI (Somme condominiali depositate presso Terzi) | J60: D
A61: 1 | B61: ENEL ENERGIA | J61: D-01
A62: 2
A63: 3
A64: 4
A65: 5
B66: DEBITORI VARI TERZI PRIVATI
A67: 1
A68: 2
A69: 3
A70: 4
A71: 5
B72: DEBITORI TERZI PUBBLICI | J72: E
A73: 1
A74: 2
A75: 3
A76: 4
A77: 5
B78: DEBITORI ALTRE GESTIONI e FONDI STESSO CONDOMINIO | J78: S
A79: 1 | B79: GESTIONE ORDINARIA | J79: S-01
A80: 2
A81: 3
A82: 4
A83: 5
A85: 0 | K85: 0

Sheet iFIGURE (hidden)
B8: Nome immagine: foto
G9: Dimensioni massime
G10: L | H10: 7,70 cm
G11: H | H11: 4,00 cm
B19: Nome immagine: firma
G20: Dimensioni massime
G21: L | H21: 7,70 cm
G22: H | H22: 2,70 cm

Sheet iRP2 (hidden)
A1: Fornire i dati solo nelle celle senza sfondo colorato. Non variare mai contenuto e posizione delle celle con sfondo colorato. | E1: 0
A2: ='iP1'!A5 -> Condominio "TERMICO"
A3: ="DEPOSITI CAUZIONALI" -> DEPOSITI CAUZIONALI
A4: ="al giorno " & TEXT('iP1'!A39,"gg-mmm-aaaa") -> al giorno 30-set-2022
A5: n. | B5: DEPOSITARIO | C5: CAUSALE | D5: IMPORTO DEPOSITATO
A6: 1 | B6: ENEL ENERGIA | C6: deposito cauzionale | D6: 42.27
A7: 2
A8: 3
A9: 4
A10: 5
A11: 6
A12: 7
A13: 8
A14: 9
A15: 10
A16: 11
A17: 12
A18: 13
A19: 14
A20: 15
C21: TOTALE DEPOSITO | D21: =SUM(D6:D20) -> 42.27
A22: DEPOSITI CAUZIONALI
A23: ="al giorno 1-gen-" & 'iP1'!A37 & " (inizio esercizio)" -> al giorno 1-gen-2021-2022 (inizio esercizio)
A24: n. | B24: DEPOSITARIO | C24: CAUSALE | D24: IMPORTO DEPOSITATO
A25: 1 | B25: ENEL ENERGIA | C25: deposito cauzionale | D25: 42.27
A26: 2
A27: 3
A28: 4
A29: 5
A30: 6
A31: 7
A32: 8
A33: 9
A34: 10
A35: 11
A36: 12
A37: 13
A38: 14
A39: 15
C40: TOTALE DEPOSITO | D40: =SUM(D25:D39) -> 42.27
A41: 0 | E41: 0

Sheet sBP (hidden)
A2: INDICE DEI PROSPETTI DEL BILANCIO PREVENTIVO
A4: Il fascicolo del Bilancio Preventivo è composto dai seguenti prospetti:
A6: 1 | B6: SITUAZIONE PATRIMONIALE ad INIZIO ESERCIZIO
C7: Riporta gli importi dei crediti e dei debiti che il condominio ha all'inizio dell'esercizio nonchè la disponibilità liquida su cassa (in contante) e su conto corrente.
A8: 2 | B8: PREVENTIVO DELLE SPESE PER L' ESERCIZIO
C9: Riporta gli importi delle spese che si stima occorre affrontare nel corso dell'esercizio, suddivise per voci, raggruppati in capitoli.
A10: 3 | B10: RIPARTO DELLE SPESE PREVISTE FRA I CONDOMINI
C11: Riporta gli importi con i quali i singoli condomini e inquilini devono concorrere al pagamento delle spese costi previste, suddivisi per tabella di spesa. La somma di tali importi costituisce la quota per l'esercizio.
A12: 4 | B12: RATEAZIONE E SCADENZE DEI PAGAMENTI DOVUTI DAI SINGOLI CONDOMINI
C13: Riporta le quote dovute per l'esercizio da ciascun condomino e inquilino suddivise in rate. I criteri di rateizzazione sono quelli della delibera assembleare vigente al riguardo, che prevede: Un numero di rate pari a 4. L'importo della prima rata è uguale all'importo delle rate previste per l'esercizio. L'importo delle tre rate restanti è pari sempre a quello della rata trimestrale dalla quale è dedotto 1/3 dell'eventuale conguaglio a credito del condomino o inquilino.
A14: 5 | B14: PROSPETTI DEI CREDITORI e DEI DEBITORI TERZI
C15: Riportano i debiti ed i crediti con i relativi debitori e creditori, nonché le causali, all'inizio dell'esercizio.
A16: 6 | B16: PROSPETTO dei DEPOSITI ATTIVI PRESSO TERZI
B17: (non riportato se non ci sono depositi attivi)
C18: Riporta i depositi attivi che il condominio vanta nei confronti di terzi, all'inizio dell'esercizio.

Sheet nBP (hidden)
A2: NOTA BILANCIO PREVENTIVO
A4: Il bilancio preventivo 2021-2022 prevede un totale di spese in aumento rispetto a quello di 6.000,00 dell’esercizio 2020-2021 al fine di tener conto di maggior previsioni di spesa, quali
A6: 1. | B6: Aumento delle spese per la fornitura di energia elettrica. Un tale tipo di aumento si rende necessario per tener conto delle previsioni di un aumento particolarmente sensibile, a detta degli organi di informazione, del costo di produzione dell’energia. Si è stimato, forse ottimisticamente, un aumento di spesa pari al 20% rispetto a quello preventivato per le stesse voci di spesa nello scorso esercizio.
A7: 5. | B7: Inflazione stimata in aumento. E quindi aumento delle voci soggette ad inflazione.
A9: Tutto queste considerazioni portano ad una previsione totale di spesa di 6,950,00 euro per l’esercizio 2021-2022.
A10: Il bilancio preventivo 2021-2022 mantiene le stesse voci di spesa dell’esercizio 2020-2021, ma con importi maggiorati per alcune voci per come sopra specificato.

Sheet cSPI (hidden)
A1: Condominio "TERMICO"
A2: STATO PATRIMONIALE alla data inizio esercizio - 01/10/2021
A3: ATTIVITÀ | I3: PASSIVITÀ
A4: DISPONIBILITÀ LIQUIDA
B5: TOTALE | C5: =IF(C6+C7<>0,"Fondo 1","") ->  | D5: =IF(D6+D7<>0,"Fondo 2","") ->  | E5: =IF(E6+E7<>0,"Fondo 3","") ->  | F5: =IF(F6+F7<>0,"Fondo 4","") ->  | G5: =IF(G6+G7<>0,"Fondo 5","") ->  | H5: =SUM(H6:H7) -> 101.46
A6: CASSA | B6: 0 | H6: =SUM(B6:G6) -> 0
A7: CONTO CORRENTE POSTALE | B7: 101.46 | H7: =SUM(B7:G7) -> 101.46
A8: CREDITI | I8: DEBITI
A9: VOCE | B9: Conto | C9: 2016-2017 | D9: 2017-2018 | E9: 2018-2019 | F9: 2019-2020 | G9: 2020-2021 | H9: TOTALE | I9: VOCE | J9: Conto | M9: =E9 -> 2018-2019 | N9: 2019-2020 | O9: 2020-2021 | P9: TOTALE
C10: =IF(C9<>"","YY = " & RIGHT(C9,2),"") -> YY = 17 | D10: =IF(D9<>"","YY = " & RIGHT(D9,2),"") -> YY = 18 | E10: =IF(E9<>"","YY = " & RIGHT(E9,2),"") -> YY = 19 | F10: =IF(F9<>"","YY = " & RIGHT(F9,2),"") -> YY = 20 | G10: =IF(G9<>"","YY = " & RIGHT(G9,2),"") -> YY = 21 | K10: YY = 17 | L10: YY = 18 | M10: YY = 19 | N10: YY = 20 | O10: YY = 21
A11: ="CREDITI " &cCREDITI!A11 -> CREDITI da DEPOSITI di DENARO presso Terzi | C11: =SUM(C12:C16) -> 0 | D11: 0 | E11: 0 | F11: 0 | G11: 42.27 | H11: 42.27 | I11: ="DEBITI " &cDEBITI!A11 -> DEBITI | K11: =SUM(K12:K16) -> 0 | L11: 0 | M11: 0 | N11: 0 | O11: 0 | P11: 0
A12: =cCREDITI!A12 -> DEPOSITI CAUZIONALI | B12: =cCREDITI!B12 -> C.01.01.YY | G12: 42.27 | H12: =SUM(C12:G12) -> 42.27 | I12: =cDEBITI!A12 -> 0 | J12: =cDEBITI!B11 -> 00:00:00 | P12: =SUM(K12:O12) -> 0
A13: =cCREDITI!A13 -> PRESTITI A TERZI | B13: =cCREDITI!B13 -> C.01.02.YY | H13: 0 | I13: =cDEBITI!A13 -> 0 | J13: =cDEBITI!B12 -> 00:00:00 | P13: =SUM(K13:O13) -> 0
A14: =cCREDITI!A14 -> 00:00:00 | B14: =cCREDITI!B14 -> C.01.03.YY | H14: 0 | I14: =cDEBITI!A14 -> 0 | J14: =cDEBITI!B13 -> 00:00:00 | P14: =SUM(K14:O14) -> 0
A15: =cCREDITI!A15 -> 00:00:00 | B15: =cCREDITI!B15 -> C.01.04.YY | H15: 0 | I15: =cDEBITI!A15 -> 0 | J15: =cDEBITI!B14 -> 00:00:00 | P15: =SUM(K15:O15) -> 0
A16: =cCREDITI!A16 -> 00:00:00 | B16: =cCREDITI!B16 -> C.01.05.YY | H16: 0 | I16: =cDEBITI!A16 -> 0 | J16: =cDEBITI!B15 -> 00:00:00 | P16: =SUM(K16:O16) -> 0
A17: ="CREDITI " &cCREDITI!A17 -> CREDITI da TERZI PRIVATI | D17: =SUM(D18:D22) -> 0 | E17: =SUM(E18:E22) -> 0 | F17: =SUM(F18:F22) -> 0 | G17: =SUM(G18:G22) -> 0 | H17: =SUM(H18:H22) -> 0 | I17: ="DEBITI " &cDEBITI!A17 -> DEBITI v/s TERZI PRIVATI | K17: =SUM(K18:K22) -> 0 | L17: 0 | M17: 250 | N17: 340 | O17: 613.38 | P17: 1203.38
A18: =cCREDITI!A18 -> da FORNITORI | B18: =cCREDITI!B18 -> C.02.01.YY | H18: 0 | I18: =cDEBITI!A18 -> v/s FORNITORI per FATTURE RICEVUTE | J18: =cDEBITI!B18 -> D.02.01.YY | O18: 363.38 | P18: =SUM(K18:O18) -> 363.38
A19: =cCREDITI!A19 -> da DEBITORI DIVERSI | B19: =cCREDITI!B19 -> C.02.02.YY | H19: 0 | I19: =cDEBITI!A19 -> v/s FORNITORI per AVVISI DI FATTURA RICEVUTI | J19: =cDEBITI!B19 -> D.02.02.YY | N19: 50 | P19: =SUM(K19:O19) -> 50
A20: =cCREDITI!A20 -> 00:00:00 | B20: =cCREDITI!B20 -> C.02.03.YY | H20: 0 | I20: =cDEBITI!A20 -> v/s FORNITORI per IMPEGNI DI SPESA | J20: =cDEBITI!B20 -> D.02.03.YY | M20: 250 | N20: 290 | O20: 250 | P20: =SUM(K20:O20) -> 790
A21: =cCREDITI!A21 -> 00:00:00 | B21: =cCREDITI!B21 -> C.02.04.YY | H21: 0 | I21: =cDEBITI!A21 -> v/s TERZI per PRESTITI RICEVUTI | J21: =cDEBITI!B21 -> D.02.04.YY | P21: =SUM(K21:O21) -> 0
A22: =cCREDITI!A22 -> 00:00:00 | B22: =cCREDITI!B22 -> C.02.05.YY | H22: 0 | I22: =cDEBITI!A22 -> v/s CREDITORI DIVERSI | J22: =cDEBITI!B22 -> D.02.05.YY | P22: =SUM(K22:O22) -> 0
A23: ="CREDITI " &cCREDITI!A23 -> CREDITI da TERZI PUBBLICI | H23: =SUM(H24:H28) -> 0 | I23: ="DEBITI " &cDEBITI!A23 -> DEBITI v/s TERZI PUBBLICI | K23: =SUM(K24:K28) -> 0 | L23: 0 | M23: 0 | N23: 0 | O23: 0 | P23: 0
A24: =cCREDITI!A24 -> da ERARIO | B24: =cCREDITI!B24 -> C.03.01.YY | H24: 0 | I24: =cDEBITI!A24 -> v/s ERARIO per RITENUTE ACCONTO SU SPESE | J24: =cDEBITI!B24 -> D.03.01.YY | P24: =SUM(K24:O24) -> 0
A25: =cCREDITI!A25 -> da altri Enti Pubblici | B25: =cCREDITI!B25 -> C.03.02.YY | H25: 0 | I25: =cDEBITI!A25 -> v/s ERARIO per TRIBUTI | J25: =cDEBITI!B25 -> D.03.02.YY | P25: =SUM(K25:O25) -> 0
A26: =cCREDITI!A26 -> 0 | B26: =cCREDITI!B26 -> C.03.03.YY | H26: 0 | I26: =cDEBITI!A26 -> v/s ERARIO per R.A. SU PAGAMENTI DEBITI | J26: =cDEBITI!B26 -> D.03.03.YY | P26: =SUM(K26:O26) -> 0
A27: =cCREDITI!A27 -> 0 | B27: =cCREDITI!B27 -> C.03.04.YY | H27: 0 | I27: =cDEBITI!A27 -> 00:00:00 | J27: =cDEBITI!B27 -> D.03.04.YY | P27: =SUM(K27:O27) -> 0
A28: =cCREDITI!A28 -> 0 | B28: =cCREDITI!B28 -> C.03.05.YY | H28: 0 | I28: =cDEBITI!A28 -> 00:00:00 | J28: =cDEBITI!B28 -> D.03.05.YY | P28: =SUM(K28:O28) -> 0
A29: ="CREDITI " &cCREDITI!A29 -> CREDITI da CONDOMINI e FRUITORI | C29: =SUM(C30:C128) -> 0 | D29: 0 | E29: 0 | F29: 786.76 | G29: 1058.71 | H29: 1845.47 | I29: ="DEBITI " &cDEBITI!A29 -> DEBITI v/s CONDOMINI e FRUITORI | J29: Quote in eccesso | N29: Cauzioni | P29: =SUM(P30:P128) -> 785.82
A30: =iPCDC!A30 -> Condomino01 | B30: =cCREDITI!B30 -> C.04.01.YY | H30: 0 | I30: =iPCDC!D30 -> Condomino01 | J30: =cDEBITI!B30 -> D.04.01 | M30: 78.06 | N30: =cDEBITI!G30 -> D.05.01 | O30: 1.3074 | P30: =M30+O30 -> 79.3674
A31: =iPCDC!A31 -> Condomino02 | B31: =cCREDITI!B31 -> C.04.02.YY | H31: 0 | I31: =iPCDC!D31 -> Condomino02 | J31: =cDEBITI!B31 -> D.04.02 | M31: 8.05 | N31: =cDEBITI!G31 -> D.05.02 | O31: 1.7238 | P31: =M31+O31 -> 9.7738
A32: =iPCDC!A32 -> Condomino03 | B32: =cCREDITI!B32 -> C.04.03.YY | F32: 169.05 | G32: 264.68 | H32: 433.73 | I32: =iPCDC!D32 -> Condomino03 | J32: =cDEBITI!B32 -> D.04.03 | N32: =cDEBITI!G32 -> D.05.03 | O32: 3.0143 | P32: 3.0143
A33: =iPCDC!A33 -> Condomino04 S.r.l. | B33: =cCREDITI!B33 -> C.04.04.YY | F33: 129.27 | G33: 154.48 | H33: 283.75 | I33: =iPCDC!D33 -> Condomino04 S.r.l. | J33: =cDEBITI!B33 -> D.04.04 | N33: =cDEBITI!G33 -> D.05.04 | O33: 1.4562 | P33: 1.4562
A34: =iPCDC!A34 -> Condomino05 | B34: =cCREDITI!B34 -> C.04.05.YY | H34: 0 | I34: =iPCDC!D34 -> Condomino05 | J34: =cDEBITI!B34 -> D.04.05 | M34: 12.14 | N34: =cDEBITI!G34 -> D.05.05 | O34: 2.4077 | P34: 14.5477
A35: =iPCDC!A35 -> Condomino06 | B35: =cCREDITI!B35 -> C.04.06.YY | F35: 275.6 | G35: 273.66 | H35: 549.26 | I35: =iPCDC!D35 -> Condomino06 | J35: =cDEBITI!B35 -> D.04.06 | N35: =cDEBITI!G35 -> D.05.06 | O35: 2.4407 | P35: 2.4407
A36: =iPCDC!A36 -> Condomino07 | B36: =cCREDITI!B36 -> C.04.07.YY | H36: 0 | I36: =iPCDC!D36 -> Condomino07 | J36: =cDEBITI!B36 -> D.04.07 | M36: 79.04 | N36: =cDEBITI!G36 -> D.05.07 | O36: 1.2419 | P36: 80.2819
A37: =iPCDC!A37 -> Eredi Condomino08 | B37: =cCREDITI!B37 -> C.04.08.YY | H37: 0 | I37: =iPCDC!D37 -> Eredi Condomino08 | J37: =cDEBITI!B37 -> D.04.08 | M37: 18.8 | N37: =cDEBITI!G37 -> D.05.08 | O37: 0.3576 | P37: 19.1576
A38: =iPCDC!A38 -> Condomino09 S.r.l. | B38: =cCREDITI!B38 -> C.04.09.YY | H38: 0 | I38: =iPCDC!D38 -> Condomino09 S.r.l. | J38: =cDEBITI!B38 -> D.04.09 | M38: 15.36 | N38: =cDEBITI!G38 -> D.05.09 | O38: 1.501 | P38: 16.861
A39: =iPCDC!A39 -> Condomino10 | B39: =cCREDITI!B39 -> C.04.10.YY | F39: 5.3 | G39: 13.3 | H39: 18.6 | I39: =iPCDC!D39 -> Condomino10 | J39: =cDEBITI!B39 -> D.04.10 | N39: =cDEBITI!G39 -> D.05.10 | O39: 1.0551 | P39: 1.0551
A40: =iPCDC!A40 -> Condomino11 | B40: =cCREDITI!B40 -> C.04.11.YY | H40: 0 | I40: =iPCDC!D40 -> Condomino11 | J40: =cDEBITI!B40 -> D.04.11 | M40: 97.88 | N40: =cDEBITI!G40 -> D.05.11 | O40: 1.1054 | P40: 98.9854
A41: =iPCDC!A41 -> Condomino12 | B41: =cCREDITI!B41 -> C.04.12.YY | H41: 0 | I41: =iPCDC!D41 -> Condomino12 | J41: =cDEBITI!B41 -> D.04.12 | M41: 91.44 | N41: =cDEBITI!G41 -> D.05.12 | O41: 2.5125 | P41: 93.9525
A42: =iPCDC!A42 -> Condomino13 | B42: =cCREDITI!B42 -> C.04.13.YY | H42: 0 | I42: =iPCDC!D42 -> Condomino13 | J42: =cDEBITI!B42 -> D.04.13 | M42: 19.89 | N42: =cDEBITI!G42 -> D.05.13 | O42: 1.9837 | P42: 21.8737
A43: =iPCDC!A43 -> Condomino14 | B43: =cCREDITI!B43 -> C.04.14.YY | H43: 0 | I43: =iPCDC!D43 -> Condomino14 | J43: =cDEBITI!B43 -> D.04.14 | M43: 90.2 | N43: =cDEBITI!G43 -> D.05.14 | O43: 1.6244 | P43: 91.8244
A44: =iPCDC!A44 -> Condomino15 | B44: =cCREDITI!B44 -> C.04.15.YY | F44: 207.54 | G44: 208.93 | H44: 416.47 | I44: =iPCDC!D44 -> Condomino15 | J44: =cDEBITI!B44 -> D.04.15 | N44: =cDEBITI!G44 -> D.05.15 | O44: 1.7745 | P44: 1.7745
A45: =iPCDC!A45 -> Condomino16 | B45: =cCREDITI!B45 -> C.04.16.YY | H45: 0 | I45: =iPCDC!D45 -> Condomino16 | J45: =cDEBITI!B45 -> D.04.16 | M45: 34.35 | N45: =cDEBITI!G45 -> D.05.16 | O45: 2.1972 | P45: 36.5472
A46: =iPCDC!A46 -> Condomino17 | B46: =cCREDITI!B46 -> C.04.17.YY | G46: 130.56 | H46: 130.56 | I46: =iPCDC!D46 -> Condomino17 | J46: =cDEBITI!B46 -> D.04.17 | N46: =cDEBITI!G46 -> D.05.17 | O46: 3.1563 | P46: 3.1563
A47: =iPCDC!A47 -> Condomino18 | B47: =cCREDITI!B47 -> C.04.18.YY | H47: 0 | I47: =iPCDC!D47 -> Condomino18 | J47: =cDEBITI!B47 -> D.04.18 | M47: 11.03 | N47: =cDEBITI!G47 -> D.05.18 | O47: 3.1565 | P47: 14.1865
A48: =iPCDC!A48 -> Condomino19 | B48: =cCREDITI!B48 -> C.04.19.YY | H48: 0 | I48: =iPCDC!D48 -> Condomino19 | J48: =cDEBITI!B48 -> D.04.19 | M48: 59.28 | N48: =cDEBITI!G48 -> D.05.19 | O48: 2.6457 | P48: 61.9257
A49: =iPCDC!A49 -> Condomino20 | B49: =cCREDITI!B49 -> C.04.20.YY | H49: 0 | I49: =iPCDC!D49 -> Condomino20 | J49: =cDEBITI!B49 -> D.04.20 | M49: 7.45 | N49: =cDEBITI!G49 -> D.05.20 | O49: 0.7368 | P49: 8.1868
A50: =iPCDC!A50 -> Condomino21 | B50: =cCREDITI!B50 -> C.04.21.YY | H50: 0 | I50: =iPCDC!D50 -> Condomino21 | J50: =cDEBITI!B50 -> D.04.21 | M50: 23.21 | N50: =cDEBITI!G50 -> D.05.21 | O50: 1.7813 | P50: 24.9913
A51: =iPCDC!A51 -> Condomino22 | B51: =cCREDITI!B51 -> C.04.22.YY | H51: 0 | I51: =iPCDC!D51 -> Condomino22 | J51: =cDEBITI!B51 -> D.04.22 | M51: 97.37 | N51: =cDEBITI!G51 -> D.05.22 | O51: 1.2284 | P51: 98.5984
A52: =iPCDC!A52 -> Condomino23 | B52: =cCREDITI!B52 -> C.04.23.YY | G52: 13.1 | H52: 13.1 | I52: =iPCDC!D52 -> Condomino23 | J52: =cDEBITI!B52 -> D.04.23 | N52: =cDEBITI!G52 -> D.05.23 | O52: 1.8616 | P52: 1.8616
A53: =iPCDC!A53 -> Inquilino1 | B53: =cCREDITI!B53 -> C.04.24.YY | H53: 0 | I53: =iPCDC!D53 -> Inquilino1 | J53: =cDEBITI!B53 -> D.04.24 | N53: =cDEBITI!G53 -> D.05.24 | P53: 0
A54: =iPCDC!A54 -> Inquilino2 | B54: =cCREDITI!B54 -> C.04.25.YY | H54: 0 | I54: =iPCDC!D54 -> Inquilino2 | J54: =cDEBITI!B54 -> D.04.25 | N54: =cDEBITI!G54 -> D.05.25 | P54: 0
A55: =iPCDC!A55 -> Inquilino3 | B55: =cCREDITI!B55 -> C.04.26.YY | H55: 0 | I55: =iPCDC!D55 -> Inquilino3 | J55: =cDEBITI!B55 -> D.04.26 | N55: =cDEBITI!G55 -> D.05.26 | P55: 0
A56: =iPCDC!A56 -> Inquilino4 | B56: =cCREDITI!B56 -> C.04.27.YY | H56: 0 | I56: =iPCDC!D56 -> Inquilino4 | J56: =cDEBITI!B56 -> D.04.27 | N56: =cDEBITI!G56 -> D.05.27 | P56: 0
A57: =iPCDC!A57 -> Inquilino5 | B57: =cCREDITI!B57 -> C.04.28.YY | H57: 0 | I57: =iPCDC!D57 -> Inquilino5 | J57: =cDEBITI!B57 -> D.04.28 | N57: =cDEBITI!G57 -> D.05.28 | P57: 0
A58: =iPCDC!A58 -> 0 | B58: =cCREDITI!B58 -> C.04.29.YY | H58: 0 | I58: =iPCDC!D58 -> 0 | J58: =cDEBITI!B58 -> D.04.29 | N58: =cDEBITI!G58 -> D.05.29 | P58: 0
A59: =iPCDC!A59 -> 0 | B59: =cCREDITI!B59 -> C.04.30.YY | H59: 0 | I59: =iPCDC!D59 -> 0 | J59: =cDEBITI!B59 -> D.04.30 | N59: =cDEBITI!G59 -> D.05.30 | P59: 0
A60: =iPCDC!A60 -> 0 | B60: =cCREDITI!B60 -> C.04.31.YY | H60: 0 | I60: =iPCDC!D60 -> 0 | J60: =cDEBITI!B60 -> D.04.31 | N60: =cDEBITI!G60 -> D.05.31 | P60: 0
A61: =iPCDC!A61 -> 0 | B61: =cCREDITI!B61 -> C.04.32.YY | H61: 0 | I61: =iPCDC!D61 -> 0 | J61: =cDEBITI!B61 -> D.04.32 | N61: =cDEBITI!G61 -> D.05.32 | P61: 0
A62: =iPCDC!A62 -> 0 | B62: =cCREDITI!B62 -> C.04.33.YY | H62: 0 | I62: =iPCDC!D62 -> 0 | J62: =cDEBITI!B62 -> D.04.33 | N62: =cDEBITI!G62 -> D.05.33 | P62: 0
A63: =iPCDC!A63 -> 0 | B63: =cCREDITI!B63 -> C.04.34.YY | H63: 0 | I63: =iPCDC!D63 -> 0 | J63: =cDEBITI!B63 -> D.04.34 | N63: =cDEBITI!G63 -> D.05.34 | P63: 0
A64: =iPCDC!A64 -> 0 | B64: =cCREDITI!B64 -> C.04.35.YY | H64: 0 | I64: =iPCDC!D64 -> 0 | J64: =cDEBITI!B64 -> D.04.35 | N64: =cDEBITI!G64 -> D.05.35 | P64: 0
A65: =iPCDC!A65 -> 0 | B65: =cCREDITI!B65 -> C.04.36.YY | H65: 0 | I65: =iPCDC!D65 -> 0 | J65: =cDEBITI!B65 -> D.04.36 | N65: =cDEBITI!G65 -> D.05.36 | P65: 0
A66: =iPCDC!A66 -> 0 | B66: =cCREDITI!B66 -> C.04.37.YY | H66: 0 | I66: =iPCDC!D66 -> 0 | J66: =cDEBITI!B66 -> D.04.37 | N66: =cDEBITI!G66 -> D.05.37 | P66: 0
A67: =iPCDC!A67 -> 0 | B67: =cCREDITI!B67 -> C.04.38.YY | H67: 0 | I67: =iPCDC!D67 -> 0 | J67: =cDEBITI!B67 -> D.04.38 | N67: =cDEBITI!G67 -> D.05.38 | P67: 0
A68: =iPCDC!A68 -> 0 | B68: =cCREDITI!B68 -> C.04.39.YY | H68: 0 | I68: =iPCDC!D68 -> 0 | J68: =cDEBITI!B68 -> D.04.39 | N68: =cDEBITI!G68 -> D.05.39 | P68: 0
A69: =iPCDC!A69 -> 0 | B69: =cCREDITI!B69 -> C.04.40.YY | H69: 0 | I69: =iPCDC!D69 -> 0 | J69: =cDEBITI!B69 -> D.04.40 | N69: =cDEBITI!G69 -> D.05.40 | P69: 0
A70: =iPCDC!A70 -> 0 | B70: =cCREDITI!B70 -> C.04.41.YY | H70: 0 | I70: =iPCDC!D70 -> 0 | J70: =cDEBITI!B70 -> D.04.41 | N70: =cDEBITI!G70 -> D.05.41 | P70: 0
A71: =iPCDC!A71 -> 0 | B71: =cCREDITI!B71 -> C.04.42.YY | H71: 0 | I71: =iPCDC!D71 -> 0 | J71: =cDEBITI!B71 -> D.04.42 | N71: =cDEBITI!G71 -> D.05.42 | P71: 0
A72: =iPCDC!A72 -> 0 | B72: =cCREDITI!B72 -> C.04.43.YY | H72: 0 | I72: =iPCDC!D72 -> 0 | J72: =cDEBITI!B72 -> D.04.43 | N72: =cDEBITI!G72 -> D.05.43 | P72: 0
A73: =iPCDC!A73 -> 0 | B73: =cCREDITI!B73 -> C.04.44.YY | H73: 0 | I73: =iPCDC!D73 -> 0 | J73: =cDEBITI!B73 -> D.04.44 | N73: =cDEBITI!G73 -> D.05.44 | P73: 0
A74: =iPCDC!A74 -> 0 | B74: =cCREDITI!B74 -> C.04.45.YY | H74: 0 | I74: =iPCDC!D74 -> 0 | J74: =cDEBITI!B74 -> D.04.45 | N74: =cDEBITI!G74 -> D.05.45 | P74: 0
A75: =iPCDC!A75 -> 0 | B75: =cCREDITI!B75 -> C.04.46.YY | H75: 0 | I75: =iPCDC!D75 -> 0 | J75: =cDEBITI!B75 -> D.04.46 | N75: =cDEBITI!G75 -> D.05.46 | P75: 0
A76: =iPCDC!A76 -> 0 | B76: =cCREDITI!B76 -> C.04.47.YY | H76: 0 | I76: =iPCDC!D76 -> 0 | J76: =cDEBITI!B76 -> D.04.47 | N76: =cDEBITI!G76 -> D.05.47 | P76: 0
A77: =iPCDC!A77 -> 0 | B77: =cCREDITI!B77 -> C.04.48.YY | H77: =SUM(C77:G77) -> 0 | I77: =iPCDC!D77 -> 0 | J77: =cDEBITI!B77 -> D.04.48 | N77: =cDEBITI!G77 -> D.05.48 | P77: 0
A78: =iPCDC!A78 -> 0 | B78: =cCREDITI!B78 -> C.04.49.YY | H78: 0 | I78: =iPCDC!D78 -> 0 | J78: =cDEBITI!B78 -> D.04.49 | N78: =cDEBITI!G78 -> D.05.49 | P78: 0
A79: =iPCDC!A79 -> 0 | B79: =cCREDITI!B79 -> C.04.50.YY | H79: 0 | I79: =iPCDC!D79 -> 0 | J79: =cDEBITI!B79 -> D.04.50 | N79: =cDEBITI!G79 -> D.05.50 | P79: 0
A80: =iPCDC!A80 -> 0 | B80: =cCREDITI!B80 -> C.04.51.YY | H80: 0 | I80: =iPCDC!D80 -> 0 | J80: =cDEBITI!B80 -> D.04.51 | N80: =cDEBITI!G80 -> D.05.51 | P80: 0
A81: =iPCDC!A81 -> 0 | B81: =cCREDITI!B81 -> C.04.52.YY | H81: 0 | I81: =iPCDC!D81 -> 0 | J81: =cDEBITI!B81 -> D.04.52 | N81: =cDEBITI!G81 -> D.05.52 | P81: 0
A82: =iPCDC!A82 -> 0 | B82: =cCREDITI!B82 -> C.04.53.YY | H82: 0 | I82: =iPCDC!D82 -> 0 | J82: =cDEBITI!B82 -> D.04.53 | N82: =cDEBITI!G82 -> D.05.53 | P82: 0
A83: =iPCDC!A83 -> 0 | B83: =cCREDITI!B83 -> C.04.54.YY | H83: 0 | I83: =iPCDC!D83 -> 0 | J83: =cDEBITI!B83 -> D.04.54 | N83: =cDEBITI!G83 -> D.05.54 | P83: 0
A84: =iPCDC!A84 -> 0 | B84: =cCREDITI!B84 -> C.04.55.YY | H84: 0 | I84: =iPCDC!D84 -> 0 | J84: =cDEBITI!B84 -> D.04.55 | N84: =cDEBITI!G84 -> D.05.55 | P84: 0
A85: =iPCDC!A85 -> 0 | B85: =cCREDITI!B85 -> C.04.56.YY | H85: 0 | I85: =iPCDC!D85 -> 0 | J85: =cDEBITI!B85 -> D.04.56 | N85: =cDEBITI!G85 -> D.05.56 | P85: 0
A86: =iPCDC!A86 -> 0 | B86: =cCREDITI!B86 -> C.04.57.YY | H86: 0 | I86: =iPCDC!D86 -> 0 | J86: =cDEBITI!B86 -> D.04.57 | N86: =cDEBITI!G86 -> D.05.57 | P86: 0
A87: =iPCDC!A87 -> 0 | B87: =cCREDITI!B87 -> C.04.58.YY | H87: 0 | I87: =iPCDC!D87 -> 0 | J87: =cDEBITI!B87 -> D.04.58 | N87: =cDEBITI!G87 -> D.05.58 | P87: 0
A88: =iPCDC!A88 -> 0 | B88: =cCREDITI!B88 -> C.04.59.YY | H88: 0 | I88: =iPCDC!D88 -> 0 | J88: =cDEBITI!B88 -> D.04.59 | N88: =cDEBITI!G88 -> D.05.59 | P88: 0
A89: =iPCDC!A89 -> 0 | B89: =cCREDITI!B89 -> C.04.60.YY | H89: 0 | I89: =iPCDC!D89 -> 0 | J89: =cDEBITI!B89 -> D.04.60 | N89: =cDEBITI!G89 -> D.05.60 | P89: 0
A90: =iPCDC!A90 -> 0 | B90: =cCREDITI!B90 -> C.04.61.YY | H90: 0 | I90: =iPCDC!D90 -> 0 | J90: =cDEBITI!B90 -> D.04.61 | N90: =cDEBITI!G90 -> D.05.61 | P90: 0
A91: =iPCDC!A91 -> 0 | B91: =cCREDITI!B91 -> C.04.62.YY | H91: 0 | I91: =iPCDC!D91 -> 0 | J91: =cDEBITI!B91 -> D.04.62 | N91: =cDEBITI!G91 -> D.05.62 | P91: 0
A92: =iPCDC!A92 -> 0 | B92: =cCREDITI!B92 -> C.04.63.YY | H92: 0 | I92: =iPCDC!D92 -> 0 | J92: =cDEBITI!B92 -> D.04.63 | N92: =cDEBITI!G92 -> D.05.63 | P92: 0
A93: =iPCDC!A93 -> 0 | B93: =cCREDITI!B93 -> C.04.64.YY | H93: 0 | I93: =iPCDC!D93 -> 0 | J93: =cDEBITI!B93 -> D.04.64 | N93: =cDEBITI!G93 -> D.05.64 | P93: 0
A94: =iPCDC!A94 -> 0 | B94: =cCREDITI!B94 -> C.04.65.YY | H94: 0 | I94: =iPCDC!D94 -> 0 | J94: =cDEBITI!B94 -> D.04.65 | N94: =cDEBITI!G94 -> D.05.65 | P94: 0
A95: =iPCDC!A95 -> 0 | B95: =cCREDITI!B95 -> C.04.66.YY | H95: 0 | I95: =iPCDC!D95 -> 0 | J95: =cDEBITI!B95 -> D.04.66 | N95: =cDEBITI!G95 -> D.05.66 | P95: =M95+O95 -> 0
A96: =iPCDC!A96 -> 0 | B96: =cCREDITI!B96 -> C.04.67.YY | H96: 0 | I96: =iPCDC!D96 -> 0 | J96: =cDEBITI!B96 -> D.04.67 | N96: =cDEBITI!G96 -> D.05.67 | P96: 0
A97: =iPCDC!A97 -> 0 | B97: =cCREDITI!B97 -> C.04.68.YY | H97: 0 | I97: =iPCDC!D97 -> 0 | J97: =cDEBITI!B97 -> D.04.68 | N97: =cDEBITI!G97 -> D.05.68 | P97: 0
A98: =iPCDC!A98 -> 0 | B98: =cCREDITI!B98 -> C.04.69.YY | H98: 0 | I98: =iPCDC!D98 -> 0 | J98: =cDEBITI!B98 -> D.04.69 | N98: =cDEBITI!G98 -> D.05.69 | P98: 0
A99: =iPCDC!A99 -> 0 | B99: =cCREDITI!B99 -> C.04.70.YY | H99: 0 | I99: =iPCDC!D99 -> 0 | J99: =cDEBITI!B99 -> D.04.70 | N99: =cDEBITI!G99 -> D.05.70 | P99: 0
A100: =iPCDC!A100 -> 0 | B100: =cCREDITI!B100 -> C.04.71.YY | H100: 0 | I100: =iPCDC!D100 -> 0 | J100: =cDEBITI!B100 -> D.04.71 | N100: =cDEBITI!G100 -> D.05.71 | P100: 0
A101: =iPCDC!A101 -> 0 | B101: =cCREDITI!B101 -> C.04.72.YY | H101: 0 | I101: =iPCDC!D101 -> 0 | J101: =cDEBITI!B101 -> D.04.72 | N101: =cDEBITI!G101 -> D.05.72 | P101: 0
A102: =iPCDC!A102 -> 0 | B102: =cCREDITI!B102 -> C.04.73.YY | H102: 0 | I102: =iPCDC!D102 -> 0 | J102: =cDEBITI!B102 -> D.04.73 | N102: =cDEBITI!G102 -> D.05.73 | P102: 0
A103: =iPCDC!A103 -> 0 | B103: =cCREDITI!B103 -> C.04.74.YY | H103: 0 | I103: =iPCDC!D103 -> 0 | J103: =cDEBITI!B103 -> D.04.74 | N103: =cDEBITI!G103 -> D.05.74 | P103: 0
A104: =iPCDC!A104 -> 0 | B104: =cCREDITI!B104 -> C.04.75.YY | H104: 0 | I104: =iPCDC!D104 -> 0 | J104: =cDEBITI!B104 -> D.04.75 | N104: =cDEBITI!G104 -> D.05.75 | P104: 0
A105: =iPCDC!A105 -> 0 | B105: =cCREDITI!B105 -> C.04.76.YY | H105: 0 | I105: =iPCDC!D105 -> 0 | J105: =cDEBITI!B105 -> D.04.76 | N105: =cDEBITI!G105 -> D.05.76 | P105: 0
A106: =iPCDC!A106 -> 0 | B106: =cCREDITI!B106 -> C.04.77.YY | H106: 0 | I106: =iPCDC!D106 -> 0 | J106: =cDEBITI!B106 -> D.04.77 | N106: =cDEBITI!G106 -> D.05.77 | P106: 0
A107: =iPCDC!A107 -> 0 | B107: =cCREDITI!B107 -> C.04.78.YY | H107: 0 | I107: =iPCDC!D107 -> 0 | J107: =cDEBITI!B107 -> D.04.78 | N107: =cDEBITI!G107 -> D.05.78 | P107: 0
A108: =iPCDC!A108 -> 0 | B108: =cCREDITI!B108 -> C.04.79.YY | H108: 0 | I108: =iPCDC!D108 -> 0 | J108: =cDEBITI!B108 -> D.04.79 | N108: =cDEBITI!G108 -> D.05.79 | P108: 0
A109: =iPCDC!A109 -> 0 | B109: =cCREDITI!B109 -> C.04.80.YY | H109: 0 | I109: =iPCDC!D109 -> 0 | J109: =cDEBITI!B109 -> D.04.80 | N109: =cDEBITI!G109 -> D.05.80 | P109: 0
A110: =iPCDC!A110 -> 0 | B110: =cCREDITI!B110 -> C.04.81.YY | H110: 0 | I110: =iPCDC!D110 -> 0 | J110: =cDEBITI!B110 -> D.04.81 | N110: =cDEBITI!G110 -> D.05.81 | P110: 0
A111: =iPCDC!A111 -> 0 | B111: =cCREDITI!B111 -> C.04.82.YY | H111: 0 | I111: =iPCDC!D111 -> 0 | J111: =cDEBITI!B111 -> D.04.82 | N111: =cDEBITI!G111 -> D.05.82 | P111: 0
A112: =iPCDC!A112 -> 0 | B112: =cCREDITI!B112 -> C.04.83.YY | H112: 0 | I112: =iPCDC!D112 -> 0 | J112: =cDEBITI!B112 -> D.04.83 | N112: =cDEBITI!G112 -> D.05.83 | P112: 0
A113: =iPCDC!A113 -> 0 | B113: =cCREDITI!B113 -> C.04.84.YY | H113: 0 | I113: =iPCDC!D113 -> 0 | J113: =cDEBITI!B113 -> D.04.84 | N113: =cDEBITI!G113 -> D.05.84 | P113: 0
A114: =iPCDC!A114 -> 0 | B114: =cCREDITI!B114 -> C.04.85.YY | H114: 0 | I114: =iPCDC!D114 -> 0 | J114: =cDEBITI!B114 -> D.04.85 | N114: =cDEBITI!G114 -> D.05.85 | P114: 0
A115: =iPCDC!A115 -> 0 | B115: =cCREDITI!B115 -> C.04.86.YY | H115: 0 | I115: =iPCDC!D115 -> 0 | J115: =cDEBITI!B115 -> D.04.86 | N115: =cDEBITI!G115 -> D.05.86 | P115: 0
A116: =iPCDC!A116 -> 0 | B116: =cCREDITI!B116 -> C.04.87.YY | H116: 0 | I116: =iPCDC!D116 -> 0 | J116: =cDEBITI!B116 -> D.04.87 | N116: =cDEBITI!G116 -> D.05.87 | P116: 0
A117: =iPCDC!A117 -> 0 | B117: =cCREDITI!B117 -> C.04.88.YY | H117: 0 | I117: =iPCDC!D117 -> 0 | J117: =cDEBITI!B117 -> D.04.88 | N117: =cDEBITI!G117 -> D.05.88 | P117: 0
A118: =iPCDC!A118 -> 0 | B118: =cCREDITI!B118 -> C.04.89.YY | H118: 0 | I118: =iPCDC!D118 -> 0 | J118: =cDEBITI!B118 -> D.04.89 | N118: =cDEBITI!G118 -> D.05.89 | P118: 0
A119: =iPCDC!A119 -> 0 | B119: =cCREDITI!B119 -> C.04.90.YY | H119: 0 | I119: =iPCDC!D119 -> 0 | J119: =cDEBITI!B119 -> D.04.90 | N119: =cDEBITI!G119 -> D.05.90 | P119: 0
A120: =iPCDC!A120 -> 0 | B120: =cCREDITI!B120 -> C.04.91.YY | H120: 0 | I120: =iPCDC!D120 -> 0 | J120: =cDEBITI!B120 -> D.04.91 | N120: =cDEBITI!G120 -> D.05.91 | P120: 0
A121: =iPCDC!A121 -> 0 | B121: =cCREDITI!B121 -> C.04.92.YY | H121: 0 | I121: =iPCDC!D121 -> 0 | J121: =cDEBITI!B121 -> D.04.92 | N121: =cDEBITI!G121 -> D.05.92 | P121: 0
A122: =iPCDC!A122 -> 0 | B122: =cCREDITI!B122 -> C.04.93.YY | H122: 0 | I122: =iPCDC!D122 -> 0 | J122: =cDEBITI!B122 -> D.04.93 | N122: =cDEBITI!G122 -> D.05.93 | P122: 0
A123: =iPCDC!A123 -> 0 | B123: =cCREDITI!B123 -> C.04.94.YY | H123: 0 | I123: =iPCDC!D123 -> 0 | J123: =cDEBITI!B123 -> D.04.94 | N123: =cDEBITI!G123 -> D.05.94 | P123: 0
A124: =iPCDC!A124 -> 0 | B124: =cCREDITI!B124 -> C.04.95.YY | H124: 0 | I124: =iPCDC!D124 -> 0 | J124: =cDEBITI!B124 -> D.04.95 | N124: =cDEBITI!G124 -> D.05.95 | P124: 0
A125: =iPCDC!A125 -> 0 | B125: =cCREDITI!B125 -> C.04.96.YY | H125: 0 | I125: =iPCDC!D125 -> 0 | J125: =cDEBITI!B125 -> D.04.96 | N125: =cDEBITI!G125 -> D.05.96 | P125: 0
A126: =iPCDC!A126 -> 0 | B126: =cCREDITI!B126 -> C.04.97.YY | H126: 0 | I126: =iPCDC!D126 -> 0 | J126: =cDEBITI!B126 -> D.04.97 | N126: =cDEBITI!G126 -> D.05.97 | P126: 0
A127: =iPCDC!A127 -> 0 | B127: =cCREDITI!B127 -> C.04.98.YY | H127: 0 | I127: =iPCDC!D127 -> 0 | J127: =cDEBITI!B127 -> D.04.98 | N127: =cDEBITI!G127 -> D.05.98 | P127: 0
A128: =iPCDC!A128 -> 0 | B128: =cCREDITI!B128 -> C.04.99.YY | H128: 0 | I128: =iPCDC!D128 -> 0 | J128: =cDEBITI!B128 -> D.04.99 | N128: =cDEBITI!G128 -> D.05.99 | P128: 0
A129: ="CREDITI " &cCREDITI!A129 -> CREDITI da FONDI SPECIALI | C129: =SUM(C130:C134) -> 0 | D129: 0 | E129: 0 | F129: 0 | G129: 0 | H129: 0 | I129: ="DEBITI " &cDEBITI!A129 -> DEBITI v/s GESTIONE ORDINARIA | K129: =SUM(K130:K134) -> 0 | L129: 0 | M129: 0 | N129: 0 | O129: 0 | P129: 0
A130: =cCREDITI!A130 -> Gestione Ordinaria | B130: =cCREDITI!B130 -> C.06.01 | H130: =SUM(C130:G130) -> 0 | I130: =cDEBITI!A130 -> Gestione Ordinaria | J130: =cDEBITI!B130 -> D.06.01 | P130: =SUM(K130:O130) -> 0
A131: =cCREDITI!A131 ->  | B131: =cCREDITI!B131 -> 00:00:00 | H131: =SUM(C131:G131) -> 0 | I131: =cDEBITI!A131 ->  | J131: =cDEBITI!B131 -> 00:00:00 | P131: =SUM(K131:O131) -> 0
A132: =cCREDITI!A132 ->  | B132: =cCREDITI!B132 -> 00:00:00 | H132: =SUM(C132:G132) -> 0 | I132: =cDEBITI!A132 ->  | J132: =cDEBITI!B132 -> 00:00:00 | P132: =SUM(K132:O132) -> 0
A133: =cCREDITI!A133 ->  | B133: =cCREDITI!B133 -> 00:00:00 | H133: =SUM(C133:G133) -> 0 | I133: =cDEBITI!A133 ->  | J133: =cDEBITI!B133 -> 00:00:00 | P133: =SUM(K133:O133) -> 0
A134: =cCREDITI!A134 ->  | B134: =cCREDITI!B134 -> 00:00:00 | H134: =SUM(C134:G134) -> 0 | I134: =cDEBITI!A134 ->  | J134: =cDEBITI!B134 -> 00:00:00 | P134: =SUM(K134:O134) -> 0
A135: RIEPILOGO ATTIVITÀ | I135: RIEPILOGO PASSIVITÀ
A136: LIQUIDITÀ | H136: =H5 -> 101.46
A137: TOTALI CREDITI DIRETTI DA CONDOMINI | C137: =C29 -> 0 | D137: 0 | E137: 0 | F137: 786.76 | G137: 1058.71 | H137: 1845.47 | I137: TOTALE DEBITI v/s CONDOMINI | M137: =SUM(M30:M128) -> 743.55 | O137: =SUM(O30:O128) -> 42.27 | P137: =M137+O137 -> 785.82
A138: TOTALI ALTRI CREDITI | C138: =C11+C17+C23 -> 0 | D138: 0 | E138: 0 | F138: 0 | G138: 42.27 | H138: 42.27 | I138: TOTALI DEBITI v/s TERZI | K138: =K11+K17+K23 -> 0 | L138: =L11+L17+L23 -> 0 | M138: =M11+M17+M23 -> 250 | N138: =N11+N17+N23 -> 340 | O138: =O11+O17+O23 -> 613.38 | P138: =SUM(K138:O138) -> 1203.38
A139: ATTIVITÀ | B139: =H136+H137+H138 -> 1989.2 | I139: PASSIVITÀ | J139: =P137+P138 -> 1989.2

Sheet iPUS (hidden)
A1: È consentito variare i dati delle sole celle senza sfondo colorato. I dati necessari hanno l'intestazione di colonna in rosso. | E1: 0
A7: ='iP1'!A5 -> Condominio "TERMICO"
A8: ="PREVENTIVO DELLE SPESE PER L'ESERCIZIO " & 'iP1'!A37 -> PREVENTIVO DELLE SPESE PER L'ESERCIZIO 2021-2022
A9: CAPITOLI e VOCI DI SPESA | B9: CODICE CONTO | C9: TABELLA RIPARTO | D9: IMPORTI
D10: PREVENTIV.
A11: =iPCU!A11 -> SPESE GENERALI | C11: =iPCU!C11 -> 0 | D11: =SUMIFS(D12:D26,C12:C26,"=?") -> 1100
A12: =iPCU!A12 -> POSTALI, TELEGRAFICHE, TELEFONICHE E WEB | B12: =iPCU!B12 -> S.01.01 | C12: =iPCU!C12 -> B | D12: 50
A13: =iPCU!A13 -> DIRITTI BOLLI TASSE | B13: =iPCU!B13 -> S.01.02 | C13: =iPCU!C13 -> B | D13: 50
A14: =iPCU!A14 -> COMPENSI AMMINISTRATORE | B14: =iPCU!B14 -> S.01.03 | C14: =iPCU!C14 -> B | D14: 800
A15: =iPCU!A15 -> COMPENSI A TERZI (consulenti, ...) | B15: =iPCU!B15 -> S.01.04 | C15: =iPCU!C15 -> B | D15: 50
A16: =iPCU!A16 -> SPESE LEGALI, CONTRATTUALI e RECUPERO CREDITI | B16: =iPCU!B16 -> S.01.05 | C16: =iPCU!C16 -> A | D16: 50
A17: =iPCU!A17 -> ALTRE SPESE GENERALI CONDOMINI | B17: =iPCU!B17 -> S.01.06 | C17: =iPCU!C17 -> A | D17: 50
A18: =iPCU!A18 -> ALTRE SPESE GENERALI UTILIZZATORI | B18: =iPCU!B18 -> S.01.07 | C18: =iPCU!C18 -> B | D18: 50
A19: =iPCU!A19 -> 0 | B19: =iPCU!B19 -> S.01.08 | C19: =iPCU!C19 -> 0
A20: =iPCU!A20 -> 0 | B20: =iPCU!B20 -> S.01.09 | C20: =iPCU!C20 -> 0
A21: =iPCU!A21 -> 0 | B21: =iPCU!B21 -> S.01.10 | C21: =iPCU!C21 -> 0
A22: =iPCU!A22 -> 0 | B22: =iPCU!B22 -> S.01.11 | C22: =iPCU!C22 -> 0
A23: =iPCU!A23 -> 0 | B23: =iPCU!B23 -> S.01.12 | C23: =iPCU!C23 -> 0
A24: =iPCU!A24 -> 0 | B24: =iPCU!B24 -> S.01.13 | C24: =iPCU!C24 -> 0 | D24: 0
A25: =iPCU!A25 -> 0 | B25: =iPCU!B25 -> S.01.14 | C25: =iPCU!C25 -> 0 | D25: 0
A26: =iPCU!A26 -> 0 | B26: =iPCU!B26 -> S.01.15 | C26: =iPCU!C26 -> 0
A27: =iPCU!A27 -> PULIZIE | C27: =iPCU!C27 -> 0 | D27: =SUMIFS(D28:D37,C28:C37,"=?") -> 200
A28: =iPCU!A28 -> PULIZIA LOCALI CALDAIA | B28: =iPCU!B28 -> S.02.01 | C28: =iPCU!C28 -> B | D28: 200
A29: =iPCU!A29 -> 0 | B29: =iPCU!B29 -> S.02.02 | C29: =iPCU!C29 -> 0
A30: =iPCU!A30 -> 0 | B30: =iPCU!B30 -> S.02.03 | C30: =iPCU!C30 -> 0
A31: =iPCU!A31 -> 0 | B31: =iPCU!B31 -> S.02.04 | C31: =iPCU!C31 -> 0
A32: =iPCU!A32 -> 0 | B32: =iPCU!B32 -> S.02.05 | C32: =iPCU!C32 -> 0
A33: =iPCU!A33 -> 0 | B33: =iPCU!B33 -> S.02.06 | C33: =iPCU!C33 -> 0
A34: =iPCU!A34 -> 0 | B34: =iPCU!B34 -> S.02.07 | C34: =iPCU!C34 -> 0
A35: =iPCU!A35 -> 0 | B35: =iPCU!B35 -> S.02.08 | C35: =iPCU!C35 -> 0
A36: =iPCU!A36 -> 0 | B36: =iPCU!B36 -> S.02.09 | C36: =iPCU!C36 -> 0
A37: =iPCU!A37 -> 0 | B37: =iPCU!B37 -> S.02.10 | C37: =iPCU!C37 -> 0
A38: =iPCU!A38 -> MANUTENZIONE ORDINARIA | C38: =iPCU!C38 -> 0 | D38: =SUMIFS(D39:D48,C39:C48,"=?") -> 500
A39: =iPCU!A39 -> CANONE MANTENZIONE CALDAIA ED IMPIANTO | B39: =iPCU!B39 -> S.03.01 | C39: =iPCU!C39 -> B | D39: 250
A40: =iPCU!A40 -> SPESE VARIE DI MANUTENZIONE ORDINARIA | B40: =iPCU!B40 -> S.03.02 | C40: =iPCU!C40 -> B | D40: 250
A41: =iPCU!A41 -> 0 | B41: =iPCU!B41 -> S.03.03 | C41: =iPCU!C41 -> 0
A42: =iPCU!A42 -> 0 | B42: =iPCU!B42 -> S.03.04 | C42: =iPCU!C42 -> 0
A43: =iPCU!A43 -> 0 | B43: =iPCU!B43 -> S.03.05 | C43: =iPCU!C43 -> 0
A44: =iPCU!A44 -> 0 | B44: =iPCU!B44 -> S.03.06 | C44: =iPCU!C44 -> 0
A45: =iPCU!A45 -> 0 | B45: =iPCU!B45 -> S.03.07 | C45: =iPCU!C45 -> 0
A46: =iPCU!A46 -> 0 | B46: =iPCU!B46 -> S.03.08 | C46: =iPCU!C46 -> 0
A47: =iPCU!A47 -> 0 | B47: =iPCU!B47 -> S.03.09 | C47: =iPCU!C47 -> 0
A48: =iPCU!A48 -> 0 | B48: =iPCU!B48 -> S.03.10 | C48: =iPCU!C48 -> 0 | D48: 0
A49: =iPCU!A49 -> CONSUMI DI ENERGIA | C49: =iPCU!C49 -> 0 | D49: =SUMIFS(D50:D59,C50:C59,"=?") -> 4400
A50: =iPCU!A50 -> CONSUMO GAS (Quota rapportata alla potenza termica) | B50: =iPCU!B50 -> S.04.01 | C50: =iPCU!C50 -> C | D50: 800
A51: =iPCU!A51 -> CONSUMO ENERGIA ELETTRICA (Quota rapportata alla potenza termica) | B51: =iPCU!B51 -> S.04.02 | C51: =iPCU!C51 -> C | D51: 150
A52: =iPCU!A52 -> CONSUMO GAS (Quota rapportata al consumo) | B52: =iPCU!B52 -> S.04.03 | C52: =iPCU!C52 -> E | D52: 3200
A53: =iPCU!A53 -> CONSUMO ENERGIA ELETTRICA (Quota rapportata al consumo) | B53: =iPCU!B53 -> S.04.04 | C53: =iPCU!C53 -> E | D53: 250
A54: =iPCU!A54 -> 0 | B54: =iPCU!B54 -> S.04.05 | C54: =iPCU!C54 -> 0
A55: =iPCU!A55 -> 0 | B55: =iPCU!B55 -> S.04.06 | C55: =iPCU!C55 -> 0
A56: =iPCU!A56 -> 0 | B56: =iPCU!B56 -> S.04.07 | C56: =iPCU!C56 -> 0
A57: =iPCU!A57 -> 0 | B57: =iPCU!B57 -> S.04.08 | C57: =iPCU!C57 -> 0
A58: =iPCU!A58 -> 0 | B58: =iPCU!B58 -> S.04.09 | C58: =iPCU!C58 -> 0
A59: =iPCU!A59 -> 0 | B59: =iPCU!B59 -> S.04.10 | C59: =iPCU!C59 -> 0
A60: =iPCU!A60 -> MANUTENZIONE STRAORDINARIA | C60: =iPCU!C60 -> 0 | D60: =SUM(D61:D70) -> 200
A61: =iPCU!A61 -> MANUTENZIONE STRAORDINARIA CALDAIA | B61: =iPCU!B61 -> S.05.01 | C61: =iPCU!C61 -> A | D61: 100
A62: =iPCU!A62 -> MANUTENZIONE STRAORDINARIA IMPIANTO | B62: =iPCU!B62 -> S.05.02 | C62: =iPCU!C62 -> A | D62: 100
A63: =iPCU!A63 -> 0 | B63: =iPCU!B63 -> S.05.03 | C63: =iPCU!C63 -> 0
A64: =iPCU!A64 -> 0 | B64: =iPCU!B64 -> S.05.04 | C64: =iPCU!C64 -> 0
A65: =iPCU!A65 -> 0 | B65: =iPCU!B65 -> S.05.05 | C65: =iPCU!C65 -> 0
A66: =iPCU!A66 -> 0 | B66: =iPCU!B66 -> S.05.06 | C66: =iPCU!C66 -> 0
A67: =iPCU!A67 -> 0 | B67: =iPCU!B67 -> S.05.07 | C67: =iPCU!C67 -> 0
A68: =iPCU!A68 -> 0 | B68: =iPCU!B68 -> S.05.08 | C68: =iPCU!C68 -> 0
A69: =iPCU!A69 -> 0 | B69: =iPCU!B69 -> S.05.09 | C69: =iPCU!C69 -> 0
A70: =iPCU!A70 -> 0 | B70: =iPCU!B70 -> S.05.10 | C70: =iPCU!C70 -> 0
A71: =iPCU!A71 -> SPESE VARIE A CARICO DEI CONDOMINI | C71: =iPCU!C71 -> 0 | D71: =SUMIFS(D72:D76,C72:C76,"=?") -> 50
A72: =iPCU!A72 -> VARIE IMPREVISTE ED ALTRE SPESE DOCUMENTATE CONDOMINI | B72: =iPCU!B72 -> S.06.01 | C72: =iPCU!C72 -> A | D72: 50
A73: =iPCU!A73 -> 0 | B73: =iPCU!B73 -> S.06.02 | C73: =iPCU!C73 -> 0
A74: =iPCU!A74 -> 0 | B74: =iPCU!B74 -> S.06.03 | C74: =iPCU!C74 -> 0
A75: =iPCU!A75 -> 0 | B75: =iPCU!B75 -> S.06.04 | C75: =iPCU!C75 -> 0
A76: =iPCU!A76 -> 0 | B76: =iPCU!B76 -> S.06.05 | C76: =iPCU!C76 -> 0
A77: =iPCU!A77 -> SPESE VARIE A CARICO DEGLI UTILIZZATORI | C77: =iPCU!C77 -> 0 | D77: =SUMIFS(D78:D82,C78:C82,"=?") -> 500
A78: =iPCU!A78 -> VARIE IMPREVISTE ED ALTRE SPESE DOCUMENTATE UTILIZZATORI | B78: =iPCU!B78 -> S.07.01 | C78: =iPCU!C78 -> B | D78: 100
A79: =iPCU!A79 -> SPESE PER RIPARTIZIONE COSTI LETTURE CONSUMI CONTATORI RISCALDAMENTO | B79: =iPCU!B79 -> S.07.02 | C79: =iPCU!C79 -> D | D79: 400
A80: =iPCU!A80 -> 0 | B80: =iPCU!B80 -> S.07.03 | C80: =iPCU!C80 -> 0
A81: =iPCU!A81 -> 0 | B81: =iPCU!B81 -> S.07.04 | C81: =iPCU!C81 -> 0
A82: =iPCU!A82 -> 0 | B82: =iPCU!B82 -> S.07.05 | C82: =iPCU!C82 -> 0
A83: =iPCU!A83 -> USCITE PER COSTITUZIONE DEPOSITI PRESSO TERZI e PRESTITI A TERZI | C83: =iPCU!C83 -> 0 | D83: =SUMIFS(D84:D88,C84:C88,"=?") -> 0
A84: =iPCU!A84 -> DEPOSITI CAUZIONALI | B84: =iPCU!B84 -> L.01.01 | C84: =iPCU!C84 -> A
A85: =iPCU!A85 -> PRESTITI A TERZI | B85: =iPCU!B85 -> L.01.02 | C85: =iPCU!C85 -> A
A86: =iPCU!A86 -> 0 | B86: =iPCU!B86 -> L.01.03 | C86: =iPCU!C86 -> 0
A87: =iPCU!A87 -> 0 | B87: =iPCU!B87 -> L.01.04 | C87: =iPCU!C87 -> 0
A88: =iPCU!A88 -> 0 | B88: =iPCU!B88 -> L.01.05 | C88: =iPCU!C88 -> 0
A89: =iPCU!A201 -> 0 | B89: =iPCU!B201 -> 0 | C89: =iPCU!C201 -> 0
A90: =iPCU!A202 ->  | B90: =iPCU!B202 -> 0 | C90: =iPCU!C90 -> 0
A91: =iPCU!A203 ->  | B91: =iPCU!B203 -> 0 | C91: =iPCU!C91 -> 0
A92: =iPCU!A204 ->  | B92: =iPCU!B204 -> 0 | C92: =iPCU!C92 -> 0
A93: =iPCU!A205 ->  | B93: =iPCU!B205 -> 0 | C93: =iPCU!C93 -> 0
A94: =iPCU!A206 ->  | B94: =iPCU!B206 -> 0 | C94: =iPCU!C94 -> 0
A95: =iPCU!A89 -> SPESE PERSONALI o ASSEGNATE DIRETTAMENTE AI CONDOMINI E AGLI INQUILINI | B95: =iPCU!B89 -> P | C95: =iPCU!C89 -> 0
A96: =iPCU!A90 -> Condomino01 | B96: =iPCU!B90 -> P.01.01
A97: =iPCU!A91 -> Condomino02 | B97: =iPCU!B91 -> P.01.02
A98: =iPCU!A92 -> Condomino03 | B98: =iPCU!B92 -> P.01.03
A99: =iPCU!A93 -> Condomino04 S.r.l. | B99: =iPCU!B93 -> P.01.04
A100: =iPCU!A94 -> Condomino05 | B100: =iPCU!B94 -> P.01.05
A101: =iPCU!A95 -> Condomino06 | B101: =iPCU!B95 -> P.01.06
A102: =iPCU!A96 -> Condomino07 | B102: =iPCU!B96 -> P.01.07
A103: =iPCU!A97 -> Eredi Condomino08 | B103: =iPCU!B97 -> P.01.08
A104: =iPCU!A98 -> Condomino09 S.r.l. | B104: =iPCU!B98 -> P.01.09
A105: =iPCU!A99 -> Condomino10 | B105: =iPCU!B99 -> P.01.10
A106: =iPCU!A100 -> Condomino11 | B106: =iPCU!B100 -> P.01.11
A107: =iPCU!A101 -> Condomino12 | B107: =iPCU!B101 -> P.01.12
A108: =iPCU!A102 -> Condomino13 | B108: =iPCU!B102 -> P.01.13
A109: =iPCU!A103 -> Condomino14 | B109: =iPCU!B103 -> P.01.14
A110: =iPCU!A104 -> Condomino15 | B110: =iPCU!B104 -> P.01.15
A111: =iPCU!A105 -> Condomino16 | B111: =iPCU!B105 -> P.01.16
A112: =iPCU!A106 -> Condomino17 | B112: =iPCU!B106 -> P.01.17
A113: =iPCU!A107 -> Condomino18 | B113: =iPCU!B107 -> P.01.18
A114: =iPCU!A108 -> Condomino19 | B114: =iPCU!B108 -> P.01.19
A115: =iPCU!A109 -> Condomino20 | B115: =iPCU!B109 -> P.01.20
A116: =iPCU!A110 -> Condomino21 | B116: =iPCU!B110 -> P.01.21
A117: =iPCU!A111 -> Condomino22 | B117: =iPCU!B111 -> P.01.22
A118: =iPCU!A112 -> Condomino23 | B118: =iPCU!B112 -> P.01.23
A119: =iPCU!A113 -> Inquilino1 | B119: =iPCU!B113 -> P.01.24
A120: =iPCU!A114 -> Inquilino2 | B120: =iPCU!B114 -> P.01.25
A121: =iPCU!A115 -> Inquilino3 | B121: =iPCU!B115 -> P.01.26
A122: =iPCU!A116 -> Inquilino4 | B122: =iPCU!B116 -> P.01.27
A123: =iPCU!A117 -> Inquilino5 | B123: =iPCU!B117 -> P.01.28
A124: =iPCU!A118 -> 0 | B124: =iPCU!B118 -> P.01.29
A125: =iPCU!A119 -> 0 | B125: =iPCU!B119 -> P.01.30
A126: =iPCU!A120 -> 0 | B126: =iPCU!B120 -> P.01.31
A127: =iPCU!A121 -> 0 | B127: =iPCU!B121 -> P.01.32
A128: =iPCU!A122 -> 0 | B128: =iPCU!B122 -> P.01.33
A129: =iPCU!A123 -> 0 | B129: =iPCU!B123 -> P.01.34
A130: =iPCU!A124 -> 0 | B130: =iPCU!B124 -> P.01.35
A131: =iPCU!A125 -> 0 | B131: =iPCU!B125 -> P.01.36
A132: =iPCU!A126 -> 0 | B132: =iPCU!B126 -> P.01.37
A133: =iPCU!A127 -> 0 | B133: =iPCU!B127 -> P.01.38
A134: =iPCU!A128 -> 0 | B134: =iPCU!B128 -> P.01.39
A135: =iPCU!A129 -> 0 | B135: =iPCU!B129 -> P.01.40
A136: =iPCU!A130 -> 0 | B136: =iPCU!B130 -> P.01.41
A137: =iPCU!A131 -> 0 | B137: =iPCU!B131 -> P.01.42
A138: =iPCU!A132 -> 0 | B138: =iPCU!B132 -> P.01.43
A139: =iPCU!A133 -> 0 | B139: =iPCU!B133 -> P.01.44
A140: =iPCU!A134 -> 0 | B140: =iPCU!B134 -> P.01.45
A141: =iPCU!A135 -> 0 | B141: =iPCU!B135 -> P.01.46
A142: =iPCU!A136 -> 0 | B142: =iPCU!B136 -> P.01.47
A143: =iPCU!A137 -> 0 | B143: =iPCU!B137 -> P.01.48
A144: =iPCU!A138 -> 0 | B144: =iPCU!B138 -> P.01.49
A145: =iPCU!A139 -> 0 | B145: =iPCU!B139 -> P.01.50
A146: =iPCU!A140 -> 0 | B146: =iPCU!B140 -> P.01.51
A147: =iPCU!A141 -> 0 | B147: =iPCU!B141 -> P.01.52
A148: =iPCU!A142 -> 0 | B148: =iPCU!B142 -> P.01.53
A149: =iPCU!A143 -> 0 | B149: =iPCU!B143 -> P.01.54
A150: =iPCU!A144 -> 0 | B150: =iPCU!B144 -> P.01.55
A151: =iPCU!A145 -> 0 | B151: =iPCU!B145 -> P.01.56
A152: =iPCU!A146 -> 0 | B152: =iPCU!B146 -> P.01.57
A153: =iPCU!A147 -> 0 | B153: =iPCU!B147 -> P.01.58
A154: =iPCU!A148 -> 0 | B154: =iPCU!B148 -> P.01.59
A155: =iPCU!A149 -> 0 | B155: =iPCU!B149 -> P.01.60
A156: =iPCU!A150 -> 0 | B156: =iPCU!B150 -> P.01.61
A157: =iPCU!A151 -> 0 | B157: =iPCU!B151 -> P.01.62
A158: =iPCU!A152 -> 0 | B158: =iPCU!B152 -> P.01.63
A159: =iPCU!A153 -> 0 | B159: =iPCU!B153 -> P.01.64
A160: =iPCU!A154 -> 0 | B160: =iPCU!B154 -> P.01.65
A161: =iPCU!A155 -> 0 | B161: =iPCU!B155 -> P.01.66
A162: =iPCU!A156 -> 0 | B162: =iPCU!B156 -> P.01.67
A163: =iPCU!A157 -> 0 | B163: =iPCU!B157 -> P.01.68
A164: =iPCU!A158 -> 0 | B164: =iPCU!B158 -> P.01.69
A165: =iPCU!A159 -> 0 | B165: =iPCU!B159 -> P.01.70
A166: =iPCU!A160 -> 0 | B166: =iPCU!B160 -> P.01.71
A167: =iPCU!A161 -> 0 | B167: =iPCU!B161 -> P.01.72
A168: =iPCU!A162 -> 0 | B168: =iPCU!B162 -> P.01.73
A169: =iPCU!A163 -> 0 | B169: =iPCU!B163 -> P.01.74
A170: =iPCU!A164 -> 0 | B170: =iPCU!B164 -> P.01.75
A171: =iPCU!A165 -> 0 | B171: =iPCU!B165 -> P.01.76
A172: =iPCU!A166 -> 0 | B172: =iPCU!B166 -> P.01.77
A173: =iPCU!A167 -> 0 | B173: =iPCU!B167 -> P.01.78
A174: =iPCU!A168 -> 0 | B174: =iPCU!B168 -> P.01.79
A175: =iPCU!A169 -> 0 | B175: =iPCU!B169 -> P.01.80
A176: =iPCU!A170 -> 0 | B176: =iPCU!B170 -> P.01.81
A177: =iPCU!A171 -> 0 | B177: =iPCU!B171 -> P.01.82
A178: =iPCU!A172 -> 0 | B178: =iPCU!B172 -> P.01.83
A179: =iPCU!A173 -> 0 | B179: =iPCU!B173 -> P.01.84
A180: =iPCU!A174 -> 0 | B180: =iPCU!B174 -> P.01.85
A181: =iPCU!A175 -> 0 | B181: =iPCU!B175 -> P.01.86
A182: =iPCU!A176 -> 0 | B182: =iPCU!B176 -> P.01.87
A183: =iPCU!A177 -> 0 | B183: =iPCU!B177 -> P.01.88
A184: =iPCU!A178 -> 0 | B184: =iPCU!B178 -> P.01.89
A185: =iPCU!A179 -> 0 | B185: =iPCU!B179 -> P.01.90
A186: =iPCU!A180 -> 0 | B186: =iPCU!B180 -> P.01.91
A187: =iPCU!A181 -> 0 | B187: =iPCU!B181 -> P.01.92
A188: =iPCU!A182 -> 0 | B188: =iPCU!B182 -> P.01.93
A189: =iPCU!A183 -> 0 | B189: =iPCU!B183 -> P.01.94
A190: =iPCU!A184 -> 0 | B190: =iPCU!B184 -> P.01.95
A191: =iPCU!A185 -> 0 | B191: =iPCU!B185 -> P.01.96
A192: =iPCU!A186 -> 0 | B192: =iPCU!B186 -> P.01.97
A193: =iPCU!A187 -> 0 | B193: =iPCU!B187 -> P.01.98
A194: =iPCU!A188 -> 0 | B194: =iPCU!B188 -> P.01.99
A195: TOTALE SPESE PREVENTIVATE DA RIPARTIRE | D195: =SUMIFS(D11:D194,C11:C194,"=?") -> 6950
E196: 0

Sheet iGIORNALE (hidden)
O1: 0
A2: Le celle con sfondo giallo contengono formule e non devono essere mai sovrascritte. I risultati delle formule sono visualizzati solo se la cella di colonna A della riga non è vuota. Le formule possono essere ricopiate singolarmente o con il metodo "seleziona e trascina" partendo da una cella che contiene la formula.
A3: Le celle di colonna M contengono solitamente una formula, quella più usuale per associare l'importo al conto movimentato. La formula può essere variata o si può scrivere direttamente il valore, quando l'importo movimentato non corrisponde ad una entrata o uscita scritta sulla stessa riga. La formula originaria può sempre essere riscritta copiandola dalla cella M10.
H4: ATTENZIONE! Le scritture guidate saranno attendibili solo se i prospetti contabili sono aggiornati. È bene quindi, prima di ogni scrittura guidata automatizzata, ricalcolare il bilancio di esercizio e le scritture fiscali. | Q4: Calcolo di controllo sui singoli conti
Q5: Conto | R5: Importo
A6: ='iP1'!A5 -> Condominio "TERMICO"
A7: ="REGISTRO DELLE OPERAZIONI CONTABILI - ANNO " & 'iP1'!A37 -> REGISTRO DELLE OPERAZIONI CONTABILI - ANNO 2021-2022 | Q7: A.01.01 | R7: =SUMIFS($M$11:M$1468,L$11:L$1468,Q7) -> 0
A8: Reg. | B8: Data | E8: DESCRIZIONE OPERAZIONE (e/o STRINGA INFORMATIVA) | F8: CASSA | I8: CONTO CORRENTE | L8: MOVIMENTO | N8: Pezza giustificativa | Q8: ="D.03.01." & RIGHT('iP1'!A37,2) -> D.03.01.22 | R8: =SUMIFS($M$11:M$1468,L$11:L$1468,Q8,M$11:M$1468,">0") -> 13.1147541
A9: n° | F9: ENTRATA | G9: USCITA | H9: SALDO | I9: ENTRATA | J9: USCITA | K9: SALDO | L9: CONTO | M9: IMPOR.
A10: =COUNTA(A11:A1424) -> 159 | B10: g | C10: m | D10: a | E10: TOTALI | F10: =ROUND(SUM(F12:F885),2) -> 1411.28 | G10: =SUM(G12:G885) -> 1381 | H10: =F10-G10 -> 30.28 | I10: =ROUND(SUM(I12:I885),2) -> 4432.46 | J10: =SUM(J12:J885) -> 577.23 | K10: =I10-J10 -> 3855.23 | M10: =IF(LEN(L10)>0,F10+G10+I10+J10,"") ->  | N10: n°
A11: 0 | B11: 0 | C11: 0 | D11: 2021 | E11: =========== SCRITTURE DI APERTURA ESERCIZIO ========== (riporto valori da esercizio precedente)
A12: a | B12: 0 | C12: 0 | D12: 2021 | E12: =========== SCRITTURE DI APERTURA ESERCIZIO ========== (riporto valori da stato patrimoniale esercizio precedente)
A13: l | B13: 0 | C13: 0 | E13: LIQUIDITÀ
A14: l | B14: 0 | C14: 0 | D14: 2021 | E14: SITUAZIONE LIQUIDITÀ INIZIALE (Gestione Speciale Riscaldamento Centralizzato) | F14: 0 | H14: =IF(A14<>"",IF(INDIRECT(ADDRESS(ROW()-1,8))="",ROUND(SUM(INDIRECT(ADDRESS(ROW()-2,8)),F14,-G14),2),ROUND(SUM(INDIRECT(ADDRESS(ROW()-1,8)),F14,-G14),2)),"") -> 0 | I14: 101.46 | K14: =IF(A14<>"",IF(INDIRECT(ADDRESS(ROW()-1,11))="",ROUND(SUM(INDIRECT(ADDRESS(ROW()-2,11)),I14,-J14),2),ROUND(SUM(INDIRECT(ADDRESS(ROW()-1,11)),I14,-J14),2)),"") -> 101.46
A15: c | B15: 0 | C15: 0 | E15: CREDITI | H15: =IF(A15<>"",IF(INDIRECT(ADDRESS(ROW()-1,8))="",ROUND(SUM(INDIRECT(ADDRESS(ROW()-2,8)),F15,-G15),2),ROUND(SUM(INDIRECT(ADDRESS(ROW()-1,8)),F15,-G15),2)),"") -> 0 | K15: =IF(A15<>"",IF(INDIRECT(ADDRESS(ROW()-1,11))="",ROUND(SUM(INDIRECT(ADDRESS(ROW()-2,11)),I15,-J15),2),ROUND(SUM(INDIRECT(ADDRESS(ROW()-1,11)),I15,-J15),2)),"") -> 101.46
A16: c | B16: 0 | C16: 0 | E16: da DEPOSITI di DENARO presso Terzi | H16: 0 | K16: 101.46
A17: c | B17: 0 | C17: 0 | D17: 2021 | E17: da ENEL ENERGIA SpA # deposito cauzionale # 01 # D-01 # 06/07/2021 | H17: 0 | K17: 101.46 | L17: C.01.01.21 | M17: 42.27
A18: c | B18: 0 | C18: 0 | E18: da CONDOMINI | H18: 0 | K18: 101.46
A19: c | B19: 0 | C19: 0 | E19: ESERCIZIO 2020 | H19: 0 | K19: 101.46
A20: c | B20: 0 | C20: 0 | D20: 2021 | E20: Condomino03 | H20: 0 | K20: 101.46 | L20: C.04.03.20 | M20: 169.05
A21: c | B21: 0 | C21: 0 | D21: 2021 | E21: Condomino04 S.r.l. | H21: 0 | K21: 101.46 | L21: C.04.04.20 | M21: 129.27
A22: c | B22: 0 | C22: 0 | D22: 2021 | E22: Condomino06 | H22: 0 | K22: 101.46 | L22: C.04.06.20 | M22: 275.6
A23: c | B23: 0 | C23: 0 | D23: 2021 | E23: Condomino10 | H23: 0 | K23: 101.46 | L23: C.04.10.20 | M23: 5.3
A24: c | B24: 0 | C24: 0 | D24: 2021 | E24: Condomino15 | H24: 0 | K24: 101.46 | L24: C.04.15.20 | M24: 207.54
A25: c | B25: 0 | C25: 0 | E25: ESERCIZIO 2021 | H25: 0 | K25: 101.46
A26: c | B26: 0 | C26: 0 | D26: 2021 | E26: Condomino03 | H26: 0 | K26: 101.46 | L26: C.04.03.21 | M26: 264.68
A27: c | B27: 0 | C27: 0 | D27: 2021 | E27: Condomino04 S.r.l. | H27: 0 | K27: 101.46 | L27: C.04.04.21 | M27: 154.48
A28: c | B28: 0 | C28: 0 | D28: 2021 | E28: Condomino06 | H28: 0 | K28: 101.46 | L28: C.04.06.21 | M28: 273.66
A29: c | B29: 0 | C29: 0 | D29: 2021 | E29: Condomino10 | H29: 0 | K29: 101.46 | L29: C.04.10.21 | M29: 13.3
A30: c | B30: 0 | C30: 0 | D30: 2021 | E30: Condomino15 | H30: 0 | K30: 101.46 | L30: C.04.15.21 | M30: 208.93
A31: c | B31: 0 | C31: 0 | D31: 2021 | E31: Condomino17 | H31: 0 | K31: 101.46 | L31: C.04.17.21 | M31: 130.56
A32: c | B32: 0 | C32: 0 | D32: 2021 | E32: Condomino23 | H32: 0 | K32: 101.46 | L32: C.04.23.21 | M32: 13.1
A33: d | B33: 0 | C33: 0 | E33: DEBITI | H33: 0 | K33: 101.46
A34: d | B34: 0 | C34: 0 | E34: DEPOSITI presso TERZI | H34: 0 | K34: 101.46
A35: d | B35: 0 | C35: 0 | D35: 2021 | E35: Condomino01 | H35: 0 | K35: 101.46 | L35: D.05.01 | M35: 1.3074
A36: d | B36: 0 | C36: 0 | D36: 2021 | E36: Condomino02 | H36: 0 | K36: 101.46 | L36: D.05.02 | M36: 1.7238
A37: d | B37: 0 | C37: 0 | D37: 2021 | E37: Condomino03 | H37: 0 | K37: 101.46 | L37: D.05.03 | M37: 3.0143
A38: d | B38: 0 | C38: 0 | D38: 2021 | E38: Condomino04 S.r.l. | H38: 0 | K38: 101.46 | L38: D.05.04 | M38: 1.4562
A39: d | B39: 0 | C39: 0 | D39: 2021 | E39: Condomino05 | H39: 0 | K39: 101.46 | L39: D.05.05 | M39: 2.4077
A40: d | B40: 0 | C40: 0 | D40: 2021 | E40: Condomino06 | H40: 0 | K40: 101.46 | L40: D.05.06 | M40: 2.4407
A41: d | B41: 0 | C41: 0 | D41: 2021 | E41: Condomino07 | H41: 0 | K41: 101.46 | L41: D.05.07 | M41: 1.2419
A42: d | B42: 0 | C42: 0 | D42: 2021 | E42: Condomino08 | H42: 0 | K42: 101.46 | L42: D.05.08 | M42: 0.3576
A43: d | B43: 0 | C43: 0 | D43: 2021 | E43: Condomino09 S.r.l. | H43: 0 | K43: 101.46 | L43: D.05.09 | M43: 1.501
A44: d | B44: 0 | C44: 0 | D44: 2021 | E44: Condomino10 | H44: 0 | K44: 101.46 | L44: D.05.10 | M44: 1.0551
A45: d | B45: 0 | C45: 0 | D45: 2021 | E45: Condomino11 | H45: 0 | K45: 101.46 | L45: D.05.11 | M45: 1.1054
A46: d | B46: 0 | C46: 0 | D46: 2021 | E46: Condomino12 | H46: 0 | K46: 101.46 | L46: D.05.12 | M46: 2.5125
A47: d | B47: 0 | C47: 0 | D47: 2021 | E47: Condomino13 | H47: 0 | K47: 101.46 | L47: D.05.13 | M47: 1.9837
A48: d | B48: 0 | C48: 0 | D48: 2021 | E48: Condomino14 | H48: 0 | K48: 101.46 | L48: D.05.14 | M48: 1.6244
A49: d | B49: 0 | C49: 0 | D49: 2021 | E49: Condomino15 | H49: 0 | K49: 101.46 | L49: D.05.15 | M49: 1.7745
A50: d | B50: 0 | C50: 0 | D50: 2021 | E50: Condomino16 | H50: 0 | K50: 101.46 | L50: D.05.16 | M50: 2.1972
A51: d | B51: 0 | C51: 0 | D51: 2021 | E51: Condomino17 | H51: 0 | K51: 101.46 | L51: D.05.17 | M51: 3.1563
A52: d | B52: 0 | C52: 0 | D52: 2021 | E52: Condomino18 | H52: 0 | K52: 101.46 | L52: D.05.18 | M52: 3.1565
A53: d | B53: 0 | C53: 0 | D53: 2021 | E53: Condomino19 | H53: 0 | K53: 101.46 | L53: D.05.19 | M53: 2.6457
A54: d | B54: 0 | C54: 0 | D54: 2021 | E54: Condomino20 | H54: 0 | K54: 101.46 | L54: D.05.20 | M54: 0.7368
A55: d | B55: 0 | C55: 0 | D55: 2021 | E55: Condomino21 | H55: 0 | K55: 101.46 | L55: D.05.21 | M55: 1.7813
A56: d | B56: 0 | C56: 0 | D56: 2021 | E56: Condomino22 | H56: 0 | K56: 101.46 | L56: D.05.22 | M56: 1.2284
A57: d | B57: 0 | C57: 0 | D57: 2021 | E57: Condomino23 | H57: 0 | K57: 101.46 | L57: D.05.23 | M57: 1.8616
A58: d | B58: 0 | C58: 0 | E58: v/s TERZI PRIVATI | H58: 0 | K58: 101.46
A59: d | B59: 0 | C59: 0 | D59: 2021 | E59: v/s CONSULENTE FISCALE # Impegno di spesa Consulenza fiscale 2019 # 01 # F-06 # 31/12/2019 | H59: 0 | K59: 101.46 | L59: D.02.03.19 | M59: 50
A60: d | B60: 0 | C60: 0 | D60: 2021 | E60: v/s CHIEFARI Pietro # impegno spesa comp. Amm. Es. 2019 # 02 # F-07 # 31/12/2019 | H60: 0 | K60: 101.46 | L60: D.02.03.19 | M60: 200
A61: d | B61: 0 | C61: 0 | D61: 2021 | E61: v/s AVVOCATO Giuseppe # avviso fattura n. 10/2020 del 1-12-2020 # 03 # F-08 # 01/12/2020 | H61: 0 | K61: 101.46 | L61: D.02.02.20 | M61: 50
A62: d | B62: 0 | C62: 0 | D62: 2021 | E62: v/s CHIEFARI Pietro # impegno spesa comp. Amm. Es. 2020 # 04 # F-07 # 31/12/2020 | H62: =IF(A62<>"",IF(INDIRECT(ADDRESS(ROW()-1,8))="",ROUND(SUM(INDIRECT(ADDRESS(ROW()-2,8)),F62,-G62),2),ROUND(SUM(INDIRECT(ADDRESS(ROW()-1,8)),F62,-G62),2)),"") -> 0 | K62: =IF(A62<>"",IF(INDIRECT(ADDRESS(ROW()-1,11))="",ROUND(SUM(INDIRECT(ADDRESS(ROW()-2,11)),I62,-J62),2),ROUND(SUM(INDIRECT(ADDRESS(ROW()-1,11)),I62,-J62),2)),"") -> 101.46 | L62: D.02.03.20 | M62: 200
A63: d | B63: 0 | C63: 0 | D63: 2021 | E63: v/s CONSULENTE FISCALE # Impegno di spesa Consulenza fiscale 2020 # 05 # F-06 # 31/12/2020 | H63: 0 | K63: 101.46 | L63: D.02.03.20 | M63: 90
A64: d | B64: 0 | C64: 0 | D64: 2021 | E64: v/s ENEL ENERGIA SpA # Fattura n. 4157845945 del 08-12-2021 # 06 # C-03 # 08/12/2021 | H64: 0 | K64: 101.46 | L64: D.02.01.21 | M64: 168.38
A65: d | B65: 0 | C65: 0 | D65: 2021 | E65: v/s Samuele SAVERIO # Fattura n. 310 del 22-12-2021 # 07 # F-01 # 11/12/2021 | H65: 0 | K65: 101.46 | L65: D.02.01.21 | M65: 65
A66: d | B66: 0 | C66: 0 | D66: 2021 | E66: v/s Samuele SAVERIO # Fattura n. 311 del 22-12-2021 # 08 # F-01 # 22/12/2021 | H66: 0 | K66: 101.46 | L66: D.02.01.21 | M66: 65
A67: d | B67: 0 | C67: 0 | D67: 2021 | E67: v/s Samuele SAVERIO # Fattura n. 312 del 22-12-2021 # 09 # F-01 # 22/12/2021 | H67: 0 | K67: 101.46 | L67: D.02.01.21 | M67: 65
A68: d | B68: 0 | C68: 0 | D68: 2021 | E68: v/s CHIEFARI Pietro # Impegno di spesa competenze Amministratore 2021 # 10 # F-07 # 31/12/2021 | H68: 0 | K68: 101.46 | L68: D.02.03.21 | M68: 200
A69: d | B69: 0 | C69: 0 | D69: 2021 | E69: v/s CONSULENTE FISCALE # Impegno di spesa consulenza fiscale 2021 # 11 # F-06 # 31/12/2021 | H69: 0 | K69: 101.46 | L69: D.02.03.21 | M69: 50
A70: d | B70: 0 | C70: 0 | E70: v/s CONDOMINI (Quote versate in eccesso) | H70: 0 | K70: 101.46
A71: d | B71: 0 | C71: 0 | D71: 2021 | E71: Condomino01 | H71: 0 | K71: 101.46 | L71: D.04.01 | M71: 78.06
A72: d | B72: 0 | C72: 0 | D72: 2021 | E72: Condomino02 | H72: 0 | K72: 101.46 | L72: D.04.02 | M72: 8.05
A73: d | B73: 0 | C73: 0 | D73: 2021 | E73: Condomino05 | H73: 0 | K73: 101.46 | L73: D.04.05 | M73: 12.14
A74: d | B74: 0 | C74: 0 | D74: 2021 | E74: Condomino07 | H74: 0 | K74: 101.46 | L74: D.04.07 | M74: 79.04
A75: d | B75: 0 | C75: 0 | D75: 2021 | E75: Condomino08 | H75: 0 | K75: 101.46 | L75: D.04.08 | M75: 18.8
A76: d | B76: 0 | C76: 0 | D76: 2021 | E76: Condomino09 S.r.l. | H76: 0 | K76: 101.46 | L76: D.04.09 | M76: 15.36
A77: d | B77: 0 | C77: 0 | D77: 2021 | E77: Condomino11 | H77: 0 | K77: 101.46 | L77: D.04.11 | M77: 97.88
A78: d | B78: 0 | C78: 0 | D78: 2021 | E78: Condomino12 | H78: 0 | K78: 101.46 | L78: D.04.12 | M78: 91.44
A79: d | B79: 0 | C79: 0 | D79: 2021 | E79: Condomino13 | H79: 0 | K79: 101.46 | L79: D.04.13 | M79: 19.89
A80: d | B80: 0 | C80: 0 | D80: 2021 | E80: Condomino14 | H80: 0 | K80: 101.46 | L80: D.04.14 | M80: 90.2
A81: d | B81: 0 | C81: 0 | D81: 2021 | E81: Condomino16 | H81: 0 | K81: 101.46 | L81: D.04.16 | M81: 34.35
A82: d | B82: 0 | C82: 0 | D82: 2021 | E82: Condomino18 | H82: 0 | K82: 101.46 | L82: D.04.18 | M82: 11.03
A83: d | B83: 0 | C83: 0 | D83: 2021 | E83: Condomino19 | H83: 0 | K83: 101.46 | L83: D.04.19 | M83: 59.28
A84: d | B84: 0 | C84: 0 | D84: 2021 | E84: Condomino20 | H84: 0 | K84: 101.46 | L84: D.04.20 | M84: 7.45
A85: d | B85: 0 | C85: 0 | D85: 2021 | E85: Condomino21 | H85: 0 | K85: 101.46 | L85: D.04.21 | M85: 23.21
A86: d | B86: 0 | C86: 0 | D86: 2021 | E86: Condomino22 | H86: 0 | K86: 101.46 | L86: D.04.22 | M86: 97.37
A87: s | B87: 1 | C87: 1 | E87: OPERAZIONI DI STORNO CREDITI | H87: 0 | K87: 101.46
A88: s | B88: 1 | C88: 1 | D88: 2021 | E88: Restituzione a Condomino01 | H88: 0 | K88: 101.46 | L88: U.01.01 | M88: 78.06
A89: s | B89: 1 | C89: 1 | D89: 2021 | E89: Condomino01 # Versamento in conto quota esercizio 2022 per storno credito 2021 | H89: 0 | K89: 101.46 | L89: Q.01.01 | M89: 78.06
A90: s | B90: 1 | C90: 1 | D90: 2021 | E90: Restituzione a Condomino02 | H90: 0 | K90: 101.46 | L90: U.01.02 | M90: 8.05
A91: s | B91: 1 | C91: 1 | D91: 2021 | E91: Condomino02 # Versamento in conto quota esercizio 2022 per storno credito 2021 | H91: 0 | K91: 101.46 | L91: Q.01.02 | M91: 8.05
A92: s | B92: 1 | C92: 1 | D92: 2021 | E92: Restituzione a Condomino05 | H92: 0 | K92: 101.46 | L92: U.01.05 | M92: 12.14
A93: s | B93: 1 | C93: 1 | D93: 2021 | E93: Condomino05 # Versamento in conto quota esercizio 2022 per storno credito 2021 | H93: 0 | K93: 101.46 | L93: Q.01.05 | M93: 12.14
A94: s | B94: 1 | C94: 1 | D94: 2021 | E94: Restituzione a Condomino07 | H94: 0 | K94: 101.46 | L94: U.01.07 | M94: 79.04
A95: s | B95: 1 | C95: 1 | D95: 2021 | E95: Condomino07 # Versamento in conto quota esercizio 2022 per storno credito 2021 | H95: 0 | K95: 101.46 | L95: Q.01.07 | M95: 79.04
A96: s | B96: 1 | C96: 1 | D96: 2021 | E96: Restituzione a Condomino08 | H96: 0 | K96: 101.46 | L96: U.01.08 | M96: 18.8
A97: s | B97: 1 | C97: 1 | D97: 2021 | E97: Condomino08 # Versamento in conto quota esercizio 2022 per storno credito 2021 | H97: 0 | K97: 101.46 | L97: Q.01.08 | M97: 18.8
A98: s | B98: 1 | C98: 1 | D98: 2021 | E98: Restituzione a Condomino09 S.r.l. | H98: 0 | K98: 101.46 | L98: U.01.09 | M98: 15.36
A99: s | B99: 1 | C99: 1 | D99: 2021 | E99: Condomino09 S.r.l. # Versamento in conto quota esercizio 2022 per storno credito 2021 | H99: 0 | K99: 101.46 | L99: Q.01.09 | M99: 15.36
A100: s | B100: 1 | C100: 1 | D100: 2021 | E100: Restituzione a Condomino11 | H100: 0 | K100: 101.46 | L100: U.01.11 | M100: 97.88
A101: s | B101: 1 | C101: 1 | D101: 2021 | E101: Condomino11 # Versamento in conto quota esercizio 2022 per storno credito 2021 | H101: 0 | K101: 101.46 | L101: Q.01.11 | M101: 97.88
A102: s | B102: 1 | C102: 1 | D102: 2021 | E102: Restituzione a Condomino12 | H102: 0 | K102: 101.46 | L102: U.01.12 | M102: 91.44
A103: s | B103: 1 | C103: 1 | D103: 2021 | E103: Condomino12 # Versamento in conto quota esercizio 2022 per storno credito 2021 | H103: 0 | K103: 101.46 | L103: Q.01.12 | M103: 91.44
A104: s | B104: 1 | C104: 1 | D104: 2021 | E104: Restituzione a Condomino13 | H104: 0 | K104: 101.46 | L104: U.01.13 | M104: 19.89
A105: s | B105: 1 | C105: 1 | D105: 2021 | E105: Condomino13 # Versamento in conto quota esercizio 2022 per storno credito 2021 | H105: 0 | K105: 101.46 | L105: Q.01.13 | M105: 19.89
A106: s | B106: 1 | C106: 1 | D106: 2021 | E106: Restituzione a Condomino14 | H106: 0 | K106: 101.46 | L106: U.01.14 | M106: 90.2
A107: s | B107: 1 | C107: 1 | D107: 2021 | E107: Condomino14 # Versamento in conto quota esercizio 2022 per storno credito 2021 | H107: 0 | K107: 101.46 | L107: Q.01.14 | M107: 90.2
A108: s | B108: 1 | C108: 1 | D108: 2021 | E108: Restituzione a Condomino16 | H108: 0 | K108: 101.46 | L108: U.01.16 | M108: 34.35
A109: s | B109: 1 | C109: 1 | D109: 2021 | E109: Condomino16 # Versamento in conto quota esercizio 2022 per storno credito 2021 | H109: 0 | K109: 101.46 | L109: Q.01.16 | M109: 34.35
A110: s | B110: 1 | C110: 1 | D110: 2021 | E110: Restituzione a Condomino18 | H110: 0 | K110: 101.46 | L110: U.01.18 | M110: 11.03
A111: s | B111: 1 | C111: 1 | D111: 2021 | E111: Condomino18 # Versamento in conto quota esercizio 2022 per storno credito 2021 | H111: 0 | K111: 101.46 | L111: Q.01.18 | M111: 11.03
A112: s | B112: 1 | C112: 1 | D112: 2021 | E112: Restituzione a Condomino19 | H112: 0 | K112: 101.46 | L112: U.01.19 | M112: 59.28
A113: s | B113: 1 | C113: 1 | D113: 2021 | E113: Condomino19 # Versamento in conto quota esercizio 2022 per storno credito 2021 | H113: 0 | K113: 101.46 | L113: Q.01.19 | M113: 59.28
A114: s | B114: 1 | C114: 1 | D114: 2021 | E114: Restituzione a Condomino20 | H114: 0 | K114: 101.46 | L114: U.01.20 | M114: 7.45
A115: s | B115: 1 | C115: 1 | D115: 2021 | E115: Condomino20 # Versamento in conto quota esercizio 2022 per storno credito 2021 | H115: 0 | K115: 101.46 | L115: Q.01.20 | M115: 7.45
A116: s | B116: 1 | C116: 1 | D116: 2021 | E116: Restituzione a Condomino21 | H116: 0 | K116: 101.46 | L116: U.01.21 | M116: 23.21
A117: s | B117: 1 | C117: 1 | D117: 2021 | E117: Condomino21 # Versamento in conto quota esercizio 2022 per storno credito 2021 | H117: 0 | K117: 101.46 | L117: Q.01.21 | M117: 23.21
A118: s | B118: 1 | C118: 1 | D118: 2021 | E118: Restituzione a Condomino22 | H118: 0 | K118: 101.46 | L118: U.01.22 | M118: 97.37
A119: s | B119: 1 | C119: 1 | D119: 2021 | E119: Condomino22 # Versamento in conto quota esercizio 2022 per storno credito 2021 | H119: 0 | K119: 101.46 | L119: Q.01.22 | M119: 97.37
A120: s | B120: 1 | C120: 1 | E120: OPERAZIONI DI TRASLAZIONE DEBITI | H120: =IF(A120<>"",IF(INDIRECT(ADDRESS(ROW()-1,8))="",ROUND(SUM(INDIRECT(ADDRESS(ROW()-2,8)),F120,-G120),2),ROUND(SUM(INDIRECT(ADDRESS(ROW()-1,8)),F120,-G120),2)),"") -> 0 | K120: =IF(A120<>"",IF(INDIRECT(ADDRESS(ROW()-1,11))="",ROUND(SUM(INDIRECT(ADDRESS(ROW()-2,11)),I120,-J120),2),ROUND(SUM(INDIRECT(ADDRESS(ROW()-1,11)),I120,-J120),2)),"") -> 101.46
A121: s | B121: 1 | C121: 1 | E121: OPERAZIONI DI TRASLAZIONI CREDITI | H121: 0 | K121: 101.46
A122: e | B122: 1 | C122: 1 | E122: === SCRITTURE RELATIVE ALL'ESERCIZIO IN CORSO === | H122: 0 | K122: 101.46
A123: 1 | B123: 5 | C123: 11 | D123: 2021 | E123: Condomino19 # Versamento tramite bonifico in conto esercizio 2021-2022 | H123: =IF(A123<>"",IF(INDIRECT(ADDRESS(ROW()-1,8))="",SUM(INDIRECT(ADDRESS(ROW()-2,8)),F123,-G123),SUM(INDIRECT(ADDRESS(ROW()-1,8)),F123,-G123)),"") -> 0 | I123: 50 | K123: =IF(A123<>"",IF(INDIRECT(ADDRESS(ROW()-1,11))="",SUM(INDIRECT(ADDRESS(ROW()-2,11)),I123,-J123),SUM(INDIRECT(ADDRESS(ROW()-1,11)),I123,-J123)),"") -> 151.46 | L123: Q.01.19 | M123: =IF(LEN(L123)>0,F123+G123+I123+J123,"") -> 50
A124: 2 | B124: 10 | C124: 11 | D124: 2021 | E124: CONDOMINO03 # Versamento in contanti a saldo Arretrato Esercizio 2019-2020 | F124: 169.05 | H124: =IF(A124<>"",IF(INDIRECT(ADDRESS(ROW()-1,8))="",ROUND(SUM(INDIRECT(ADDRESS(ROW()-2,8)),F124,-G124),2),ROUND(SUM(INDIRECT(ADDRESS(ROW()-1,8)),F124,-G124),2)),"") -> 169.05 | K124: =IF(A124<>"",IF(INDIRECT(ADDRESS(ROW()-1,11))="",ROUND(SUM(INDIRECT(ADDRESS(ROW()-2,11)),I124,-J124),2),ROUND(SUM(INDIRECT(ADDRESS(ROW()-1,11)),I124,-J124),2)),"") -> 151.46 | L124: Q.03.03 | M124: 169.05
A125: 2 | B125: 10 | C125: 11 | D125: 2021 | E125: CONDOMINO03 # Versamento in contanti in conto Conguaglio 2020-2021 | F125: 130.95 | H125: 300 | K125: 151.46 | L125: Q.02.03 | M125: 130.95
A126: 3 | B126: 21 | C126: 11 | D126: 2021 | E126: CONDOMINO01 # Versamento tramite bonifico in conto quota esercizio in corso (2021-2022) | H126: 300 | I126: 200 | K126: 351.46 | L126: Q.01.01 | M126: 200
A127: 4 | B127: 22 | C127: 11 | D127: 2021 | E127: CONDOMINO07 # Versamento in contanti in conto quota esercizio in corso (2021-2022) | F127: 156 | H127: 456 | K127: 351.46 | L127: Q.01.07 | M127: 156
A128: 5 | B128: 23 | C128: 11 | D128: 2021 | E128: INQUILINO2 # Versamento in contanti in conto quota esercizio in corso (2021-2022) | F128: 150 | H128: 606 | K128: 351.46 | L128: Q.01.25 | M128: 150
A129: 6 | B129: 11 | C129: 12 | D129: 2021 | E129: Regalo figlio portiera per pulizia caldaia | H129: 606 | J129: 50 | K129: 301.46 | L129: S.02.01 | M129: 50
A130: 7 | B130: 22 | C130: 12 | D130: 2021 | E130: CONDOMINO05 # Versamento tramite bollettino in conto quota esercizio in corso (2021-2022) | H130: =IF(A130<>"",IF(INDIRECT(ADDRESS(ROW()-1,8))="",SUM(INDIRECT(ADDRESS(ROW()-2,8)),F130,-G130),SUM(INDIRECT(ADDRESS(ROW()-1,8)),F130,-G130)),"") -> 606 | I130: 100 | K130: =IF(A130<>"",IF(INDIRECT(ADDRESS(ROW()-1,11))="",SUM(INDIRECT(ADDRESS(ROW()-2,11)),I130,-J130),SUM(INDIRECT(ADDRESS(ROW()-1,11)),I130,-J130)),"") -> 401.46 | L130: Q.01.05 | M130: =IF(LEN(L130)>0,F130+G130+I130+J130,"") -> 100
A131: 7 | B131: 22 | C131: 12 | D131: 2021 | E131: CONDOMINO05 spese personali di accredito bollettino c.c. postale | H131: =IF(A131<>"",IF(INDIRECT(ADDRESS(ROW()-1,8))="",SUM(INDIRECT(ADDRESS(ROW()-2,8)),F131,-G131),SUM(INDIRECT(ADDRESS(ROW()-1,8)),F131,-G131)),"") -> 606 | J131: 0.34 | K131: =IF(A131<>"",IF(INDIRECT(ADDRESS(ROW()-1,11))="",ROUND(SUM(INDIRECT(ADDRESS(ROW()-2,11)),I131,-J131),2),ROUND(SUM(INDIRECT(ADDRESS(ROW()-1,11)),I131,-J131),2)),"") -> 401.12 | L131: P.01.05 | M131: 0.34
A132: 8 | B132: 28 | C132: 12 | D132: 2021 | E132: Incasso per prestito da Amministratore (contante) | F132: 123 | H132: =IF(A132<>"",IF(INDIRECT(ADDRESS(ROW()-1,8))="",ROUND(SUM(INDIRECT(ADDRESS(ROW()-2,8)),F132,-G132),2),ROUND(SUM(INDIRECT(ADDRESS(ROW()-1,8)),F132,-G132),2)),"") -> 729 | K132: =IF(A132<>"",IF(INDIRECT(ADDRESS(ROW()-1,11))="",ROUND(SUM(INDIRECT(ADDRESS(ROW()-2,11)),I132,-J132),2),ROUND(SUM(INDIRECT(ADDRESS(ROW()-1,11)),I132,-J132),2)),"") -> 401.12 | L132: V.01.01 | M132: 123
A133: 9 | B133: 28 | C133: 12 | D133: 2021 | E133: Si origina debito v/s Amministratore # Scrittura privata del 20-02-2022 # 12 # Z-01 # 20-02-2022 | H133: =IF(A133<>"",IF(INDIRECT(ADDRESS(ROW()-1,8))="",ROUND(SUM(INDIRECT(ADDRESS(ROW()-2,8)),F133,-G133),2),ROUND(SUM(INDIRECT(ADDRESS(ROW()-1,8)),F133,-G133),2)),"") -> 729 | K133: =IF(A133<>"",IF(INDIRECT(ADDRESS(ROW()-1,11))="",ROUND(SUM(INDIRECT(ADDRESS(ROW()-2,11)),I133,-J133),2),ROUND(SUM(INDIRECT(ADDRESS(ROW()-1,11)),I133,-J133),2)),"") -> 401.12 | L133: D.02.04.22 | M133: 123
A134: 10 | B134: 20 | C134: 1 | D134: 2022 | E134: Giroconto di disponibilità liquide: da CASSA CONTANTI ----> a BANCA | G134: 251 | H134: =IF(A134<>"",IF(INDIRECT(ADDRESS(ROW()-1,8))="",SUM(INDIRECT(ADDRESS(ROW()-2,8)),F134,-G134),SUM(INDIRECT(ADDRESS(ROW()-1,8)),F134,-G134)),"") -> 478 | I134: 251 | K134: =IF(A134<>"",IF(INDIRECT(ADDRESS(ROW()-1,11))="",SUM(INDIRECT(ADDRESS(ROW()-2,11)),I134,-J134),SUM(INDIRECT(ADDRESS(ROW()-1,11)),I134,-J134)),"") -> 652.12 | M134: =IF(LEN(L134)>0,F134+G134+I134+J134,"") -> 
A135: 10 | B135: 20 | C135: 1 | D135: 2022 | E135: Giroconto di disponibilità liquide: da CASSA CONTANTI ----> a BANCA | G135: 130 | H135: =IF(A135<>"",IF(INDIRECT(ADDRESS(ROW()-1,8))="",ROUND(SUM(INDIRECT(ADDRESS(ROW()-2,8)),F135,-G135),2),ROUND(SUM(INDIRECT(ADDRESS(ROW()-1,8)),F135,-G135),2)),"") -> 348 | I135: 130 | K135: =IF(A135<>"",IF(INDIRECT(ADDRESS(ROW()-1,11))="",ROUND(SUM(INDIRECT(ADDRESS(ROW()-2,11)),I135,-J135),2),ROUND(SUM(INDIRECT(ADDRESS(ROW()-1,11)),I135,-J135),2)),"") -> 782.12 | M135: =IF(LEN(L135)>0,F135+G135+I135+J135,"") -> 
A136: 11 | B136: 10 | C136: 3 | D136: 2022 | E136: Pagamento bolletta ITALGAS n. 8852555 ( spesa involontaria pari al 25% della spesa totale) | H136: =IF(A136<>"",IF(INDIRECT(ADDRESS(ROW()-1,8))="",SUM(INDIRECT(ADDRESS(ROW()-2,8)),F136,-G136),SUM(INDIRECT(ADDRESS(ROW()-1,8)),F136,-G136)),"") -> 348 | J136: 85 | K136: =IF(A136<>"",IF(INDIRECT(ADDRESS(ROW()-1,11))="",SUM(INDIRECT(ADDRESS(ROW()-2,11)),I136,-J136),SUM(INDIRECT(ADDRESS(ROW()-1,11)),I136,-J136)),"") -> 697.12 | L136: S.04.01 | M136: 85
A137: 12 | B137: 10 | C137: 3 | D137: 2022 | E137: Spesa rapportata al consumo | H137: =IF(A137<>"",IF(INDIRECT(ADDRESS(ROW()-1,8))="",SUM(INDIRECT(ADDRESS(ROW()-2,8)),F137,-G137),SUM(INDIRECT(ADDRESS(ROW()-1,8)),F137,-G137)),"") -> 348 | J137: 315 | K137: =IF(A137<>"",IF(INDIRECT(ADDRESS(ROW()-1,11))="",ROUND(SUM(INDIRECT(ADDRESS(ROW()-2,11)),I137,-J137),2),ROUND(SUM(INDIRECT(ADDRESS(ROW()-1,11)),I137,-J137),2)),"") -> 382.12 | M137: =IF(LEN(L137)>0,F137+G137+I137+J137,"") -> 
A138: 12 | B138: 10 | C138: 3 | D138: 2022 | E138: pagamento bolletta ITALGAS n. 8852555 (spesa volontaria pari al 75% della spesa totale) | H138: =IF(A138<>"",IF(INDIRECT(ADDRESS(ROW()-1,8))="",SUM(INDIRECT(ADDRESS(ROW()-2,8)),F138,-G138),SUM(INDIRECT(ADDRESS(ROW()-1,8)),F138,-G138)),"") -> 348 | K138: =IF(A138<>"",IF(INDIRECT(ADDRESS(ROW()-1,11))="",SUM(INDIRECT(ADDRESS(ROW()-2,11)),I138,-J138),SUM(INDIRECT(ADDRESS(ROW()-1,11)),I138,-J138)),"") -> 382.12 | L138: S.04.03 | M138: 315
A139: 13 | B139: 20 | C139: 3 | D139: 2022 | E139: Pagamento per pulizia lacale caldaia | H139: =IF(A139<>"",IF(INDIRECT(ADDRESS(ROW()-1,8))="",SUM(INDIRECT(ADDRESS(ROW()-2,8)),F139,-G139),SUM(INDIRECT(ADDRESS(ROW()-1,8)),F139,-G139)),"") -> 348 | J139: 60 | K139: =IF(A139<>"",IF(INDIRECT(ADDRESS(ROW()-1,11))="",SUM(INDIRECT(ADDRESS(ROW()-2,11)),I139,-J139),SUM(INDIRECT(ADDRESS(ROW()-1,11)),I139,-J139)),"") -> 322.12 | M139: =IF(LEN(L139)>0,F139+G139+I139+J139,"") -> 
A140: 13 | B140: 20 | C140: 3 | D140: 2022 | E140: Pagamento fattura 121/22 a SAMUELE Saverio | H140: 348 | K140: 322.12 | L140: S.02.01 | M140: 60
A141: 13 | B141: 20 | C141: 3 | D141: 2022 | E141: Registrazione Fiscale - Imponibile mod 770: F-01 # Fattura # 121/22 # 11-03-2022 # 00 | H141: 348 | K141: 322.12 | L141: H.P00.01 | M141: 60
A142: 14 | B142: 21 | C142: 3 | D142: 2022 | E142: Pagamento fattura 11/22 Consulente fiscale | H142: 348 | J142: 66.89 | K142: 255.23 | L142: S.01.04 | M142: 80
A143: 14 | B143: 21 | C143: 3 | D143: 2022 | E143: Registrazione Fiscale - Imponibile mod 770: F-06 # Fattura # 11/22 # 12/03/2022 # 00 | H143: 348 | K143: 255.23 | L143: H.P20.06 | M143: 65.57377049
A144: 14 | B144: 21 | C144: 3 | D144: 2022 | E144: Si origina debito v/s ERARIO # R.A. su Fattura n. 11/22 del 12/03/2022 di Consulente Fiscale # 13 # A-01 # 21-03-2022 | H144: 348 | K144: 255.23 | L144: D.03.01.22 | M144: 13.1147541
A145: 15 | B145: 22 | C145: 3 | D145: 2022 | E145: CONDOMINO03 # Versamento tramite bonifico a saldo Conguaglio 2019-2020 | H145: =IF(A145<>"",IF(INDIRECT(ADDRESS(ROW()-1,8))="",ROUND(SUM(INDIRECT(ADDRESS(ROW()-2,8)),F145,-G145),2),ROUND(SUM(INDIRECT(ADDRESS(ROW()-1,8)),F145,-G145),2)),"") -> 348 | I145: 133.73 | K145: =IF(A145<>"",IF(INDIRECT(ADDRESS(ROW()-1,11))="",ROUND(SUM(INDIRECT(ADDRESS(ROW()-2,11)),I145,-J145),2),ROUND(SUM(INDIRECT(ADDRESS(ROW()-1,11)),I145,-J145),2)),"") -> 388.96 | L145: Q.02.03 | M145: =IF(LEN(L145)>0,F145+G145+I145+J145,"") -> 133.73
A146: 15 | B146: 22 | C146: 3 | D146: 2022 | E146: CONDOMINO03 # Versamento tramite bonifico in conto quota esercizio in corso (2021-2022) | H146: 348 | I146: 66.27 | K146: 455.23 | L146: Q.01.03 | M146: 66.27
A147: 16 | B147: 23 | C147: 3 | D147: 2022 | E147: CONDOMINO04 S.R.L. # Versamento tramite bonifico a saldo Arretrato Esercizio 2018-2019 | H147: 348 | I147: 129.27 | K147: 584.5 | L147: Q.03.04 | M147: 129.27
A148: 16 | B148: 23 | C148: 3 | D148: 2022 | E148: CONDOMINO04 S.R.L. # Versamento tramite bonifico in conto Conguaglio 2019-2020 | H148: 348 | I148: 120.73 | K148: 705.23 | L148: Q.02.04 | M148: 120.73
A149: 17 | B149: 25 | C149: 3 | D149: 2022 | E149: CONDOMINO05 # Versamento in contanti in conto quota esercizio in corso (2021-2022) | F149: 80 | H149: 428 | K149: 705.23 | L149: Q.01.05 | M149: 80
A150: 18 | B150: 24 | C150: 3 | D150: 2022 | E150: CONDOMINO06 # Versamento tramite bonifico a saldo Arretrato Esercizio 2018-2019 | H150: 428 | I150: 275.6 | K150: 980.83 | L150: Q.03.06 | M150: 275.6
A151: 18 | B151: 24 | C151: 3 | D151: 2022 | E151: CONDOMINO06 # Versamento tramite bonifico in conto Conguaglio 2019-2020 | H151: 428 | I151: 24.4 | K151: 1005.23 | L151: Q.02.06 | M151: 24.4
A152: 19 | B152: 24 | C152: 3 | D152: 2022 | E152: CONDOMINO07 # Versamento in contanti in conto quota esercizio in corso (2021-2022) | F152: 90 | H152: 518 | K152: 1005.23 | L152: Q.01.07 | M152: 90
A153: 20 | B153: 25 | C153: 3 | D153: 2022 | E153: EREDI CONDOMINO08 # Versamento tramite bonifico in conto quota esercizio in corso (2021-2022) | H153: 518 | I153: 300 | K153: 1305.23 | L153: Q.01.08 | M153: 300
A154: 21 | B154: 26 | C154: 3 | D154: 2022 | E154: CONDOMINO09 S.R.L. # Versamento tramite bonifico in conto quota esercizio in corso (2021-2022) | H154: 518 | I154: 120 | K154: 1425.23 | L154: Q.01.09 | M154: 120
A155: 22 | B155: 27 | C155: 3 | D155: 2022 | E155: CONDOMINO11 # Versamento con assegno in conto quota esercizio in corso (2021-2022) | F155: 125 | H155: =IF(A155<>"",IF(INDIRECT(ADDRESS(ROW()-1,8))="",SUM(INDIRECT(ADDRESS(ROW()-2,8)),F155,-G155),SUM(INDIRECT(ADDRESS(ROW()-1,8)),F155,-G155)),"") -> 643 | K155: =IF(A155<>"",IF(INDIRECT(ADDRESS(ROW()-1,11))="",SUM(INDIRECT(ADDRESS(ROW()-2,11)),I155,-J155),SUM(INDIRECT(ADDRESS(ROW()-1,11)),I155,-J155)),"") -> 1425.23 | L155: Q.01.11 | M155: 125
A156: 23 | B156: 27 | C156: 3 | D156: 2022 | E156: CONDOMINO12 # Versamento tramite bonifico in conto quota esercizio in corso (2021-2022) | H156: =IF(A156<>"",IF(INDIRECT(ADDRESS(ROW()-1,8))="",ROUND(SUM(INDIRECT(ADDRESS(ROW()-2,8)),F156,-G156),2),ROUND(SUM(INDIRECT(ADDRESS(ROW()-1,8)),F156,-G156),2)),"") -> 643 | I156: 150 | K156: =IF(A156<>"",IF(INDIRECT(ADDRESS(ROW()-1,11))="",ROUND(SUM(INDIRECT(ADDRESS(ROW()-2,11)),I156,-J156),2),ROUND(SUM(INDIRECT(ADDRESS(ROW()-1,11)),I156,-J156),2)),"") -> 1575.23 | L156: Q.01.12 | M156: 150
A157: 24 | B157: 28 | C157: 3 | D157: 2022 | E157: CONDOMINO14 # Versamento in contanti in conto quota esercizio in corso (2021-2022) | F157: 200 | H157: 843 | K157: 1575.23 | L157: Q.01.14 | M157: 200
A158: 25 | B158: 29 | C158: 3 | D158: 2022 | E158: CONDOMINO17 # Versamento tramite bonifico a saldo Conguaglio 2019-2020 | H158: 843 | I158: 130.56 | K158: 1705.79 | L158: Q.02.17 | M158: 130.56
A159: 25 | B159: 29 | C159: 3 | D159: 2022 | E159: CONDOMINO17 # Versamento tramite bonifico in conto quota esercizio in corso (2021-2022) | H159: 843 | I159: 119.44 | K159: 1825.23 | L159: Q.01.17 | M159: 119.44
A160: 26 | B160: 29 | C160: 3 | D160: 2022 | E160: CONDOMINO22 # Versamento tramite bonifico in conto quota esercizio in corso (2021-2022) | H160: 843 | I160: 130 | K160: 1955.23 | L160: Q.01.22 | M160: 130
A161: 27 | B161: 30 | C161: 3 | D161: 2022 | E161: INQUILINO1 # Versamento in contanti in conto quota esercizio in corso (2021-2022) | F161: 110 | H161: 953 | K161: 1955.23 | L161: Q.01.24 | M161: 110
A162: 28 | B162: 30 | C162: 3 | D162: 2022 | E162: INQUILINO4 # Versamento tramite bonifico in conto quota esercizio in corso (2021-2022) | H162: 953 | I162: 320 | K162: 2275.23 | L162: Q.01.27 | M162: 320
A163: 29 | B163: 31 | C163: 3 | D163: 2022 | E163: INQUILINO5 # Versamento in contanti in conto quota esercizio in corso (2021-2022) | F163: 20 | H163: 973 | K163: 2275.23 | L163: Q.01.28 | M163: 20
A164: 30 | B164: 31 | C164: 3 | D164: 2022 | E164: CONDOMINO15 # Versamento tramite bonifico a saldo Arretrato Esercizio 2018-2019 | H164: 973 | I164: 207.54 | K164: 2482.77 | L164: Q.03.15 | M164: 207.54
A165: 30 | B165: 31 | C165: 3 | D165: 2022 | E165: CONDOMINO15 # Versamento tramite bonifico in conto Conguaglio 2019-2020 | H165: 973 | I165: 192.46 | K165: 2675.23 | L165: Q.02.15 | M165: 192.46
A166: 31 | B166: 31 | C166: 3 | D166: 2022 | E166: CONDOMINO01 # Versamento in contanti in conto quota esercizio in corso (2021-2022) | F166: 52.38 | H166: 1025.38 | K166: 2675.23 | L166: Q.01.01 | M166: 52.38
A167: 32 | B167: 1 | C167: 4 | D167: 2022 | E167: CONDOMINO02 # Versamento in contanti in conto quota esercizio in corso (2021-2022) | F167: 4.9 | H167: 1030.28 | K167: 2675.23 | L167: Q.01.02 | M167: 4.9
A168: 33 | B168: 1 | C168: 4 | D168: 2022 | E168: CONDOMINO03 # Versamento tramite bonifico in conto quota esercizio in corso (2021-2022) | H168: 1030.28 | I168: 180 | K168: 2855.23 | L168: Q.01.03 | M168: 180
A169: 34 | B169: 2 | C169: 4 | D169: 2022 | E169: Giroconto di disponibilità liquide: da CASSA CONTANTI ----> a BANCA | G169: 1000 | H169: 30.28 | I169: 1000 | K169: 3855.23 | M169: =IF(LEN(L169)>0,F169+G169+I169+J169,"") -> 
M187: =IF(LEN(L187)>0,F187+G187+I187+J187,"") -> 
H220: =IF(A220<>"",IF(INDIRECT(ADDRESS(ROW()-1,8))="",ROUND(SUM(INDIRECT(ADDRESS(ROW()-2,8)),F220,-G220),2),ROUND(SUM(INDIRECT(ADDRESS(ROW()-1,8)),F220,-G220),2)),"") -> 
K221: =IF(A221<>"",IF(INDIRECT(ADDRESS(ROW()-1,11))="",ROUND(SUM(INDIRECT(ADDRESS(ROW()-2,11)),I221,-J221),2),ROUND(SUM(INDIRECT(ADDRESS(ROW()-1,11)),I221,-J221),2)),"") -> 
M250: =IF(LEN(L250)>0,F250+G250+I250+J250,"") -> 
H284: =IF(A284<>"",IF(INDIRECT(ADDRESS(ROW()-1,8))="",ROUND(SUM(INDIRECT(ADDRESS(ROW()-2,8)),F284,-G284),2),ROUND(SUM(INDIRECT(ADDRESS(ROW()-1,8)),F284,-G284),2)),"") -> 
K285: =IF(A285<>"",IF(INDIRECT(ADDRESS(ROW()-1,11))="",ROUND(SUM(INDIRECT(ADDRESS(ROW()-2,11)),I285,-J285),2),ROUND(SUM(INDIRECT(ADDRESS(ROW()-1,11)),I285,-J285),2)),"") -> 
M288: =IF(LEN(L288)>0,F288+G288+I288+J288,"") -> 
H348: =IF(A348<>"",IF(INDIRECT(ADDRESS(ROW()-1,8))="",ROUND(SUM(INDIRECT(ADDRESS(ROW()-2,8)),F348,-G348),2),ROUND(SUM(INDIRECT(ADDRESS(ROW()-1,8)),F348,-G348),2)),"") -> 
K349: =IF(A349<>"",IF(INDIRECT(ADDRESS(ROW()-1,11))="",ROUND(SUM(INDIRECT(ADDRESS(ROW()-2,11)),I349,-J349),2),ROUND(SUM(INDIRECT(ADDRESS(ROW()-1,11)),I349,-J349),2)),"") -> 
M352: =IF(LEN(L352)>0,F352+G352+I352+J352,"") -> 
H412: =IF(A412<>"",IF(INDIRECT(ADDRESS(ROW()-1,8))="",ROUND(SUM(INDIRECT(ADDRESS(ROW()-2,8)),F412,-G412),2),ROUND(SUM(INDIRECT(ADDRESS(ROW()-1,8)),F412,-G412),2)),"") -> 
K413: =IF(A413<>"",IF(INDIRECT(ADDRESS(ROW()-1,11))="",ROUND(SUM(INDIRECT(ADDRESS(ROW()-2,11)),I413,-J413),2),ROUND(SUM(INDIRECT(ADDRESS(ROW()-1,11)),I413,-J413),2)),"") -> 
M416: =IF(LEN(L416)>0,F416+G416+I416+J416,"") -> 
H476: =IF(A476<>"",IF(INDIRECT(ADDRESS(ROW()-1,8))="",ROUND(SUM(INDIRECT(ADDRESS(ROW()-2,8)),F476,-G476),2),ROUND(SUM(INDIRECT(ADDRESS(ROW()-1,8)),F476,-G476),2)),"") -> 
K477: =IF(A477<>"",IF(INDIRECT(ADDRESS(ROW()-1,11))="",ROUND(SUM(INDIRECT(ADDRESS(ROW()-2,11)),I477,-J477),2),ROUND(SUM(INDIRECT(ADDRESS(ROW()-1,11)),I477,-J477),2)),"") -> 
M480: =IF(LEN(L480)>0,F480+G480+I480+J480,"") -> 
H540: =IF(A540<>"",IF(INDIRECT(ADDRESS(ROW()-1,8))="",ROUND(SUM(INDIRECT(ADDRESS(ROW()-2,8)),F540,-G540),2),ROUND(SUM(INDIRECT(ADDRESS(ROW()-1,8)),F540,-G540),2)),"") -> 
K541: =IF(A541<>"",IF(INDIRECT(ADDRESS(ROW()-1,11))="",ROUND(SUM(INDIRECT(ADDRESS(ROW()-2,11)),I541,-J541),2),ROUND(SUM(INDIRECT(ADDRESS(ROW()-1,11)),I541,-J541),2)),"") -> 
M544: =IF(LEN(L544)>0,F544+G544+I544+J544,"") -> 
H604: =IF(A604<>"",IF(INDIRECT(ADDRESS(ROW()-1,8))="",ROUND(SUM(INDIRECT(ADDRESS(ROW()-2,8)),F604,-G604),2),ROUND(SUM(INDIRECT(ADDRESS(ROW()-1,8)),F604,-G604),2)),"") -> 
K605: =IF(A605<>"",IF(INDIRECT(ADDRESS(ROW()-1,11))="",ROUND(SUM(INDIRECT(ADDRESS(ROW()-2,11)),I605,-J605),2),ROUND(SUM(INDIRECT(ADDRESS(ROW()-1,11)),I605,-J605),2)),"") -> 
M608: =IF(LEN(L608)>0,F608+G608+I608+J608,"") -> 
H668: =IF(A668<>"",IF(INDIRECT(ADDRESS(ROW()-1,8))="",ROUND(SUM(INDIRECT(ADDRESS(ROW()-2,8)),F668,-G668),2),ROUND(SUM(INDIRECT(ADDRESS(ROW()-1,8)),F668,-G668),2)),"") -> 
K669: =IF(A669<>"",IF(INDIRECT(ADDRESS(ROW()-1,11))="",ROUND(SUM(INDIRECT(ADDRESS(ROW()-2,11)),I669,-J669),2),ROUND(SUM(INDIRECT(ADDRESS(ROW()-1,11)),I669,-J669),2)),"") -> 
M672: =IF(LEN(L672)>0,F672+G672+I672+J672,"") -> 
H732: =IF(A732<>"",IF(INDIRECT(ADDRESS(ROW()-1,8))="",ROUND(SUM(INDIRECT(ADDRESS(ROW()-2,8)),F732,-G732),2),ROUND(SUM(INDIRECT(ADDRESS(ROW()-1,8)),F732,-G732),2)),"") -> 
K733: =IF(A733<>"",IF(INDIRECT(ADDRESS(ROW()-1,11))="",ROUND(SUM(INDIRECT(ADDRESS(ROW()-2,11)),I733,-J733),2),ROUND(SUM(INDIRECT(ADDRESS(ROW()-1,11)),I733,-J733),2)),"") -> 
M736: =IF(LEN(L736)>0,F736+G736+I736+J736,"") -> 
H796: =IF(A796<>"",IF(INDIRECT(ADDRESS(ROW()-1,8))="",ROUND(SUM(INDIRECT(ADDRESS(ROW()-2,8)),F796,-G796),2),ROUND(SUM(INDIRECT(ADDRESS(ROW()-1,8)),F796,-G796),2)),"") -> 
K797: =IF(A797<>"",IF(INDIRECT(ADDRESS(ROW()-1,11))="",ROUND(SUM(INDIRECT(ADDRESS(ROW()-2,11)),I797,-J797),2),ROUND(SUM(INDIRECT(ADDRESS(ROW()-1,11)),I797,-J797),2)),"") -> 
M800: =IF(LEN(L800)>0,F800+G800+I800+J800,"") -> 
... 37 more rows

Sheet iPU1 (hidden)
S1: 0
A2: n. | B2: SOGGETTO | C2: COMUNICAZIONE dd mmm aaaa
A3: 1 | B3: Condomino01 | C3: e-mail
A4: 2 | B4: Condomino02 | C4: e-mail
A5: 3 | B5: Condomino03 | C5: per posta
A6: 4 | B6: Condomino04 S.r.l. | C6: e-mail
A7: 5 | B7: Condomino05 | C7: e-mail
A8: 6 | B8: Condomino06 | C8: e-mail
A9: 7 | B9: Condomino07 | C9: Consegna a mano
A10: 8 | B10: Eredi Condomino08 | C10: e-mail
A11: 9 | B11: Condomino09 S.r.l. | C11: e-mail
A12: 10 | B12: Condomino10 | C12: e-mail
A13: 11 | B13: Condomino11 | C13: e-mail
A14: 12 | B14: Condomino12 | C14: e-mail
A15: 13 | B15: Condomino13 | C15: e-mail
A16: 14 | B16: Condomino14 | C16: Consegna a mano
A17: 15 | B17: Condomino15 | C17: Consegna a mano
A18: 16 | B18: Condomino16 | C18: e-mail
A19: 17 | B19: Condomino17 | C19: e-mail
A20: 18 | B20: Condomino18 | C20: e-mail
A21: 19 | B21: Condomino19 | C21: e-mail
A22: 20 | B22: Condomino20 | C22: e-mail
A23: 21 | B23: Condomino21 | C23: e-mail
A24: 22 | B24: Condomino22 | C24: e-mail
A25: 23 | B25: Condomino23 | C25: e-mail
A26: 24 | B26: Inquilino1 | C26: e-mail
A27: 25 | B27: Inquilino2 | C27: e-mail
A28: 26 | B28: Inquilino3 | C28: e-mail
A29: 27 | B29: Inquilino4 | C29: e-mail
A30: 28 | B30: Inquilino5 | C30: e-mail

Sheet iPU2 (hidden)
AA1: 0
A2: n. | B2: ADEMPIMENTO | F2: DATA

Sheet sRE (hidden)
A2: INDICE DEI PROSPETTI DEL RENDICONTO D'ESERCIZIO
A4: Il rendiconto della gestione ordinaria dell'esercizio è costituito per il condominio dai seguenti elaborati:
A5: 1 | B5: IL PIANO DEI CONTI (non fornito in quanto uguale a quello dell'esercizio precedente)
A6: 2 | B6: LE TABELLE DI RIPARTIZIONE (non fornite in quanto sono le stesse dell'esercizio precedente)
A7: 3 | B7: IL REGISTRO DI CONTABILITÀ
A8: 4 | B8: IL RIEPILOGO FINANZIARIO
A9: 5 | B9: LA NOTA SINTETICA ESPLICATIVA DELLA GESTIONE
A11: Il presente fascicolo costituisce il "RIEPILOGO FINANZIARIO" ed è composto dai seguenti prospetti:
A13: 1 | B13: PROSPETTO DELLE USCITE
B14: Riporta, fra l'altro, gli importi delle spese sostenute e degli impegni di spesa imputabili all'esercizio, riepilogate e suddivise per voci, a loro volta raggruppate in capitoli. Le informazioni dettagliate sulle singole spese sono nel registro di contabilità.
A15: 2 | B15: QUADRO DI RAFFRONTO fra SPESE EFFETTIVE e SPESE PREVENTIVATE
B16: Riporta un confronto fra le spese preventivate ad inizio esercizio e quelle realmente effettuate.
A17: 3 | B17: PROSPETTO di RIPARTO delle SPESE fra i CONDOMINI
B18: Riporta gli importi con i quali i singoli condomini devono concorrere al pagamento delle spese sostenute. Queste sono suddivise fra i condomini secondo le varie tabelle millesimali di ripartizione, che stabiliscono per ciascun condomino la quota parte dovuta sul totale delle spese ricadenti in quella tabella.
A19: 4 | B19: PROSPETTO di RIEPILOGO delle ENTRATE
B20: Riporta gli importi dei pagamenti effettuati dai condomini per l'esercizio in corso, ed eventualmente dei conguagli per l'esercizio precedente e degli arretrati, relativi cioè ad esercizi anteriori a quello precedente.
A21: 5 | B21: PROSPETTO DEI CREDITI
B22: Riporta gli importi dei crediti che il condominio vanta nei confronti di condomini e di terzi. Gli importi sono suddivisi per esercizi.
A23: 6 | B23: PROSPETTO DEI DEBITI
B24: Riporta gli importi dei debiti che il condominio ha nei confronti di terzi e degli stessi condomini. Gli importo sono suddivisi per esercizi.
A25: 7 | B25: PROSPETTO di RENDICONTO
B26: Contiene tre quadri.
B27: 1 | C27: CONTO ECONOMICO DELLA GESTIONE ORDINARIA
C28: Riporta gli incassi e le spese dell'esercizio. Le spese riportate sono quelle ripartite, sia come già sostenute sia come impegni di spesa di competenza dell'esercizio.
B29: 2 | C29: CONTO FINANZIARIO
C30: Riporta i flussi in denaro in entrata ed in uscita sia per la gestione ordinaria sia per le eventuali gestioni speciali. Riporta inoltra la liquidità alla data del rendiconto.
B31: 3 | C31: RIEPILOGO FINANZIARIO o SITUAZIONE PATRIMONIALE
C32: Riporta le attività e le passività. Naturalmente come per tutti i condomini il saldo patrimoniale è sempre nullo.
A33: 8 | B33: PROSPETTI dei CREDITORI TERZI e dei DEBITORI TERZI
B34: Riportano i debiti ed i crediti con i relativi debitori e creditori, nonché le causali.
A35: 9 | B35: PROSPETTO dei DEPOSITI ATTIVI
B36: (non riportato in quanto non ci sono attualmente depositi attivi)
B37: Riporta i depositi attivi che il condominio vanta nei confronti di terzi.
A38: 10 | B38: PROSPETTO delle ATTREZZATURE
B39: (non riportato in quanto non ci sono attualmente attrezzature di proprietà del Condominio)
B40: Riporta le attrezzature che il condominio possiede.

Sheet iPARTAB (hidden)
A1: È consentito variare i dati delle sole celle senza sfondo colorato. I dati necessari hanno l'intestazione di colonna in rosso. | M1: 0
A7: ='iP1'!A5 -> Condominio "TERMICO"
A8: PARAMETRI PER LA DETERMINAZIONE DELLE TABELLE MILLESIMALI per le UNITÀ IMMOBILIARI
A9: n° U.I. | B9: Codice Unità Immobiliare | C9: Codice Condomino | D9: Codice Fruitore | E9: Condomino /Inquilino fruitore | F9: VOLUMI VIRTUALI | G9: POTENZA INSTALLATA | H9: NUMERO STUFE | I9: CONSUMO | J9: Part | K9: Sub | L9: Categ.
A11: 1 | B11: =iUI!B11 -> U01 | C11: =IF(iUI!C11<>"",iUI!C11,"") -> C20 | D11: =IF(iUI!D11<>"",iUI!D11,"") -> I01 | E11: =IF(iUI!E11<>"",iUI!E11,"") -> Condomino20 / Inquilino1 | F11: 29.95 | G11: 1991 | H11: 3 | I11: 100 | J11: =iUI!H11 -> 326 | K11: =iUI!I11 -> 75 | L11: =iUI!K11 -> A/2
A12: 2 | B12: =iUI!B12 -> U02 | C12: =IF(iUI!C12<>"",iUI!C12,"") -> C09 | D12: =IF(iUI!D12<>"",iUI!D12,"") -> C09 | E12: =IF(iUI!E12<>"",iUI!E12,"") -> Condomino09 S.r.l. / Condomino09 S.r.l. | F12: 40.51 | G12: 4055 | H12: 4 | I12: 100 | J12: =iUI!H12 -> 326 | K12: =iUI!I12 -> 58 | L12: =iUI!K12 -> C/1
A13: 3 | B13: =iUI!B13 -> U03 | C13: =IF(iUI!C13<>"",iUI!C13,"") -> C03 | D13: =IF(iUI!D13<>"",iUI!D13,"") -> C03 | E13: =IF(iUI!E13<>"",iUI!E13,"") -> Condomino03 / Condomino03 | F13: 68.82 | G13: 8114 | H13: 8 | I13: 100 | J13: =iUI!H13 -> 326 | K13: =iUI!I13 -> 76 | L13: =iUI!K13 -> A/10
A14: 4 | B14: =iUI!B14 -> U04 | C14: =IF(iUI!C14<>"",iUI!C14,"") -> C04 | D14: =IF(iUI!D14<>"",iUI!D14,"") -> C04 | E14: =IF(iUI!E14<>"",iUI!E14,"") -> Condomino04 S.r.l. / Condomino04 S.r.l. | F14: 37 | G14: 3934 | H14: 5 | I14: 100 | J14: =iUI!H14 -> 326 | K14: =iUI!I14 -> 60 | L14: =iUI!K14 -> C/1
A15: 5 | B15: =iUI!B15 -> U05 | C15: =IF(iUI!C15<>"",iUI!C15,"") -> C23 | D15: =IF(iUI!D15<>"",iUI!D15,"") -> C23 | E15: =IF(iUI!E15<>"",iUI!E15,"") -> Condomino23 / Condomino23 | F15: 38.76 | G15: 5029 | H15: 5 | I15: 100 | J15: =iUI!H15 -> 326 | K15: =iUI!I15 -> 61 | L15: =iUI!K15 -> C/1
A16: 6 | B16: =iUI!B16 -> U06 | C16: =IF(iUI!C16<>"",iUI!C16,"") -> C15 | D16: =IF(iUI!D16<>"",iUI!D16,"") -> C15 | E16: =IF(iUI!E16<>"",iUI!E16,"") -> Condomino15 / Condomino15 | F16: 37 | G16: 4794 | H16: 5 | I16: 200 | J16: =iUI!H16 -> 326 | K16: =iUI!I16 -> 62 | L16: =iUI!K16 -> C/1
A17: 7 | B17: =iUI!B17 -> U07 | C17: =IF(iUI!C17<>"",iUI!C17,"") -> C05 | D17: =IF(iUI!D17<>"",iUI!D17,"") -> C05 | E17: =IF(iUI!E17<>"",iUI!E17,"") -> Condomino05 / Condomino05 | F17: 47.56 | G17: 6505 | H17: 7 | I17: 300 | J17: =iUI!H17 -> 326 | K17: =iUI!I17 -> 7 | L17: =iUI!K17 -> A/2
A18: 8 | B18: =iUI!B18 -> U08 | C18: =IF(iUI!C18<>"",iUI!C18,"") -> C13 | D18: =IF(iUI!D18<>"",iUI!D18,"") -> C13 | E18: =IF(iUI!E18<>"",iUI!E18,"") -> Condomino13 / Condomino13 | F18: 38.76 | G18: 5360 | H18: 5 | I18: 300 | J18: =iUI!H18 -> 326 | K18: =iUI!I18 -> 8 | L18: =iUI!K18 -> A/2
A19: 9 | B19: =iUI!B19 -> U09 | C19: =IF(iUI!C19<>"",iUI!C19,"") -> C11 | D19: =IF(iUI!D19<>"",iUI!D19,"") -> C11 | E19: =IF(iUI!E19<>"",iUI!E19,"") -> Condomino11 / Condomino11 | F19: 37 | G19: 2986 | H19: 3 | I19: 450 | J19: =iUI!H19 -> 326 | K19: =iUI!I19 -> 10 | L19: =iUI!K19 -> A/2
A20: 10 | B20: =iUI!B20 -> U10 | C20: =IF(iUI!C20<>"",iUI!C20,"") -> C19 | D20: =IF(iUI!D20<>"",iUI!D20,"") -> C19 | E20: =IF(iUI!E20<>"",iUI!E20,"") -> Condomino19 / Condomino19 | F20: 58.12 | G20: 7148 | H20: 7 | I20: 400 | J20: =iUI!H20 -> 326 | K20: =iUI!I20 -> 79 | L20: =iUI!K20 -> A/2
A21: 11 | B21: =iUI!B21 -> U11 | C21: =IF(iUI!C21<>"",iUI!C21,"") -> C22 | D21: =IF(iUI!D21<>"",iUI!D21,"") -> C22 | E21: =IF(iUI!E21<>"",iUI!E21,"") -> Condomino22 / Condomino22 | F21: 28.19 | G21: 3319 | H21: 4 | I21: 400 | J21: =iUI!H21 -> 326 | K21: =iUI!I21 -> 80 | L21: =iUI!K21 -> A/3
A22: 12 | B22: =iUI!B22 -> U12 | C22: =IF(iUI!C22<>"",iUI!C22,"") -> C21 | D22: =IF(iUI!D22<>"",iUI!D22,"") -> C21 | E22: =IF(iUI!E22<>"",iUI!E22,"") -> Condomino21 / Condomino21 | F22: 37 | G22: 4813 | H22: 5 | I22: 400 | J22: =iUI!H22 -> 326 | K22: =iUI!I22 -> 14 | L22: =iUI!K22 -> A/2
A23: 13 | B23: =iUI!B23 -> U13 | C23: =IF(iUI!C23<>"",iUI!C23,"") -> C18 | D23: =IF(iUI!D23<>"",iUI!D23,"") -> I02 | E23: =IF(iUI!E23<>"",iUI!E23,"") -> Condomino18 / Inquilino2 | F23: 64.07 | G23: 8529 | H23: 8 | I23: 500 | J23: =iUI!H23 -> 326 | K23: =iUI!I23 -> 15 | L23: =iUI!K23 -> A/2
A24: 14 | B24: =iUI!B24 -> U14 | C24: =IF(iUI!C24<>"",iUI!C24,"") -> C14 | D24: =IF(iUI!D24<>"",iUI!D24,"") -> C14 | E24: =IF(iUI!E24<>"",iUI!E24,"") -> Condomino14 / Condomino14 | F24: 29.83 | G24: 4389 | H24: 4 | I24: 500 | J24: =iUI!H24 -> 326 | K24: =iUI!I24 -> 16 | L24: =iUI!K24 -> A/2
A25: 15 | B25: =iUI!B25 -> U15 | C25: =IF(iUI!C25<>"",iUI!C25,"") -> C02 | D25: =IF(iUI!D25<>"",iUI!D25,"") -> I03 | E25: =IF(iUI!E25<>"",iUI!E25,"") -> Condomino02 / Inquilino3 | F25: 37 | G25: 4657 | H25: 5 | I25: 500 | J25: =iUI!H25 -> 326 | K25: =iUI!I25 -> 17 | L25: =iUI!K25 -> A/3
A26: 16 | B26: =iUI!B26 -> U16 | C26: =IF(iUI!C26<>"",iUI!C26,"") -> C16 | D26: =IF(iUI!D26<>"",iUI!D26,"") -> C16 | E26: =IF(iUI!E26<>"",iUI!E26,"") -> Condomino16 / Condomino16 | F26: 52.85 | G26: 5936 | H26: 5 | I26: 500 | J26: =iUI!H26 -> 326 | K26: =iUI!I26 -> 83 | L26: =iUI!K26 -> A/2
A27: 17 | B27: =iUI!B27 -> U17 | C27: =IF(iUI!C27<>"",iUI!C27,"") -> C12 | D27: =IF(iUI!D27<>"",iUI!D27,"") -> C12 | E27: =IF(iUI!E27<>"",iUI!E27,"") -> Condomino12 / Condomino12 | F27: 47.56 | G27: 5822 | H27: 4 | I27: 500 | J27: =iUI!H27 -> 326 | K27: =iUI!I27 -> 81 | L27: =iUI!K27 -> A/2
A28: 18 | B28: =iUI!B28 -> U18 | C28: =IF(iUI!C28<>"",iUI!C28,"") -> C06 | D28: =IF(iUI!D28<>"",iUI!D28,"") -> C06 | E28: =IF(iUI!E28<>"",iUI!E28,"") -> Condomino06 / Condomino06 | F28: 42.27 | G28: 6594 | H28: 5 | I28: 500 | J28: =iUI!H28 -> 326 | K28: =iUI!I28 -> 21 | L28: =iUI!K28 -> A/2
A29: 19 | B29: =iUI!B29 -> U19 | C29: =IF(iUI!C29<>"",iUI!C29,"") -> C07 | D29: =IF(iUI!D29<>"",iUI!D29,"") -> C07 | E29: =IF(iUI!E29<>"",iUI!E29,"") -> Condomino07 / Condomino07 | F29: 35.77 | G29: 3355 | H29: 3 | I29: 600 | J29: =iUI!H29 -> 326 | K29: =iUI!I29 -> 22 | L29: =iUI!K29 -> A/2
A30: 20 | B30: =iUI!B30 -> U20 | C30: =IF(iUI!C30<>"",iUI!C30,"") -> C17 | D30: =IF(iUI!D30<>"",iUI!D30,"") -> C17 | E30: =IF(iUI!E30<>"",iUI!E30,"") -> Condomino17 / Condomino17 | F30: 73.97 | G30: 8528 | H30: 7 | I30: 600 | J30: =iUI!H30 -> 326 | K30: =iUI!I30 -> 23 | L30: =iUI!K30 -> A/1
A31: 21 | B31: =iUI!B31 -> U21 | C31: =IF(iUI!C31<>"",iUI!C31,"") -> C01 | D31: =IF(iUI!D31<>"",iUI!D31,"") -> C01 | E31: =IF(iUI!E31<>"",iUI!E31,"") -> Condomino01 / Condomino01 | F31: 29.95 | G31: 3532 | H31: 3 | I31: 600 | J31: =iUI!H31 -> 326 | K31: =iUI!I31 -> 24 | L31: =iUI!K31 -> A/2
A32: 22 | B32: =iUI!B32 -> U22 | C32: =IF(iUI!C32<>"",iUI!C32,"") -> C10 | D32: =IF(iUI!D32<>"",iUI!D32,"") -> I04 | E32: =IF(iUI!E32<>"",iUI!E32,"") -> Condomino10 / Inquilino4 | F32: 49.32 | G32: 2850 | H32: 6 | I32: 700 | J32: =iUI!H32 -> 326 | K32: =iUI!I32 -> 82 | L32: =iUI!K32 -> A/2
A33: 23 | B33: =iUI!B33 -> U23 | C33: =IF(iUI!C33<>"",iUI!C33,"") -> C08 | D33: =IF(iUI!D33<>"",iUI!D33,"") -> C08 | E33: =IF(iUI!E33<>"",iUI!E33,"") -> Eredi Condomino08 / Eredi Condomino08 | F33: 29.83 | G33: 966 | H33: 4 | I33: 700 | J33: =iUI!H33 -> 326 | K33: =iUI!I33 -> 73 | L33: =iUI!K33 -> C/2
A34: 24 | B34: =iUI!B34 -> U24 | C34: =IF(iUI!C34<>"",iUI!C34,"") -> C12 | D34: =IF(iUI!D34<>"",iUI!D34,"") -> I05 | E34: =IF(iUI!E34<>"",iUI!E34,"") -> Condomino12 / Inquilino5 | F34: 8.91 | G34: 966 | H34: 0 | I34: 0 | J34: =iUI!H34 -> 326 | K34: =iUI!I34 -> 78 | L34: =iUI!K34 -> C/2
A35: 25 | B35: =iUI!B35 -> U25 | C35: =IF(iUI!C35<>"",iUI!C35,"") ->  | D35: =IF(iUI!D35<>"",iUI!D35,"") ->  | E35: =IF(iUI!E35<>"",iUI!E35,"") ->  | J35: =iUI!H35 -> 0 | K35: =iUI!I35 -> 0 | L35: =iUI!K35 -> 0
A36: 26 | B36: =iUI!B36 -> U26 | C36: =IF(iUI!C36<>"",iUI!C36,"") ->  | D36: =IF(iUI!D36<>"",iUI!D36,"") ->  | E36: =IF(iUI!E36<>"",iUI!E36,"") ->  | J36: =iUI!H36 -> 0 | K36: =iUI!I36 -> 0 | L36: =iUI!K36 -> 0
A37: 27 | B37: =iUI!B37 -> U27 | C37: =IF(iUI!C37<>"",iUI!C37,"") ->  | D37: =IF(iUI!D37<>"",iUI!D37,"") ->  | E37: =IF(iUI!E37<>"",iUI!E37,"") ->  | J37: =iUI!H37 -> 0 | K37: =iUI!I37 -> 0 | L37: =iUI!K37 -> 0
A38: 28 | B38: =iUI!B38 -> U28 | C38: =IF(iUI!C38<>"",iUI!C38,"") ->  | D38: =IF(iUI!D38<>"",iUI!D38,"") ->  | E38: =IF(iUI!E38<>"",iUI!E38,"") ->  | J38: =iUI!H38 -> 0 | K38: =iUI!I38 -> 0 | L38: =iUI!K38 -> 0
A39: 29 | B39: =iUI!B39 -> U29 | C39: =IF(iUI!C39<>"",iUI!C39,"") ->  | D39: =IF(iUI!D39<>"",iUI!D39,"") ->  | E39: =IF(iUI!E39<>"",iUI!E39,"") ->  | J39: =iUI!H39 -> 0 | K39: =iUI!I39 -> 0 | L39: =iUI!K39 -> 0
A40: 30 | B40: =iUI!B40 -> U30 | C40: =IF(iUI!C40<>"",iUI!C40,"") ->  | D40: =IF(iUI!D40<>"",iUI!D40,"") ->  | E40: =IF(iUI!E40<>"",iUI!E40,"") ->  | J40: =iUI!H40 -> 0 | K40: =iUI!I40 -> 0 | L40: =iUI!K40 -> 0
A41: 31 | B41: =iUI!B41 -> U31 | C41: =IF(iUI!C41<>"",iUI!C41,"") ->  | D41: =IF(iUI!D41<>"",iUI!D41,"") ->  | E41: =IF(iUI!E41<>"",iUI!E41,"") ->  | J41: =iUI!H41 -> 0 | K41: =iUI!I41 -> 0 | L41: =iUI!K41 -> 0
A42: 32 | B42: =iUI!B42 -> U32 | C42: =IF(iUI!C42<>"",iUI!C42,"") ->  | D42: =IF(iUI!D42<>"",iUI!D42,"") ->  | E42: =IF(iUI!E42<>"",iUI!E42,"") ->  | J42: =iUI!H42 -> 0 | K42: =iUI!I42 -> 0 | L42: =iUI!K42 -> 0
A43: 33 | B43: =iUI!B43 -> U33 | C43: =IF(iUI!C43<>"",iUI!C43,"") ->  | D43: =IF(iUI!D43<>"",iUI!D43,"") ->  | E43: =IF(iUI!E43<>"",iUI!E43,"") ->  | J43: =iUI!H43 -> 0 | K43: =iUI!I43 -> 0 | L43: =iUI!K43 -> 0
A44: 34 | B44: =iUI!B44 -> U34 | C44: =IF(iUI!C44<>"",iUI!C44,"") ->  | D44: =IF(iUI!D44<>"",iUI!D44,"") ->  | E44: =IF(iUI!E44<>"",iUI!E44,"") ->  | J44: =iUI!H44 -> 0 | K44: =iUI!I44 -> 0 | L44: =iUI!K44 -> 0
A45: 35 | B45: =iUI!B45 -> U35 | C45: =IF(iUI!C45<>"",iUI!C45,"") ->  | D45: =IF(iUI!D45<>"",iUI!D45,"") ->  | E45: =IF(iUI!E45<>"",iUI!E45,"") ->  | J45: =iUI!H45 -> 0 | K45: =iUI!I45 -> 0 | L45: =iUI!K45 -> 0
A46: 36 | B46: =iUI!B46 -> U36 | C46: =IF(iUI!C46<>"",iUI!C46,"") ->  | D46: =IF(iUI!D46<>"",iUI!D46,"") ->  | E46: =IF(iUI!E46<>"",iUI!E46,"") ->  | J46: =iUI!H46 -> 0 | K46: =iUI!I46 -> 0 | L46: =iUI!K46 -> 0
A47: 37 | B47: =iUI!B47 -> U37 | C47: =IF(iUI!C47<>"",iUI!C47,"") ->  | D47: =IF(iUI!D47<>"",iUI!D47,"") ->  | E47: =IF(iUI!E47<>"",iUI!E47,"") ->  | J47: =iUI!H47 -> 0 | K47: =iUI!I47 -> 0 | L47: =iUI!K47 -> 0
A48: 38 | B48: =iUI!B48 -> U38 | C48: =IF(iUI!C48<>"",iUI!C48,"") ->  | D48: =IF(iUI!D48<>"",iUI!D48,"") ->  | E48: =IF(iUI!E48<>"",iUI!E48,"") ->  | J48: =iUI!H48 -> 0 | K48: =iUI!I48 -> 0 | L48: =iUI!K48 -> 0
A49: 39 | B49: =iUI!B49 -> U39 | C49: =IF(iUI!C49<>"",iUI!C49,"") ->  | D49: =IF(iUI!D49<>"",iUI!D49,"") ->  | E49: =IF(iUI!E49<>"",iUI!E49,"") ->  | J49: =iUI!H49 -> 0 | K49: =iUI!I49 -> 0 | L49: =iUI!K49 -> 0
A50: 40 | B50: =iUI!B50 -> U40 | C50: =IF(iUI!C50<>"",iUI!C50,"") ->  | D50: =IF(iUI!D50<>"",iUI!D50,"") ->  | E50: =IF(iUI!E50<>"",iUI!E50,"") ->  | J50: =iUI!H50 -> 0 | K50: =iUI!I50 -> 0 | L50: =iUI!K50 -> 0
A51: 41 | B51: =iUI!B51 -> U41 | C51: =IF(iUI!C51<>"",iUI!C51,"") ->  | D51: =IF(iUI!D51<>"",iUI!D51,"") ->  | E51: =IF(iUI!E51<>"",iUI!E51,"") ->  | J51: =iUI!H51 -> 0 | K51: =iUI!I51 -> 0 | L51: =iUI!K51 -> 0
A52: 42 | B52: =iUI!B52 -> U42 | C52: =IF(iUI!C52<>"",iUI!C52,"") ->  | D52: =IF(iUI!D52<>"",iUI!D52,"") ->  | E52: =IF(iUI!E52<>"",iUI!E52,"") ->  | J52: =iUI!H52 -> 0 | K52: =iUI!I52 -> 0 | L52: =iUI!K52 -> 0
A53: 43 | B53: =iUI!B53 -> U43 | C53: =IF(iUI!C53<>"",iUI!C53,"") ->  | D53: =IF(iUI!D53<>"",iUI!D53,"") ->  | E53: =IF(iUI!E53<>"",iUI!E53,"") ->  | J53: =iUI!H53 -> 0 | K53: =iUI!I53 -> 0 | L53: =iUI!K53 -> 0
A54: 44 | B54: =iUI!B54 -> U44 | C54: =IF(iUI!C54<>"",iUI!C54,"") ->  | D54: =IF(iUI!D54<>"",iUI!D54,"") ->  | E54: =IF(iUI!E54<>"",iUI!E54,"") ->  | J54: =iUI!H54 -> 0 | K54: =iUI!I54 -> 0 | L54: =iUI!K54 -> 0
A55: 45 | B55: =iUI!B55 -> U45 | C55: =IF(iUI!C55<>"",iUI!C55,"") ->  | D55: =IF(iUI!D55<>"",iUI!D55,"") ->  | E55: =IF(iUI!E55<>"",iUI!E55,"") ->  | J55: =iUI!H55 -> 0 | K55: =iUI!I55 -> 0 | L55: =iUI!K55 -> 0
A56: 46 | B56: =iUI!B56 -> U46 | C56: =IF(iUI!C56<>"",iUI!C56,"") ->  | D56: =IF(iUI!D56<>"",iUI!D56,"") ->  | E56: =IF(iUI!E56<>"",iUI!E56,"") ->  | J56: =iUI!H56 -> 0 | K56: =iUI!I56 -> 0 | L56: =iUI!K56 -> 0
A57: 47 | B57: =iUI!B57 -> U47 | C57: =IF(iUI!C57<>"",iUI!C57,"") ->  | D57: =IF(iUI!D57<>"",iUI!D57,"") ->  | E57: =IF(iUI!E57<>"",iUI!E57,"") ->  | J57: =iUI!H57 -> 0 | K57: =iUI!I57 -> 0 | L57: =iUI!K57 -> 0
A58: 48 | B58: =iUI!B58 -> U48 | C58: =IF(iUI!C58<>"",iUI!C58,"") ->  | D58: =IF(iUI!D58<>"",iUI!D58,"") ->  | E58: =IF(iUI!E58<>"",iUI!E58,"") ->  | J58: =iUI!H58 -> 0 | K58: =iUI!I58 -> 0 | L58: =iUI!K58 -> 0
A59: 49 | B59: =iUI!B59 -> U49 | C59: =IF(iUI!C59<>"",iUI!C59,"") ->  | D59: =IF(iUI!D59<>"",iUI!D59,"") ->  | E59: =IF(iUI!E59<>"",iUI!E59,"") ->  | J59: =iUI!H59 -> 0 | K59: =iUI!I59 -> 0 | L59: =iUI!K59 -> 0
A60: 50 | B60: =iUI!B60 -> U50 | C60: =IF(iUI!C60<>"",iUI!C60,"") ->  | D60: =IF(iUI!D60<>"",iUI!D60,"") ->  | E60: =IF(iUI!E60<>"",iUI!E60,"") ->  | J60: =iUI!H60 -> 0 | K60: =iUI!I60 -> 0 | L60: =iUI!K60 -> 0
A61: 51 | B61: =iUI!B61 -> U51 | C61: =IF(iUI!C61<>"",iUI!C61,"") ->  | D61: =IF(iUI!D61<>"",iUI!D61,"") ->  | E61: =IF(iUI!E61<>"",iUI!E61,"") ->  | J61: =iUI!H61 -> 0 | K61: =iUI!I61 -> 0 | L61: =iUI!K61 -> 0
A62: 52 | B62: =iUI!B62 -> U52 | C62: =IF(iUI!C62<>"",iUI!C62,"") ->  | D62: =IF(iUI!D62<>"",iUI!D62,"") ->  | E62: =IF(iUI!E62<>"",iUI!E62,"") ->  | J62: =iUI!H62 -> 0 | K62: =iUI!I62 -> 0 | L62: =iUI!K62 -> 0
A63: 53 | B63: =iUI!B63 -> U53 | C63: =IF(iUI!C63<>"",iUI!C63,"") ->  | D63: =IF(iUI!D63<>"",iUI!D63,"") ->  | E63: =IF(iUI!E63<>"",iUI!E63,"") ->  | J63: =iUI!H63 -> 0 | K63: =iUI!I63 -> 0 | L63: =iUI!K63 -> 0
A64: 54 | B64: =iUI!B64 -> U54 | C64: =IF(iUI!C64<>"",iUI!C64,"") ->  | D64: =IF(iUI!D64<>"",iUI!D64,"") ->  | E64: =IF(iUI!E64<>"",iUI!E64,"") ->  | J64: =iUI!H64 -> 0 | K64: =iUI!I64 -> 0 | L64: =iUI!K64 -> 0
A65: 55 | B65: =iUI!B65 -> U55 | C65: =IF(iUI!C65<>"",iUI!C65,"") ->  | D65: =IF(iUI!D65<>"",iUI!D65,"") ->  | E65: =IF(iUI!E65<>"",iUI!E65,"") ->  | J65: =iUI!H65 -> 0 | K65: =iUI!I65 -> 0 | L65: =iUI!K65 -> 0
A66: 56 | B66: =iUI!B66 -> U56 | C66: =IF(iUI!C66<>"",iUI!C66,"") ->  | D66: =IF(iUI!D66<>"",iUI!D66,"") ->  | E66: =IF(iUI!E66<>"",iUI!E66,"") ->  | J66: =iUI!H66 -> 0 | K66: =iUI!I66 -> 0 | L66: =iUI!K66 -> 0
A67: 57 | B67: =iUI!B67 -> U57 | C67: =IF(iUI!C67<>"",iUI!C67,"") ->  | D67: =IF(iUI!D67<>"",iUI!D67,"") ->  | E67: =IF(iUI!E67<>"",iUI!E67,"") ->  | J67: =iUI!H67 -> 0 | K67: =iUI!I67 -> 0 | L67: =iUI!K67 -> 0
A68: 58 | B68: =iUI!B68 -> U58 | C68: =IF(iUI!C68<>"",iUI!C68,"") ->  | D68: =IF(iUI!D68<>"",iUI!D68,"") ->  | E68: =IF(iUI!E68<>"",iUI!E68,"") ->  | J68: =iUI!H68 -> 0 | K68: =iUI!I68 -> 0 | L68: =iUI!K68 -> 0
A69: 59 | B69: =iUI!B69 -> U59 | C69: =IF(iUI!C69<>"",iUI!C69,"") ->  | D69: =IF(iUI!D69<>"",iUI!D69,"") ->  | E69: =IF(iUI!E69<>"",iUI!E69,"") ->  | J69: =iUI!H69 -> 0 | K69: =iUI!I69 -> 0 | L69: =iUI!K69 -> 0
A70: 60 | B70: =iUI!B70 -> U60 | C70: =IF(iUI!C70<>"",iUI!C70,"") ->  | D70: =IF(iUI!D70<>"",iUI!D70,"") ->  | E70: =IF(iUI!E70<>"",iUI!E70,"") ->  | J70: =iUI!H70 -> 0 | K70: =iUI!I70 -> 0 | L70: =iUI!K70 -> 0
A71: 61 | B71: =iUI!B71 -> U61 | C71: =IF(iUI!C71<>"",iUI!C71,"") ->  | D71: =IF(iUI!D71<>"",iUI!D71,"") ->  | E71: =IF(iUI!E71<>"",iUI!E71,"") ->  | J71: =iUI!H71 -> 0 | K71: =iUI!I71 -> 0 | L71: =iUI!K71 -> 0
A72: 62 | B72: =iUI!B72 -> U62 | C72: =IF(iUI!C72<>"",iUI!C72,"") ->  | D72: =IF(iUI!D72<>"",iUI!D72,"") ->  | E72: =IF(iUI!E72<>"",iUI!E72,"") ->  | J72: =iUI!H72 -> 0 | K72: =iUI!I72 -> 0 | L72: =iUI!K72 -> 0
A73: 63 | B73: =iUI!B73 -> U63 | C73: =IF(iUI!C73<>"",iUI!C73,"") ->  | D73: =IF(iUI!D73<>"",iUI!D73,"") ->  | E73: =IF(iUI!E73<>"",iUI!E73,"") ->  | J73: =iUI!H73 -> 0 | K73: =iUI!I73 -> 0 | L73: =iUI!K73 -> 0
A74: 64 | B74: =iUI!B74 -> U64 | C74: =IF(iUI!C74<>"",iUI!C74,"") ->  | D74: =IF(iUI!D74<>"",iUI!D74,"") ->  | E74: =IF(iUI!E74<>"",iUI!E74,"") ->  | J74: =iUI!H74 -> 0 | K74: =iUI!I74 -> 0 | L74: =iUI!K74 -> 0
A75: 65 | B75: =iUI!B75 -> U65 | C75: =IF(iUI!C75<>"",iUI!C75,"") ->  | D75: =IF(iUI!D75<>"",iUI!D75,"") ->  | E75: =IF(iUI!E75<>"",iUI!E75,"") ->  | J75: =iUI!H75 -> 0 | K75: =iUI!I75 -> 0 | L75: =iUI!K75 -> 0
A76: 66 | B76: =iUI!B76 -> U66 | C76: =IF(iUI!C76<>"",iUI!C76,"") ->  | D76: =IF(iUI!D76<>"",iUI!D76,"") ->  | E76: =IF(iUI!E76<>"",iUI!E76,"") ->  | J76: =iUI!H76 -> 0 | K76: =iUI!I76 -> 0 | L76: =iUI!K76 -> 0
A77: 67 | B77: =iUI!B77 -> U67 | C77: =IF(iUI!C77<>"",iUI!C77,"") ->  | D77: =IF(iUI!D77<>"",iUI!D77,"") ->  | E77: =IF(iUI!E77<>"",iUI!E77,"") ->  | J77: =iUI!H77 -> 0 | K77: =iUI!I77 -> 0 | L77: =iUI!K77 -> 0
A78: 68 | B78: =iUI!B78 -> U68 | C78: =IF(iUI!C78<>"",iUI!C78,"") ->  | D78: =IF(iUI!D78<>"",iUI!D78,"") ->  | E78: =IF(iUI!E78<>"",iUI!E78,"") ->  | J78: =iUI!H78 -> 0 | K78: =iUI!I78 -> 0 | L78: =iUI!K78 -> 0
A79: 69 | B79: =iUI!B79 -> U69 | C79: =IF(iUI!C79<>"",iUI!C79,"") ->  | D79: =IF(iUI!D79<>"",iUI!D79,"") ->  | E79: =IF(iUI!E79<>"",iUI!E79,"") ->  | J79: =iUI!H79 -> 0 | K79: =iUI!I79 -> 0 | L79: =iUI!K79 -> 0
A80: 70 | B80: =iUI!B80 -> U70 | C80: =IF(iUI!C80<>"",iUI!C80,"") ->  | D80: =IF(iUI!D80<>"",iUI!D80,"") ->  | E80: =IF(iUI!E80<>"",iUI!E80,"") ->  | J80: =iUI!H80 -> 0 | K80: =iUI!I80 -> 0 | L80: =iUI!K80 -> 0
A81: 71 | B81: =iUI!B81 -> U71 | C81: =IF(iUI!C81<>"",iUI!C81,"") ->  | D81: =IF(iUI!D81<>"",iUI!D81,"") ->  | E81: =IF(iUI!E81<>"",iUI!E81,"") ->  | J81: =iUI!H81 -> 0 | K81: =iUI!I81 -> 0 | L81: =iUI!K81 -> 0
A82: 72 | B82: =iUI!B82 -> U72 | C82: =IF(iUI!C82<>"",iUI!C82,"") ->  | D82: =IF(iUI!D82<>"",iUI!D82,"") ->  | E82: =IF(iUI!E82<>"",iUI!E82,"") ->  | J82: =iUI!H82 -> 0 | K82: =iUI!I82 -> 0 | L82: =iUI!K82 -> 0
A83: 73 | B83: =iUI!B83 -> U73 | C83: =IF(iUI!C83<>"",iUI!C83,"") ->  | D83: =IF(iUI!D83<>"",iUI!D83,"") ->  | E83: =IF(iUI!E83<>"",iUI!E83,"") ->  | J83: =iUI!H83 -> 0 | K83: =iUI!I83 -> 0 | L83: =iUI!K83 -> 0
A84: 74 | B84: =iUI!B84 -> U74 | C84: =IF(iUI!C84<>"",iUI!C84,"") ->  | D84: =IF(iUI!D84<>"",iUI!D84,"") ->  | E84: =IF(iUI!E84<>"",iUI!E84,"") ->  | J84: =iUI!H84 -> 0 | K84: =iUI!I84 -> 0 | L84: =iUI!K84 -> 0
A85: 75 | B85: =iUI!B85 -> U75 | C85: =IF(iUI!C85<>"",iUI!C85,"") ->  | D85: =IF(iUI!D85<>"",iUI!D85,"") ->  | E85: =IF(iUI!E85<>"",iUI!E85,"") ->  | J85: =iUI!H85 -> 0 | K85: =iUI!I85 -> 0 | L85: =iUI!K85 -> 0
A86: 76 | B86: =iUI!B86 -> U76 | C86: =IF(iUI!C86<>"",iUI!C86,"") ->  | D86: =IF(iUI!D86<>"",iUI!D86,"") ->  | E86: =IF(iUI!E86<>"",iUI!E86,"") ->  | J86: =iUI!H86 -> 0 | K86: =iUI!I86 -> 0 | L86: =iUI!K86 -> 0
A87: 77 | B87: =iUI!B87 -> U77 | C87: =IF(iUI!C87<>"",iUI!C87,"") ->  | D87: =IF(iUI!D87<>"",iUI!D87,"") ->  | E87: =IF(iUI!E87<>"",iUI!E87,"") ->  | J87: =iUI!H87 -> 0 | K87: =iUI!I87 -> 0 | L87: =iUI!K87 -> 0
A88: 78 | B88: =iUI!B88 -> U78 | C88: =IF(iUI!C88<>"",iUI!C88,"") ->  | D88: =IF(iUI!D88<>"",iUI!D88,"") ->  | E88: =IF(iUI!E88<>"",iUI!E88,"") ->  | J88: =iUI!H88 -> 0 | K88: =iUI!I88 -> 0 | L88: =iUI!K88 -> 0
A89: 79 | B89: =iUI!B89 -> U79 | C89: =IF(iUI!C89<>"",iUI!C89,"") ->  | D89: =IF(iUI!D89<>"",iUI!D89,"") ->  | E89: =IF(iUI!E89<>"",iUI!E89,"") ->  | J89: =iUI!H89 -> 0 | K89: =iUI!I89 -> 0 | L89: =iUI!K89 -> 0
A90: 80 | B90: =iUI!B90 -> U80 | C90: =IF(iUI!C90<>"",iUI!C90,"") ->  | D90: =IF(iUI!D90<>"",iUI!D90,"") ->  | E90: =IF(iUI!E90<>"",iUI!E90,"") ->  | J90: =iUI!H90 -> 0 | K90: =iUI!I90 -> 0 | L90: =iUI!K90 -> 0
A91: 81 | B91: =iUI!B91 -> U81 | C91: =IF(iUI!C91<>"",iUI!C91,"") ->  | D91: =IF(iUI!D91<>"",iUI!D91,"") ->  | E91: =IF(iUI!E91<>"",iUI!E91,"") ->  | J91: =iUI!H91 -> 0 | K91: =iUI!I91 -> 0 | L91: =iUI!K91 -> 0
A92: 82 | B92: =iUI!B92 -> U82 | C92: =IF(iUI!C92<>"",iUI!C92,"") ->  | D92: =IF(iUI!D92<>"",iUI!D92,"") ->  | E92: =IF(iUI!E92<>"",iUI!E92,"") ->  | J92: =iUI!H92 -> 0 | K92: =iUI!I92 -> 0 | L92: =iUI!K92 -> 0
A93: 83 | B93: =iUI!B93 -> U83 | C93: =IF(iUI!C93<>"",iUI!C93,"") ->  | D93: =IF(iUI!D93<>"",iUI!D93,"") ->  | E93: =IF(iUI!E93<>"",iUI!E93,"") ->  | J93: =iUI!H93 -> 0 | K93: =iUI!I93 -> 0 | L93: =iUI!K93 -> 0
A94: 84 | B94: =iUI!B94 -> U84 | C94: =IF(iUI!C94<>"",iUI!C94,"") ->  | D94: =IF(iUI!D94<>"",iUI!D94,"") ->  | E94: =IF(iUI!E94<>"",iUI!E94,"") ->  | J94: =iUI!H94 -> 0 | K94: =iUI!I94 -> 0 | L94: =iUI!K94 -> 0
A95: 85 | B95: =iUI!B95 -> U85 | C95: =IF(iUI!C95<>"",iUI!C95,"") ->  | D95: =IF(iUI!D95<>"",iUI!D95,"") ->  | E95: =IF(iUI!E95<>"",iUI!E95,"") ->  | J95: =iUI!H95 -> 0 | K95: =iUI!I95 -> 0 | L95: =iUI!K95 -> 0
A96: 86 | B96: =iUI!B96 -> U86 | C96: =IF(iUI!C96<>"",iUI!C96,"") ->  | D96: =IF(iUI!D96<>"",iUI!D96,"") ->  | E96: =IF(iUI!E96<>"",iUI!E96,"") ->  | J96: =iUI!H96 -> 0 | K96: =iUI!I96 -> 0 | L96: =iUI!K96 -> 0
A97: 87 | B97: =iUI!B97 -> U87 | C97: =IF(iUI!C97<>"",iUI!C97,"") ->  | D97: =IF(iUI!D97<>"",iUI!D97,"") ->  | E97: =IF(iUI!E97<>"",iUI!E97,"") ->  | J97: =iUI!H97 -> 0 | K97: =iUI!I97 -> 0 | L97: =iUI!K97 -> 0
A98: 88 | B98: =iUI!B98 -> U88 | C98: =IF(iUI!C98<>"",iUI!C98,"") ->  | D98: =IF(iUI!D98<>"",iUI!D98,"") ->  | E98: =IF(iUI!E98<>"",iUI!E98,"") ->  | J98: =iUI!H98 -> 0 | K98: =iUI!I98 -> 0 | L98: =iUI!K98 -> 0
A99: 89 | B99: =iUI!B99 -> U89 | C99: =IF(iUI!C99<>"",iUI!C99,"") ->  | D99: =IF(iUI!D99<>"",iUI!D99,"") ->  | E99: =IF(iUI!E99<>"",iUI!E99,"") ->  | J99: =iUI!H99 -> 0 | K99: =iUI!I99 -> 0 | L99: =iUI!K99 -> 0
A100: 90 | B100: =iUI!B100 -> U90 | C100: =IF(iUI!C100<>"",iUI!C100,"") ->  | D100: =IF(iUI!D100<>"",iUI!D100,"") ->  | E100: =IF(iUI!E100<>"",iUI!E100,"") ->  | J100: =iUI!H100 -> 0 | K100: =iUI!I100 -> 0 | L100: =iUI!K100 -> 0
A101: 91 | B101: =iUI!B101 -> U91 | C101: =IF(iUI!C101<>"",iUI!C101,"") ->  | D101: =IF(iUI!D101<>"",iUI!D101,"") ->  | E101: =IF(iUI!E101<>"",iUI!E101,"") ->  | J101: =iUI!H101 -> 0 | K101: =iUI!I101 -> 0 | L101: =iUI!K101 -> 0
A102: 92 | B102: =iUI!B102 -> U92 | C102: =IF(iUI!C102<>"",iUI!C102,"") ->  | D102: =IF(iUI!D102<>"",iUI!D102,"") ->  | E102: =IF(iUI!E102<>"",iUI!E102,"") ->  | J102: =iUI!H102 -> 0 | K102: =iUI!I102 -> 0 | L102: =iUI!K102 -> 0
A103: 93 | B103: =iUI!B103 -> U93 | C103: =IF(iUI!C103<>"",iUI!C103,"") ->  | D103: =IF(iUI!D103<>"",iUI!D103,"") ->  | E103: =IF(iUI!E103<>"",iUI!E103,"") ->  | J103: =iUI!H103 -> 0 | K103: =iUI!I103 -> 0 | L103: =iUI!K103 -> 0
A104: 94 | B104: =iUI!B104 -> U94 | C104: =IF(iUI!C104<>"",iUI!C104,"") ->  | D104: =IF(iUI!D104<>"",iUI!D104,"") ->  | E104: =IF(iUI!E104<>"",iUI!E104,"") ->  | J104: =iUI!H104 -> 0 | K104: =iUI!I104 -> 0 | L104: =iUI!K104 -> 0
A105: 95 | B105: =iUI!B105 -> U95 | C105: =IF(iUI!C105<>"",iUI!C105,"") ->  | D105: =IF(iUI!D105<>"",iUI!D105,"") ->  | E105: =IF(iUI!E105<>"",iUI!E105,"") ->  | J105: =iUI!H105 -> 0 | K105: =iUI!I105 -> 0 | L105: =iUI!K105 -> 0
A106: 96 | B106: =iUI!B106 -> U96 | C106: =IF(iUI!C106<>"",iUI!C106,"") ->  | D106: =IF(iUI!D106<>"",iUI!D106,"") ->  | E106: =IF(iUI!E106<>"",iUI!E106,"") ->  | J106: =iUI!H106 -> 0 | K106: =iUI!I106 -> 0 | L106: =iUI!K106 -> 0
A107: 97 | B107: =iUI!B107 -> U97 | C107: =IF(iUI!C107<>"",iUI!C107,"") ->  | D107: =IF(iUI!D107<>"",iUI!D107,"") ->  | E107: =IF(iUI!E107<>"",iUI!E107,"") ->  | J107: =iUI!H107 -> 0 | K107: =iUI!I107 -> 0 | L107: =iUI!K107 -> 0
A108: 98 | B108: =iUI!B108 -> U98 | C108: =IF(iUI!C108<>"",iUI!C108,"") ->  | D108: =IF(iUI!D108<>"",iUI!D108,"") ->  | E108: =IF(iUI!E108<>"",iUI!E108,"") ->  | J108: =iUI!H108 -> 0 | K108: =iUI!I108 -> 0 | L108: =iUI!K108 -> 0
A109: 99 | B109: =iUI!B109 -> U99 | C109: =IF(iUI!C109<>"",iUI!C109,"") ->  | D109: =IF(iUI!D109<>"",iUI!D109,"") ->  | E109: =IF(iUI!E109<>"",iUI!E109,"") ->  | J109: =iUI!H109 -> 0 | K109: =iUI!I109 -> 0 | L109: =iUI!K109 -> 0
E110: TOTALI | F110: =SUM(F11:F109) -> 1000 | G110: =SUM(G11:G109) -> 114172 | H110: =SUM(H11:H109) -> 115 | I110: =SUM(I11:I109) -> 9150
A111: 0 | M111: 0

Sheet cTABUI (hidden)
A1: Nessun dato del prospetto può essere variato. | N1: 0
A7: ='iP1'!A5 -> Condominio "TERMICO"
A8: TABELLE MILLESIMALI per UNITÀ IMMOBILIARI
A9: n° U.I. | B9: Codice Unità Immobiliare | C9: Codice Condomino | D9: Codice Fruitore | E9: Condomino /Inquilino fruitore | F9: Tabella A | G9: Tabella B | H9: Tabella C | I9: Tabella D | J9: Tabella E | K9: Part | L9: Sub | M9: Categ.
F10: PROPRIETÀ GENERALE | G10: UTILIZZO | H10: POTENZA INSTALLATA | I10: NUMERO TERMOSIFONI | J10: CONSUMI
A11: 1 | B11: =iUI!B11 -> U01 | C11: =IF(iUI!C11<>"",iUI!C11,"") -> C20 | D11: =IF(iUI!D11<>"",iUI!D11,"") -> I01 | E11: =IF(iUI!E11<>"",iUI!E11,"") -> Condomino20 / Inquilino1 | F11: =iPARTAB!F11/iPARTAB!$F$110*1000 -> 29.95 | G11: =F11 -> 29.95 | H11: =IF(iPARTAB!G11<>0,ROUND(iPARTAB!G11/iPARTAB!$G$110*1000,5),0) -> 17.4386 | I11: =IF(iPARTAB!H11<>0,ROUND(iPARTAB!H11/iPARTAB!$H$110*1000,5),0) -> 26.08696 | J11: =IF(iPARTAB!I11<>0,ROUND(iPARTAB!I11/iPARTAB!$I$110*1000,4),0) -> 10.929 | K11: =iUI!H11 -> 326 | L11: =iUI!I11 -> 75 | M11: =iUI!K11 -> A/2
A12: 2 | B12: =iUI!B12 -> U02 | C12: =IF(iUI!C12<>"",iUI!C12,"") -> C09 | D12: =IF(iUI!D12<>"",iUI!D12,"") -> C09 | E12: =IF(iUI!E12<>"",iUI!E12,"") -> Condomino09 S.r.l. / Condomino09 S.r.l. | F12: =iPARTAB!F12/iPARTAB!$F$110*1000 -> 40.51 | G12: =F12 -> 40.51 | H12: =IF(iPARTAB!G12<>0,ROUND(iPARTAB!G12/iPARTAB!$G$110*1000,5),0) -> 35.51659 | I12: =IF(iPARTAB!H12<>0,ROUND(iPARTAB!H12/iPARTAB!$H$110*1000,5),0) -> 34.78261 | J12: =IF(iPARTAB!I12<>0,ROUND(iPARTAB!I12/iPARTAB!$I$110*1000,4),0) -> 10.929 | K12: =iUI!H12 -> 326 | L12: =iUI!I12 -> 58 | M12: =iUI!K12 -> C/1
A13: 3 | B13: =iUI!B13 -> U03 | C13: =IF(iUI!C13<>"",iUI!C13,"") -> C03 | D13: =IF(iUI!D13<>"",iUI!D13,"") -> C03 | E13: =IF(iUI!E13<>"",iUI!E13,"") -> Condomino03 / Condomino03 | F13: =iPARTAB!F13/iPARTAB!$F$110*1000 -> 68.82 | G13: 68.82 | H13: =IF(iPARTAB!G13<>0,ROUND(iPARTAB!G13/iPARTAB!$G$110*1000,5),0) -> 71.06821 | I13: =IF(iPARTAB!H13<>0,ROUND(iPARTAB!H13/iPARTAB!$H$110*1000,5),0) -> 69.56522 | J13: =IF(iPARTAB!I13<>0,ROUND(iPARTAB!I13/iPARTAB!$I$110*1000,4),0) -> 10.929 | K13: =iUI!H13 -> 326 | L13: =iUI!I13 -> 76 | M13: =iUI!K13 -> A/10
A14: 4 | B14: =iUI!B14 -> U04 | C14: =IF(iUI!C14<>"",iUI!C14,"") -> C04 | D14: =IF(iUI!D14<>"",iUI!D14,"") -> C04 | E14: =IF(iUI!E14<>"",iUI!E14,"") -> Condomino04 S.r.l. / Condomino04 S.r.l. | F14: =iPARTAB!F14/iPARTAB!$F$110*1000 -> 37 | G14: 37 | H14: =IF(iPARTAB!G14<>0,ROUND(iPARTAB!G14/iPARTAB!$G$110*1000,5),0) -> 34.45678 | I14: =IF(iPARTAB!H14<>0,ROUND(iPARTAB!H14/iPARTAB!$H$110*1000,5),0) -> 43.47826 | J14: =IF(iPARTAB!I14<>0,ROUND(iPARTAB!I14/iPARTAB!$I$110*1000,4),0) -> 10.929 | K14: =iUI!H14 -> 326 | L14: =iUI!I14 -> 60 | M14: =iUI!K14 -> C/1
A15: 5 | B15: =iUI!B15 -> U05 | C15: =IF(iUI!C15<>"",iUI!C15,"") -> C23 | D15: =IF(iUI!D15<>"",iUI!D15,"") -> C23 | E15: =IF(iUI!E15<>"",iUI!E15,"") -> Condomino23 / Condomino23 | F15: =iPARTAB!F15/iPARTAB!$F$110*1000 -> 38.76 | G15: 38.76 | H15: =IF(iPARTAB!G15<>0,ROUND(iPARTAB!G15/iPARTAB!$G$110*1000,5),0) -> 44.04758 | I15: =IF(iPARTAB!H15<>0,ROUND(iPARTAB!H15/iPARTAB!$H$110*1000,5),0) -> 43.47826 | J15: =IF(iPARTAB!I15<>0,ROUND(iPARTAB!I15/iPARTAB!$I$110*1000,4),0) -> 10.929 | K15: =iUI!H15 -> 326 | L15: =iUI!I15 -> 61 | M15: =iUI!K15 -> C/1
A16: 6 | B16: =iUI!B16 -> U06 | C16: =IF(iUI!C16<>"",iUI!C16,"") -> C15 | D16: =IF(iUI!D16<>"",iUI!D16,"") -> C15 | E16: =IF(iUI!E16<>"",iUI!E16,"") -> Condomino15 / Condomino15 | F16: =iPARTAB!F16/iPARTAB!$F$110*1000 -> 37 | G16: 37 | H16: =IF(iPARTAB!G16<>0,ROUND(iPARTAB!G16/iPARTAB!$G$110*1000,5),0) -> 41.98928 | I16: =IF(iPARTAB!H16<>0,ROUND(iPARTAB!H16/iPARTAB!$H$110*1000,5),0) -> 43.47826 | J16: =IF(iPARTAB!I16<>0,ROUND(iPARTAB!I16/iPARTAB!$I$110*1000,4),0) -> 21.8579 | K16: =iUI!H16 -> 326 | L16: =iUI!I16 -> 62 | M16: =iUI!K16 -> C/1
A17: 7 | B17: =iUI!B17 -> U07 | C17: =IF(iUI!C17<>"",iUI!C17,"") -> C05 | D17: =IF(iUI!D17<>"",iUI!D17,"") -> C05 | E17: =IF(iUI!E17<>"",iUI!E17,"") -> Condomino05 / Condomino05 | F17: =iPARTAB!F17/iPARTAB!$F$110*1000 -> 47.56 | G17: 47.56 | H17: =IF(iPARTAB!G17<>0,ROUND(iPARTAB!G17/iPARTAB!$G$110*1000,5),0) -> 56.97544 | I17: =IF(iPARTAB!H17<>0,ROUND(iPARTAB!H17/iPARTAB!$H$110*1000,5),0) -> 60.86957 | J17: =IF(iPARTAB!I17<>0,ROUND(iPARTAB!I17/iPARTAB!$I$110*1000,4),0) -> 32.7869 | K17: =iUI!H17 -> 326 | L17: =iUI!I17 -> 7 | M17: =iUI!K17 -> A/2
A18: 8 | B18: =iUI!B18 -> U08 | C18: =IF(iUI!C18<>"",iUI!C18,"") -> C13 | D18: =IF(iUI!D18<>"",iUI!D18,"") -> C13 | E18: =IF(iUI!E18<>"",iUI!E18,"") -> Condomino13 / Condomino13 | F18: =iPARTAB!F18/iPARTAB!$F$110*1000 -> 38.76 | G18: 38.76 | H18: =IF(iPARTAB!G18<>0,ROUND(iPARTAB!G18/iPARTAB!$G$110*1000,5),0) -> 46.94671 | I18: =IF(iPARTAB!H18<>0,ROUND(iPARTAB!H18/iPARTAB!$H$110*1000,5),0) -> 43.47826 | J18: =IF(iPARTAB!I18<>0,ROUND(iPARTAB!I18/iPARTAB!$I$110*1000,4),0) -> 32.7869 | K18: =iUI!H18 -> 326 | L18: =iUI!I18 -> 8 | M18: =iUI!K18 -> A/2
A19: 9 | B19: =iUI!B19 -> U09 | C19: =IF(iUI!C19<>"",iUI!C19,"") -> C11 | D19: =IF(iUI!D19<>"",iUI!D19,"") -> C11 | E19: =IF(iUI!E19<>"",iUI!E19,"") -> Condomino11 / Condomino11 | F19: =iPARTAB!F19/iPARTAB!$F$110*1000 -> 37 | G19: 37 | H19: =IF(iPARTAB!G19<>0,ROUND(iPARTAB!G19/iPARTAB!$G$110*1000,5),0) -> 26.15352 | I19: =IF(iPARTAB!H19<>0,ROUND(iPARTAB!H19/iPARTAB!$H$110*1000,5),0) -> 26.08696 | J19: =IF(iPARTAB!I19<>0,ROUND(iPARTAB!I19/iPARTAB!$I$110*1000,4),0) -> 49.1803 | K19: =iUI!H19 -> 326 | L19: =iUI!I19 -> 10 | M19: =iUI!K19 -> A/2
A20: 10 | B20: =iUI!B20 -> U10 | C20: =IF(iUI!C20<>"",iUI!C20,"") -> C19 | D20: =IF(iUI!D20<>"",iUI!D20,"") -> C19 | E20: =IF(iUI!E20<>"",iUI!E20,"") -> Condomino19 / Condomino19 | F20: =iPARTAB!F20/iPARTAB!$F$110*1000 -> 58.12 | G20: 58.12 | H20: =IF(iPARTAB!G20<>0,ROUND(iPARTAB!G20/iPARTAB!$G$110*1000,5),0) -> 62.60729 | I20: =IF(iPARTAB!H20<>0,ROUND(iPARTAB!H20/iPARTAB!$H$110*1000,5),0) -> 60.86957 | J20: =IF(iPARTAB!I20<>0,ROUND(iPARTAB!I20/iPARTAB!$I$110*1000,4),0) -> 43.7158 | K20: =iUI!H20 -> 326 | L20: =iUI!I20 -> 79 | M20: =iUI!K20 -> A/2
A21: 11 | B21: =iUI!B21 -> U11 | C21: =IF(iUI!C21<>"",iUI!C21,"") -> C22 | D21: =IF(iUI!D21<>"",iUI!D21,"") -> C22 | E21: =IF(iUI!E21<>"",iUI!E21,"") -> Condomino22 / Condomino22 | F21: =iPARTAB!F21/iPARTAB!$F$110*1000 -> 28.19 | G21: 28.19 | H21: =IF(iPARTAB!G21<>0,ROUND(iPARTAB!G21/iPARTAB!$G$110*1000,5),0) -> 29.07017 | I21: =IF(iPARTAB!H21<>0,ROUND(iPARTAB!H21/iPARTAB!$H$110*1000,5),0) -> 34.78261 | J21: =IF(iPARTAB!I21<>0,ROUND(iPARTAB!I21/iPARTAB!$I$110*1000,4),0) -> 43.7158 | K21: =iUI!H21 -> 326 | L21: =iUI!I21 -> 80 | M21: =iUI!K21 -> A/3
A22: 12 | B22: =iUI!B22 -> U12 | C22: =IF(iUI!C22<>"",iUI!C22,"") -> C21 | D22: =IF(iUI!D22<>"",iUI!D22,"") -> C21 | E22: =IF(iUI!E22<>"",iUI!E22,"") -> Condomino21 / Condomino21 | F22: =iPARTAB!F22/iPARTAB!$F$110*1000 -> 37 | G22: 37 | H22: =IF(iPARTAB!G22<>0,ROUND(iPARTAB!G22/iPARTAB!$G$110*1000,5),0) -> 42.15569 | I22: =IF(iPARTAB!H22<>0,ROUND(iPARTAB!H22/iPARTAB!$H$110*1000,5),0) -> 43.47826 | J22: =IF(iPARTAB!I22<>0,ROUND(iPARTAB!I22/iPARTAB!$I$110*1000,4),0) -> 43.7158 | K22: =iUI!H22 -> 326 | L22: =iUI!I22 -> 14 | M22: =iUI!K22 -> A/2
A23: 13 | B23: =iUI!B23 -> U13 | C23: =IF(iUI!C23<>"",iUI!C23,"") -> C18 | D23: =IF(iUI!D23<>"",iUI!D23,"") -> I02 | E23: =IF(iUI!E23<>"",iUI!E23,"") -> Condomino18 / Inquilino2 | F23: =iPARTAB!F23/iPARTAB!$F$110*1000 -> 64.07 | G23: 64.07 | H23: =IF(iPARTAB!G23<>0,ROUND(iPARTAB!G23/iPARTAB!$G$110*1000,5),0) -> 74.70308 | I23: =IF(iPARTAB!H23<>0,ROUND(iPARTAB!H23/iPARTAB!$H$110*1000,5),0) -> 69.56522 | J23: =IF(iPARTAB!I23<>0,ROUND(iPARTAB!I23/iPARTAB!$I$110*1000,4),0) -> 54.6448 | K23: =iUI!H23 -> 326 | L23: =iUI!I23 -> 15 | M23: =iUI!K23 -> A/2
A24: 14 | B24: =iUI!B24 -> U14 | C24: =IF(iUI!C24<>"",iUI!C24,"") -> C14 | D24: =IF(iUI!D24<>"",iUI!D24,"") -> C14 | E24: =IF(iUI!E24<>"",iUI!E24,"") -> Condomino14 / Condomino14 | F24: =iPARTAB!F24/iPARTAB!$F$110*1000 -> 29.83 | G24: 29.83 | H24: =IF(iPARTAB!G24<>0,ROUND(iPARTAB!G24/iPARTAB!$G$110*1000,5),0) -> 38.442 | I24: =IF(iPARTAB!H24<>0,ROUND(iPARTAB!H24/iPARTAB!$H$110*1000,5),0) -> 34.78261 | J24: =IF(iPARTAB!I24<>0,ROUND(iPARTAB!I24/iPARTAB!$I$110*1000,4),0) -> 54.6448 | K24: =iUI!H24 -> 326 | L24: =iUI!I24 -> 16 | M24: =iUI!K24 -> A/2
A25: 15 | B25: =iUI!B25 -> U15 | C25: =IF(iUI!C25<>"",iUI!C25,"") -> C02 | D25: =IF(iUI!D25<>"",iUI!D25,"") -> I03 | E25: =IF(iUI!E25<>"",iUI!E25,"") -> Condomino02 / Inquilino3 | F25: =iPARTAB!F25/iPARTAB!$F$110*1000 -> 37 | G25: 37 | H25: =IF(iPARTAB!G25<>0,ROUND(iPARTAB!G25/iPARTAB!$G$110*1000,5),0) -> 40.78934 | I25: =IF(iPARTAB!H25<>0,ROUND(iPARTAB!H25/iPARTAB!$H$110*1000,5),0) -> 43.47826 | J25: =IF(iPARTAB!I25<>0,ROUND(iPARTAB!I25/iPARTAB!$I$110*1000,4),0) -> 54.6448 | K25: =iUI!H25 -> 326 | L25: =iUI!I25 -> 17 | M25: =iUI!K25 -> A/3
A26: 16 | B26: =iUI!B26 -> U16 | C26: =IF(iUI!C26<>"",iUI!C26,"") -> C16 | D26: =IF(iUI!D26<>"",iUI!D26,"") -> C16 | E26: =IF(iUI!E26<>"",iUI!E26,"") -> Condomino16 / Condomino16 | F26: =iPARTAB!F26/iPARTAB!$F$110*1000 -> 52.85 | G26: 52.85 | H26: =IF(iPARTAB!G26<>0,ROUND(iPARTAB!G26/iPARTAB!$G$110*1000,5),0) -> 51.99173 | I26: =IF(iPARTAB!H26<>0,ROUND(iPARTAB!H26/iPARTAB!$H$110*1000,5),0) -> 43.47826 | J26: =IF(iPARTAB!I26<>0,ROUND(iPARTAB!I26/iPARTAB!$I$110*1000,4),0) -> 54.6448 | K26: =iUI!H26 -> 326 | L26: =iUI!I26 -> 83 | M26: =iUI!K26 -> A/2
A27: 17 | B27: =iUI!B27 -> U17 | C27: =IF(iUI!C27<>"",iUI!C27,"") -> C12 | D27: =IF(iUI!D27<>"",iUI!D27,"") -> C12 | E27: =IF(iUI!E27<>"",iUI!E27,"") -> Condomino12 / Condomino12 | F27: =iPARTAB!F27/iPARTAB!$F$110*1000 -> 47.56 | G27: 47.56 | H27: =IF(iPARTAB!G27<>0,ROUND(iPARTAB!G27/iPARTAB!$G$110*1000,5),0) -> 50.99324 | I27: =IF(iPARTAB!H27<>0,ROUND(iPARTAB!H27/iPARTAB!$H$110*1000,5),0) -> 34.78261 | J27: =IF(iPARTAB!I27<>0,ROUND(iPARTAB!I27/iPARTAB!$I$110*1000,4),0) -> 54.6448 | K27: =iUI!H27 -> 326 | L27: =iUI!I27 -> 81 | M27: =iUI!K27 -> A/2
A28: 18 | B28: =iUI!B28 -> U18 | C28: =IF(iUI!C28<>"",iUI!C28,"") -> C06 | D28: =IF(iUI!D28<>"",iUI!D28,"") -> C06 | E28: =IF(iUI!E28<>"",iUI!E28,"") -> Condomino06 / Condomino06 | F28: =iPARTAB!F28/iPARTAB!$F$110*1000 -> 42.27 | G28: 42.27 | H28: =IF(iPARTAB!G28<>0,ROUND(iPARTAB!G28/iPARTAB!$G$110*1000,5),0) -> 57.75497 | I28: =IF(iPARTAB!H28<>0,ROUND(iPARTAB!H28/iPARTAB!$H$110*1000,5),0) -> 43.47826 | J28: =IF(iPARTAB!I28<>0,ROUND(iPARTAB!I28/iPARTAB!$I$110*1000,4),0) -> 54.6448 | K28: =iUI!H28 -> 326 | L28: =iUI!I28 -> 21 | M28: =iUI!K28 -> A/2
A29: 19 | B29: =iUI!B29 -> U19 | C29: =IF(iUI!C29<>"",iUI!C29,"") -> C07 | D29: =IF(iUI!D29<>"",iUI!D29,"") -> C07 | E29: =IF(iUI!E29<>"",iUI!E29,"") -> Condomino07 / Condomino07 | F29: =iPARTAB!F29/iPARTAB!$F$110*1000 -> 35.77 | G29: 35.77 | H29: =IF(iPARTAB!G29<>0,ROUND(iPARTAB!G29/iPARTAB!$G$110*1000,5),0) -> 29.38549 | I29: =IF(iPARTAB!H29<>0,ROUND(iPARTAB!H29/iPARTAB!$H$110*1000,5),0) -> 26.08696 | J29: =IF(iPARTAB!I29<>0,ROUND(iPARTAB!I29/iPARTAB!$I$110*1000,4),0) -> 65.5738 | K29: =iUI!H29 -> 326 | L29: =iUI!I29 -> 22 | M29: =iUI!K29 -> A/2
A30: 20 | B30: =iUI!B30 -> U20 | C30: =IF(iUI!C30<>"",iUI!C30,"") -> C17 | D30: =IF(iUI!D30<>"",iUI!D30,"") -> C17 | E30: =IF(iUI!E30<>"",iUI!E30,"") -> Condomino17 / Condomino17 | F30: =iPARTAB!F30/iPARTAB!$F$110*1000 -> 73.97 | G30: 73.97 | H30: =IF(iPARTAB!G30<>0,ROUND(iPARTAB!G30/iPARTAB!$G$110*1000,5),0) -> 74.69432 | I30: =IF(iPARTAB!H30<>0,ROUND(iPARTAB!H30/iPARTAB!$H$110*1000,5),0) -> 60.86957 | J30: =IF(iPARTAB!I30<>0,ROUND(iPARTAB!I30/iPARTAB!$I$110*1000,4),0) -> 65.5738 | K30: =iUI!H30 -> 326 | L30: =iUI!I30 -> 23 | M30: =iUI!K30 -> A/1
A31: 21 | B31: =iUI!B31 -> U21 | C31: =IF(iUI!C31<>"",iUI!C31,"") -> C01 | D31: =IF(iUI!D31<>"",iUI!D31,"") -> C01 | E31: =IF(iUI!E31<>"",iUI!E31,"") -> Condomino01 / Condomino01 | F31: =iPARTAB!F31/iPARTAB!$F$110*1000 -> 29.95 | G31: 29.95 | H31: =IF(iPARTAB!G31<>0,ROUND(iPARTAB!G31/iPARTAB!$G$110*1000,5),0) -> 30.93578 | I31: =IF(iPARTAB!H31<>0,ROUND(iPARTAB!H31/iPARTAB!$H$110*1000,5),0) -> 26.08696 | J31: =IF(iPARTAB!I31<>0,ROUND(iPARTAB!I31/iPARTAB!$I$110*1000,4),0) -> 65.5738 | K31: =iUI!H31 -> 326 | L31: =iUI!I31 -> 24 | M31: =iUI!K31 -> A/2
A32: 22 | B32: =iUI!B32 -> U22 | C32: =IF(iUI!C32<>"",iUI!C32,"") -> C10 | D32: =IF(iUI!D32<>"",iUI!D32,"") -> I04 | E32: =IF(iUI!E32<>"",iUI!E32,"") -> Condomino10 / Inquilino4 | F32: =iPARTAB!F32/iPARTAB!$F$110*1000 -> 49.32 | G32: 49.32 | H32: =IF(iPARTAB!G32<>0,ROUND(iPARTAB!G32/iPARTAB!$G$110*1000,5),0) -> 24.96234 | I32: =IF(iPARTAB!H32<>0,ROUND(iPARTAB!H32/iPARTAB!$H$110*1000,5),0) -> 52.17391 | J32: =IF(iPARTAB!I32<>0,ROUND(iPARTAB!I32/iPARTAB!$I$110*1000,4),0) -> 76.5027 | K32: =iUI!H32 -> 326 | L32: =iUI!I32 -> 82 | M32: =iUI!K32 -> A/2
A33: 23 | B33: =iUI!B33 -> U23 | C33: =IF(iUI!C33<>"",iUI!C33,"") -> C08 | D33: =IF(iUI!D33<>"",iUI!D33,"") -> C08 | E33: =IF(iUI!E33<>"",iUI!E33,"") -> Eredi Condomino08 / Eredi Condomino08 | F33: =iPARTAB!F33/iPARTAB!$F$110*1000 -> 29.83 | G33: 29.83 | H33: =IF(iPARTAB!G33<>0,ROUND(iPARTAB!G33/iPARTAB!$G$110*1000,5),0) -> 8.46092 | I33: =IF(iPARTAB!H33<>0,ROUND(iPARTAB!H33/iPARTAB!$H$110*1000,5),0) -> 34.78261 | J33: =IF(iPARTAB!I33<>0,ROUND(iPARTAB!I33/iPARTAB!$I$110*1000,4),0) -> 76.5027 | K33: =iUI!H33 -> 326 | L33: =iUI!I33 -> 73 | M33: =iUI!K33 -> C/2
A34: 24 | B34: =iUI!B34 -> U24 | C34: =IF(iUI!C34<>"",iUI!C34,"") -> C12 | D34: =IF(iUI!D34<>"",iUI!D34,"") -> I05 | E34: =IF(iUI!E34<>"",iUI!E34,"") -> Condomino12 / Inquilino5 | F34: =iPARTAB!F34/iPARTAB!$F$110*1000 -> 8.91 | G34: 8.91 | H34: =IF(iPARTAB!G34<>0,ROUND(iPARTAB!G34/iPARTAB!$G$110*1000,5),0) -> 8.46092 | I34: =IF(iPARTAB!H34<>0,ROUND(iPARTAB!H34/iPARTAB!$H$110*1000,5),0) -> 0 | J34: =IF(iPARTAB!I34<>0,ROUND(iPARTAB!I34/iPARTAB!$I$110*1000,4),0) -> 0 | K34: =iUI!H34 -> 326 | L34: =iUI!I34 -> 78 | M34: =iUI!K34 -> C/2
A35: 25 | B35: =iUI!B35 -> U25 | C35: =IF(iUI!C35<>"",iUI!C35,"") ->  | D35: =IF(iUI!D35<>"",iUI!D35,"") ->  | E35: =IF(iUI!E35<>"",iUI!E35,"") ->  | F35: =iPARTAB!F35/iPARTAB!$F$110*1000 -> 0 | G35: 0 | H35: =IF(iPARTAB!G35<>0,ROUND(iPARTAB!G35/iPARTAB!$G$110*1000,5),0) -> 0 | I35: =IF(iPARTAB!H35<>0,ROUND(iPARTAB!H35/iPARTAB!$H$110*1000,5),0) -> 0 | J35: =IF(iPARTAB!I35<>0,ROUND(iPARTAB!I35/iPARTAB!$I$110*1000,4),0) -> 0 | K35: =iUI!H35 -> 0 | L35: =iUI!I35 -> 0 | M35: =iUI!K35 -> 0
A36: 26 | B36: =iUI!B36 -> U26 | C36: =IF(iUI!C36<>"",iUI!C36,"") ->  | D36: =IF(iUI!D36<>"",iUI!D36,"") ->  | E36: =IF(iUI!E36<>"",iUI!E36,"") ->  | F36: =iPARTAB!F36/iPARTAB!$F$110*1000 -> 0 | G36: 0 | H36: =IF(iPARTAB!G36<>0,ROUND(iPARTAB!G36/iPARTAB!$G$110*1000,5),0) -> 0 | I36: =IF(iPARTAB!H36<>0,ROUND(iPARTAB!H36/iPARTAB!$H$110*1000,5),0) -> 0 | J36: =IF(iPARTAB!I36<>0,ROUND(iPARTAB!I36/iPARTAB!$I$110*1000,4),0) -> 0 | K36: =iUI!H36 -> 0 | L36: =iUI!I36 -> 0 | M36: =iUI!K36 -> 0
A37: 27 | B37: =iUI!B37 -> U27 | C37: =IF(iUI!C37<>"",iUI!C37,"") ->  | D37: =IF(iUI!D37<>"",iUI!D37,"") ->  | E37: =IF(iUI!E37<>"",iUI!E37,"") ->  | F37: =iPARTAB!F37/iPARTAB!$F$110*1000 -> 0 | G37: 0 | H37: =IF(iPARTAB!G37<>0,ROUND(iPARTAB!G37/iPARTAB!$G$110*1000,5),0) -> 0 | I37: =IF(iPARTAB!H37<>0,ROUND(iPARTAB!H37/iPARTAB!$H$110*1000,5),0) -> 0 | J37: =IF(iPARTAB!I37<>0,ROUND(iPARTAB!I37/iPARTAB!$I$110*1000,4),0) -> 0 | K37: =iUI!H37 -> 0 | L37: =iUI!I37 -> 0 | M37: =iUI!K37 -> 0
A38: 28 | B38: =iUI!B38 -> U28 | C38: =IF(iUI!C38<>"",iUI!C38,"") ->  | D38: =IF(iUI!D38<>"",iUI!D38,"") ->  | E38: =IF(iUI!E38<>"",iUI!E38,"") ->  | F38: =iPARTAB!F38/iPARTAB!$F$110*1000 -> 0 | G38: 0 | H38: =IF(iPARTAB!G38<>0,ROUND(iPARTAB!G38/iPARTAB!$G$110*1000,5),0) -> 0 | I38: =IF(iPARTAB!H38<>0,ROUND(iPARTAB!H38/iPARTAB!$H$110*1000,5),0) -> 0 | J38: =IF(iPARTAB!I38<>0,ROUND(iPARTAB!I38/iPARTAB!$I$110*1000,4),0) -> 0 | K38: =iUI!H38 -> 0 | L38: =iUI!I38 -> 0 | M38: =iUI!K38 -> 0
A39: 29 | B39: =iUI!B39 -> U29 | C39: =IF(iUI!C39<>"",iUI!C39,"") ->  | D39: =IF(iUI!D39<>"",iUI!D39,"") ->  | E39: =IF(iUI!E39<>"",iUI!E39,"") ->  | F39: =iPARTAB!F39/iPARTAB!$F$110*1000 -> 0 | G39: 0 | H39: =IF(iPARTAB!G39<>0,ROUND(iPARTAB!G39/iPARTAB!$G$110*1000,5),0) -> 0 | I39: =IF(iPARTAB!H39<>0,ROUND(iPARTAB!H39/iPARTAB!$H$110*1000,5),0) -> 0 | J39: =IF(iPARTAB!I39<>0,ROUND(iPARTAB!I39/iPARTAB!$I$110*1000,4),0) -> 0 | K39: =iUI!H39 -> 0 | L39: =iUI!I39 -> 0 | M39: =iUI!K39 -> 0
A40: 30 | B40: =iUI!B40 -> U30 | C40: =IF(iUI!C40<>"",iUI!C40,"") ->  | D40: =IF(iUI!D40<>"",iUI!D40,"") ->  | E40: =IF(iUI!E40<>"",iUI!E40,"") ->  | F40: =iPARTAB!F40/iPARTAB!$F$110*1000 -> 0 | G40: 0 | H40: =IF(iPARTAB!G40<>0,ROUND(iPARTAB!G40/iPARTAB!$G$110*1000,5),0) -> 0 | I40: =IF(iPARTAB!H40<>0,ROUND(iPARTAB!H40/iPARTAB!$H$110*1000,5),0) -> 0 | J40: =IF(iPARTAB!I40<>0,ROUND(iPARTAB!I40/iPARTAB!$I$110*1000,4),0) -> 0 | K40: =iUI!H40 -> 0 | L40: =iUI!I40 -> 0 | M40: =iUI!K40 -> 0
A41: 31 | B41: =iUI!B41 -> U31 | C41: =IF(iUI!C41<>"",iUI!C41,"") ->  | D41: =IF(iUI!D41<>"",iUI!D41,"") ->  | E41: =IF(iUI!E41<>"",iUI!E41,"") ->  | F41: =iPARTAB!F41/iPARTAB!$F$110*1000 -> 0 | G41: 0 | H41: =IF(iPARTAB!G41<>0,ROUND(iPARTAB!G41/iPARTAB!$G$110*1000,5),0) -> 0 | I41: =IF(iPARTAB!H41<>0,ROUND(iPARTAB!H41/iPARTAB!$H$110*1000,5),0) -> 0 | J41: =IF(iPARTAB!I41<>0,ROUND(iPARTAB!I41/iPARTAB!$I$110*1000,4),0) -> 0 | K41: =iUI!H41 -> 0 | L41: =iUI!I41 -> 0 | M41: =iUI!K41 -> 0
A42: 32 | B42: =iUI!B42 -> U32 | C42: =IF(iUI!C42<>"",iUI!C42,"") ->  | D42: =IF(iUI!D42<>"",iUI!D42,"") ->  | E42: =IF(iUI!E42<>"",iUI!E42,"") ->  | F42: =iPARTAB!F42/iPARTAB!$F$110*1000 -> 0 | G42: 0 | H42: =IF(iPARTAB!G42<>0,ROUND(iPARTAB!G42/iPARTAB!$G$110*1000,5),0) -> 0 | I42: =IF(iPARTAB!H42<>0,ROUND(iPARTAB!H42/iPARTAB!$H$110*1000,5),0) -> 0 | J42: =IF(iPARTAB!I42<>0,ROUND(iPARTAB!I42/iPARTAB!$I$110*1000,4),0) -> 0 | K42: =iUI!H42 -> 0 | L42: =iUI!I42 -> 0 | M42: =iUI!K42 -> 0
A43: 33 | B43: =iUI!B43 -> U33 | C43: =IF(iUI!C43<>"",iUI!C43,"") ->  | D43: =IF(iUI!D43<>"",iUI!D43,"") ->  | E43: =IF(iUI!E43<>"",iUI!E43,"") ->  | F43: =iPARTAB!F43/iPARTAB!$F$110*1000 -> 0 | G43: 0 | H43: =IF(iPARTAB!G43<>0,ROUND(iPARTAB!G43/iPARTAB!$G$110*1000,5),0) -> 0 | I43: =IF(iPARTAB!H43<>0,ROUND(iPARTAB!H43/iPARTAB!$H$110*1000,5),0) -> 0 | J43: =IF(iPARTAB!I43<>0,ROUND(iPARTAB!I43/iPARTAB!$I$110*1000,4),0) -> 0 | K43: =iUI!H43 -> 0 | L43: =iUI!I43 -> 0 | M43: =iUI!K43 -> 0
A44: 34 | B44: =iUI!B44 -> U34 | C44: =IF(iUI!C44<>"",iUI!C44,"") ->  | D44: =IF(iUI!D44<>"",iUI!D44,"") ->  | E44: =IF(iUI!E44<>"",iUI!E44,"") ->  | F44: =iPARTAB!F44/iPARTAB!$F$110*1000 -> 0 | G44: 0 | H44: =IF(iPARTAB!G44<>0,ROUND(iPARTAB!G44/iPARTAB!$G$110*1000,5),0) -> 0 | I44: =IF(iPARTAB!H44<>0,ROUND(iPARTAB!H44/iPARTAB!$H$110*1000,5),0) -> 0 | J44: =IF(iPARTAB!I44<>0,ROUND(iPARTAB!I44/iPARTAB!$I$110*1000,4),0) -> 0 | K44: =iUI!H44 -> 0 | L44: =iUI!I44 -> 0 | M44: =iUI!K44 -> 0
A45: 35 | B45: =iUI!B45 -> U35 | C45: =IF(iUI!C45<>"",iUI!C45,"") ->  | D45: =IF(iUI!D45<>"",iUI!D45,"") ->  | E45: =IF(iUI!E45<>"",iUI!E45,"") ->  | F45: =iPARTAB!F45/iPARTAB!$F$110*1000 -> 0 | G45: 0 | H45: =IF(iPARTAB!G45<>0,ROUND(iPARTAB!G45/iPARTAB!$G$110*1000,5),0) -> 0 | I45: =IF(iPARTAB!H45<>0,ROUND(iPARTAB!H45/iPARTAB!$H$110*1000,5),0) -> 0 | J45: =IF(iPARTAB!I45<>0,ROUND(iPARTAB!I45/iPARTAB!$I$110*1000,4),0) -> 0 | K45: =iUI!H45 -> 0 | L45: =iUI!I45 -> 0 | M45: =iUI!K45 -> 0
A46: 36 | B46: =iUI!B46 -> U36 | C46: =IF(iUI!C46<>"",iUI!C46,"") ->  | D46: =IF(iUI!D46<>"",iUI!D46,"") ->  | E46: =IF(iUI!E46<>"",iUI!E46,"") ->  | F46: =iPARTAB!F46/iPARTAB!$F$110*1000 -> 0 | G46: 0 | H46: =IF(iPARTAB!G46<>0,ROUND(iPARTAB!G46/iPARTAB!$G$110*1000,5),0) -> 0 | I46: =IF(iPARTAB!H46<>0,ROUND(iPARTAB!H46/iPARTAB!$H$110*1000,5),0) -> 0 | J46: =IF(iPARTAB!I46<>0,ROUND(iPARTAB!I46/iPARTAB!$I$110*1000,4),0) -> 0 | K46: =iUI!H46 -> 0 | L46: =iUI!I46 -> 0 | M46: =iUI!K46 -> 0
A47: 37 | B47: =iUI!B47 -> U37 | C47: =IF(iUI!C47<>"",iUI!C47,"") ->  | D47: =IF(iUI!D47<>"",iUI!D47,"") ->  | E47: =IF(iUI!E47<>"",iUI!E47,"") ->  | F47: =iPARTAB!F47/iPARTAB!$F$110*1000 -> 0 | G47: 0 | H47: =IF(iPARTAB!G47<>0,ROUND(iPARTAB!G47/iPARTAB!$G$110*1000,5),0) -> 0 | I47: =IF(iPARTAB!H47<>0,ROUND(iPARTAB!H47/iPARTAB!$H$110*1000,5),0) -> 0 | J47: =IF(iPARTAB!I47<>0,ROUND(iPARTAB!I47/iPARTAB!$I$110*1000,4),0) -> 0 | K47: =iUI!H47 -> 0 | L47: =iUI!I47 -> 0 | M47: =iUI!K47 -> 0
A48: 38 | B48: =iUI!B48 -> U38 | C48: =IF(iUI!C48<>"",iUI!C48,"") ->  | D48: =IF(iUI!D48<>"",iUI!D48,"") ->  | E48: =IF(iUI!E48<>"",iUI!E48,"") ->  | F48: =iPARTAB!F48/iPARTAB!$F$110*1000 -> 0 | G48: 0 | H48: =IF(iPARTAB!G48<>0,ROUND(iPARTAB!G48/iPARTAB!$G$110*1000,5),0) -> 0 | I48: =IF(iPARTAB!H48<>0,ROUND(iPARTAB!H48/iPARTAB!$H$110*1000,5),0) -> 0 | J48: =IF(iPARTAB!I48<>0,ROUND(iPARTAB!I48/iPARTAB!$I$110*1000,4),0) -> 0 | K48: =iUI!H48 -> 0 | L48: =iUI!I48 -> 0 | M48: =iUI!K48 -> 0
A49: 39 | B49: =iUI!B49 -> U39 | C49: =IF(iUI!C49<>"",iUI!C49,"") ->  | D49: =IF(iUI!D49<>"",iUI!D49,"") ->  | E49: =IF(iUI!E49<>"",iUI!E49,"") ->  | F49: =iPARTAB!F49/iPARTAB!$F$110*1000 -> 0 | G49: 0 | H49: =IF(iPARTAB!G49<>0,ROUND(iPARTAB!G49/iPARTAB!$G$110*1000,5),0) -> 0 | I49: =IF(iPARTAB!H49<>0,ROUND(iPARTAB!H49/iPARTAB!$H$110*1000,5),0) -> 0 | J49: =IF(iPARTAB!I49<>0,ROUND(iPARTAB!I49/iPARTAB!$I$110*1000,4),0) -> 0 | K49: =iUI!H49 -> 0 | L49: =iUI!I49 -> 0 | M49: =iUI!K49 -> 0
A50: 40 | B50: =iUI!B50 -> U40 | C50: =IF(iUI!C50<>"",iUI!C50,"") ->  | D50: =IF(iUI!D50<>"",iUI!D50,"") ->  | E50: =IF(iUI!E50<>"",iUI!E50,"") ->  | F50: =iPARTAB!F50/iPARTAB!$F$110*1000 -> 0 | G50: 0 | H50: =IF(iPARTAB!G50<>0,ROUND(iPARTAB!G50/iPARTAB!$G$110*1000,5),0) -> 0 | I50: =IF(iPARTAB!H50<>0,ROUND(iPARTAB!H50/iPARTAB!$H$110*1000,5),0) -> 0 | J50: =IF(iPARTAB!I50<>0,ROUND(iPARTAB!I50/iPARTAB!$I$110*1000,4),0) -> 0 | K50: =iUI!H50 -> 0 | L50: =iUI!I50 -> 0 | M50: =iUI!K50 -> 0
A51: 41 | B51: =iUI!B51 -> U41 | C51: =IF(iUI!C51<>"",iUI!C51,"") ->  | D51: =IF(iUI!D51<>"",iUI!D51,"") ->  | E51: =IF(iUI!E51<>"",iUI!E51,"") ->  | F51: =iPARTAB!F51/iPARTAB!$F$110*1000 -> 0 | G51: 0 | H51: =IF(iPARTAB!G51<>0,ROUND(iPARTAB!G51/iPARTAB!$G$110*1000,5),0) -> 0 | I51: =IF(iPARTAB!H51<>0,ROUND(iPARTAB!H51/iPARTAB!$H$110*1000,5),0) -> 0 | J51: =IF(iPARTAB!I51<>0,ROUND(iPARTAB!I51/iPARTAB!$I$110*1000,4),0) -> 0 | K51: =iUI!H51 -> 0 | L51: =iUI!I51 -> 0 | M51: =iUI!K51 -> 0
A52: 42 | B52: =iUI!B52 -> U42 | C52: =IF(iUI!C52<>"",iUI!C52,"") ->  | D52: =IF(iUI!D52<>"",iUI!D52,"") ->  | E52: =IF(iUI!E52<>"",iUI!E52,"") ->  | F52: =iPARTAB!F52/iPARTAB!$F$110*1000 -> 0 | G52: 0 | H52: =IF(iPARTAB!G52<>0,ROUND(iPARTAB!G52/iPARTAB!$G$110*1000,5),0) -> 0 | I52: =IF(iPARTAB!H52<>0,ROUND(iPARTAB!H52/iPARTAB!$H$110*1000,5),0) -> 0 | J52: =IF(iPARTAB!I52<>0,ROUND(iPARTAB!I52/iPARTAB!$I$110*1000,4),0) -> 0 | K52: =iUI!H52 -> 0 | L52: =iUI!I52 -> 0 | M52: =iUI!K52 -> 0
A53: 43 | B53: =iUI!B53 -> U43 | C53: =IF(iUI!C53<>"",iUI!C53,"") ->  | D53: =IF(iUI!D53<>"",iUI!D53,"") ->  | E53: =IF(iUI!E53<>"",iUI!E53,"") ->  | F53: =iPARTAB!F53/iPARTAB!$F$110*1000 -> 0 | G53: 0 | H53: =IF(iPARTAB!G53<>0,ROUND(iPARTAB!G53/iPARTAB!$G$110*1000,5),0) -> 0 | I53: =IF(iPARTAB!H53<>0,ROUND(iPARTAB!H53/iPARTAB!$H$110*1000,5),0) -> 0 | J53: =IF(iPARTAB!I53<>0,ROUND(iPARTAB!I53/iPARTAB!$I$110*1000,4),0) -> 0 | K53: =iUI!H53 -> 0 | L53: =iUI!I53 -> 0 | M53: =iUI!K53 -> 0
A54: 44 | B54: =iUI!B54 -> U44 | C54: =IF(iUI!C54<>"",iUI!C54,"") ->  | D54: =IF(iUI!D54<>"",iUI!D54,"") ->  | E54: =IF(iUI!E54<>"",iUI!E54,"") ->  | F54: =iPARTAB!F54/iPARTAB!$F$110*1000 -> 0 | G54: 0 | H54: =IF(iPARTAB!G54<>0,ROUND(iPARTAB!G54/iPARTAB!$G$110*1000,5),0) -> 0 | I54: =IF(iPARTAB!H54<>0,ROUND(iPARTAB!H54/iPARTAB!$H$110*1000,5),0) -> 0 | J54: =IF(iPARTAB!I54<>0,ROUND(iPARTAB!I54/iPARTAB!$I$110*1000,4),0) -> 0 | K54: =iUI!H54 -> 0 | L54: =iUI!I54 -> 0 | M54: =iUI!K54 -> 0
A55: 45 | B55: =iUI!B55 -> U45 | C55: =IF(iUI!C55<>"",iUI!C55,"") ->  | D55: =IF(iUI!D55<>"",iUI!D55,"") ->  | E55: =IF(iUI!E55<>"",iUI!E55,"") ->  | F55: =iPARTAB!F55/iPARTAB!$F$110*1000 -> 0 | G55: 0 | H55: =IF(iPARTAB!G55<>0,ROUND(iPARTAB!G55/iPARTAB!$G$110*1000,5),0) -> 0 | I55: =IF(iPARTAB!H55<>0,ROUND(iPARTAB!H55/iPARTAB!$H$110*1000,5),0) -> 0 | J55: =IF(iPARTAB!I55<>0,ROUND(iPARTAB!I55/iPARTAB!$I$110*1000,4),0) -> 0 | K55: =iUI!H55 -> 0 | L55: =iUI!I55 -> 0 | M55: =iUI!K55 -> 0
A56: 46 | B56: =iUI!B56 -> U46 | C56: =IF(iUI!C56<>"",iUI!C56,"") ->  | D56: =IF(iUI!D56<>"",iUI!D56,"") ->  | E56: =IF(iUI!E56<>"",iUI!E56,"") ->  | F56: =iPARTAB!F56/iPARTAB!$F$110*1000 -> 0 | G56: 0 | H56: =IF(iPARTAB!G56<>0,ROUND(iPARTAB!G56/iPARTAB!$G$110*1000,5),0) -> 0 | I56: =IF(iPARTAB!H56<>0,ROUND(iPARTAB!H56/iPARTAB!$H$110*1000,5),0) -> 0 | J56: =IF(iPARTAB!I56<>0,ROUND(iPARTAB!I56/iPARTAB!$I$110*1000,4),0) -> 0 | K56: =iUI!H56 -> 0 | L56: =iUI!I56 -> 0 | M56: =iUI!K56 -> 0
A57: 47 | B57: =iUI!B57 -> U47 | C57: =IF(iUI!C57<>"",iUI!C57,"") ->  | D57: =IF(iUI!D57<>"",iUI!D57,"") ->  | E57: =IF(iUI!E57<>"",iUI!E57,"") ->  | F57: =iPARTAB!F57/iPARTAB!$F$110*1000 -> 0 | G57: 0 | H57: =IF(iPARTAB!G57<>0,ROUND(iPARTAB!G57/iPARTAB!$G$110*1000,5),0) -> 0 | I57: =IF(iPARTAB!H57<>0,ROUND(iPARTAB!H57/iPARTAB!$H$110*1000,5),0) -> 0 | J57: =IF(iPARTAB!I57<>0,ROUND(iPARTAB!I57/iPARTAB!$I$110*1000,4),0) -> 0 | K57: =iUI!H57 -> 0 | L57: =iUI!I57 -> 0 | M57: =iUI!K57 -> 0
A58: 48 | B58: =iUI!B58 -> U48 | C58: =IF(iUI!C58<>"",iUI!C58,"") ->  | D58: =IF(iUI!D58<>"",iUI!D58,"") ->  | E58: =IF(iUI!E58<>"",iUI!E58,"") ->  | F58: =iPARTAB!F58/iPARTAB!$F$110*1000 -> 0 | G58: 0 | H58: =IF(iPARTAB!G58<>0,ROUND(iPARTAB!G58/iPARTAB!$G$110*1000,5),0) -> 0 | I58: =IF(iPARTAB!H58<>0,ROUND(iPARTAB!H58/iPARTAB!$H$110*1000,5),0) -> 0 | J58: =IF(iPARTAB!I58<>0,ROUND(iPARTAB!I58/iPARTAB!$I$110*1000,4),0) -> 0 | K58: =iUI!H58 -> 0 | L58: =iUI!I58 -> 0 | M58: =iUI!K58 -> 0
A59: 49 | B59: =iUI!B59 -> U49 | C59: =IF(iUI!C59<>"",iUI!C59,"") ->  | D59: =IF(iUI!D59<>"",iUI!D59,"") ->  | E59: =IF(iUI!E59<>"",iUI!E59,"") ->  | F59: =iPARTAB!F59/iPARTAB!$F$110*1000 -> 0 | G59: 0 | H59: =IF(iPARTAB!G59<>0,ROUND(iPARTAB!G59/iPARTAB!$G$110*1000,5),0) -> 0 | I59: =IF(iPARTAB!H59<>0,ROUND(iPARTAB!H59/iPARTAB!$H$110*1000,5),0) -> 0 | J59: =IF(iPARTAB!I59<>0,ROUND(iPARTAB!I59/iPARTAB!$I$110*1000,4),0) -> 0 | K59: =iUI!H59 -> 0 | L59: =iUI!I59 -> 0 | M59: =iUI!K59 -> 0
A60: 50 | B60: =iUI!B60 -> U50 | C60: =IF(iUI!C60<>"",iUI!C60,"") ->  | D60: =IF(iUI!D60<>"",iUI!D60,"") ->  | E60: =IF(iUI!E60<>"",iUI!E60,"") ->  | F60: =iPARTAB!F60/iPARTAB!$F$110*1000 -> 0 | G60: 0 | H60: =IF(iPARTAB!G60<>0,ROUND(iPARTAB!G60/iPARTAB!$G$110*1000,5),0) -> 0 | I60: =IF(iPARTAB!H60<>0,ROUND(iPARTAB!H60/iPARTAB!$H$110*1000,5),0) -> 0 | J60: =IF(iPARTAB!I60<>0,ROUND(iPARTAB!I60/iPARTAB!$I$110*1000,4),0) -> 0 | K60: =iUI!H60 -> 0 | L60: =iUI!I60 -> 0 | M60: =iUI!K60 -> 0
A61: 51 | B61: =iUI!B61 -> U51 | C61: =IF(iUI!C61<>"",iUI!C61,"") ->  | D61: =IF(iUI!D61<>"",iUI!D61,"") ->  | E61: =IF(iUI!E61<>"",iUI!E61,"") ->  | F61: =iPARTAB!F61/iPARTAB!$F$110*1000 -> 0 | G61: 0 | H61: =IF(iPARTAB!G61<>0,ROUND(iPARTAB!G61/iPARTAB!$G$110*1000,5),0) -> 0 | I61: =IF(iPARTAB!H61<>0,ROUND(iPARTAB!H61/iPARTAB!$H$110*1000,5),0) -> 0 | J61: =IF(iPARTAB!I61<>0,ROUND(iPARTAB!I61/iPARTAB!$I$110*1000,4),0) -> 0 | K61: =iUI!H61 -> 0 | L61: =iUI!I61 -> 0 | M61: =iUI!K61 -> 0
A62: 52 | B62: =iUI!B62 -> U52 | C62: =IF(iUI!C62<>"",iUI!C62,"") ->  | D62: =IF(iUI!D62<>"",iUI!D62,"") ->  | E62: =IF(iUI!E62<>"",iUI!E62,"") ->  | F62: =iPARTAB!F62/iPARTAB!$F$110*1000 -> 0 | G62: 0 | H62: =IF(iPARTAB!G62<>0,ROUND(iPARTAB!G62/iPARTAB!$G$110*1000,5),0) -> 0 | I62: =IF(iPARTAB!H62<>0,ROUND(iPARTAB!H62/iPARTAB!$H$110*1000,5),0) -> 0 | J62: =IF(iPARTAB!I62<>0,ROUND(iPARTAB!I62/iPARTAB!$I$110*1000,4),0) -> 0 | K62: =iUI!H62 -> 0 | L62: =iUI!I62 -> 0 | M62: =iUI!K62 -> 0
A63: 53 | B63: =iUI!B63 -> U53 | C63: =IF(iUI!C63<>"",iUI!C63,"") ->  | D63: =IF(iUI!D63<>"",iUI!D63,"") ->  | E63: =IF(iUI!E63<>"",iUI!E63,"") ->  | F63: =iPARTAB!F63/iPARTAB!$F$110*1000 -> 0 | G63: 0 | H63: =IF(iPARTAB!G63<>0,ROUND(iPARTAB!G63/iPARTAB!$G$110*1000,5),0) -> 0 | I63: =IF(iPARTAB!H63<>0,ROUND(iPARTAB!H63/iPARTAB!$H$110*1000,5),0) -> 0 | J63: =IF(iPARTAB!I63<>0,ROUND(iPARTAB!I63/iPARTAB!$I$110*1000,4),0) -> 0 | K63: =iUI!H63 -> 0 | L63: =iUI!I63 -> 0 | M63: =iUI!K63 -> 0
A64: 54 | B64: =iUI!B64 -> U54 | C64: =IF(iUI!C64<>"",iUI!C64,"") ->  | D64: =IF(iUI!D64<>"",iUI!D64,"") ->  | E64: =IF(iUI!E64<>"",iUI!E64,"") ->  | F64: =iPARTAB!F64/iPARTAB!$F$110*1000 -> 0 | G64: 0 | H64: =IF(iPARTAB!G64<>0,ROUND(iPARTAB!G64/iPARTAB!$G$110*1000,5),0) -> 0 | I64: =IF(iPARTAB!H64<>0,ROUND(iPARTAB!H64/iPARTAB!$H$110*1000,5),0) -> 0 | J64: =IF(iPARTAB!I64<>0,ROUND(iPARTAB!I64/iPARTAB!$I$110*1000,4),0) -> 0 | K64: =iUI!H64 -> 0 | L64: =iUI!I64 -> 0 | M64: =iUI!K64 -> 0
A65: 55 | B65: =iUI!B65 -> U55 | C65: =IF(iUI!C65<>"",iUI!C65,"") ->  | D65: =IF(iUI!D65<>"",iUI!D65,"") ->  | E65: =IF(iUI!E65<>"",iUI!E65,"") ->  | F65: =iPARTAB!F65/iPARTAB!$F$110*1000 -> 0 | G65: 0 | H65: =IF(iPARTAB!G65<>0,ROUND(iPARTAB!G65/iPARTAB!$G$110*1000,5),0) -> 0 | I65: =IF(iPARTAB!H65<>0,ROUND(iPARTAB!H65/iPARTAB!$H$110*1000,5),0) -> 0 | J65: =IF(iPARTAB!I65<>0,ROUND(iPARTAB!I65/iPARTAB!$I$110*1000,4),0) -> 0 | K65: =iUI!H65 -> 0 | L65: =iUI!I65 -> 0 | M65: =iUI!K65 -> 0
A66: 56 | B66: =iUI!B66 -> U56 | C66: =IF(iUI!C66<>"",iUI!C66,"") ->  | D66: =IF(iUI!D66<>"",iUI!D66,"") ->  | E66: =IF(iUI!E66<>"",iUI!E66,"") ->  | F66: =iPARTAB!F66/iPARTAB!$F$110*1000 -> 0 | G66: 0 | H66: =IF(iPARTAB!G66<>0,ROUND(iPARTAB!G66/iPARTAB!$G$110*1000,5),0) -> 0 | I66: =IF(iPARTAB!H66<>0,ROUND(iPARTAB!H66/iPARTAB!$H$110*1000,5),0) -> 0 | J66: =IF(iPARTAB!I66<>0,ROUND(iPARTAB!I66/iPARTAB!$I$110*1000,4),0) -> 0 | K66: =iUI!H66 -> 0 | L66: =iUI!I66 -> 0 | M66: =iUI!K66 -> 0
A67: 57 | B67: =iUI!B67 -> U57 | C67: =IF(iUI!C67<>"",iUI!C67,"") ->  | D67: =IF(iUI!D67<>"",iUI!D67,"") ->  | E67: =IF(iUI!E67<>"",iUI!E67,"") ->  | F67: =iPARTAB!F67/iPARTAB!$F$110*1000 -> 0 | G67: 0 | H67: =IF(iPARTAB!G67<>0,ROUND(iPARTAB!G67/iPARTAB!$G$110*1000,5),0) -> 0 | I67: =IF(iPARTAB!H67<>0,ROUND(iPARTAB!H67/iPARTAB!$H$110*1000,5),0) -> 0 | J67: =IF(iPARTAB!I67<>0,ROUND(iPARTAB!I67/iPARTAB!$I$110*1000,4),0) -> 0 | K67: =iUI!H67 -> 0 | L67: =iUI!I67 -> 0 | M67: =iUI!K67 -> 0
A68: 58 | B68: =iUI!B68 -> U58 | C68: =IF(iUI!C68<>"",iUI!C68,"") ->  | D68: =IF(iUI!D68<>"",iUI!D68,"") ->  | E68: =IF(iUI!E68<>"",iUI!E68,"") ->  | F68: =iPARTAB!F68/iPARTAB!$F$110*1000 -> 0 | G68: 0 | H68: =IF(iPARTAB!G68<>0,ROUND(iPARTAB!G68/iPARTAB!$G$110*1000,5),0) -> 0 | I68: =IF(iPARTAB!H68<>0,ROUND(iPARTAB!H68/iPARTAB!$H$110*1000,5),0) -> 0 | J68: =IF(iPARTAB!I68<>0,ROUND(iPARTAB!I68/iPARTAB!$I$110*1000,4),0) -> 0 | K68: =iUI!H68 -> 0 | L68: =iUI!I68 -> 0 | M68: =iUI!K68 -> 0
A69: 59 | B69: =iUI!B69 -> U59 | C69: =IF(iUI!C69<>"",iUI!C69,"") ->  | D69: =IF(iUI!D69<>"",iUI!D69,"") ->  | E69: =IF(iUI!E69<>"",iUI!E69,"") ->  | F69: =iPARTAB!F69/iPARTAB!$F$110*1000 -> 0 | G69: 0 | H69: =IF(iPARTAB!G69<>0,ROUND(iPARTAB!G69/iPARTAB!$G$110*1000,5),0) -> 0 | I69: =IF(iPARTAB!H69<>0,ROUND(iPARTAB!H69/iPARTAB!$H$110*1000,5),0) -> 0 | J69: =IF(iPARTAB!I69<>0,ROUND(iPARTAB!I69/iPARTAB!$I$110*1000,4),0) -> 0 | K69: =iUI!H69 -> 0 | L69: =iUI!I69 -> 0 | M69: =iUI!K69 -> 0
A70: 60 | B70: =iUI!B70 -> U60 | C70: =IF(iUI!C70<>"",iUI!C70,"") ->  | D70: =IF(iUI!D70<>"",iUI!D70,"") ->  | E70: =IF(iUI!E70<>"",iUI!E70,"") ->  | F70: =iPARTAB!F70/iPARTAB!$F$110*1000 -> 0 | G70: 0 | H70: =IF(iPARTAB!G70<>0,ROUND(iPARTAB!G70/iPARTAB!$G$110*1000,5),0) -> 0 | I70: =IF(iPARTAB!H70<>0,ROUND(iPARTAB!H70/iPARTAB!$H$110*1000,5),0) -> 0 | J70: =IF(iPARTAB!I70<>0,ROUND(iPARTAB!I70/iPARTAB!$I$110*1000,4),0) -> 0 | K70: =iUI!H70 -> 0 | L70: =iUI!I70 -> 0 | M70: =iUI!K70 -> 0
A71: 61 | B71: =iUI!B71 -> U61 | C71: =IF(iUI!C71<>"",iUI!C71,"") ->  | D71: =IF(iUI!D71<>"",iUI!D71,"") ->  | E71: =IF(iUI!E71<>"",iUI!E71,"") ->  | F71: =iPARTAB!F71/iPARTAB!$F$110*1000 -> 0 | G71: 0 | H71: =IF(iPARTAB!G71<>0,ROUND(iPARTAB!G71/iPARTAB!$G$110*1000,5),0) -> 0 | I71: =IF(iPARTAB!H71<>0,ROUND(iPARTAB!H71/iPARTAB!$H$110*1000,5),0) -> 0 | J71: =IF(iPARTAB!I71<>0,ROUND(iPARTAB!I71/iPARTAB!$I$110*1000,4),0) -> 0 | K71: =iUI!H71 -> 0 | L71: =iUI!I71 -> 0 | M71: =iUI!K71 -> 0
A72: 62 | B72: =iUI!B72 -> U62 | C72: =IF(iUI!C72<>"",iUI!C72,"") ->  | D72: =IF(iUI!D72<>"",iUI!D72,"") ->  | E72: =IF(iUI!E72<>"",iUI!E72,"") ->  | F72: =iPARTAB!F72/iPARTAB!$F$110*1000 -> 0 | G72: 0 | H72: =IF(iPARTAB!G72<>0,ROUND(iPARTAB!G72/iPARTAB!$G$110*1000,5),0) -> 0 | I72: =IF(iPARTAB!H72<>0,ROUND(iPARTAB!H72/iPARTAB!$H$110*1000,5),0) -> 0 | J72: =IF(iPARTAB!I72<>0,ROUND(iPARTAB!I72/iPARTAB!$I$110*1000,4),0) -> 0 | K72: =iUI!H72 -> 0 | L72: =iUI!I72 -> 0 | M72: =iUI!K72 -> 0
A73: 63 | B73: =iUI!B73 -> U63 | C73: =IF(iUI!C73<>"",iUI!C73,"") ->  | D73: =IF(iUI!D73<>"",iUI!D73,"") ->  | E73: =IF(iUI!E73<>"",iUI!E73,"") ->  | F73: =iPARTAB!F73/iPARTAB!$F$110*1000 -> 0 | G73: 0 | H73: =IF(iPARTAB!G73<>0,ROUND(iPARTAB!G73/iPARTAB!$G$110*1000,5),0) -> 0 | I73: =IF(iPARTAB!H73<>0,ROUND(iPARTAB!H73/iPARTAB!$H$110*1000,5),0) -> 0 | J73: =IF(iPARTAB!I73<>0,ROUND(iPARTAB!I73/iPARTAB!$I$110*1000,4),0) -> 0 | K73: =iUI!H73 -> 0 | L73: =iUI!I73 -> 0 | M73: =iUI!K73 -> 0
A74: 64 | B74: =iUI!B74 -> U64 | C74: =IF(iUI!C74<>"",iUI!C74,"") ->  | D74: =IF(iUI!D74<>"",iUI!D74,"") ->  | E74: =IF(iUI!E74<>"",iUI!E74,"") ->  | F74: =iPARTAB!F74/iPARTAB!$F$110*1000 -> 0 | G74: 0 | H74: =IF(iPARTAB!G74<>0,ROUND(iPARTAB!G74/iPARTAB!$G$110*1000,5),0) -> 0 | I74: =IF(iPARTAB!H74<>0,ROUND(iPARTAB!H74/iPARTAB!$H$110*1000,5),0) -> 0 | J74: =IF(iPARTAB!I74<>0,ROUND(iPARTAB!I74/iPARTAB!$I$110*1000,4),0) -> 0 | K74: =iUI!H74 -> 0 | L74: =iUI!I74 -> 0 | M74: =iUI!K74 -> 0
A75: 65 | B75: =iUI!B75 -> U65 | C75: =IF(iUI!C75<>"",iUI!C75,"") ->  | D75: =IF(iUI!D75<>"",iUI!D75,"") ->  | E75: =IF(iUI!E75<>"",iUI!E75,"") ->  | F75: =iPARTAB!F75/iPARTAB!$F$110*1000 -> 0 | G75: 0 | H75: =IF(iPARTAB!G75<>0,ROUND(iPARTAB!G75/iPARTAB!$G$110*1000,5),0) -> 0 | I75: =IF(iPARTAB!H75<>0,ROUND(iPARTAB!H75/iPARTAB!$H$110*1000,5),0) -> 0 | J75: =IF(iPARTAB!I75<>0,ROUND(iPARTAB!I75/iPARTAB!$I$110*1000,4),0) -> 0 | K75: =iUI!H75 -> 0 | L75: =iUI!I75 -> 0 | M75: =iUI!K75 -> 0
A76: 66 | B76: =iUI!B76 -> U66 | C76: =IF(iUI!C76<>"",iUI!C76,"") ->  | D76: =IF(iUI!D76<>"",iUI!D76,"") ->  | E76: =IF(iUI!E76<>"",iUI!E76,"") ->  | F76: =iPARTAB!F76/iPARTAB!$F$110*1000 -> 0 | G76: =F76 -> 0 | H76: =IF(iPARTAB!G76<>0,ROUND(iPARTAB!G76/iPARTAB!$G$110*1000,5),0) -> 0 | I76: =IF(iPARTAB!H76<>0,ROUND(iPARTAB!H76/iPARTAB!$H$110*1000,5),0) -> 0 | J76: =IF(iPARTAB!I76<>0,ROUND(iPARTAB!I76/iPARTAB!$I$110*1000,4),0) -> 0 | K76: =iUI!H76 -> 0 | L76: =iUI!I76 -> 0 | M76: =iUI!K76 -> 0
A77: 67 | B77: =iUI!B77 -> U67 | C77: =IF(iUI!C77<>"",iUI!C77,"") ->  | D77: =IF(iUI!D77<>"",iUI!D77,"") ->  | E77: =IF(iUI!E77<>"",iUI!E77,"") ->  | F77: =iPARTAB!F77/iPARTAB!$F$110*1000 -> 0 | G77: 0 | H77: =IF(iPARTAB!G77<>0,ROUND(iPARTAB!G77/iPARTAB!$G$110*1000,5),0) -> 0 | I77: =IF(iPARTAB!H77<>0,ROUND(iPARTAB!H77/iPARTAB!$H$110*1000,5),0) -> 0 | J77: =IF(iPARTAB!I77<>0,ROUND(iPARTAB!I77/iPARTAB!$I$110*1000,4),0) -> 0 | K77: =iUI!H77 -> 0 | L77: =iUI!I77 -> 0 | M77: =iUI!K77 -> 0
A78: 68 | B78: =iUI!B78 -> U68 | C78: =IF(iUI!C78<>"",iUI!C78,"") ->  | D78: =IF(iUI!D78<>"",iUI!D78,"") ->  | E78: =IF(iUI!E78<>"",iUI!E78,"") ->  | F78: =iPARTAB!F78/iPARTAB!$F$110*1000 -> 0 | G78: 0 | H78: =IF(iPARTAB!G78<>0,ROUND(iPARTAB!G78/iPARTAB!$G$110*1000,5),0) -> 0 | I78: =IF(iPARTAB!H78<>0,ROUND(iPARTAB!H78/iPARTAB!$H$110*1000,5),0) -> 0 | J78: =IF(iPARTAB!I78<>0,ROUND(iPARTAB!I78/iPARTAB!$I$110*1000,4),0) -> 0 | K78: =iUI!H78 -> 0 | L78: =iUI!I78 -> 0 | M78: =iUI!K78 -> 0
A79: 69 | B79: =iUI!B79 -> U69 | C79: =IF(iUI!C79<>"",iUI!C79,"") ->  | D79: =IF(iUI!D79<>"",iUI!D79,"") ->  | E79: =IF(iUI!E79<>"",iUI!E79,"") ->  | F79: =iPARTAB!F79/iPARTAB!$F$110*1000 -> 0 | G79: 0 | H79: =IF(iPARTAB!G79<>0,ROUND(iPARTAB!G79/iPARTAB!$G$110*1000,5),0) -> 0 | I79: =IF(iPARTAB!H79<>0,ROUND(iPARTAB!H79/iPARTAB!$H$110*1000,5),0) -> 0 | J79: =IF(iPARTAB!I79<>0,ROUND(iPARTAB!I79/iPARTAB!$I$110*1000,4),0) -> 0 | K79: =iUI!H79 -> 0 | L79: =iUI!I79 -> 0 | M79: =iUI!K79 -> 0
A80: 70 | B80: =iUI!B80 -> U70 | C80: =IF(iUI!C80<>"",iUI!C80,"") ->  | D80: =IF(iUI!D80<>"",iUI!D80,"") ->  | E80: =IF(iUI!E80<>"",iUI!E80,"") ->  | F80: =iPARTAB!F80/iPARTAB!$F$110*1000 -> 0 | G80: 0 | H80: =IF(iPARTAB!G80<>0,ROUND(iPARTAB!G80/iPARTAB!$G$110*1000,5),0) -> 0 | I80: =IF(iPARTAB!H80<>0,ROUND(iPARTAB!H80/iPARTAB!$H$110*1000,5),0) -> 0 | J80: =IF(iPARTAB!I80<>0,ROUND(iPARTAB!I80/iPARTAB!$I$110*1000,4),0) -> 0 | K80: =iUI!H80 -> 0 | L80: =iUI!I80 -> 0 | M80: =iUI!K80 -> 0
A81: 71 | B81: =iUI!B81 -> U71 | C81: =IF(iUI!C81<>"",iUI!C81,"") ->  | D81: =IF(iUI!D81<>"",iUI!D81,"") ->  | E81: =IF(iUI!E81<>"",iUI!E81,"") ->  | F81: =iPARTAB!F81/iPARTAB!$F$110*1000 -> 0 | G81: 0 | H81: =IF(iPARTAB!G81<>0,ROUND(iPARTAB!G81/iPARTAB!$G$110*1000,5),0) -> 0 | I81: =IF(iPARTAB!H81<>0,ROUND(iPARTAB!H81/iPARTAB!$H$110*1000,5),0) -> 0 | J81: =IF(iPARTAB!I81<>0,ROUND(iPARTAB!I81/iPARTAB!$I$110*1000,4),0) -> 0 | K81: =iUI!H81 -> 0 | L81: =iUI!I81 -> 0 | M81: =iUI!K81 -> 0
A82: 72 | B82: =iUI!B82 -> U72 | C82: =IF(iUI!C82<>"",iUI!C82,"") ->  | D82: =IF(iUI!D82<>"",iUI!D82,"") ->  | E82: =IF(iUI!E82<>"",iUI!E82,"") ->  | F82: =iPARTAB!F82/iPARTAB!$F$110*1000 -> 0 | G82: 0 | H82: =IF(iPARTAB!G82<>0,ROUND(iPARTAB!G82/iPARTAB!$G$110*1000,5),0) -> 0 | I82: =IF(iPARTAB!H82<>0,ROUND(iPARTAB!H82/iPARTAB!$H$110*1000,5),0) -> 0 | J82: =IF(iPARTAB!I82<>0,ROUND(iPARTAB!I82/iPARTAB!$I$110*1000,4),0) -> 0 | K82: =iUI!H82 -> 0 | L82: =iUI!I82 -> 0 | M82: =iUI!K82 -> 0
A83: 73 | B83: =iUI!B83 -> U73 | C83: =IF(iUI!C83<>"",iUI!C83,"") ->  | D83: =IF(iUI!D83<>"",iUI!D83,"") ->  | E83: =IF(iUI!E83<>"",iUI!E83,"") ->  | F83: =iPARTAB!F83/iPARTAB!$F$110*1000 -> 0 | G83: 0 | H83: =IF(iPARTAB!G83<>0,ROUND(iPARTAB!G83/iPARTAB!$G$110*1000,5),0) -> 0 | I83: =IF(iPARTAB!H83<>0,ROUND(iPARTAB!H83/iPARTAB!$H$110*1000,5),0) -> 0 | J83: =IF(iPARTAB!I83<>0,ROUND(iPARTAB!I83/iPARTAB!$I$110*1000,4),0) -> 0 | K83: =iUI!H83 -> 0 | L83: =iUI!I83 -> 0 | M83: =iUI!K83 -> 0
A84: 74 | B84: =iUI!B84 -> U74 | C84: =IF(iUI!C84<>"",iUI!C84,"") ->  | D84: =IF(iUI!D84<>"",iUI!D84,"") ->  | E84: =IF(iUI!E84<>"",iUI!E84,"") ->  | F84: =iPARTAB!F84/iPARTAB!$F$110*1000 -> 0 | G84: 0 | H84: =IF(iPARTAB!G84<>0,ROUND(iPARTAB!G84/iPARTAB!$G$110*1000,5),0) -> 0 | I84: =IF(iPARTAB!H84<>0,ROUND(iPARTAB!H84/iPARTAB!$H$110*1000,5),0) -> 0 | J84: =IF(iPARTAB!I84<>0,ROUND(iPARTAB!I84/iPARTAB!$I$110*1000,4),0) -> 0 | K84: =iUI!H84 -> 0 | L84: =iUI!I84 -> 0 | M84: =iUI!K84 -> 0
A85: 75 | B85: =iUI!B85 -> U75 | C85: =IF(iUI!C85<>"",iUI!C85,"") ->  | D85: =IF(iUI!D85<>"",iUI!D85,"") ->  | E85: =IF(iUI!E85<>"",iUI!E85,"") ->  | F85: =iPARTAB!F85/iPARTAB!$F$110*1000 -> 0 | G85: 0 | H85: =IF(iPARTAB!G85<>0,ROUND(iPARTAB!G85/iPARTAB!$G$110*1000,5),0) -> 0 | I85: =IF(iPARTAB!H85<>0,ROUND(iPARTAB!H85/iPARTAB!$H$110*1000,5),0) -> 0 | J85: =IF(iPARTAB!I85<>0,ROUND(iPARTAB!I85/iPARTAB!$I$110*1000,4),0) -> 0 | K85: =iUI!H85 -> 0 | L85: =iUI!I85 -> 0 | M85: =iUI!K85 -> 0
A86: 76 | B86: =iUI!B86 -> U76 | C86: =IF(iUI!C86<>"",iUI!C86,"") ->  | D86: =IF(iUI!D86<>"",iUI!D86,"") ->  | E86: =IF(iUI!E86<>"",iUI!E86,"") ->  | F86: =iPARTAB!F86/iPARTAB!$F$110*1000 -> 0 | G86: 0 | H86: =IF(iPARTAB!G86<>0,ROUND(iPARTAB!G86/iPARTAB!$G$110*1000,5),0) -> 0 | I86: =IF(iPARTAB!H86<>0,ROUND(iPARTAB!H86/iPARTAB!$H$110*1000,5),0) -> 0 | J86: =IF(iPARTAB!I86<>0,ROUND(iPARTAB!I86/iPARTAB!$I$110*1000,4),0) -> 0 | K86: =iUI!H86 -> 0 | L86: =iUI!I86 -> 0 | M86: =iUI!K86 -> 0
A87: 77 | B87: =iUI!B87 -> U77 | C87: =IF(iUI!C87<>"",iUI!C87,"") ->  | D87: =IF(iUI!D87<>"",iUI!D87,"") ->  | E87: =IF(iUI!E87<>"",iUI!E87,"") ->  | F87: =iPARTAB!F87/iPARTAB!$F$110*1000 -> 0 | G87: 0 | H87: =IF(iPARTAB!G87<>0,ROUND(iPARTAB!G87/iPARTAB!$G$110*1000,5),0) -> 0 | I87: =IF(iPARTAB!H87<>0,ROUND(iPARTAB!H87/iPARTAB!$H$110*1000,5),0) -> 0 | J87: =IF(iPARTAB!I87<>0,ROUND(iPARTAB!I87/iPARTAB!$I$110*1000,4),0) -> 0 | K87: =iUI!H87 -> 0 | L87: =iUI!I87 -> 0 | M87: =iUI!K87 -> 0
A88: 78 | B88: =iUI!B88 -> U78 | C88: =IF(iUI!C88<>"",iUI!C88,"") ->  | D88: =IF(iUI!D88<>"",iUI!D88,"") ->  | E88: =IF(iUI!E88<>"",iUI!E88,"") ->  | F88: =iPARTAB!F88/iPARTAB!$F$110*1000 -> 0 | G88: 0 | H88: =IF(iPARTAB!G88<>0,ROUND(iPARTAB!G88/iPARTAB!$G$110*1000,5),0) -> 0 | I88: =IF(iPARTAB!H88<>0,ROUND(iPARTAB!H88/iPARTAB!$H$110*1000,5),0) -> 0 | J88: =IF(iPARTAB!I88<>0,ROUND(iPARTAB!I88/iPARTAB!$I$110*1000,4),0) -> 0 | K88: =iUI!H88 -> 0 | L88: =iUI!I88 -> 0 | M88: =iUI!K88 -> 0
A89: 79 | B89: =iUI!B89 -> U79 | C89: =IF(iUI!C89<>"",iUI!C89,"") ->  | D89: =IF(iUI!D89<>"",iUI!D89,"") ->  | E89: =IF(iUI!E89<>"",iUI!E89,"") ->  | F89: =iPARTAB!F89/iPARTAB!$F$110*1000 -> 0 | G89: 0 | H89: =IF(iPARTAB!G89<>0,ROUND(iPARTAB!G89/iPARTAB!$G$110*1000,5),0) -> 0 | I89: =IF(iPARTAB!H89<>0,ROUND(iPARTAB!H89/iPARTAB!$H$110*1000,5),0) -> 0 | J89: =IF(iPARTAB!I89<>0,ROUND(iPARTAB!I89/iPARTAB!$I$110*1000,4),0) -> 0 | K89: =iUI!H89 -> 0 | L89: =iUI!I89 -> 0 | M89: =iUI!K89 -> 0
A90: 80 | B90: =iUI!B90 -> U80 | C90: =IF(iUI!C90<>"",iUI!C90,"") ->  | D90: =IF(iUI!D90<>"",iUI!D90,"") ->  | E90: =IF(iUI!E90<>"",iUI!E90,"") ->  | F90: =iPARTAB!F90/iPARTAB!$F$110*1000 -> 0 | G90: 0 | H90: =IF(iPARTAB!G90<>0,ROUND(iPARTAB!G90/iPARTAB!$G$110*1000,5),0) -> 0 | I90: =IF(iPARTAB!H90<>0,ROUND(iPARTAB!H90/iPARTAB!$H$110*1000,5),0) -> 0 | J90: =IF(iPARTAB!I90<>0,ROUND(iPARTAB!I90/iPARTAB!$I$110*1000,4),0) -> 0 | K90: =iUI!H90 -> 0 | L90: =iUI!I90 -> 0 | M90: =iUI!K90 -> 0
A91: 81 | B91: =iUI!B91 -> U81 | C91: =IF(iUI!C91<>"",iUI!C91,"") ->  | D91: =IF(iUI!D91<>"",iUI!D91,"") ->  | E91: =IF(iUI!E91<>"",iUI!E91,"") ->  | F91: =iPARTAB!F91/iPARTAB!$F$110*1000 -> 0 | G91: 0 | H91: =IF(iPARTAB!G91<>0,ROUND(iPARTAB!G91/iPARTAB!$G$110*1000,5),0) -> 0 | I91: =IF(iPARTAB!H91<>0,ROUND(iPARTAB!H91/iPARTAB!$H$110*1000,5),0) -> 0 | J91: =IF(iPARTAB!I91<>0,ROUND(iPARTAB!I91/iPARTAB!$I$110*1000,4),0) -> 0 | K91: =iUI!H91 -> 0 | L91: =iUI!I91 -> 0 | M91: =iUI!K91 -> 0
A92: 82 | B92: =iUI!B92 -> U82 | C92: =IF(iUI!C92<>"",iUI!C92,"") ->  | D92: =IF(iUI!D92<>"",iUI!D92,"") ->  | E92: =IF(iUI!E92<>"",iUI!E92,"") ->  | F92: =iPARTAB!F92/iPARTAB!$F$110*1000 -> 0 | G92: 0 | H92: =IF(iPARTAB!G92<>0,ROUND(iPARTAB!G92/iPARTAB!$G$110*1000,5),0) -> 0 | I92: =IF(iPARTAB!H92<>0,ROUND(iPARTAB!H92/iPARTAB!$H$110*1000,5),0) -> 0 | J92: =IF(iPARTAB!I92<>0,ROUND(iPARTAB!I92/iPARTAB!$I$110*1000,4),0) -> 0 | K92: =iUI!H92 -> 0 | L92: =iUI!I92 -> 0 | M92: =iUI!K92 -> 0
A93: 83 | B93: =iUI!B93 -> U83 | C93: =IF(iUI!C93<>"",iUI!C93,"") ->  | D93: =IF(iUI!D93<>"",iUI!D93,"") ->  | E93: =IF(iUI!E93<>"",iUI!E93,"") ->  | F93: =iPARTAB!F93/iPARTAB!$F$110*1000 -> 0 | G93: 0 | H93: =IF(iPARTAB!G93<>0,ROUND(iPARTAB!G93/iPARTAB!$G$110*1000,5),0) -> 0 | I93: =IF(iPARTAB!H93<>0,ROUND(iPARTAB!H93/iPARTAB!$H$110*1000,5),0) -> 0 | J93: =IF(iPARTAB!I93<>0,ROUND(iPARTAB!I93/iPARTAB!$I$110*1000,4),0) -> 0 | K93: =iUI!H93 -> 0 | L93: =iUI!I93 -> 0 | M93: =iUI!K93 -> 0
A94: 84 | B94: =iUI!B94 -> U84 | C94: =IF(iUI!C94<>"",iUI!C94,"") ->  | D94: =IF(iUI!D94<>"",iUI!D94,"") ->  | E94: =IF(iUI!E94<>"",iUI!E94,"") ->  | F94: =iPARTAB!F94/iPARTAB!$F$110*1000 -> 0 | G94: 0 | H94: =IF(iPARTAB!G94<>0,ROUND(iPARTAB!G94/iPARTAB!$G$110*1000,5),0) -> 0 | I94: =IF(iPARTAB!H94<>0,ROUND(iPARTAB!H94/iPARTAB!$H$110*1000,5),0) -> 0 | J94: =IF(iPARTAB!I94<>0,ROUND(iPARTAB!I94/iPARTAB!$I$110*1000,4),0) -> 0 | K94: =iUI!H94 -> 0 | L94: =iUI!I94 -> 0 | M94: =iUI!K94 -> 0
A95: 85 | B95: =iUI!B95 -> U85 | C95: =IF(iUI!C95<>"",iUI!C95,"") ->  | D95: =IF(iUI!D95<>"",iUI!D95,"") ->  | E95: =IF(iUI!E95<>"",iUI!E95,"") ->  | F95: =iPARTAB!F95/iPARTAB!$F$110*1000 -> 0 | G95: 0 | H95: =IF(iPARTAB!G95<>0,ROUND(iPARTAB!G95/iPARTAB!$G$110*1000,5),0) -> 0 | I95: =IF(iPARTAB!H95<>0,ROUND(iPARTAB!H95/iPARTAB!$H$110*1000,5),0) -> 0 | J95: =IF(iPARTAB!I95<>0,ROUND(iPARTAB!I95/iPARTAB!$I$110*1000,4),0) -> 0 | K95: =iUI!H95 -> 0 | L95: =iUI!I95 -> 0 | M95: =iUI!K95 -> 0
A96: 86 | B96: =iUI!B96 -> U86 | C96: =IF(iUI!C96<>"",iUI!C96,"") ->  | D96: =IF(iUI!D96<>"",iUI!D96,"") ->  | E96: =IF(iUI!E96<>"",iUI!E96,"") ->  | F96: =iPARTAB!F96/iPARTAB!$F$110*1000 -> 0 | G96: 0 | H96: =IF(iPARTAB!G96<>0,ROUND(iPARTAB!G96/iPARTAB!$G$110*1000,5),0) -> 0 | I96: =IF(iPARTAB!H96<>0,ROUND(iPARTAB!H96/iPARTAB!$H$110*1000,5),0) -> 0 | J96: =IF(iPARTAB!I96<>0,ROUND(iPARTAB!I96/iPARTAB!$I$110*1000,4),0) -> 0 | K96: =iUI!H96 -> 0 | L96: =iUI!I96 -> 0 | M96: =iUI!K96 -> 0
A97: 87 | B97: =iUI!B97 -> U87 | C97: =IF(iUI!C97<>"",iUI!C97,"") ->  | D97: =IF(iUI!D97<>"",iUI!D97,"") ->  | E97: =IF(iUI!E97<>"",iUI!E97,"") ->  | F97: =iPARTAB!F97/iPARTAB!$F$110*1000 -> 0 | G97: 0 | H97: =IF(iPARTAB!G97<>0,ROUND(iPARTAB!G97/iPARTAB!$G$110*1000,5),0) -> 0 | I97: =IF(iPARTAB!H97<>0,ROUND(iPARTAB!H97/iPARTAB!$H$110*1000,5),0) -> 0 | J97: =IF(iPARTAB!I97<>0,ROUND(iPARTAB!I97/iPARTAB!$I$110*1000,4),0) -> 0 | K97: =iUI!H97 -> 0 | L97: =iUI!I97 -> 0 | M97: =iUI!K97 -> 0
A98: 88 | B98: =iUI!B98 -> U88 | C98: =IF(iUI!C98<>"",iUI!C98,"") ->  | D98: =IF(iUI!D98<>"",iUI!D98,"") ->  | E98: =IF(iUI!E98<>"",iUI!E98,"") ->  | F98: =iPARTAB!F98/iPARTAB!$F$110*1000 -> 0 | G98: 0 | H98: =IF(iPARTAB!G98<>0,ROUND(iPARTAB!G98/iPARTAB!$G$110*1000,5),0) -> 0 | I98: =IF(iPARTAB!H98<>0,ROUND(iPARTAB!H98/iPARTAB!$H$110*1000,5),0) -> 0 | J98: =IF(iPARTAB!I98<>0,ROUND(iPARTAB!I98/iPARTAB!$I$110*1000,4),0) -> 0 | K98: =iUI!H98 -> 0 | L98: =iUI!I98 -> 0 | M98: =iUI!K98 -> 0
A99: 89 | B99: =iUI!B99 -> U89 | C99: =IF(iUI!C99<>"",iUI!C99,"") ->  | D99: =IF(iUI!D99<>"",iUI!D99,"") ->  | E99: =IF(iUI!E99<>"",iUI!E99,"") ->  | F99: =iPARTAB!F99/iPARTAB!$F$110*1000 -> 0 | G99: 0 | H99: =IF(iPARTAB!G99<>0,ROUND(iPARTAB!G99/iPARTAB!$G$110*1000,5),0) -> 0 | I99: =IF(iPARTAB!H99<>0,ROUND(iPARTAB!H99/iPARTAB!$H$110*1000,5),0) -> 0 | J99: =IF(iPARTAB!I99<>0,ROUND(iPARTAB!I99/iPARTAB!$I$110*1000,4),0) -> 0 | K99: =iUI!H99 -> 0 | L99: =iUI!I99 -> 0 | M99: =iUI!K99 -> 0
A100: 90 | B100: =iUI!B100 -> U90 | C100: =IF(iUI!C100<>"",iUI!C100,"") ->  | D100: =IF(iUI!D100<>"",iUI!D100,"") ->  | E100: =IF(iUI!E100<>"",iUI!E100,"") ->  | F100: =iPARTAB!F100/iPARTAB!$F$110*1000 -> 0 | G100: 0 | H100: =IF(iPARTAB!G100<>0,ROUND(iPARTAB!G100/iPARTAB!$G$110*1000,5),0) -> 0 | I100: =IF(iPARTAB!H100<>0,ROUND(iPARTAB!H100/iPARTAB!$H$110*1000,5),0) -> 0 | J100: =IF(iPARTAB!I100<>0,ROUND(iPARTAB!I100/iPARTAB!$I$110*1000,4),0) -> 0 | K100: =iUI!H100 -> 0 | L100: =iUI!I100 -> 0 | M100: =iUI!K100 -> 0
A101: 91 | B101: =iUI!B101 -> U91 | C101: =IF(iUI!C101<>"",iUI!C101,"") ->  | D101: =IF(iUI!D101<>"",iUI!D101,"") ->  | E101: =IF(iUI!E101<>"",iUI!E101,"") ->  | F101: =iPARTAB!F101/iPARTAB!$F$110*1000 -> 0 | G101: 0 | H101: =IF(iPARTAB!G101<>0,ROUND(iPARTAB!G101/iPARTAB!$G$110*1000,5),0) -> 0 | I101: =IF(iPARTAB!H101<>0,ROUND(iPARTAB!H101/iPARTAB!$H$110*1000,5),0) -> 0 | J101: =IF(iPARTAB!I101<>0,ROUND(iPARTAB!I101/iPARTAB!$I$110*1000,4),0) -> 0 | K101: =iUI!H101 -> 0 | L101: =iUI!I101 -> 0 | M101: =iUI!K101 -> 0
A102: 92 | B102: =iUI!B102 -> U92 | C102: =IF(iUI!C102<>"",iUI!C102,"") ->  | D102: =IF(iUI!D102<>"",iUI!D102,"") ->  | E102: =IF(iUI!E102<>"",iUI!E102,"") ->  | F102: =iPARTAB!F102/iPARTAB!$F$110*1000 -> 0 | G102: 0 | H102: =IF(iPARTAB!G102<>0,ROUND(iPARTAB!G102/iPARTAB!$G$110*1000,5),0) -> 0 | I102: =IF(iPARTAB!H102<>0,ROUND(iPARTAB!H102/iPARTAB!$H$110*1000,5),0) -> 0 | J102: =IF(iPARTAB!I102<>0,ROUND(iPARTAB!I102/iPARTAB!$I$110*1000,4),0) -> 0 | K102: =iUI!H102 -> 0 | L102: =iUI!I102 -> 0 | M102: =iUI!K102 -> 0
A103: 93 | B103: =iUI!B103 -> U93 | C103: =IF(iUI!C103<>"",iUI!C103,"") ->  | D103: =IF(iUI!D103<>"",iUI!D103,"") ->  | E103: =IF(iUI!E103<>"",iUI!E103,"") ->  | F103: =iPARTAB!F103/iPARTAB!$F$110*1000 -> 0 | G103: 0 | H103: =IF(iPARTAB!G103<>0,ROUND(iPARTAB!G103/iPARTAB!$G$110*1000,5),0) -> 0 | I103: =IF(iPARTAB!H103<>0,ROUND(iPARTAB!H103/iPARTAB!$H$110*1000,5),0) -> 0 | J103: =IF(iPARTAB!I103<>0,ROUND(iPARTAB!I103/iPARTAB!$I$110*1000,4),0) -> 0 | K103: =iUI!H103 -> 0 | L103: =iUI!I103 -> 0 | M103: =iUI!K103 -> 0
A104: 94 | B104: =iUI!B104 -> U94 | C104: =IF(iUI!C104<>"",iUI!C104,"") ->  | D104: =IF(iUI!D104<>"",iUI!D104,"") ->  | E104: =IF(iUI!E104<>"",iUI!E104,"") ->  | F104: =iPARTAB!F104/iPARTAB!$F$110*1000 -> 0 | G104: 0 | H104: =IF(iPARTAB!G104<>0,ROUND(iPARTAB!G104/iPARTAB!$G$110*1000,5),0) -> 0 | I104: =IF(iPARTAB!H104<>0,ROUND(iPARTAB!H104/iPARTAB!$H$110*1000,5),0) -> 0 | J104: =IF(iPARTAB!I104<>0,ROUND(iPARTAB!I104/iPARTAB!$I$110*1000,4),0) -> 0 | K104: =iUI!H104 -> 0 | L104: =iUI!I104 -> 0 | M104: =iUI!K104 -> 0
A105: 95 | B105: =iUI!B105 -> U95 | C105: =IF(iUI!C105<>"",iUI!C105,"") ->  | D105: =IF(iUI!D105<>"",iUI!D105,"") ->  | E105: =IF(iUI!E105<>"",iUI!E105,"") ->  | F105: =iPARTAB!F105/iPARTAB!$F$110*1000 -> 0 | G105: 0 | H105: =IF(iPARTAB!G105<>0,ROUND(iPARTAB!G105/iPARTAB!$G$110*1000,5),0) -> 0 | I105: =IF(iPARTAB!H105<>0,ROUND(iPARTAB!H105/iPARTAB!$H$110*1000,5),0) -> 0 | J105: =IF(iPARTAB!I105<>0,ROUND(iPARTAB!I105/iPARTAB!$I$110*1000,4),0) -> 0 | K105: =iUI!H105 -> 0 | L105: =iUI!I105 -> 0 | M105: =iUI!K105 -> 0
A106: 96 | B106: =iUI!B106 -> U96 | C106: =IF(iUI!C106<>"",iUI!C106,"") ->  | D106: =IF(iUI!D106<>"",iUI!D106,"") ->  | E106: =IF(iUI!E106<>"",iUI!E106,"") ->  | F106: =iPARTAB!F106/iPARTAB!$F$110*1000 -> 0 | G106: 0 | H106: =IF(iPARTAB!G106<>0,ROUND(iPARTAB!G106/iPARTAB!$G$110*1000,5),0) -> 0 | I106: =IF(iPARTAB!H106<>0,ROUND(iPARTAB!H106/iPARTAB!$H$110*1000,5),0) -> 0 | J106: =IF(iPARTAB!I106<>0,ROUND(iPARTAB!I106/iPARTAB!$I$110*1000,4),0) -> 0 | K106: =iUI!H106 -> 0 | L106: =iUI!I106 -> 0 | M106: =iUI!K106 -> 0
A107: 97 | B107: =iUI!B107 -> U97 | C107: =IF(iUI!C107<>"",iUI!C107,"") ->  | D107: =IF(iUI!D107<>"",iUI!D107,"") ->  | E107: =IF(iUI!E107<>"",iUI!E107,"") ->  | F107: =iPARTAB!F107/iPARTAB!$F$110*1000 -> 0 | G107: 0 | H107: =IF(iPARTAB!G107<>0,ROUND(iPARTAB!G107/iPARTAB!$G$110*1000,5),0) -> 0 | I107: =IF(iPARTAB!H107<>0,ROUND(iPARTAB!H107/iPARTAB!$H$110*1000,5),0) -> 0 | J107: =IF(iPARTAB!I107<>0,ROUND(iPARTAB!I107/iPARTAB!$I$110*1000,4),0) -> 0 | K107: =iUI!H107 -> 0 | L107: =iUI!I107 -> 0 | M107: =iUI!K107 -> 0
A108: 98 | B108: =iUI!B108 -> U98 | C108: =IF(iUI!C108<>"",iUI!C108,"") ->  | D108: =IF(iUI!D108<>"",iUI!D108,"") ->  | E108: =IF(iUI!E108<>"",iUI!E108,"") ->  | F108: =iPARTAB!F108/iPARTAB!$F$110*1000 -> 0 | G108: 0 | H108: =IF(iPARTAB!G108<>0,ROUND(iPARTAB!G108/iPARTAB!$G$110*1000,5),0) -> 0 | I108: =IF(iPARTAB!H108<>0,ROUND(iPARTAB!H108/iPARTAB!$H$110*1000,5),0) -> 0 | J108: =IF(iPARTAB!I108<>0,ROUND(iPARTAB!I108/iPARTAB!$I$110*1000,4),0) -> 0 | K108: =iUI!H108 -> 0 | L108: =iUI!I108 -> 0 | M108: =iUI!K108 -> 0
A109: 99 | B109: =iUI!B109 -> U99 | C109: =IF(iUI!C109<>"",iUI!C109,"") ->  | D109: =IF(iUI!D109<>"",iUI!D109,"") ->  | E109: =IF(iUI!E109<>"",iUI!E109,"") ->  | F109: =iPARTAB!F109/iPARTAB!$F$110*1000 -> 0 | G109: 0 | H109: =IF(iPARTAB!G109<>0,ROUND(iPARTAB!G109/iPARTAB!$G$110*1000,5),0) -> 0 | I109: =IF(iPARTAB!H109<>0,ROUND(iPARTAB!H109/iPARTAB!$H$110*1000,5),0) -> 0 | J109: =IF(iPARTAB!I109<>0,ROUND(iPARTAB!I109/iPARTAB!$I$110*1000,4),0) -> 0 | K109: =iUI!H109 -> 0 | L109: =iUI!I109 -> 0 | M109: =iUI!K109 -> 0
E110: TOTALI | F110: =SUM(F11:F109) -> 1000 | G110: =SUM(G11:G109) -> 1000 | H110: =SUM(H11:H109) -> 999.99999 | I110: =SUM(I11:I109) -> 1000.00003 | J110: =SUM(J11:J109) -> 1000
A111: 0 | N111: 0

Sheet cTABSS (hidden)
A1: Nessun dato del prospetto può essere variato. | I1: 0
A6: ='iP1'!A5 -> Condominio "TERMICO"
A7: TABELLE MILLESIMALI per SOGGETTI CHE SONO TENUTI A SOSTENERE LE SPESE
A9: n. Sogg. | B9: Codice Soggetto | C9: Denominazione | D9: =cTABUI!F9 -> Tabella A | E9: =cTABUI!G9 -> Tabella B | F9: =cTABUI!H9 -> Tabella C | G9: =cTABUI!I9 -> Tabella D | H9: =cTABUI!J9 -> Tabella E
D10: PROPRIETÀ GENERALE | E10: UTILIZZO | F10: POTENZA INSTALLATA | G10: NUMERO TERMOSIFONI | H10: CONSUMI
A11: =iCONDOMINI!A11 -> 1 | B11: =iCONDOMINI!B11 -> C01 | C11: =iCONDOMINI!C11 -> Condomino01 | D11: =IF(B11<>"",SUMIFS(cTABUI!$F$11:$F$109,cTABUI!$C$11:$C$109,B11),0) -> 29.95 | E11: =IF(B11<>"",SUMIFS(cTABUI!$G$11:$G$109,cTABUI!$D$11:$D$109,B11),0) -> 29.95 | F11: =IF(B11<>"",SUMIFS(cTABUI!$H$11:$H$109,cTABUI!$D$11:$D$109,B11),0) -> 30.93578 | G11: =IF(B11<>"",SUMIFS(cTABUI!$I$11:$I$109,cTABUI!$D$11:$D$109,B11),0) -> 26.08696 | H11: =IF(B11<>"",SUMIFS(cTABUI!$J$11:$J$109,cTABUI!$D$11:$D$109,B11),0) -> 65.5738
A12: =iCONDOMINI!A12 -> 2 | B12: =iCONDOMINI!B12 -> C02 | C12: =iCONDOMINI!C12 -> Condomino02 | D12: =IF(B12<>"",SUMIFS(cTABUI!$F$11:$F$109,cTABUI!$C$11:$C$109,B12),0) -> 37 | E12: =IF(B12<>"",SUMIFS(cTABUI!$G$11:$G$109,cTABUI!$D$11:$D$109,B12),0) -> 0 | F12: =IF(B12<>"",SUMIFS(cTABUI!$H$11:$H$109,cTABUI!$D$11:$D$109,B12),0) -> 0 | G12: =IF(B12<>"",SUMIFS(cTABUI!$I$11:$I$109,cTABUI!$D$11:$D$109,B12),0) -> 0 | H12: =IF(B12<>"",SUMIFS(cTABUI!$J$11:$J$109,cTABUI!$D$11:$D$109,B12),0) -> 0
A13: =iCONDOMINI!A13 -> 3 | B13: =iCONDOMINI!B13 -> C03 | C13: =iCONDOMINI!C13 -> Condomino03 | D13: =IF(B13<>"",SUMIFS(cTABUI!$F$11:$F$109,cTABUI!$C$11:$C$109,B13),0) -> 68.82 | E13: =IF(B13<>"",SUMIFS(cTABUI!$G$11:$G$109,cTABUI!$D$11:$D$109,B13),0) -> 68.82 | F13: =IF(B13<>"",SUMIFS(cTABUI!$H$11:$H$109,cTABUI!$D$11:$D$109,B13),0) -> 71.06821 | G13: =IF(B13<>"",SUMIFS(cTABUI!$I$11:$I$109,cTABUI!$D$11:$D$109,B13),0) -> 69.56522 | H13: =IF(B13<>"",SUMIFS(cTABUI!$J$11:$J$109,cTABUI!$D$11:$D$109,B13),0) -> 10.929
A14: =iCONDOMINI!A14 -> 4 | B14: =iCONDOMINI!B14 -> C04 | C14: =iCONDOMINI!C14 -> Condomino04 S.r.l. | D14: =IF(B14<>"",SUMIFS(cTABUI!$F$11:$F$109,cTABUI!$C$11:$C$109,B14),0) -> 37 | E14: =IF(B14<>"",SUMIFS(cTABUI!$G$11:$G$109,cTABUI!$D$11:$D$109,B14),0) -> 37 | F14: =IF(B14<>"",SUMIFS(cTABUI!$H$11:$H$109,cTABUI!$D$11:$D$109,B14),0) -> 34.45678 | G14: =IF(B14<>"",SUMIFS(cTABUI!$I$11:$I$109,cTABUI!$D$11:$D$109,B14),0) -> 43.47826 | H14: =IF(B14<>"",SUMIFS(cTABUI!$J$11:$J$109,cTABUI!$D$11:$D$109,B14),0) -> 10.929
A15: =iCONDOMINI!A15 -> 5 | B15: =iCONDOMINI!B15 -> C05 | C15: =iCONDOMINI!C15 -> Condomino05 | D15: =IF(B15<>"",SUMIFS(cTABUI!$F$11:$F$109,cTABUI!$C$11:$C$109,B15),0) -> 47.56 | E15: =IF(B15<>"",SUMIFS(cTABUI!$G$11:$G$109,cTABUI!$D$11:$D$109,B15),0) -> 47.56 | F15: =IF(B15<>"",SUMIFS(cTABUI!$H$11:$H$109,cTABUI!$D$11:$D$109,B15),0) -> 56.97544 | G15: =IF(B15<>"",SUMIFS(cTABUI!$I$11:$I$109,cTABUI!$D$11:$D$109,B15),0) -> 60.86957 | H15: =IF(B15<>"",SUMIFS(cTABUI!$J$11:$J$109,cTABUI!$D$11:$D$109,B15),0) -> 32.7869
A16: =iCONDOMINI!A16 -> 6 | B16: =iCONDOMINI!B16 -> C06 | C16: =iCONDOMINI!C16 -> Condomino06 | D16: =IF(B16<>"",SUMIFS(cTABUI!$F$11:$F$109,cTABUI!$C$11:$C$109,B16),0) -> 42.27 | E16: =IF(B16<>"",SUMIFS(cTABUI!$G$11:$G$109,cTABUI!$D$11:$D$109,B16),0) -> 42.27 | F16: =IF(B16<>"",SUMIFS(cTABUI!$H$11:$H$109,cTABUI!$D$11:$D$109,B16),0) -> 57.75497 | G16: =IF(B16<>"",SUMIFS(cTABUI!$I$11:$I$109,cTABUI!$D$11:$D$109,B16),0) -> 43.47826 | H16: =IF(B16<>"",SUMIFS(cTABUI!$J$11:$J$109,cTABUI!$D$11:$D$109,B16),0) -> 54.6448
A17: =iCONDOMINI!A17 -> 7 | B17: =iCONDOMINI!B17 -> C07 | C17: =iCONDOMINI!C17 -> Condomino07 | D17: =IF(B17<>"",SUMIFS(cTABUI!$F$11:$F$109,cTABUI!$C$11:$C$109,B17),0) -> 35.77 | E17: =IF(B17<>"",SUMIFS(cTABUI!$G$11:$G$109,cTABUI!$D$11:$D$109,B17),0) -> 35.77 | F17: =IF(B17<>"",SUMIFS(cTABUI!$H$11:$H$109,cTABUI!$D$11:$D$109,B17),0) -> 29.38549 | G17: =IF(B17<>"",SUMIFS(cTABUI!$I$11:$I$109,cTABUI!$D$11:$D$109,B17),0) -> 26.08696 | H17: =IF(B17<>"",SUMIFS(cTABUI!$J$11:$J$109,cTABUI!$D$11:$D$109,B17),0) -> 65.5738
A18: =iCONDOMINI!A18 -> 8 | B18: =iCONDOMINI!B18 -> C08 | C18: =iCONDOMINI!C18 -> Eredi Condomino08 | D18: =IF(B18<>"",SUMIFS(cTABUI!$F$11:$F$109,cTABUI!$C$11:$C$109,B18),0) -> 29.83 | E18: =IF(B18<>"",SUMIFS(cTABUI!$G$11:$G$109,cTABUI!$D$11:$D$109,B18),0) -> 29.83 | F18: =IF(B18<>"",SUMIFS(cTABUI!$H$11:$H$109,cTABUI!$D$11:$D$109,B18),0) -> 8.46092 | G18: =IF(B18<>"",SUMIFS(cTABUI!$I$11:$I$109,cTABUI!$D$11:$D$109,B18),0) -> 34.78261 | H18: =IF(B18<>"",SUMIFS(cTABUI!$J$11:$J$109,cTABUI!$D$11:$D$109,B18),0) -> 76.5027
A19: =iCONDOMINI!A19 -> 9 | B19: =iCONDOMINI!B19 -> C09 | C19: =iCONDOMINI!C19 -> Condomino09 S.r.l. | D19: =IF(B19<>"",SUMIFS(cTABUI!$F$11:$F$109,cTABUI!$C$11:$C$109,B19),0) -> 40.51 | E19: =IF(B19<>"",SUMIFS(cTABUI!$G$11:$G$109,cTABUI!$D$11:$D$109,B19),0) -> 40.51 | F19: =IF(B19<>"",SUMIFS(cTABUI!$H$11:$H$109,cTABUI!$D$11:$D$109,B19),0) -> 35.51659 | G19: =IF(B19<>"",SUMIFS(cTABUI!$I$11:$I$109,cTABUI!$D$11:$D$109,B19),0) -> 34.78261 | H19: =IF(B19<>"",SUMIFS(cTABUI!$J$11:$J$109,cTABUI!$D$11:$D$109,B19),0) -> 10.929
A20: =iCONDOMINI!A20 -> 10 | B20: =iCONDOMINI!B20 -> C10 | C20: =iCONDOMINI!C20 -> Condomino10 | D20: =IF(B20<>"",SUMIFS(cTABUI!$F$11:$F$109,cTABUI!$C$11:$C$109,B20),0) -> 49.32 | E20: =IF(B20<>"",SUMIFS(cTABUI!$G$11:$G$109,cTABUI!$D$11:$D$109,B20),0) -> 0 | F20: =IF(B20<>"",SUMIFS(cTABUI!$H$11:$H$109,cTABUI!$D$11:$D$109,B20),0) -> 0 | G20: =IF(B20<>"",SUMIFS(cTABUI!$I$11:$I$109,cTABUI!$D$11:$D$109,B20),0) -> 0 | H20: =IF(B20<>"",SUMIFS(cTABUI!$J$11:$J$109,cTABUI!$D$11:$D$109,B20),0) -> 0
A21: =iCONDOMINI!A21 -> 11 | B21: =iCONDOMINI!B21 -> C11 | C21: =iCONDOMINI!C21 -> Condomino11 | D21: =IF(B21<>"",SUMIFS(cTABUI!$F$11:$F$109,cTABUI!$C$11:$C$109,B21),0) -> 37 | E21: =IF(B21<>"",SUMIFS(cTABUI!$G$11:$G$109,cTABUI!$D$11:$D$109,B21),0) -> 37 | F21: =IF(B21<>"",SUMIFS(cTABUI!$H$11:$H$109,cTABUI!$D$11:$D$109,B21),0) -> 26.15352 | G21: =IF(B21<>"",SUMIFS(cTABUI!$I$11:$I$109,cTABUI!$D$11:$D$109,B21),0) -> 26.08696 | H21: =IF(B21<>"",SUMIFS(cTABUI!$J$11:$J$109,cTABUI!$D$11:$D$109,B21),0) -> 49.1803
A22: =iCONDOMINI!A22 -> 12 | B22: =iCONDOMINI!B22 -> C12 | C22: =iCONDOMINI!C22 -> Condomino12 | D22: =IF(B22<>"",SUMIFS(cTABUI!$F$11:$F$109,cTABUI!$C$11:$C$109,B22),0) -> 56.47 | E22: =IF(B22<>"",SUMIFS(cTABUI!$G$11:$G$109,cTABUI!$D$11:$D$109,B22),0) -> 47.56 | F22: =IF(B22<>"",SUMIFS(cTABUI!$H$11:$H$109,cTABUI!$D$11:$D$109,B22),0) -> 50.99324 | G22: =IF(B22<>"",SUMIFS(cTABUI!$I$11:$I$109,cTABUI!$D$11:$D$109,B22),0) -> 34.78261 | H22: =IF(B22<>"",SUMIFS(cTABUI!$J$11:$J$109,cTABUI!$D$11:$D$109,B22),0) -> 54.6448
A23: =iCONDOMINI!A23 -> 13 | B23: =iCONDOMINI!B23 -> C13 | C23: =iCONDOMINI!C23 -> Condomino13 | D23: =IF(B23<>"",SUMIFS(cTABUI!$F$11:$F$109,cTABUI!$C$11:$C$109,B23),0) -> 38.76 | E23: =IF(B23<>"",SUMIFS(cTABUI!$G$11:$G$109,cTABUI!$D$11:$D$109,B23),0) -> 38.76 | F23: =IF(B23<>"",SUMIFS(cTABUI!$H$11:$H$109,cTABUI!$D$11:$D$109,B23),0) -> 46.94671 | G23: =IF(B23<>"",SUMIFS(cTABUI!$I$11:$I$109,cTABUI!$D$11:$D$109,B23),0) -> 43.47826 | H23: =IF(B23<>"",SUMIFS(cTABUI!$J$11:$J$109,cTABUI!$D$11:$D$109,B23),0) -> 32.7869
A24: =iCONDOMINI!A24 -> 14 | B24: =iCONDOMINI!B24 -> C14 | C24: =iCONDOMINI!C24 -> Condomino14 | D24: =IF(B24<>"",SUMIFS(cTABUI!$F$11:$F$109,cTABUI!$C$11:$C$109,B24),0) -> 29.83 | E24: =IF(B24<>"",SUMIFS(cTABUI!$G$11:$G$109,cTABUI!$D$11:$D$109,B24),0) -> 29.83 | F24: =IF(B24<>"",SUMIFS(cTABUI!$H$11:$H$109,cTABUI!$D$11:$D$109,B24),0) -> 38.442 | G24: =IF(B24<>"",SUMIFS(cTABUI!$I$11:$I$109,cTABUI!$D$11:$D$109,B24),0) -> 34.78261 | H24: =IF(B24<>"",SUMIFS(cTABUI!$J$11:$J$109,cTABUI!$D$11:$D$109,B24),0) -> 54.6448
A25: =iCONDOMINI!A25 -> 15 | B25: =iCONDOMINI!B25 -> C15 | C25: =iCONDOMINI!C25 -> Condomino15 | D25: =IF(B25<>"",SUMIFS(cTABUI!$F$11:$F$109,cTABUI!$C$11:$C$109,B25),0) -> 37 | E25: =IF(B25<>"",SUMIFS(cTABUI!$G$11:$G$109,cTABUI!$D$11:$D$109,B25),0) -> 37 | F25: =IF(B25<>"",SUMIFS(cTABUI!$H$11:$H$109,cTABUI!$D$11:$D$109,B25),0) -> 41.98928 | G25: =IF(B25<>"",SUMIFS(cTABUI!$I$11:$I$109,cTABUI!$D$11:$D$109,B25),0) -> 43.47826 | H25: =IF(B25<>"",SUMIFS(cTABUI!$J$11:$J$109,cTABUI!$D$11:$D$109,B25),0) -> 21.8579
A26: =iCONDOMINI!A26 -> 16 | B26: =iCONDOMINI!B26 -> C16 | C26: =iCONDOMINI!C26 -> Condomino16 | D26: =IF(B26<>"",SUMIFS(cTABUI!$F$11:$F$109,cTABUI!$C$11:$C$109,B26),0) -> 52.85 | E26: =IF(B26<>"",SUMIFS(cTABUI!$G$11:$G$109,cTABUI!$D$11:$D$109,B26),0) -> 52.85 | F26: =IF(B26<>"",SUMIFS(cTABUI!$H$11:$H$109,cTABUI!$D$11:$D$109,B26),0) -> 51.99173 | G26: =IF(B26<>"",SUMIFS(cTABUI!$I$11:$I$109,cTABUI!$D$11:$D$109,B26),0) -> 43.47826 | H26: =IF(B26<>"",SUMIFS(cTABUI!$J$11:$J$109,cTABUI!$D$11:$D$109,B26),0) -> 54.6448
A27: =iCONDOMINI!A27 -> 17 | B27: =iCONDOMINI!B27 -> C17 | C27: =iCONDOMINI!C27 -> Condomino17 | D27: =IF(B27<>"",SUMIFS(cTABUI!$F$11:$F$109,cTABUI!$C$11:$C$109,B27),0) -> 73.97 | E27: =IF(B27<>"",SUMIFS(cTABUI!$G$11:$G$109,cTABUI!$D$11:$D$109,B27),0) -> 73.97 | F27: =IF(B27<>"",SUMIFS(cTABUI!$H$11:$H$109,cTABUI!$D$11:$D$109,B27),0) -> 74.69432 | G27: =IF(B27<>"",SUMIFS(cTABUI!$I$11:$I$109,cTABUI!$D$11:$D$109,B27),0) -> 60.86957 | H27: =IF(B27<>"",SUMIFS(cTABUI!$J$11:$J$109,cTABUI!$D$11:$D$109,B27),0) -> 65.5738
A28: =iCONDOMINI!A28 -> 18 | B28: =iCONDOMINI!B28 -> C18 | C28: =iCONDOMINI!C28 -> Condomino18 | D28: =IF(B28<>"",SUMIFS(cTABUI!$F$11:$F$109,cTABUI!$C$11:$C$109,B28),0) -> 64.07 | E28: =IF(B28<>"",SUMIFS(cTABUI!$G$11:$G$109,cTABUI!$D$11:$D$109,B28),0) -> 0 | F28: =IF(B28<>"",SUMIFS(cTABUI!$H$11:$H$109,cTABUI!$D$11:$D$109,B28),0) -> 0 | G28: =IF(B28<>"",SUMIFS(cTABUI!$I$11:$I$109,cTABUI!$D$11:$D$109,B28),0) -> 0 | H28: =IF(B28<>"",SUMIFS(cTABUI!$J$11:$J$109,cTABUI!$D$11:$D$109,B28),0) -> 0
A29: =iCONDOMINI!A29 -> 19 | B29: =iCONDOMINI!B29 -> C19 | C29: =iCONDOMINI!C29 -> Condomino19 | D29: =IF(B29<>"",SUMIFS(cTABUI!$F$11:$F$109,cTABUI!$C$11:$C$109,B29),0) -> 58.12 | E29: =IF(B29<>"",SUMIFS(cTABUI!$G$11:$G$109,cTABUI!$D$11:$D$109,B29),0) -> 58.12 | F29: =IF(B29<>"",SUMIFS(cTABUI!$H$11:$H$109,cTABUI!$D$11:$D$109,B29),0) -> 62.60729 | G29: =IF(B29<>"",SUMIFS(cTABUI!$I$11:$I$109,cTABUI!$D$11:$D$109,B29),0) -> 60.86957 | H29: =IF(B29<>"",SUMIFS(cTABUI!$J$11:$J$109,cTABUI!$D$11:$D$109,B29),0) -> 43.7158
A30: =iCONDOMINI!A30 -> 20 | B30: =iCONDOMINI!B30 -> C20 | C30: =iCONDOMINI!C30 -> Condomino20 | D30: =IF(B30<>"",SUMIFS(cTABUI!$F$11:$F$109,cTABUI!$C$11:$C$109,B30),0) -> 29.95 | E30: =IF(B30<>"",SUMIFS(cTABUI!$G$11:$G$109,cTABUI!$D$11:$D$109,B30),0) -> 0 | F30: =IF(B30<>"",SUMIFS(cTABUI!$H$11:$H$109,cTABUI!$D$11:$D$109,B30),0) -> 0 | G30: =IF(B30<>"",SUMIFS(cTABUI!$I$11:$I$109,cTABUI!$D$11:$D$109,B30),0) -> 0 | H30: =IF(B30<>"",SUMIFS(cTABUI!$J$11:$J$109,cTABUI!$D$11:$D$109,B30),0) -> 0
A31: =iCONDOMINI!A31 -> 21 | B31: =iCONDOMINI!B31 -> C21 | C31: =iCONDOMINI!C31 -> Condomino21 | D31: =IF(B31<>"",SUMIFS(cTABUI!$F$11:$F$109,cTABUI!$C$11:$C$109,B31),0) -> 37 | E31: =IF(B31<>"",SUMIFS(cTABUI!$G$11:$G$109,cTABUI!$D$11:$D$109,B31),0) -> 37 | F31: =IF(B31<>"",SUMIFS(cTABUI!$H$11:$H$109,cTABUI!$D$11:$D$109,B31),0) -> 42.15569 | G31: =IF(B31<>"",SUMIFS(cTABUI!$I$11:$I$109,cTABUI!$D$11:$D$109,B31),0) -> 43.47826 | H31: =IF(B31<>"",SUMIFS(cTABUI!$J$11:$J$109,cTABUI!$D$11:$D$109,B31),0) -> 43.7158
A32: =iCONDOMINI!A32 -> 22 | B32: =iCONDOMINI!B32 -> C22 | C32: =iCONDOMINI!C32 -> Condomino22 | D32: =IF(B32<>"",SUMIFS(cTABUI!$F$11:$F$109,cTABUI!$C$11:$C$109,B32),0) -> 28.19 | E32: =IF(B32<>"",SUMIFS(cTABUI!$G$11:$G$109,cTABUI!$D$11:$D$109,B32),0) -> 28.19 | F32: =IF(B32<>"",SUMIFS(cTABUI!$H$11:$H$109,cTABUI!$D$11:$D$109,B32),0) -> 29.07017 | G32: =IF(B32<>"",SUMIFS(cTABUI!$I$11:$I$109,cTABUI!$D$11:$D$109,B32),0) -> 34.78261 | H32: =IF(B32<>"",SUMIFS(cTABUI!$J$11:$J$109,cTABUI!$D$11:$D$109,B32),0) -> 43.7158
A33: =iCONDOMINI!A33 -> 23 | B33: =iCONDOMINI!B33 -> C23 | C33: =iCONDOMINI!C33 -> Condomino23 | D33: =IF(B33<>"",SUMIFS(cTABUI!$F$11:$F$109,cTABUI!$C$11:$C$109,B33),0) -> 38.76 | E33: =IF(B33<>"",SUMIFS(cTABUI!$G$11:$G$109,cTABUI!$D$11:$D$109,B33),0) -> 38.76 | F33: =IF(B33<>"",SUMIFS(cTABUI!$H$11:$H$109,cTABUI!$D$11:$D$109,B33),0) -> 44.04758 | G33: =IF(B33<>"",SUMIFS(cTABUI!$I$11:$I$109,cTABUI!$D$11:$D$109,B33),0) -> 43.47826 | H33: =IF(B33<>"",SUMIFS(cTABUI!$J$11:$J$109,cTABUI!$D$11:$D$109,B33),0) -> 10.929
A34: =iCONDOMINI!A34 -> 24 | B34: =iCONDOMINI!B34 -> I01 | C34: =iCONDOMINI!C34 -> Inquilino1 | D34: =IF(B34<>"",SUMIFS(cTABUI!$F$11:$F$109,cTABUI!$C$11:$C$109,B34),0) -> 0 | E34: =IF(B34<>"",SUMIFS(cTABUI!$G$11:$G$109,cTABUI!$D$11:$D$109,B34),0) -> 29.95 | F34: =IF(B34<>"",SUMIFS(cTABUI!$H$11:$H$109,cTABUI!$D$11:$D$109,B34),0) -> 17.4386 | G34: =IF(B34<>"",SUMIFS(cTABUI!$I$11:$I$109,cTABUI!$D$11:$D$109,B34),0) -> 26.08696 | H34: =IF(B34<>"",SUMIFS(cTABUI!$J$11:$J$109,cTABUI!$D$11:$D$109,B34),0) -> 10.929
A35: =iCONDOMINI!A35 -> 25 | B35: =iCONDOMINI!B35 -> I02 | C35: =iCONDOMINI!C35 -> Inquilino2 | D35: =IF(B35<>"",SUMIFS(cTABUI!$F$11:$F$109,cTABUI!$C$11:$C$109,B35),0) -> 0 | E35: =IF(B35<>"",SUMIFS(cTABUI!$G$11:$G$109,cTABUI!$D$11:$D$109,B35),0) -> 64.07 | F35: =IF(B35<>"",SUMIFS(cTABUI!$H$11:$H$109,cTABUI!$D$11:$D$109,B35),0) -> 74.70308 | G35: =IF(B35<>"",SUMIFS(cTABUI!$I$11:$I$109,cTABUI!$D$11:$D$109,B35),0) -> 69.56522 | H35: =IF(B35<>"",SUMIFS(cTABUI!$J$11:$J$109,cTABUI!$D$11:$D$109,B35),0) -> 54.6448
A36: =iCONDOMINI!A36 -> 26 | B36: =iCONDOMINI!B36 -> I03 | C36: =iCONDOMINI!C36 -> Inquilino3 | D36: =IF(B36<>"",SUMIFS(cTABUI!$F$11:$F$109,cTABUI!$C$11:$C$109,B36),0) -> 0 | E36: =IF(B36<>"",SUMIFS(cTABUI!$G$11:$G$109,cTABUI!$D$11:$D$109,B36),0) -> 37 | F36: =IF(B36<>"",SUMIFS(cTABUI!$H$11:$H$109,cTABUI!$D$11:$D$109,B36),0) -> 40.78934 | G36: =IF(B36<>"",SUMIFS(cTABUI!$I$11:$I$109,cTABUI!$D$11:$D$109,B36),0) -> 43.47826 | H36: =IF(B36<>"",SUMIFS(cTABUI!$J$11:$J$109,cTABUI!$D$11:$D$109,B36),0) -> 54.6448
A37: =iCONDOMINI!A37 -> 27 | B37: =iCONDOMINI!B37 -> I04 | C37: =iCONDOMINI!C37 -> Inquilino4 | D37: =IF(B37<>"",SUMIFS(cTABUI!$F$11:$F$109,cTABUI!$C$11:$C$109,B37),0) -> 0 | E37: =IF(B37<>"",SUMIFS(cTABUI!$G$11:$G$109,cTABUI!$D$11:$D$109,B37),0) -> 49.32 | F37: =IF(B37<>"",SUMIFS(cTABUI!$H$11:$H$109,cTABUI!$D$11:$D$109,B37),0) -> 24.96234 | G37: =IF(B37<>"",SUMIFS(cTABUI!$I$11:$I$109,cTABUI!$D$11:$D$109,B37),0) -> 52.17391 | H37: =IF(B37<>"",SUMIFS(cTABUI!$J$11:$J$109,cTABUI!$D$11:$D$109,B37),0) -> 76.5027
A38: =iCONDOMINI!A38 -> 28 | B38: =iCONDOMINI!B38 -> I05 | C38: =iCONDOMINI!C38 -> Inquilino5 | D38: =IF(B38<>"",SUMIFS(cTABUI!$F$11:$F$109,cTABUI!$C$11:$C$109,B38),0) -> 0 | E38: =IF(B38<>"",SUMIFS(cTABUI!$G$11:$G$109,cTABUI!$D$11:$D$109,B38),0) -> 8.91 | F38: =IF(B38<>"",SUMIFS(cTABUI!$H$11:$H$109,cTABUI!$D$11:$D$109,B38),0) -> 8.46092 | G38: =IF(B38<>"",SUMIFS(cTABUI!$I$11:$I$109,cTABUI!$D$11:$D$109,B38),0) -> 0 | H38: =IF(B38<>"",SUMIFS(cTABUI!$J$11:$J$109,cTABUI!$D$11:$D$109,B38),0) -> 0
A39: =iCONDOMINI!A39 -> 29 | B39: =iCONDOMINI!B39 -> 0 | C39: =iCONDOMINI!C39 -> 0 | D39: =IF(B39<>"",SUMIFS(cTABUI!$F$11:$F$109,cTABUI!$C$11:$C$109,B39),0) -> 0 | E39: =IF(B39<>"",SUMIFS(cTABUI!$G$11:$G$109,cTABUI!$D$11:$D$109,B39),0) -> 0 | F39: =IF(B39<>"",SUMIFS(cTABUI!$H$11:$H$109,cTABUI!$D$11:$D$109,B39),0) -> 0 | G39: =IF(B39<>"",SUMIFS(cTABUI!$I$11:$I$109,cTABUI!$D$11:$D$109,B39),0) -> 0 | H39: =IF(B39<>"",SUMIFS(cTABUI!$J$11:$J$109,cTABUI!$D$11:$D$109,B39),0) -> 0
A40: =iCONDOMINI!A40 -> 30 | B40: =iCONDOMINI!B40 -> 0 | C40: =iCONDOMINI!C40 -> 0 | D40: =IF(B40<>"",SUMIFS(cTABUI!$F$11:$F$109,cTABUI!$C$11:$C$109,B40),0) -> 0 | E40: =IF(B40<>"",SUMIFS(cTABUI!$G$11:$G$109,cTABUI!$D$11:$D$109,B40),0) -> 0 | F40: =IF(B40<>"",SUMIFS(cTABUI!$H$11:$H$109,cTABUI!$D$11:$D$109,B40),0) -> 0 | G40: =IF(B40<>"",SUMIFS(cTABUI!$I$11:$I$109,cTABUI!$D$11:$D$109,B40),0) -> 0 | H40: =IF(B40<>"",SUMIFS(cTABUI!$J$11:$J$109,cTABUI!$D$11:$D$109,B40),0) -> 0
A41: =iCONDOMINI!A41 -> 31 | B41: =iCONDOMINI!B41 -> 0 | C41: =iCONDOMINI!C41 -> 0 | D41: =IF(B41<>"",SUMIFS(cTABUI!$F$11:$F$109,cTABUI!$C$11:$C$109,B41),0) -> 0 | E41: =IF(B41<>"",SUMIFS(cTABUI!$G$11:$G$109,cTABUI!$D$11:$D$109,B41),0) -> 0 | F41: =IF(B41<>"",SUMIFS(cTABUI!$H$11:$H$109,cTABUI!$D$11:$D$109,B41),0) -> 0 | G41: =IF(B41<>"",SUMIFS(cTABUI!$I$11:$I$109,cTABUI!$D$11:$D$109,B41),0) -> 0 | H41: =IF(B41<>"",SUMIFS(cTABUI!$J$11:$J$109,cTABUI!$D$11:$D$109,B41),0) -> 0
A42: =iCONDOMINI!A42 -> 32 | B42: =iCONDOMINI!B42 -> 0 | C42: =iCONDOMINI!C42 -> 0 | D42: =IF(B42<>"",SUMIFS(cTABUI!$F$11:$F$109,cTABUI!$C$11:$C$109,B42),0) -> 0 | E42: =IF(B42<>"",SUMIFS(cTABUI!$G$11:$G$109,cTABUI!$D$11:$D$109,B42),0) -> 0 | F42: =IF(B42<>"",SUMIFS(cTABUI!$H$11:$H$109,cTABUI!$D$11:$D$109,B42),0) -> 0 | G42: =IF(B42<>"",SUMIFS(cTABUI!$I$11:$I$109,cTABUI!$D$11:$D$109,B42),0) -> 0 | H42: =IF(B42<>"",SUMIFS(cTABUI!$J$11:$J$109,cTABUI!$D$11:$D$109,B42),0) -> 0
A43: =iCONDOMINI!A43 -> 33 | B43: =iCONDOMINI!B43 -> 0 | C43: =iCONDOMINI!C43 -> 0 | D43: =IF(B43<>"",SUMIFS(cTABUI!$F$11:$F$109,cTABUI!$C$11:$C$109,B43),0) -> 0 | E43: =IF(B43<>"",SUMIFS(cTABUI!$G$11:$G$109,cTABUI!$D$11:$D$109,B43),0) -> 0 | F43: =IF(B43<>"",SUMIFS(cTABUI!$H$11:$H$109,cTABUI!$D$11:$D$109,B43),0) -> 0 | G43: =IF(B43<>"",SUMIFS(cTABUI!$I$11:$I$109,cTABUI!$D$11:$D$109,B43),0) -> 0 | H43: =IF(B43<>"",SUMIFS(cTABUI!$J$11:$J$109,cTABUI!$D$11:$D$109,B43),0) -> 0
A44: =iCONDOMINI!A44 -> 34 | B44: =iCONDOMINI!B44 -> 0 | C44: =iCONDOMINI!C44 -> 0 | D44: =IF(B44<>"",SUMIFS(cTABUI!$F$11:$F$109,cTABUI!$C$11:$C$109,B44),0) -> 0 | E44: =IF(B44<>"",SUMIFS(cTABUI!$G$11:$G$109,cTABUI!$D$11:$D$109,B44),0) -> 0 | F44: =IF(B44<>"",SUMIFS(cTABUI!$H$11:$H$109,cTABUI!$D$11:$D$109,B44),0) -> 0 | G44: =IF(B44<>"",SUMIFS(cTABUI!$I$11:$I$109,cTABUI!$D$11:$D$109,B44),0) -> 0 | H44: =IF(B44<>"",SUMIFS(cTABUI!$J$11:$J$109,cTABUI!$D$11:$D$109,B44),0) -> 0
A45: =iCONDOMINI!A45 -> 35 | B45: =iCONDOMINI!B45 -> 0 | C45: =iCONDOMINI!C45 -> 0 | D45: =IF(B45<>"",SUMIFS(cTABUI!$F$11:$F$109,cTABUI!$C$11:$C$109,B45),0) -> 0 | E45: =IF(B45<>"",SUMIFS(cTABUI!$G$11:$G$109,cTABUI!$D$11:$D$109,B45),0) -> 0 | F45: =IF(B45<>"",SUMIFS(cTABUI!$H$11:$H$109,cTABUI!$D$11:$D$109,B45),0) -> 0 | G45: =IF(B45<>"",SUMIFS(cTABUI!$I$11:$I$109,cTABUI!$D$11:$D$109,B45),0) -> 0 | H45: =IF(B45<>"",SUMIFS(cTABUI!$J$11:$J$109,cTABUI!$D$11:$D$109,B45),0) -> 0
A46: =iCONDOMINI!A46 -> 36 | B46: =iCONDOMINI!B46 -> 0 | C46: =iCONDOMINI!C46 -> 0 | D46: =IF(B46<>"",SUMIFS(cTABUI!$F$11:$F$109,cTABUI!$C$11:$C$109,B46),0) -> 0 | E46: =IF(B46<>"",SUMIFS(cTABUI!$G$11:$G$109,cTABUI!$D$11:$D$109,B46),0) -> 0 | F46: =IF(B46<>"",SUMIFS(cTABUI!$H$11:$H$109,cTABUI!$D$11:$D$109,B46),0) -> 0 | G46: =IF(B46<>"",SUMIFS(cTABUI!$I$11:$I$109,cTABUI!$D$11:$D$109,B46),0) -> 0 | H46: =IF(B46<>"",SUMIFS(cTABUI!$J$11:$J$109,cTABUI!$D$11:$D$109,B46),0) -> 0
A47: =iCONDOMINI!A47 -> 37 | B47: =iCONDOMINI!B47 -> 0 | C47: =iCONDOMINI!C47 -> 0 | D47: =IF(B47<>"",SUMIFS(cTABUI!$F$11:$F$109,cTABUI!$C$11:$C$109,B47),0) -> 0 | E47: =IF(B47<>"",SUMIFS(cTABUI!$G$11:$G$109,cTABUI!$D$11:$D$109,B47),0) -> 0 | F47: =IF(B47<>"",SUMIFS(cTABUI!$H$11:$H$109,cTABUI!$D$11:$D$109,B47),0) -> 0 | G47: =IF(B47<>"",SUMIFS(cTABUI!$I$11:$I$109,cTABUI!$D$11:$D$109,B47),0) -> 0 | H47: =IF(B47<>"",SUMIFS(cTABUI!$J$11:$J$109,cTABUI!$D$11:$D$109,B47),0) -> 0
A48: =iCONDOMINI!A48 -> 38 | B48: =iCONDOMINI!B48 -> 0 | C48: =iCONDOMINI!C48 -> 0 | D48: =IF(B48<>"",SUMIFS(cTABUI!$F$11:$F$109,cTABUI!$C$11:$C$109,B48),0) -> 0 | E48: =IF(B48<>"",SUMIFS(cTABUI!$G$11:$G$109,cTABUI!$D$11:$D$109,B48),0) -> 0 | F48: =IF(B48<>"",SUMIFS(cTABUI!$H$11:$H$109,cTABUI!$D$11:$D$109,B48),0) -> 0 | G48: =IF(B48<>"",SUMIFS(cTABUI!$I$11:$I$109,cTABUI!$D$11:$D$109,B48),0) -> 0 | H48: =IF(B48<>"",SUMIFS(cTABUI!$J$11:$J$109,cTABUI!$D$11:$D$109,B48),0) -> 0
A49: =iCONDOMINI!A49 -> 39 | B49: =iCONDOMINI!B49 -> 0 | C49: =iCONDOMINI!C49 -> 0 | D49: =IF(B49<>"",SUMIFS(cTABUI!$F$11:$F$109,cTABUI!$C$11:$C$109,B49),0) -> 0 | E49: =IF(B49<>"",SUMIFS(cTABUI!$G$11:$G$109,cTABUI!$D$11:$D$109,B49),0) -> 0 | F49: =IF(B49<>"",SUMIFS(cTABUI!$H$11:$H$109,cTABUI!$D$11:$D$109,B49),0) -> 0 | G49: =IF(B49<>"",SUMIFS(cTABUI!$I$11:$I$109,cTABUI!$D$11:$D$109,B49),0) -> 0 | H49: =IF(B49<>"",SUMIFS(cTABUI!$J$11:$J$109,cTABUI!$D$11:$D$109,B49),0) -> 0
A50: =iCONDOMINI!A50 -> 40 | B50: =iCONDOMINI!B50 -> 0 | C50: =iCONDOMINI!C50 -> 0 | D50: =IF(B50<>"",SUMIFS(cTABUI!$F$11:$F$109,cTABUI!$C$11:$C$109,B50),0) -> 0 | E50: =IF(B50<>"",SUMIFS(cTABUI!$G$11:$G$109,cTABUI!$D$11:$D$109,B50),0) -> 0 | F50: =IF(B50<>"",SUMIFS(cTABUI!$H$11:$H$109,cTABUI!$D$11:$D$109,B50),0) -> 0 | G50: =IF(B50<>"",SUMIFS(cTABUI!$I$11:$I$109,cTABUI!$D$11:$D$109,B50),0) -> 0 | H50: =IF(B50<>"",SUMIFS(cTABUI!$J$11:$J$109,cTABUI!$D$11:$D$109,B50),0) -> 0
A51: =iCONDOMINI!A51 -> 41 | B51: =iCONDOMINI!B51 -> 0 | C51: =iCONDOMINI!C51 -> 0 | D51: =IF(B51<>"",SUMIFS(cTABUI!$F$11:$F$109,cTABUI!$C$11:$C$109,B51),0) -> 0 | E51: =IF(B51<>"",SUMIFS(cTABUI!$G$11:$G$109,cTABUI!$D$11:$D$109,B51),0) -> 0 | F51: =IF(B51<>"",SUMIFS(cTABUI!$H$11:$H$109,cTABUI!$D$11:$D$109,B51),0) -> 0 | G51: =IF(B51<>"",SUMIFS(cTABUI!$I$11:$I$109,cTABUI!$D$11:$D$109,B51),0) -> 0 | H51: =IF(B51<>"",SUMIFS(cTABUI!$J$11:$J$109,cTABUI!$D$11:$D$109,B51),0) -> 0
A52: =iCONDOMINI!A52 -> 42 | B52: =iCONDOMINI!B52 -> 0 | C52: =iCONDOMINI!C52 -> 0 | D52: =IF(B52<>"",SUMIFS(cTABUI!$F$11:$F$109,cTABUI!$C$11:$C$109,B52),0) -> 0 | E52: =IF(B52<>"",SUMIFS(cTABUI!$G$11:$G$109,cTABUI!$D$11:$D$109,B52),0) -> 0 | F52: =IF(B52<>"",SUMIFS(cTABUI!$H$11:$H$109,cTABUI!$D$11:$D$109,B52),0) -> 0 | G52: =IF(B52<>"",SUMIFS(cTABUI!$I$11:$I$109,cTABUI!$D$11:$D$109,B52),0) -> 0 | H52: =IF(B52<>"",SUMIFS(cTABUI!$J$11:$J$109,cTABUI!$D$11:$D$109,B52),0) -> 0
A53: =iCONDOMINI!A53 -> 43 | B53: =iCONDOMINI!B53 -> 0 | C53: =iCONDOMINI!C53 -> 0 | D53: =IF(B53<>"",SUMIFS(cTABUI!$F$11:$F$109,cTABUI!$C$11:$C$109,B53),0) -> 0 | E53: =IF(B53<>"",SUMIFS(cTABUI!$G$11:$G$109,cTABUI!$D$11:$D$109,B53),0) -> 0 | F53: =IF(B53<>"",SUMIFS(cTABUI!$H$11:$H$109,cTABUI!$D$11:$D$109,B53),0) -> 0 | G53: =IF(B53<>"",SUMIFS(cTABUI!$I$11:$I$109,cTABUI!$D$11:$D$109,B53),0) -> 0 | H53: =IF(B53<>"",SUMIFS(cTABUI!$J$11:$J$109,cTABUI!$D$11:$D$109,B53),0) -> 0
A54: =iCONDOMINI!A54 -> 44 | B54: =iCONDOMINI!B54 -> 0 | C54: =iCONDOMINI!C54 -> 0 | D54: =IF(B54<>"",SUMIFS(cTABUI!$F$11:$F$109,cTABUI!$C$11:$C$109,B54),0) -> 0 | E54: =IF(B54<>"",SUMIFS(cTABUI!$G$11:$G$109,cTABUI!$D$11:$D$109,B54),0) -> 0 | F54: =IF(B54<>"",SUMIFS(cTABUI!$H$11:$H$109,cTABUI!$D$11:$D$109,B54),0) -> 0 | G54: =IF(B54<>"",SUMIFS(cTABUI!$I$11:$I$109,cTABUI!$D$11:$D$109,B54),0) -> 0 | H54: =IF(B54<>"",SUMIFS(cTABUI!$J$11:$J$109,cTABUI!$D$11:$D$109,B54),0) -> 0
A55: =iCONDOMINI!A55 -> 45 | B55: =iCONDOMINI!B55 -> 0 | C55: =iCONDOMINI!C55 -> 0 | D55: =IF(B55<>"",SUMIFS(cTABUI!$F$11:$F$109,cTABUI!$C$11:$C$109,B55),0) -> 0 | E55: =IF(B55<>"",SUMIFS(cTABUI!$G$11:$G$109,cTABUI!$D$11:$D$109,B55),0) -> 0 | F55: =IF(B55<>"",SUMIFS(cTABUI!$H$11:$H$109,cTABUI!$D$11:$D$109,B55),0) -> 0 | G55: =IF(B55<>"",SUMIFS(cTABUI!$I$11:$I$109,cTABUI!$D$11:$D$109,B55),0) -> 0 | H55: =IF(B55<>"",SUMIFS(cTABUI!$J$11:$J$109,cTABUI!$D$11:$D$109,B55),0) -> 0
A56: =iCONDOMINI!A56 -> 46 | B56: =iCONDOMINI!B56 -> 0 | C56: =iCONDOMINI!C56 -> 0 | D56: =IF(B56<>"",SUMIFS(cTABUI!$F$11:$F$109,cTABUI!$C$11:$C$109,B56),0) -> 0 | E56: =IF(B56<>"",SUMIFS(cTABUI!$G$11:$G$109,cTABUI!$D$11:$D$109,B56),0) -> 0 | F56: =IF(B56<>"",SUMIFS(cTABUI!$H$11:$H$109,cTABUI!$D$11:$D$109,B56),0) -> 0 | G56: =IF(B56<>"",SUMIFS(cTABUI!$I$11:$I$109,cTABUI!$D$11:$D$109,B56),0) -> 0 | H56: =IF(B56<>"",SUMIFS(cTABUI!$J$11:$J$109,cTABUI!$D$11:$D$109,B56),0) -> 0
A57: =iCONDOMINI!A57 -> 47 | B57: =iCONDOMINI!B57 -> 0 | C57: =iCONDOMINI!C57 -> 0 | D57: =IF(B57<>"",SUMIFS(cTABUI!$F$11:$F$109,cTABUI!$C$11:$C$109,B57),0) -> 0 | E57: =IF(B57<>"",SUMIFS(cTABUI!$G$11:$G$109,cTABUI!$D$11:$D$109,B57),0) -> 0 | F57: =IF(B57<>"",SUMIFS(cTABUI!$H$11:$H$109,cTABUI!$D$11:$D$109,B57),0) -> 0 | G57: =IF(B57<>"",SUMIFS(cTABUI!$I$11:$I$109,cTABUI!$D$11:$D$109,B57),0) -> 0 | H57: =IF(B57<>"",SUMIFS(cTABUI!$J$11:$J$109,cTABUI!$D$11:$D$109,B57),0) -> 0
A58: =iCONDOMINI!A58 -> 48 | B58: =iCONDOMINI!B58 -> 0 | C58: =iCONDOMINI!C58 -> 0 | D58: =IF(B58<>"",SUMIFS(cTABUI!$F$11:$F$109,cTABUI!$C$11:$C$109,B58),0) -> 0 | E58: =IF(B58<>"",SUMIFS(cTABUI!$G$11:$G$109,cTABUI!$D$11:$D$109,B58),0) -> 0 | F58: =IF(B58<>"",SUMIFS(cTABUI!$H$11:$H$109,cTABUI!$D$11:$D$109,B58),0) -> 0 | G58: =IF(B58<>"",SUMIFS(cTABUI!$I$11:$I$109,cTABUI!$D$11:$D$109,B58),0) -> 0 | H58: =IF(B58<>"",SUMIFS(cTABUI!$J$11:$J$109,cTABUI!$D$11:$D$109,B58),0) -> 0
A59: =iCONDOMINI!A59 -> 49 | B59: =iCONDOMINI!B59 -> 0 | C59: =iCONDOMINI!C59 -> 0 | D59: =IF(B59<>"",SUMIFS(cTABUI!$F$11:$F$109,cTABUI!$C$11:$C$109,B59),0) -> 0 | E59: =IF(B59<>"",SUMIFS(cTABUI!$G$11:$G$109,cTABUI!$D$11:$D$109,B59),0) -> 0 | F59: =IF(B59<>"",SUMIFS(cTABUI!$H$11:$H$109,cTABUI!$D$11:$D$109,B59),0) -> 0 | G59: =IF(B59<>"",SUMIFS(cTABUI!$I$11:$I$109,cTABUI!$D$11:$D$109,B59),0) -> 0 | H59: =IF(B59<>"",SUMIFS(cTABUI!$J$11:$J$109,cTABUI!$D$11:$D$109,B59),0) -> 0
A60: =iCONDOMINI!A60 -> 50 | B60: =iCONDOMINI!B60 -> 0 | C60: =iCONDOMINI!C60 -> 0 | D60: =IF(B60<>"",SUMIFS(cTABUI!$F$11:$F$109,cTABUI!$C$11:$C$109,B60),0) -> 0 | E60: =IF(B60<>"",SUMIFS(cTABUI!$G$11:$G$109,cTABUI!$D$11:$D$109,B60),0) -> 0 | F60: =IF(B60<>"",SUMIFS(cTABUI!$H$11:$H$109,cTABUI!$D$11:$D$109,B60),0) -> 0 | G60: =IF(B60<>"",SUMIFS(cTABUI!$I$11:$I$109,cTABUI!$D$11:$D$109,B60),0) -> 0 | H60: =IF(B60<>"",SUMIFS(cTABUI!$J$11:$J$109,cTABUI!$D$11:$D$109,B60),0) -> 0
A61: =iCONDOMINI!A61 -> 51 | B61: =iCONDOMINI!B61 -> 0 | C61: =iCONDOMINI!C61 -> 0 | D61: =IF(B61<>"",SUMIFS(cTABUI!$F$11:$F$109,cTABUI!$C$11:$C$109,B61),0) -> 0 | E61: =IF(B61<>"",SUMIFS(cTABUI!$G$11:$G$109,cTABUI!$D$11:$D$109,B61),0) -> 0 | F61: =IF(B61<>"",SUMIFS(cTABUI!$H$11:$H$109,cTABUI!$D$11:$D$109,B61),0) -> 0 | G61: =IF(B61<>"",SUMIFS(cTABUI!$I$11:$I$109,cTABUI!$D$11:$D$109,B61),0) -> 0 | H61: =IF(B61<>"",SUMIFS(cTABUI!$J$11:$J$109,cTABUI!$D$11:$D$109,B61),0) -> 0
A62: =iCONDOMINI!A62 -> 52 | B62: =iCONDOMINI!B62 -> 0 | C62: =iCONDOMINI!C62 -> 0 | D62: =IF(B62<>"",SUMIFS(cTABUI!$F$11:$F$109,cTABUI!$C$11:$C$109,B62),0) -> 0 | E62: =IF(B62<>"",SUMIFS(cTABUI!$G$11:$G$109,cTABUI!$D$11:$D$109,B62),0) -> 0 | F62: =IF(B62<>"",SUMIFS(cTABUI!$H$11:$H$109,cTABUI!$D$11:$D$109,B62),0) -> 0 | G62: =IF(B62<>"",SUMIFS(cTABUI!$I$11:$I$109,cTABUI!$D$11:$D$109,B62),0) -> 0 | H62: =IF(B62<>"",SUMIFS(cTABUI!$J$11:$J$109,cTABUI!$D$11:$D$109,B62),0) -> 0
A63: =iCONDOMINI!A63 -> 53 | B63: =iCONDOMINI!B63 -> 0 | C63: =iCONDOMINI!C63 -> 0 | D63: =IF(B63<>"",SUMIFS(cTABUI!$F$11:$F$109,cTABUI!$C$11:$C$109,B63),0) -> 0 | E63: =IF(B63<>"",SUMIFS(cTABUI!$G$11:$G$109,cTABUI!$D$11:$D$109,B63),0) -> 0 | F63: =IF(B63<>"",SUMIFS(cTABUI!$H$11:$H$109,cTABUI!$D$11:$D$109,B63),0) -> 0 | G63: =IF(B63<>"",SUMIFS(cTABUI!$I$11:$I$109,cTABUI!$D$11:$D$109,B63),0) -> 0 | H63: =IF(B63<>"",SUMIFS(cTABUI!$J$11:$J$109,cTABUI!$D$11:$D$109,B63),0) -> 0
A64: =iCONDOMINI!A64 -> 54 | B64: =iCONDOMINI!B64 -> 0 | C64: =iCONDOMINI!C64 -> 0 | D64: =IF(B64<>"",SUMIFS(cTABUI!$F$11:$F$109,cTABUI!$C$11:$C$109,B64),0) -> 0 | E64: =IF(B64<>"",SUMIFS(cTABUI!$G$11:$G$109,cTABUI!$D$11:$D$109,B64),0) -> 0 | F64: =IF(B64<>"",SUMIFS(cTABUI!$H$11:$H$109,cTABUI!$D$11:$D$109,B64),0) -> 0 | G64: =IF(B64<>"",SUMIFS(cTABUI!$I$11:$I$109,cTABUI!$D$11:$D$109,B64),0) -> 0 | H64: =IF(B64<>"",SUMIFS(cTABUI!$J$11:$J$109,cTABUI!$D$11:$D$109,B64),0) -> 0
A65: =iCONDOMINI!A65 -> 55 | B65: =iCONDOMINI!B65 -> 0 | C65: =iCONDOMINI!C65 -> 0 | D65: =IF(B65<>"",SUMIFS(cTABUI!$F$11:$F$109,cTABUI!$C$11:$C$109,B65),0) -> 0 | E65: =IF(B65<>"",SUMIFS(cTABUI!$G$11:$G$109,cTABUI!$D$11:$D$109,B65),0) -> 0 | F65: =IF(B65<>"",SUMIFS(cTABUI!$H$11:$H$109,cTABUI!$D$11:$D$109,B65),0) -> 0 | G65: =IF(B65<>"",SUMIFS(cTABUI!$I$11:$I$109,cTABUI!$D$11:$D$109,B65),0) -> 0 | H65: =IF(B65<>"",SUMIFS(cTABUI!$J$11:$J$109,cTABUI!$D$11:$D$109,B65),0) -> 0
A66: =iCONDOMINI!A66 -> 56 | B66: =iCONDOMINI!B66 -> 0 | C66: =iCONDOMINI!C66 -> 0 | D66: =IF(B66<>"",SUMIFS(cTABUI!$F$11:$F$109,cTABUI!$C$11:$C$109,B66),0) -> 0 | E66: =IF(B66<>"",SUMIFS(cTABUI!$G$11:$G$109,cTABUI!$D$11:$D$109,B66),0) -> 0 | F66: =IF(B66<>"",SUMIFS(cTABUI!$H$11:$H$109,cTABUI!$D$11:$D$109,B66),0) -> 0 | G66: =IF(B66<>"",SUMIFS(cTABUI!$I$11:$I$109,cTABUI!$D$11:$D$109,B66),0) -> 0 | H66: =IF(B66<>"",SUMIFS(cTABUI!$J$11:$J$109,cTABUI!$D$11:$D$109,B66),0) -> 0
A67: =iCONDOMINI!A67 -> 57 | B67: =iCONDOMINI!B67 -> 0 | C67: =iCONDOMINI!C67 -> 0 | D67: =IF(B67<>"",SUMIFS(cTABUI!$F$11:$F$109,cTABUI!$C$11:$C$109,B67),0) -> 0 | E67: =IF(B67<>"",SUMIFS(cTABUI!$G$11:$G$109,cTABUI!$D$11:$D$109,B67),0) -> 0 | F67: =IF(B67<>"",SUMIFS(cTABUI!$H$11:$H$109,cTABUI!$D$11:$D$109,B67),0) -> 0 | G67: =IF(B67<>"",SUMIFS(cTABUI!$I$11:$I$109,cTABUI!$D$11:$D$109,B67),0) -> 0 | H67: =IF(B67<>"",SUMIFS(cTABUI!$J$11:$J$109,cTABUI!$D$11:$D$109,B67),0) -> 0
A68: =iCONDOMINI!A68 -> 58 | B68: =iCONDOMINI!B68 -> 0 | C68: =iCONDOMINI!C68 -> 0 | D68: =IF(B68<>"",SUMIFS(cTABUI!$F$11:$F$109,cTABUI!$C$11:$C$109,B68),0) -> 0 | E68: =IF(B68<>"",SUMIFS(cTABUI!$G$11:$G$109,cTABUI!$D$11:$D$109,B68),0) -> 0 | F68: =IF(B68<>"",SUMIFS(cTABUI!$H$11:$H$109,cTABUI!$D$11:$D$109,B68),0) -> 0 | G68: =IF(B68<>"",SUMIFS(cTABUI!$I$11:$I$109,cTABUI!$D$11:$D$109,B68),0) -> 0 | H68: =IF(B68<>"",SUMIFS(cTABUI!$J$11:$J$109,cTABUI!$D$11:$D$109,B68),0) -> 0
A69: =iCONDOMINI!A69 -> 59 | B69: =iCONDOMINI!B69 -> 0 | C69: =iCONDOMINI!C69 -> 0 | D69: =IF(B69<>"",SUMIFS(cTABUI!$F$11:$F$109,cTABUI!$C$11:$C$109,B69),0) -> 0 | E69: =IF(B69<>"",SUMIFS(cTABUI!$G$11:$G$109,cTABUI!$D$11:$D$109,B69),0) -> 0 | F69: =IF(B69<>"",SUMIFS(cTABUI!$H$11:$H$109,cTABUI!$D$11:$D$109,B69),0) -> 0 | G69: =IF(B69<>"",SUMIFS(cTABUI!$I$11:$I$109,cTABUI!$D$11:$D$109,B69),0) -> 0 | H69: =IF(B69<>"",SUMIFS(cTABUI!$J$11:$J$109,cTABUI!$D$11:$D$109,B69),0) -> 0
A70: =iCONDOMINI!A70 -> 60 | B70: =iCONDOMINI!B70 -> 0 | C70: =iCONDOMINI!C70 -> 0 | D70: =IF(B70<>"",SUMIFS(cTABUI!$F$11:$F$109,cTABUI!$C$11:$C$109,B70),0) -> 0 | E70: =IF(B70<>"",SUMIFS(cTABUI!$G$11:$G$109,cTABUI!$D$11:$D$109,B70),0) -> 0 | F70: =IF(B70<>"",SUMIFS(cTABUI!$H$11:$H$109,cTABUI!$D$11:$D$109,B70),0) -> 0 | G70: =IF(B70<>"",SUMIFS(cTABUI!$I$11:$I$109,cTABUI!$D$11:$D$109,B70),0) -> 0 | H70: =IF(B70<>"",SUMIFS(cTABUI!$J$11:$J$109,cTABUI!$D$11:$D$109,B70),0) -> 0
A71: =iCONDOMINI!A71 -> 61 | B71: =iCONDOMINI!B71 -> 0 | C71: =iCONDOMINI!C71 -> 0 | D71: =IF(B71<>"",SUMIFS(cTABUI!$F$11:$F$109,cTABUI!$C$11:$C$109,B71),0) -> 0 | E71: =IF(B71<>"",SUMIFS(cTABUI!$G$11:$G$109,cTABUI!$D$11:$D$109,B71),0) -> 0 | F71: =IF(B71<>"",SUMIFS(cTABUI!$H$11:$H$109,cTABUI!$D$11:$D$109,B71),0) -> 0 | G71: =IF(B71<>"",SUMIFS(cTABUI!$I$11:$I$109,cTABUI!$D$11:$D$109,B71),0) -> 0 | H71: =IF(B71<>"",SUMIFS(cTABUI!$J$11:$J$109,cTABUI!$D$11:$D$109,B71),0) -> 0
A72: =iCONDOMINI!A72 -> 62 | B72: =iCONDOMINI!B72 -> 0 | C72: =iCONDOMINI!C72 -> 0 | D72: =IF(B72<>"",SUMIFS(cTABUI!$F$11:$F$109,cTABUI!$C$11:$C$109,B72),0) -> 0 | E72: =IF(B72<>"",SUMIFS(cTABUI!$G$11:$G$109,cTABUI!$D$11:$D$109,B72),0) -> 0 | F72: =IF(B72<>"",SUMIFS(cTABUI!$H$11:$H$109,cTABUI!$D$11:$D$109,B72),0) -> 0 | G72: =IF(B72<>"",SUMIFS(cTABUI!$I$11:$I$109,cTABUI!$D$11:$D$109,B72),0) -> 0 | H72: =IF(B72<>"",SUMIFS(cTABUI!$J$11:$J$109,cTABUI!$D$11:$D$109,B72),0) -> 0
A73: =iCONDOMINI!A73 -> 63 | B73: =iCONDOMINI!B73 -> 0 | C73: =iCONDOMINI!C73 -> 0 | D73: =IF(B73<>"",SUMIFS(cTABUI!$F$11:$F$109,cTABUI!$C$11:$C$109,B73),0) -> 0 | E73: =IF(B73<>"",SUMIFS(cTABUI!$G$11:$G$109,cTABUI!$D$11:$D$109,B73),0) -> 0 | F73: =IF(B73<>"",SUMIFS(cTABUI!$H$11:$H$109,cTABUI!$D$11:$D$109,B73),0) -> 0 | G73: =IF(B73<>"",SUMIFS(cTABUI!$I$11:$I$109,cTABUI!$D$11:$D$109,B73),0) -> 0 | H73: =IF(B73<>"",SUMIFS(cTABUI!$J$11:$J$109,cTABUI!$D$11:$D$109,B73),0) -> 0
A74: =iCONDOMINI!A74 -> 64 | B74: =iCONDOMINI!B74 -> 0 | C74: =iCONDOMINI!C74 -> 0 | D74: =IF(B74<>"",SUMIFS(cTABUI!$F$11:$F$109,cTABUI!$C$11:$C$109,B74),0) -> 0 | E74: =IF(B74<>"",SUMIFS(cTABUI!$G$11:$G$109,cTABUI!$D$11:$D$109,B74),0) -> 0 | F74: =IF(B74<>"",SUMIFS(cTABUI!$H$11:$H$109,cTABUI!$D$11:$D$109,B74),0) -> 0 | G74: =IF(B74<>"",SUMIFS(cTABUI!$I$11:$I$109,cTABUI!$D$11:$D$109,B74),0) -> 0 | H74: =IF(B74<>"",SUMIFS(cTABUI!$J$11:$J$109,cTABUI!$D$11:$D$109,B74),0) -> 0
A75: =iCONDOMINI!A75 -> 65 | B75: =iCONDOMINI!B75 -> 0 | C75: =iCONDOMINI!C75 -> 0 | D75: =IF(B75<>"",SUMIFS(cTABUI!$F$11:$F$109,cTABUI!$C$11:$C$109,B75),0) -> 0 | E75: =IF(B75<>"",SUMIFS(cTABUI!$G$11:$G$109,cTABUI!$D$11:$D$109,B75),0) -> 0 | F75: =IF(B75<>"",SUMIFS(cTABUI!$H$11:$H$109,cTABUI!$D$11:$D$109,B75),0) -> 0 | G75: =IF(B75<>"",SUMIFS(cTABUI!$I$11:$I$109,cTABUI!$D$11:$D$109,B75),0) -> 0 | H75: =IF(B75<>"",SUMIFS(cTABUI!$J$11:$J$109,cTABUI!$D$11:$D$109,B75),0) -> 0
A76: =iCONDOMINI!A76 -> 66 | B76: =iCONDOMINI!B76 -> 0 | C76: =iCONDOMINI!C76 -> 0 | D76: =IF(B76<>"",SUMIFS(cTABUI!$F$11:$F$109,cTABUI!$C$11:$C$109,B76),0) -> 0 | E76: =IF(B76<>"",SUMIFS(cTABUI!$G$11:$G$109,cTABUI!$D$11:$D$109,B76),0) -> 0 | F76: =IF(B76<>"",SUMIFS(cTABUI!$H$11:$H$109,cTABUI!$D$11:$D$109,B76),0) -> 0 | G76: =IF(B76<>"",SUMIFS(cTABUI!$I$11:$I$109,cTABUI!$D$11:$D$109,B76),0) -> 0 | H76: =IF(B76<>"",SUMIFS(cTABUI!$J$11:$J$109,cTABUI!$D$11:$D$109,B76),0) -> 0
A77: =iCONDOMINI!A77 -> 67 | B77: =iCONDOMINI!B77 -> 0 | C77: =iCONDOMINI!C77 -> 0 | D77: =IF(B77<>"",SUMIFS(cTABUI!$F$11:$F$109,cTABUI!$C$11:$C$109,B77),0) -> 0 | E77: =IF(B77<>"",SUMIFS(cTABUI!$G$11:$G$109,cTABUI!$D$11:$D$109,B77),0) -> 0 | F77: =IF(B77<>"",SUMIFS(cTABUI!$H$11:$H$109,cTABUI!$D$11:$D$109,B77),0) -> 0 | G77: =IF(B77<>"",SUMIFS(cTABUI!$I$11:$I$109,cTABUI!$D$11:$D$109,B77),0) -> 0 | H77: =IF(B77<>"",SUMIFS(cTABUI!$J$11:$J$109,cTABUI!$D$11:$D$109,B77),0) -> 0
A78: =iCONDOMINI!A78 -> 68 | B78: =iCONDOMINI!B78 -> 0 | C78: =iCONDOMINI!C78 -> 0 | D78: =IF(B78<>"",SUMIFS(cTABUI!$F$11:$F$109,cTABUI!$C$11:$C$109,B78),0) -> 0 | E78: =IF(B78<>"",SUMIFS(cTABUI!$G$11:$G$109,cTABUI!$D$11:$D$109,B78),0) -> 0 | F78: =IF(B78<>"",SUMIFS(cTABUI!$H$11:$H$109,cTABUI!$D$11:$D$109,B78),0) -> 0 | G78: =IF(B78<>"",SUMIFS(cTABUI!$I$11:$I$109,cTABUI!$D$11:$D$109,B78),0) -> 0 | H78: =IF(B78<>"",SUMIFS(cTABUI!$J$11:$J$109,cTABUI!$D$11:$D$109,B78),0) -> 0
A79: =iCONDOMINI!A79 -> 69 | B79: =iCONDOMINI!B79 -> 0 | C79: =iCONDOMINI!C79 -> 0 | D79: =IF(B79<>"",SUMIFS(cTABUI!$F$11:$F$109,cTABUI!$C$11:$C$109,B79),0) -> 0 | E79: =IF(B79<>"",SUMIFS(cTABUI!$G$11:$G$109,cTABUI!$D$11:$D$109,B79),0) -> 0 | F79: =IF(B79<>"",SUMIFS(cTABUI!$H$11:$H$109,cTABUI!$D$11:$D$109,B79),0) -> 0 | G79: =IF(B79<>"",SUMIFS(cTABUI!$I$11:$I$109,cTABUI!$D$11:$D$109,B79),0) -> 0 | H79: =IF(B79<>"",SUMIFS(cTABUI!$J$11:$J$109,cTABUI!$D$11:$D$109,B79),0) -> 0
A80: =iCONDOMINI!A80 -> 70 | B80: =iCONDOMINI!B80 -> 0 | C80: =iCONDOMINI!C80 -> 0 | D80: =IF(B80<>"",SUMIFS(cTABUI!$F$11:$F$109,cTABUI!$C$11:$C$109,B80),0) -> 0 | E80: =IF(B80<>"",SUMIFS(cTABUI!$G$11:$G$109,cTABUI!$D$11:$D$109,B80),0) -> 0 | F80: =IF(B80<>"",SUMIFS(cTABUI!$H$11:$H$109,cTABUI!$D$11:$D$109,B80),0) -> 0 | G80: =IF(B80<>"",SUMIFS(cTABUI!$I$11:$I$109,cTABUI!$D$11:$D$109,B80),0) -> 0 | H80: =IF(B80<>"",SUMIFS(cTABUI!$J$11:$J$109,cTABUI!$D$11:$D$109,B80),0) -> 0
A81: =iCONDOMINI!A81 -> 71 | B81: =iCONDOMINI!B81 -> 0 | C81: =iCONDOMINI!C81 -> 0 | D81: =IF(B81<>"",SUMIFS(cTABUI!$F$11:$F$109,cTABUI!$C$11:$C$109,B81),0) -> 0 | E81: =IF(B81<>"",SUMIFS(cTABUI!$G$11:$G$109,cTABUI!$D$11:$D$109,B81),0) -> 0 | F81: =IF(B81<>"",SUMIFS(cTABUI!$H$11:$H$109,cTABUI!$D$11:$D$109,B81),0) -> 0 | G81: =IF(B81<>"",SUMIFS(cTABUI!$I$11:$I$109,cTABUI!$D$11:$D$109,B81),0) -> 0 | H81: =IF(B81<>"",SUMIFS(cTABUI!$J$11:$J$109,cTABUI!$D$11:$D$109,B81),0) -> 0
A82: =iCONDOMINI!A82 -> 72 | B82: =iCONDOMINI!B82 -> 0 | C82: =iCONDOMINI!C82 -> 0 | D82: =IF(B82<>"",SUMIFS(cTABUI!$F$11:$F$109,cTABUI!$C$11:$C$109,B82),0) -> 0 | E82: =IF(B82<>"",SUMIFS(cTABUI!$G$11:$G$109,cTABUI!$D$11:$D$109,B82),0) -> 0 | F82: =IF(B82<>"",SUMIFS(cTABUI!$H$11:$H$109,cTABUI!$D$11:$D$109,B82),0) -> 0 | G82: =IF(B82<>"",SUMIFS(cTABUI!$I$11:$I$109,cTABUI!$D$11:$D$109,B82),0) -> 0 | H82: =IF(B82<>"",SUMIFS(cTABUI!$J$11:$J$109,cTABUI!$D$11:$D$109,B82),0) -> 0
A83: =iCONDOMINI!A83 -> 73 | B83: =iCONDOMINI!B83 -> 0 | C83: =iCONDOMINI!C83 -> 0 | D83: =IF(B83<>"",SUMIFS(cTABUI!$F$11:$F$109,cTABUI!$C$11:$C$109,B83),0) -> 0 | E83: =IF(B83<>"",SUMIFS(cTABUI!$G$11:$G$109,cTABUI!$D$11:$D$109,B83),0) -> 0 | F83: =IF(B83<>"",SUMIFS(cTABUI!$H$11:$H$109,cTABUI!$D$11:$D$109,B83),0) -> 0 | G83: =IF(B83<>"",SUMIFS(cTABUI!$I$11:$I$109,cTABUI!$D$11:$D$109,B83),0) -> 0 | H83: =IF(B83<>"",SUMIFS(cTABUI!$J$11:$J$109,cTABUI!$D$11:$D$109,B83),0) -> 0
A84: =iCONDOMINI!A84 -> 74 | B84: =iCONDOMINI!B84 -> 0 | C84: =iCONDOMINI!C84 -> 0 | D84: =IF(B84<>"",SUMIFS(cTABUI!$F$11:$F$109,cTABUI!$C$11:$C$109,B84),0) -> 0 | E84: =IF(B84<>"",SUMIFS(cTABUI!$G$11:$G$109,cTABUI!$D$11:$D$109,B84),0) -> 0 | F84: =IF(B84<>"",SUMIFS(cTABUI!$H$11:$H$109,cTABUI!$D$11:$D$109,B84),0) -> 0 | G84: =IF(B84<>"",SUMIFS(cTABUI!$I$11:$I$109,cTABUI!$D$11:$D$109,B84),0) -> 0 | H84: =IF(B84<>"",SUMIFS(cTABUI!$J$11:$J$109,cTABUI!$D$11:$D$109,B84),0) -> 0
A85: =iCONDOMINI!A85 -> 75 | B85: =iCONDOMINI!B85 -> 0 | C85: =iCONDOMINI!C85 -> 0 | D85: =IF(B85<>"",SUMIFS(cTABUI!$F$11:$F$109,cTABUI!$C$11:$C$109,B85),0) -> 0 | E85: =IF(B85<>"",SUMIFS(cTABUI!$G$11:$G$109,cTABUI!$D$11:$D$109,B85),0) -> 0 | F85: =IF(B85<>"",SUMIFS(cTABUI!$H$11:$H$109,cTABUI!$D$11:$D$109,B85),0) -> 0 | G85: =IF(B85<>"",SUMIFS(cTABUI!$I$11:$I$109,cTABUI!$D$11:$D$109,B85),0) -> 0 | H85: =IF(B85<>"",SUMIFS(cTABUI!$J$11:$J$109,cTABUI!$D$11:$D$109,B85),0) -> 0
A86: =iCONDOMINI!A86 -> 76 | B86: =iCONDOMINI!B86 -> 0 | C86: =iCONDOMINI!C86 -> 0 | D86: =IF(B86<>"",SUMIFS(cTABUI!$F$11:$F$109,cTABUI!$C$11:$C$109,B86),0) -> 0 | E86: =IF(B86<>"",SUMIFS(cTABUI!$G$11:$G$109,cTABUI!$D$11:$D$109,B86),0) -> 0 | F86: =IF(B86<>"",SUMIFS(cTABUI!$H$11:$H$109,cTABUI!$D$11:$D$109,B86),0) -> 0 | G86: =IF(B86<>"",SUMIFS(cTABUI!$I$11:$I$109,cTABUI!$D$11:$D$109,B86),0) -> 0 | H86: =IF(B86<>"",SUMIFS(cTABUI!$J$11:$J$109,cTABUI!$D$11:$D$109,B86),0) -> 0
A87: =iCONDOMINI!A87 -> 77 | B87: =iCONDOMINI!B87 -> 0 | C87: =iCONDOMINI!C87 -> 0 | D87: =IF(B87<>"",SUMIFS(cTABUI!$F$11:$F$109,cTABUI!$C$11:$C$109,B87),0) -> 0 | E87: =IF(B87<>"",SUMIFS(cTABUI!$G$11:$G$109,cTABUI!$D$11:$D$109,B87),0) -> 0 | F87: =IF(B87<>"",SUMIFS(cTABUI!$H$11:$H$109,cTABUI!$D$11:$D$109,B87),0) -> 0 | G87: =IF(B87<>"",SUMIFS(cTABUI!$I$11:$I$109,cTABUI!$D$11:$D$109,B87),0) -> 0 | H87: =IF(B87<>"",SUMIFS(cTABUI!$J$11:$J$109,cTABUI!$D$11:$D$109,B87),0) -> 0
A88: =iCONDOMINI!A88 -> 78 | B88: =iCONDOMINI!B88 -> 0 | C88: =iCONDOMINI!C88 -> 0 | D88: =IF(B88<>"",SUMIFS(cTABUI!$F$11:$F$109,cTABUI!$C$11:$C$109,B88),0) -> 0 | E88: =IF(B88<>"",SUMIFS(cTABUI!$G$11:$G$109,cTABUI!$D$11:$D$109,B88),0) -> 0 | F88: =IF(B88<>"",SUMIFS(cTABUI!$H$11:$H$109,cTABUI!$D$11:$D$109,B88),0) -> 0 | G88: =IF(B88<>"",SUMIFS(cTABUI!$I$11:$I$109,cTABUI!$D$11:$D$109,B88),0) -> 0 | H88: =IF(B88<>"",SUMIFS(cTABUI!$J$11:$J$109,cTABUI!$D$11:$D$109,B88),0) -> 0
A89: =iCONDOMINI!A89 -> 79 | B89: =iCONDOMINI!B89 -> 0 | C89: =iCONDOMINI!C89 -> 0 | D89: =IF(B89<>"",SUMIFS(cTABUI!$F$11:$F$109,cTABUI!$C$11:$C$109,B89),0) -> 0 | E89: =IF(B89<>"",SUMIFS(cTABUI!$G$11:$G$109,cTABUI!$D$11:$D$109,B89),0) -> 0 | F89: =IF(B89<>"",SUMIFS(cTABUI!$H$11:$H$109,cTABUI!$D$11:$D$109,B89),0) -> 0 | G89: =IF(B89<>"",SUMIFS(cTABUI!$I$11:$I$109,cTABUI!$D$11:$D$109,B89),0) -> 0 | H89: =IF(B89<>"",SUMIFS(cTABUI!$J$11:$J$109,cTABUI!$D$11:$D$109,B89),0) -> 0
A90: =iCONDOMINI!A90 -> 80 | B90: =iCONDOMINI!B90 -> 0 | C90: =iCONDOMINI!C90 -> 0 | D90: =IF(B90<>"",SUMIFS(cTABUI!$F$11:$F$109,cTABUI!$C$11:$C$109,B90),0) -> 0 | E90: =IF(B90<>"",SUMIFS(cTABUI!$G$11:$G$109,cTABUI!$D$11:$D$109,B90),0) -> 0 | F90: =IF(B90<>"",SUMIFS(cTABUI!$H$11:$H$109,cTABUI!$D$11:$D$109,B90),0) -> 0 | G90: =IF(B90<>"",SUMIFS(cTABUI!$I$11:$I$109,cTABUI!$D$11:$D$109,B90),0) -> 0 | H90: =IF(B90<>"",SUMIFS(cTABUI!$J$11:$J$109,cTABUI!$D$11:$D$109,B90),0) -> 0
A91: =iCONDOMINI!A91 -> 81 | B91: =iCONDOMINI!B91 -> 0 | C91: =iCONDOMINI!C91 -> 0 | D91: =IF(B91<>"",SUMIFS(cTABUI!$F$11:$F$109,cTABUI!$C$11:$C$109,B91),0) -> 0 | E91: =IF(B91<>"",SUMIFS(cTABUI!$G$11:$G$109,cTABUI!$D$11:$D$109,B91),0) -> 0 | F91: =IF(B91<>"",SUMIFS(cTABUI!$H$11:$H$109,cTABUI!$D$11:$D$109,B91),0) -> 0 | G91: =IF(B91<>"",SUMIFS(cTABUI!$I$11:$I$109,cTABUI!$D$11:$D$109,B91),0) -> 0 | H91: =IF(B91<>"",SUMIFS(cTABUI!$J$11:$J$109,cTABUI!$D$11:$D$109,B91),0) -> 0
A92: =iCONDOMINI!A92 -> 82 | B92: =iCONDOMINI!B92 -> 0 | C92: =iCONDOMINI!C92 -> 0 | D92: =IF(B92<>"",SUMIFS(cTABUI!$F$11:$F$109,cTABUI!$C$11:$C$109,B92),0) -> 0 | E92: =IF(B92<>"",SUMIFS(cTABUI!$G$11:$G$109,cTABUI!$D$11:$D$109,B92),0) -> 0 | F92: =IF(B92<>"",SUMIFS(cTABUI!$H$11:$H$109,cTABUI!$D$11:$D$109,B92),0) -> 0 | G92: =IF(B92<>"",SUMIFS(cTABUI!$I$11:$I$109,cTABUI!$D$11:$D$109,B92),0) -> 0 | H92: =IF(B92<>"",SUMIFS(cTABUI!$J$11:$J$109,cTABUI!$D$11:$D$109,B92),0) -> 0
A93: =iCONDOMINI!A93 -> 83 | B93: =iCONDOMINI!B93 -> 0 | C93: =iCONDOMINI!C93 -> 0 | D93: =IF(B93<>"",SUMIFS(cTABUI!$F$11:$F$109,cTABUI!$C$11:$C$109,B93),0) -> 0 | E93: =IF(B93<>"",SUMIFS(cTABUI!$G$11:$G$109,cTABUI!$D$11:$D$109,B93),0) -> 0 | F93: =IF(B93<>"",SUMIFS(cTABUI!$H$11:$H$109,cTABUI!$D$11:$D$109,B93),0) -> 0 | G93: =IF(B93<>"",SUMIFS(cTABUI!$I$11:$I$109,cTABUI!$D$11:$D$109,B93),0) -> 0 | H93: =IF(B93<>"",SUMIFS(cTABUI!$J$11:$J$109,cTABUI!$D$11:$D$109,B93),0) -> 0
A94: =iCONDOMINI!A94 -> 84 | B94: =iCONDOMINI!B94 -> 0 | C94: =iCONDOMINI!C94 -> 0 | D94: =IF(B94<>"",SUMIFS(cTABUI!$F$11:$F$109,cTABUI!$C$11:$C$109,B94),0) -> 0 | E94: =IF(B94<>"",SUMIFS(cTABUI!$G$11:$G$109,cTABUI!$D$11:$D$109,B94),0) -> 0 | F94: =IF(B94<>"",SUMIFS(cTABUI!$H$11:$H$109,cTABUI!$D$11:$D$109,B94),0) -> 0 | G94: =IF(B94<>"",SUMIFS(cTABUI!$I$11:$I$109,cTABUI!$D$11:$D$109,B94),0) -> 0 | H94: =IF(B94<>"",SUMIFS(cTABUI!$J$11:$J$109,cTABUI!$D$11:$D$109,B94),0) -> 0
A95: =iCONDOMINI!A95 -> 85 | B95: =iCONDOMINI!B95 -> 0 | C95: =iCONDOMINI!C95 -> 0 | D95: =IF(B95<>"",SUMIFS(cTABUI!$F$11:$F$109,cTABUI!$C$11:$C$109,B95),0) -> 0 | E95: =IF(B95<>"",SUMIFS(cTABUI!$G$11:$G$109,cTABUI!$D$11:$D$109,B95),0) -> 0 | F95: =IF(B95<>"",SUMIFS(cTABUI!$H$11:$H$109,cTABUI!$D$11:$D$109,B95),0) -> 0 | G95: =IF(B95<>"",SUMIFS(cTABUI!$I$11:$I$109,cTABUI!$D$11:$D$109,B95),0) -> 0 | H95: =IF(B95<>"",SUMIFS(cTABUI!$J$11:$J$109,cTABUI!$D$11:$D$109,B95),0) -> 0
A96: =iCONDOMINI!A96 -> 86 | B96: =iCONDOMINI!B96 -> 0 | C96: =iCONDOMINI!C96 -> 0 | D96: =IF(B96<>"",SUMIFS(cTABUI!$F$11:$F$109,cTABUI!$C$11:$C$109,B96),0) -> 0 | E96: =IF(B96<>"",SUMIFS(cTABUI!$G$11:$G$109,cTABUI!$D$11:$D$109,B96),0) -> 0 | F96: =IF(B96<>"",SUMIFS(cTABUI!$H$11:$H$109,cTABUI!$D$11:$D$109,B96),0) -> 0 | G96: =IF(B96<>"",SUMIFS(cTABUI!$I$11:$I$109,cTABUI!$D$11:$D$109,B96),0) -> 0 | H96: =IF(B96<>"",SUMIFS(cTABUI!$J$11:$J$109,cTABUI!$D$11:$D$109,B96),0) -> 0
A97: =iCONDOMINI!A97 -> 87 | B97: =iCONDOMINI!B97 -> 0 | C97: =iCONDOMINI!C97 -> 0 | D97: =IF(B97<>"",SUMIFS(cTABUI!$F$11:$F$109,cTABUI!$C$11:$C$109,B97),0) -> 0 | E97: =IF(B97<>"",SUMIFS(cTABUI!$G$11:$G$109,cTABUI!$D$11:$D$109,B97),0) -> 0 | F97: =IF(B97<>"",SUMIFS(cTABUI!$H$11:$H$109,cTABUI!$D$11:$D$109,B97),0) -> 0 | G97: =IF(B97<>"",SUMIFS(cTABUI!$I$11:$I$109,cTABUI!$D$11:$D$109,B97),0) -> 0 | H97: =IF(B97<>"",SUMIFS(cTABUI!$J$11:$J$109,cTABUI!$D$11:$D$109,B97),0) -> 0
A98: =iCONDOMINI!A98 -> 88 | B98: =iCONDOMINI!B98 -> 0 | C98: =iCONDOMINI!C98 -> 0 | D98: =IF(B98<>"",SUMIFS(cTABUI!$F$11:$F$109,cTABUI!$C$11:$C$109,B98),0) -> 0 | E98: =IF(B98<>"",SUMIFS(cTABUI!$G$11:$G$109,cTABUI!$D$11:$D$109,B98),0) -> 0 | F98: =IF(B98<>"",SUMIFS(cTABUI!$H$11:$H$109,cTABUI!$D$11:$D$109,B98),0) -> 0 | G98: =IF(B98<>"",SUMIFS(cTABUI!$I$11:$I$109,cTABUI!$D$11:$D$109,B98),0) -> 0 | H98: =IF(B98<>"",SUMIFS(cTABUI!$J$11:$J$109,cTABUI!$D$11:$D$109,B98),0) -> 0
A99: =iCONDOMINI!A99 -> 89 | B99: =iCONDOMINI!B99 -> 0 | C99: =iCONDOMINI!C99 -> 0 | D99: =IF(B99<>"",SUMIFS(cTABUI!$F$11:$F$109,cTABUI!$C$11:$C$109,B99),0) -> 0 | E99: =IF(B99<>"",SUMIFS(cTABUI!$G$11:$G$109,cTABUI!$D$11:$D$109,B99),0) -> 0 | F99: =IF(B99<>"",SUMIFS(cTABUI!$H$11:$H$109,cTABUI!$D$11:$D$109,B99),0) -> 0 | G99: =IF(B99<>"",SUMIFS(cTABUI!$I$11:$I$109,cTABUI!$D$11:$D$109,B99),0) -> 0 | H99: =IF(B99<>"",SUMIFS(cTABUI!$J$11:$J$109,cTABUI!$D$11:$D$109,B99),0) -> 0
A100: =iCONDOMINI!A100 -> 90 | B100: =iCONDOMINI!B100 -> 0 | C100: =iCONDOMINI!C100 -> 0 | D100: =IF(B100<>"",SUMIFS(cTABUI!$F$11:$F$109,cTABUI!$C$11:$C$109,B100),0) -> 0 | E100: =IF(B100<>"",SUMIFS(cTABUI!$G$11:$G$109,cTABUI!$D$11:$D$109,B100),0) -> 0 | F100: =IF(B100<>"",SUMIFS(cTABUI!$H$11:$H$109,cTABUI!$D$11:$D$109,B100),0) -> 0 | G100: =IF(B100<>"",SUMIFS(cTABUI!$I$11:$I$109,cTABUI!$D$11:$D$109,B100),0) -> 0 | H100: =IF(B100<>"",SUMIFS(cTABUI!$J$11:$J$109,cTABUI!$D$11:$D$109,B100),0) -> 0
A101: =iCONDOMINI!A101 -> 91 | B101: =iCONDOMINI!B101 -> 0 | C101: =iCONDOMINI!C101 -> 0 | D101: =IF(B101<>"",SUMIFS(cTABUI!$F$11:$F$109,cTABUI!$C$11:$C$109,B101),0) -> 0 | E101: =IF(B101<>"",SUMIFS(cTABUI!$G$11:$G$109,cTABUI!$D$11:$D$109,B101),0) -> 0 | F101: =IF(B101<>"",SUMIFS(cTABUI!$H$11:$H$109,cTABUI!$D$11:$D$109,B101),0) -> 0 | G101: =IF(B101<>"",SUMIFS(cTABUI!$I$11:$I$109,cTABUI!$D$11:$D$109,B101),0) -> 0 | H101: =IF(B101<>"",SUMIFS(cTABUI!$J$11:$J$109,cTABUI!$D$11:$D$109,B101),0) -> 0
A102: =iCONDOMINI!A102 -> 92 | B102: =iCONDOMINI!B102 -> 0 | C102: =iCONDOMINI!C102 -> 0 | D102: =IF(B102<>"",SUMIFS(cTABUI!$F$11:$F$109,cTABUI!$C$11:$C$109,B102),0) -> 0 | E102: =IF(B102<>"",SUMIFS(cTABUI!$G$11:$G$109,cTABUI!$D$11:$D$109,B102),0) -> 0 | F102: =IF(B102<>"",SUMIFS(cTABUI!$H$11:$H$109,cTABUI!$D$11:$D$109,B102),0) -> 0 | G102: =IF(B102<>"",SUMIFS(cTABUI!$I$11:$I$109,cTABUI!$D$11:$D$109,B102),0) -> 0 | H102: =IF(B102<>"",SUMIFS(cTABUI!$J$11:$J$109,cTABUI!$D$11:$D$109,B102),0) -> 0
A103: =iCONDOMINI!A103 -> 93 | B103: =iCONDOMINI!B103 -> 0 | C103: =iCONDOMINI!C103 -> 0 | D103: =IF(B103<>"",SUMIFS(cTABUI!$F$11:$F$109,cTABUI!$C$11:$C$109,B103),0) -> 0 | E103: =IF(B103<>"",SUMIFS(cTABUI!$G$11:$G$109,cTABUI!$D$11:$D$109,B103),0) -> 0 | F103: =IF(B103<>"",SUMIFS(cTABUI!$H$11:$H$109,cTABUI!$D$11:$D$109,B103),0) -> 0 | G103: =IF(B103<>"",SUMIFS(cTABUI!$I$11:$I$109,cTABUI!$D$11:$D$109,B103),0) -> 0 | H103: =IF(B103<>"",SUMIFS(cTABUI!$J$11:$J$109,cTABUI!$D$11:$D$109,B103),0) -> 0
A104: =iCONDOMINI!A104 -> 94 | B104: =iCONDOMINI!B104 -> 0 | C104: =iCONDOMINI!C104 -> 0 | D104: =IF(B104<>"",SUMIFS(cTABUI!$F$11:$F$109,cTABUI!$C$11:$C$109,B104),0) -> 0 | E104: =IF(B104<>"",SUMIFS(cTABUI!$G$11:$G$109,cTABUI!$D$11:$D$109,B104),0) -> 0 | F104: =IF(B104<>"",SUMIFS(cTABUI!$H$11:$H$109,cTABUI!$D$11:$D$109,B104),0) -> 0 | G104: =IF(B104<>"",SUMIFS(cTABUI!$I$11:$I$109,cTABUI!$D$11:$D$109,B104),0) -> 0 | H104: =IF(B104<>"",SUMIFS(cTABUI!$J$11:$J$109,cTABUI!$D$11:$D$109,B104),0) -> 0
A105: =iCONDOMINI!A105 -> 95 | B105: =iCONDOMINI!B105 -> 0 | C105: =iCONDOMINI!C105 -> 0 | D105: =IF(B105<>"",SUMIFS(cTABUI!$F$11:$F$109,cTABUI!$C$11:$C$109,B105),0) -> 0 | E105: =IF(B105<>"",SUMIFS(cTABUI!$G$11:$G$109,cTABUI!$D$11:$D$109,B105),0) -> 0 | F105: =IF(B105<>"",SUMIFS(cTABUI!$H$11:$H$109,cTABUI!$D$11:$D$109,B105),0) -> 0 | G105: =IF(B105<>"",SUMIFS(cTABUI!$I$11:$I$109,cTABUI!$D$11:$D$109,B105),0) -> 0 | H105: =IF(B105<>"",SUMIFS(cTABUI!$J$11:$J$109,cTABUI!$D$11:$D$109,B105),0) -> 0
A106: =iCONDOMINI!A106 -> 96 | B106: =iCONDOMINI!B106 -> 0 | C106: =iCONDOMINI!C106 -> 0 | D106: =IF(B106<>"",SUMIFS(cTABUI!$F$11:$F$109,cTABUI!$C$11:$C$109,B106),0) -> 0 | E106: =IF(B106<>"",SUMIFS(cTABUI!$G$11:$G$109,cTABUI!$D$11:$D$109,B106),0) -> 0 | F106: =IF(B106<>"",SUMIFS(cTABUI!$H$11:$H$109,cTABUI!$D$11:$D$109,B106),0) -> 0 | G106: =IF(B106<>"",SUMIFS(cTABUI!$I$11:$I$109,cTABUI!$D$11:$D$109,B106),0) -> 0 | H106: =IF(B106<>"",SUMIFS(cTABUI!$J$11:$J$109,cTABUI!$D$11:$D$109,B106),0) -> 0
A107: =iCONDOMINI!A107 -> 97 | B107: =iCONDOMINI!B107 -> 0 | C107: =iCONDOMINI!C107 -> 0 | D107: =IF(B107<>"",SUMIFS(cTABUI!$F$11:$F$109,cTABUI!$C$11:$C$109,B107),0) -> 0 | E107: =IF(B107<>"",SUMIFS(cTABUI!$G$11:$G$109,cTABUI!$D$11:$D$109,B107),0) -> 0 | F107: =IF(B107<>"",SUMIFS(cTABUI!$H$11:$H$109,cTABUI!$D$11:$D$109,B107),0) -> 0 | G107: =IF(B107<>"",SUMIFS(cTABUI!$I$11:$I$109,cTABUI!$D$11:$D$109,B107),0) -> 0 | H107: =IF(B107<>"",SUMIFS(cTABUI!$J$11:$J$109,cTABUI!$D$11:$D$109,B107),0) -> 0
A108: =iCONDOMINI!A108 -> 98 | B108: =iCONDOMINI!B108 -> 0 | C108: =iCONDOMINI!C108 -> 0 | D108: =IF(B108<>"",SUMIFS(cTABUI!$F$11:$F$109,cTABUI!$C$11:$C$109,B108),0) -> 0 | E108: =IF(B108<>"",SUMIFS(cTABUI!$G$11:$G$109,cTABUI!$D$11:$D$109,B108),0) -> 0 | F108: =IF(B108<>"",SUMIFS(cTABUI!$H$11:$H$109,cTABUI!$D$11:$D$109,B108),0) -> 0 | G108: =IF(B108<>"",SUMIFS(cTABUI!$I$11:$I$109,cTABUI!$D$11:$D$109,B108),0) -> 0 | H108: =IF(B108<>"",SUMIFS(cTABUI!$J$11:$J$109,cTABUI!$D$11:$D$109,B108),0) -> 0
A109: =iCONDOMINI!A109 -> 99 | B109: =iCONDOMINI!B109 -> 0 | C109: =iCONDOMINI!C109 -> 0 | D109: =IF(B109<>"",SUMIFS(cTABUI!$F$11:$F$109,cTABUI!$C$11:$C$109,B109),0) -> 0 | E109: =IF(B109<>"",SUMIFS(cTABUI!$G$11:$G$109,cTABUI!$D$11:$D$109,B109),0) -> 0 | F109: =IF(B109<>"",SUMIFS(cTABUI!$H$11:$H$109,cTABUI!$D$11:$D$109,B109),0) -> 0 | G109: =IF(B109<>"",SUMIFS(cTABUI!$I$11:$I$109,cTABUI!$D$11:$D$109,B109),0) -> 0 | H109: =IF(B109<>"",SUMIFS(cTABUI!$J$11:$J$109,cTABUI!$D$11:$D$109,B109),0) -> 0
C110: TOTALI | D110: =SUM(D11:D109) -> 1000 | E110: =SUM(E11:E109) -> 1000 | F110: =SUM(F11:F109) -> 999.99999 | G110: =SUM(G11:G109) -> 1000.00003 | H110: =SUM(H11:H109) -> 1000
A111: 0 | I111: 0

Sheet cCDI (hidden)
A1: Condominio "TERMICO"
C2: DEBITI del CONDOMINIO verso TERZI | G2: RIEPILOGO CONTI | I2: n° REGISTRAZIONE nel GIORNALE
G3: Conti D.02 | H3: =SUMIFS(G7:G36,F7:F36,"=D.02.*") -> 1203.38 | K3: CREDITORI TERZI nei confronti del CONDOMINIO
C4: Alla data inizio esercizio 01/10/2021 | G4: Conti D.03 | H4: =SUMIFS(G7:G36,F7:F36,"=D.03.*") -> 0
A5: Numero | B5: Codice | C5: CREDITORE TERZO | D5: CAUSALE | E5: DATA | F5: CONTO | G5: Conti D.06 | H5: =SUMIFS(G7:G36,F7:F36,"=D.06.*") -> 0 | K5: Codice | L5: CREDITORE TERZO | M5: TOTALE
A6: Debito | B6: Creditore | C6: (non condomino) | D6: DEBITO | E6: DEBITO | F6: DEBITO | H6: =H37+H38 -> 0 | K6: Creditore | L6: (non condomino) | M6: creditore
A7: 01 | B7: F-06 | C7: =IF(B7<>"",VLOOKUP(B7,$K$7:$L$36,2,FALSE),"") -> Consulente Fiscale | D7: Impegno di spesa Consulenza fiscale 2019 | E7: 2019-12-31 | F7: D.02.03.19 | G7: 50 | I7: debito iniziale | K7: C-03 | L7: ENEL ENERGIA | M7: =SUMIFS($F$7:$F$36,$B$7:$B$36,"="&K7)+SUMIFS($G$7:$G$36,$B$7:$B$36,"="&K7)+SUMIFS($H$7:$H$36,$B$7:$B$36,"="&K7) -> 168.38
A8: 02 | B8: F-07 | C8: CHIEFARI Pietro | D8: impegno spesa comp. Amm. Es. 2019 | E8: 2019-12-31 | F8: D.02.03.19 | G8: 200 | I8: debito iniziale | K8: F-01 | L8: SAMUELE Saverio | M8: =SUMIFS($F$7:$F$36,$B$7:$B$36,"="&K8)+SUMIFS($G$7:$G$36,$B$7:$B$36,"="&K8)+SUMIFS($H$7:$H$36,$B$7:$B$36,"="&K8) -> 195
A9: 03 | B9: F-08 | C9: AVVOCATO Giuseppe | D9: avviso fattura n. 10/2020 del 1-12-2020 | E9: 2020-12-01 | F9: D.02.02.20 | G9: 50 | I9: debito iniziale | K9: F-06 | L9: Consulente Fiscale | M9: 190
A10: 04 | B10: F-07 | C10: CHIEFARI Pietro | D10: impegno spesa comp. Amm. Es. 2020 | E10: 2020-12-31 | F10: D.02.03.20 | G10: 200 | I10: debito iniziale | K10: F-07 | L10: CHIEFARI Pietro | M10: 600
A11: 05 | B11: F-06 | C11: Consulente Fiscale | D11: Impegno di spesa Consulenza fiscale 2020 | E11: 2020-12-31 | F11: D.02.03.20 | G11: 90 | I11: debito iniziale | K11: F-08 | L11: AVVOCATO Giuseppe | M11: 50
A12: 06 | B12: C-03 | C12: ENEL ENERGIA | D12: Fattura n. 4157845945 del 08-12-2021 | E12: 2021-12-08 | F12: D.02.01.21 | G12: 168.38 | I12: debito iniziale | M12: 0
A13: 07 | B13: F-01 | C13: SAMUELE Saverio | D13: Fattura n. 310 del 22-12-2021 | E13: 2021-12-11 | F13: D.02.01.21 | G13: 65 | I13: debito iniziale | M13: 0
A14: 08 | B14: F-01 | C14: SAMUELE Saverio | D14: Fattura n. 311 del 22-12-2021 | E14: 2021-12-22 | F14: D.02.01.21 | G14: 65 | I14: debito iniziale | M14: 0
A15: 09 | B15: F-01 | C15: SAMUELE Saverio | D15: Fattura n. 312 del 22-12-2021 | E15: 2021-12-22 | F15: D.02.01.21 | G15: 65 | I15: debito iniziale | M15: 0
A16: 10 | B16: F-07 | C16: CHIEFARI Pietro | D16: Impegno di spesa competenze Amministratore 2021 | E16: 2021-12-31 | F16: D.02.03.21 | G16: 200 | I16: debito iniziale | M16: 0
A17: 11 | B17: F-06 | C17: Consulente Fiscale | D17: Impegno di spesa consulenza fiscale 2021 | E17: 2021-12-31 | F17: D.02.03.21 | G17: 50 | I17: debito iniziale | M17: 0
M18: 0
M19: 0
M20: 0
M21: 0
M22: 0
M23: 0
M24: 0
M25: 0
M26: 0
M27: 0
M28: 0
M29: 0
M30: 0
M31: 0
M32: 0
M33: 0
M34: 0
M35: 0
M36: 0
A37: 12 | B37: Numero da assegnare al prossimo successivo Debito | F37: DEBITI del CONDOMINIO in ESERCIZI PRECEDENTI | G37: =SUMIFS(G7:G36,E7:E36,"<" & LEFT('iP1'!A40,10)) -> 590 | H37: =SUMIFS(H7:H36,E7:E36,"<" & "1-1-" & 'iP1'!A37) -> 0
F38: DEBITI del CONDOMINIO nell'ESERCIZIO IN CORSO | G38: =SUMIFS(G7:G36,E7:E36,">" & LEFT('iP1'!A40,10)) -> 613.38 | H38: =SUMIFS(H7:H36,E7:E36,">" & "1-1-" & 'iP1'!A37) -> 0
F39: TOTALE DEBITI del CONDOMINIO | G39: =G37+G38 -> 1203.38 | L39: TOTALE DEBITI DEL CONDOMINIO | M39: =SUM(M7:M36) -> 1203.38
C41: CREDITI vantati dal CONDOMINIO nei confronti di TERZI | G41: RIEPILOGO CONTI | I41: n° REGISTRAZIONE nel GIORNALE
G42: Conti C.01 | H42: =SUMIFS(G46:G55,F46:F55,"=C.01.*") -> 42.27 | K42: DEBITORI TERZI v/s il CONDOMINIO
C43: =C4 -> Alla data inizio esercizio 01/10/2021 | G43: Conti C.02 | H43: =SUMIFS(G46:G55,F46:F55,"=C.02.*") -> 0
A44: Numero | B44: Codice | C44: DEBITORE TERZO | D44: CAUSALE | E44: DATA | F44: CONTO | G44: Conti C.03 | H44: =SUMIFS(G46:G55,F46:F55,"=C.03.*") -> 0 | K44: Codice | L44: DEBITORE TERZO | M44: TOTALE
A45: Credito | B45: Debitore | C45: (non condomino) | D45: CREDITO | E45: CREDITO | F45: CREDITO | G45: Conti C.06 | H45: =SUMIFS(G46:G55,F46:F55,"=C.06.*") -> 0 | K45: Debitore | L45: (non condomino) | M45: debitore
A46: 1 | B46: D-01 | C46: =IF(B46<>"",VLOOKUP(B46,$K$46:$L$55,2,FALSE),"") -> ENEL ENERGIA | D46: deposito cauzionale | E46: 2021-07-06 | F46: C.01.01.21 | G46: 42.27 | I46: credito iniziale | K46: D-01 | L46: ENEL ENERGIA | M46: =SUMIFS($F$46:$F$55,$B$46:$B$55,"="&K46)+SUMIFS($G$46:$G$55,$B$46:$B$55,"="&K46)+SUMIFS($H$46:$H$55,$B$46:$B$55,"="&K46) -> 42.27
M47: 0
M48: 0
M49: 0
M50: 0
M51: 0
M52: 0
M53: 0
M54: 0
M55: 0
A56: 12 | B56: Numero da assegnare al prossimo successivo Credito | F56: CREDITI del CONDOMINIO in ESERCIZI PRECEDENTI | G56: =SUMIFS(G46:G55,$E$46:$E$55,"<" & LEFT('iP1'!A40,10)) -> 42.27 | H56: =SUMIFS(H46:H55,$E$46:$E$55,"<" & "1-1-" & 'iP1'!A37) -> 0
F57: CREDITI del CONDOMINIO nell'ESERCIZIO IN CORSO | G57: =SUMIFS(G46:G55,$E$46:$E$55,">" & LEFT('iP1'!A40,10)) -> 0 | H57: =SUMIFS(H46:H55,$E$46:$E$55,">" & "1-1-" &'iP1'!A37) -> 0
F58: TOTALE CREDITI del CONDOMINIO | G58: =G56+G57 -> 42.27 | L58: TOTALE CREDITI DEL CONDOMINIO | M58: =SUM(M46:M55) -> 42.27

Sheet cRPUI (hidden)
A6: Condominio "TERMICO"
A7: RIPARTO fra le UNITÀ IMMOBILIARI delle SPESE preventivate per l'esercizio 2021-2022
A8: COD. UNITÀ | B8: CODICE CONDOM. | C8: CODICE FRUITORE | D8: QUOTE TOTALI | E8: QUOTE TOTALI | F8: QUOTE TOTALI | G8: QUOTE TOTALI | H8: QUOTE TOTALI | I8: TOTALE QUOTE Unità | J8: SUB CATAS.
D9: Tabella A | E9: Tabella B | F9: Tabella C | G9: Tabella D | H9: Tabella E
D10: PROPRIETÀ GENERALE | E10: UTILIZZO | F10: POTENZA INSTALLATA | G10: NUMERO TERMOSIFONI | H10: CONSUMI
A11: =iUI!B11 -> U01 | B11: =IF(iUI!C11<>"",iUI!C11,"") -> C20 | C11: =IF(iUI!D11<>"",iUI!D11,"") -> I01 | D11: 10.48 | E11: 53.91 | F11: 16.57 | G11: 10.43 | H11: 37.71 | I11: =SUM(D11:H11) -> 129.1 | J11: =cTABUI!L11 -> 75
A12: =iUI!B12 -> U02 | B12: =IF(iUI!C12<>"",iUI!C12,"") -> C09 | C12: =IF(iUI!D12<>"",iUI!D12,"") -> C09 | D12: 14.18 | E12: 72.92 | F12: 33.74 | G12: 13.91 | H12: 37.71 | I12: =SUM(D12:H12) -> 172.46 | J12: =cTABUI!L12 -> 58
A13: =iUI!B13 -> U03 | B13: =IF(iUI!C13<>"",iUI!C13,"") -> C03 | C13: =IF(iUI!D13<>"",iUI!D13,"") -> C03 | D13: 24.09 | E13: 123.88 | F13: 67.51 | G13: 27.86 | H13: 37.71 | I13: 281.05 | J13: =cTABUI!L13 -> 76
A14: =iUI!B14 -> U04 | B14: =IF(iUI!C14<>"",iUI!C14,"") -> C04 | C14: =IF(iUI!D14<>"",iUI!D14,"") -> C04 | D14: 12.95 | E14: 66.6 | F14: 32.73 | G14: 17.39 | H14: 37.71 | I14: 167.38 | J14: =cTABUI!L14 -> 60
A15: =iUI!B15 -> U05 | B15: =IF(iUI!C15<>"",iUI!C15,"") -> C23 | C15: =IF(iUI!D15<>"",iUI!D15,"") -> C23 | D15: 13.57 | E15: 69.77 | F15: 41.85 | G15: 17.39 | H15: 37.71 | I15: 180.29 | J15: =cTABUI!L15 -> 61
A16: =iUI!B16 -> U06 | B16: =IF(iUI!C16<>"",iUI!C16,"") -> C15 | C16: =IF(iUI!D16<>"",iUI!D16,"") -> C15 | D16: 12.95 | E16: 66.6 | F16: 39.89 | G16: 17.39 | H16: 75.41 | I16: 212.24 | J16: =cTABUI!L16 -> 62
A17: =iUI!B17 -> U07 | B17: =IF(iUI!C17<>"",iUI!C17,"") -> C05 | C17: =IF(iUI!D17<>"",iUI!D17,"") -> C05 | D17: 16.65 | E17: 85.61 | F17: 54.13 | G17: 24.35 | H17: 113.11 | I17: 293.85 | J17: =cTABUI!L17 -> 7
A18: =iUI!B18 -> U08 | B18: =IF(iUI!C18<>"",iUI!C18,"") -> C13 | C18: =IF(iUI!D18<>"",iUI!D18,"") -> C13 | D18: 13.57 | E18: 69.77 | F18: 44.6 | G18: 17.39 | H18: 113.11 | I18: 258.44 | J18: =cTABUI!L18 -> 8
A19: =iUI!B19 -> U09 | B19: =IF(iUI!C19<>"",iUI!C19,"") -> C11 | C19: =IF(iUI!D19<>"",iUI!D19,"") -> C11 | D19: 12.95 | E19: 66.6 | F19: 24.85 | G19: 10.43 | H19: 169.67 | I19: 284.5 | J19: =cTABUI!L19 -> 10
A20: =iUI!B20 -> U10 | B20: =IF(iUI!C20<>"",iUI!C20,"") -> C19 | C20: =IF(iUI!D20<>"",iUI!D20,"") -> C19 | D20: 20.34 | E20: 104.62 | F20: 59.48 | G20: 24.35 | H20: 150.82 | I20: 359.61 | J20: =cTABUI!L20 -> 79
A21: =iUI!B21 -> U11 | B21: =IF(iUI!C21<>"",iUI!C21,"") -> C22 | C21: =IF(iUI!D21<>"",iUI!D21,"") -> C22 | D21: 9.87 | E21: 50.74 | F21: 27.62 | G21: 13.91 | H21: 150.82 | I21: 252.96 | J21: =cTABUI!L21 -> 80
A22: =iUI!B22 -> U12 | B22: =IF(iUI!C22<>"",iUI!C22,"") -> C21 | C22: =IF(iUI!D22<>"",iUI!D22,"") -> C21 | D22: 12.95 | E22: 66.6 | F22: 40.05 | G22: 17.39 | H22: 150.82 | I22: 287.81 | J22: =cTABUI!L22 -> 14
A23: =iUI!B23 -> U13 | B23: =IF(iUI!C23<>"",iUI!C23,"") -> C18 | C23: =IF(iUI!D23<>"",iUI!D23,"") -> I02 | D23: 22.42 | E23: 115.33 | F23: 70.95 | G23: 27.83 | H23: 188.52 | I23: 425.05 | J23: =cTABUI!L23 -> 15
A24: =iUI!B24 -> U14 | B24: =IF(iUI!C24<>"",iUI!C24,"") -> C14 | C24: =IF(iUI!D24<>"",iUI!D24,"") -> C14 | D24: 10.44 | E24: 53.69 | F24: 36.52 | G24: 13.91 | H24: 188.52 | I24: 303.08 | J24: =cTABUI!L24 -> 16
A25: =iUI!B25 -> U15 | B25: =IF(iUI!C25<>"",iUI!C25,"") -> C02 | C25: =IF(iUI!D25<>"",iUI!D25,"") -> I03 | D25: 12.95 | E25: 66.6 | F25: 38.75 | G25: 17.39 | H25: 188.52 | I25: 324.21 | J25: =cTABUI!L25 -> 17
A26: =iUI!B26 -> U16 | B26: =IF(iUI!C26<>"",iUI!C26,"") -> C16 | C26: =IF(iUI!D26<>"",iUI!D26,"") -> C16 | D26: 18.5 | E26: 95.13 | F26: 49.39 | G26: 17.39 | H26: 188.52 | I26: 368.93 | J26: =cTABUI!L26 -> 83
A27: =iUI!B27 -> U17 | B27: =IF(iUI!C27<>"",iUI!C27,"") -> C12 | C27: =IF(iUI!D27<>"",iUI!D27,"") -> C12 | D27: 16.65 | E27: 85.61 | F27: 48.44 | G27: 13.91 | H27: 188.52 | I27: 353.13 | J27: =cTABUI!L27 -> 81
A28: =iUI!B28 -> U18 | B28: =IF(iUI!C28<>"",iUI!C28,"") -> C06 | C28: =IF(iUI!D28<>"",iUI!D28,"") -> C06 | D28: 14.79 | E28: 76.09 | F28: 54.87 | G28: 17.39 | H28: 188.52 | I28: 351.66 | J28: =cTABUI!L28 -> 21
A29: =iUI!B29 -> U19 | B29: =IF(iUI!C29<>"",iUI!C29,"") -> C07 | C29: =IF(iUI!D29<>"",iUI!D29,"") -> C07 | D29: 12.52 | E29: 64.39 | F29: 27.92 | G29: 10.43 | H29: 226.23 | I29: 341.49 | J29: =cTABUI!L29 -> 22
A30: =iUI!B30 -> U20 | B30: =IF(iUI!C30<>"",iUI!C30,"") -> C17 | C30: =IF(iUI!D30<>"",iUI!D30,"") -> C17 | D30: 25.88 | E30: 133.12 | F30: 70.96 | G30: 24.35 | H30: 226.23 | I30: 480.54 | J30: =cTABUI!L30 -> 23
A31: =iUI!B31 -> U21 | B31: =IF(iUI!C31<>"",iUI!C31,"") -> C01 | C31: =IF(iUI!D31<>"",iUI!D31,"") -> C01 | D31: 10.48 | E31: 53.91 | F31: 29.39 | G31: 10.43 | H31: 226.23 | I31: 330.44 | J31: =cTABUI!L31 -> 24
A32: =iUI!B32 -> U22 | B32: =IF(iUI!C32<>"",iUI!C32,"") -> C10 | C32: =IF(iUI!D32<>"",iUI!D32,"") -> I04 | D32: 17.26 | E32: 88.78 | F32: 23.71 | G32: 20.87 | H32: 263.95 | I32: 414.57 | J32: =cTABUI!L32 -> 82
A33: =iUI!B33 -> U23 | B33: =IF(iUI!C33<>"",iUI!C33,"") -> C08 | C33: =IF(iUI!D33<>"",iUI!D33,"") -> C08 | D33: 10.44 | E33: 53.69 | F33: 8.04 | G33: 13.91 | H33: 263.93 | I33: 350.01 | J33: =cTABUI!L33 -> 73
A34: =iUI!B34 -> U24 | B34: =IF(iUI!C34<>"",iUI!C34,"") -> C12 | C34: =IF(iUI!D34<>"",iUI!D34,"") -> I05 | D34: 3.12 | E34: 16.04 | F34: 8.04 | G34: 0 | H34: 0 | I34: 27.2 | J34: =cTABUI!L34 -> 78
A35: =iUI!B35 -> U25 | B35: =IF(iUI!C35<>"",iUI!C35,"") ->  | C35: =IF(iUI!D35<>"",iUI!D35,"") ->  | I35: 0 | J35: =cTABUI!L35 -> 0
A36: =iUI!B36 -> U26 | B36: =IF(iUI!C36<>"",iUI!C36,"") ->  | C36: =IF(iUI!D36<>"",iUI!D36,"") ->  | I36: 0 | J36: =cTABUI!L36 -> 0
A37: =iUI!B37 -> U27 | B37: =IF(iUI!C37<>"",iUI!C37,"") ->  | C37: =IF(iUI!D37<>"",iUI!D37,"") ->  | I37: 0 | J37: =cTABUI!L37 -> 0
A38: =iUI!B38 -> U28 | B38: =IF(iUI!C38<>"",iUI!C38,"") ->  | C38: =IF(iUI!D38<>"",iUI!D38,"") ->  | I38: 0 | J38: =cTABUI!L38 -> 0
A39: =iUI!B39 -> U29 | B39: =IF(iUI!C39<>"",iUI!C39,"") ->  | C39: =IF(iUI!D39<>"",iUI!D39,"") ->  | I39: 0 | J39: =cTABUI!L39 -> 0
A40: =iUI!B40 -> U30 | B40: =IF(iUI!C40<>"",iUI!C40,"") ->  | C40: =IF(iUI!D40<>"",iUI!D40,"") ->  | I40: 0 | J40: =cTABUI!L40 -> 0
A41: =iUI!B41 -> U31 | B41: =IF(iUI!C41<>"",iUI!C41,"") ->  | C41: =IF(iUI!D41<>"",iUI!D41,"") ->  | I41: 0 | J41: =cTABUI!L41 -> 0
A42: =iUI!B42 -> U32 | B42: =IF(iUI!C42<>"",iUI!C42,"") ->  | C42: =IF(iUI!D42<>"",iUI!D42,"") ->  | I42: 0 | J42: =cTABUI!L42 -> 0
A43: =iUI!B43 -> U33 | B43: =IF(iUI!C43<>"",iUI!C43,"") ->  | C43: =IF(iUI!D43<>"",iUI!D43,"") ->  | I43: 0 | J43: =cTABUI!L43 -> 0
A44: =iUI!B44 -> U34 | B44: =IF(iUI!C44<>"",iUI!C44,"") ->  | C44: =IF(iUI!D44<>"",iUI!D44,"") ->  | I44: 0 | J44: =cTABUI!L44 -> 0
A45: =iUI!B45 -> U35 | B45: =IF(iUI!C45<>"",iUI!C45,"") ->  | C45: =IF(iUI!D45<>"",iUI!D45,"") ->  | I45: 0 | J45: =cTABUI!L45 -> 0
A46: =iUI!B46 -> U36 | B46: =IF(iUI!C46<>"",iUI!C46,"") ->  | C46: =IF(iUI!D46<>"",iUI!D46,"") ->  | I46: 0 | J46: =cTABUI!L46 -> 0
A47: =iUI!B47 -> U37 | B47: =IF(iUI!C47<>"",iUI!C47,"") ->  | C47: =IF(iUI!D47<>"",iUI!D47,"") ->  | I47: 0 | J47: =cTABUI!L47 -> 0
A48: =iUI!B48 -> U38 | B48: =IF(iUI!C48<>"",iUI!C48,"") ->  | C48: =IF(iUI!D48<>"",iUI!D48,"") ->  | I48: 0 | J48: =cTABUI!L48 -> 0
A49: =iUI!B49 -> U39 | B49: =IF(iUI!C49<>"",iUI!C49,"") ->  | C49: =IF(iUI!D49<>"",iUI!D49,"") ->  | I49: 0 | J49: =cTABUI!L49 -> 0
A50: =iUI!B50 -> U40 | B50: =IF(iUI!C50<>"",iUI!C50,"") ->  | C50: =IF(iUI!D50<>"",iUI!D50,"") ->  | I50: 0 | J50: =cTABUI!L50 -> 0
A51: =iUI!B51 -> U41 | B51: =IF(iUI!C51<>"",iUI!C51,"") ->  | C51: =IF(iUI!D51<>"",iUI!D51,"") ->  | I51: 0 | J51: =cTABUI!L51 -> 0
A52: =iUI!B52 -> U42 | B52: =IF(iUI!C52<>"",iUI!C52,"") ->  | C52: =IF(iUI!D52<>"",iUI!D52,"") ->  | I52: 0 | J52: =cTABUI!L52 -> 0
A53: =iUI!B53 -> U43 | B53: =IF(iUI!C53<>"",iUI!C53,"") ->  | C53: =IF(iUI!D53<>"",iUI!D53,"") ->  | I53: 0 | J53: =cTABUI!L53 -> 0
A54: =iUI!B54 -> U44 | B54: =IF(iUI!C54<>"",iUI!C54,"") ->  | C54: =IF(iUI!D54<>"",iUI!D54,"") ->  | I54: 0 | J54: =cTABUI!L54 -> 0
A55: =iUI!B55 -> U45 | B55: =IF(iUI!C55<>"",iUI!C55,"") ->  | C55: =IF(iUI!D55<>"",iUI!D55,"") ->  | I55: 0 | J55: =cTABUI!L55 -> 0
A56: =iUI!B56 -> U46 | B56: =IF(iUI!C56<>"",iUI!C56,"") ->  | C56: =IF(iUI!D56<>"",iUI!D56,"") ->  | I56: 0 | J56: =cTABUI!L56 -> 0
A57: =iUI!B56 -> U46 | B57: =IF(iUI!C57<>"",iUI!C57,"") ->  | C57: =IF(iUI!D57<>"",iUI!D57,"") ->  | I57: 0 | J57: =cTABUI!L57 -> 0
A58: =iUI!B57 -> U47 | B58: =IF(iUI!C58<>"",iUI!C58,"") ->  | C58: =IF(iUI!D58<>"",iUI!D58,"") ->  | I58: 0 | J58: =cTABUI!L58 -> 0
A59: =iUI!B58 -> U48 | B59: =IF(iUI!C59<>"",iUI!C59,"") ->  | C59: =IF(iUI!D59<>"",iUI!D59,"") ->  | I59: 0 | J59: =cTABUI!L59 -> 0
A60: =iUI!B59 -> U49 | B60: =IF(iUI!C60<>"",iUI!C60,"") ->  | C60: =IF(iUI!D60<>"",iUI!D60,"") ->  | I60: 0 | J60: =cTABUI!L60 -> 0
A61: =iUI!B60 -> U50 | B61: =IF(iUI!C61<>"",iUI!C61,"") ->  | C61: =IF(iUI!D61<>"",iUI!D61,"") ->  | I61: 0 | J61: =cTABUI!L61 -> 0
A62: =iUI!B61 -> U51 | B62: =IF(iUI!C62<>"",iUI!C62,"") ->  | C62: =IF(iUI!D62<>"",iUI!D62,"") ->  | I62: 0 | J62: =cTABUI!L62 -> 0
A63: =iUI!B62 -> U52 | B63: =IF(iUI!C63<>"",iUI!C63,"") ->  | C63: =IF(iUI!D63<>"",iUI!D63,"") ->  | I63: 0 | J63: =cTABUI!L63 -> 0
A64: =iUI!B63 -> U53 | B64: =IF(iUI!C64<>"",iUI!C64,"") ->  | C64: =IF(iUI!D64<>"",iUI!D64,"") ->  | I64: 0 | J64: =cTABUI!L64 -> 0
A65: =iUI!B64 -> U54 | B65: =IF(iUI!C65<>"",iUI!C65,"") ->  | C65: =IF(iUI!D65<>"",iUI!D65,"") ->  | I65: 0 | J65: =cTABUI!L65 -> 0
A66: =iUI!B65 -> U55 | B66: =IF(iUI!C66<>"",iUI!C66,"") ->  | C66: =IF(iUI!D66<>"",iUI!D66,"") ->  | I66: 0 | J66: =cTABUI!L66 -> 0
A67: =iUI!B66 -> U56 | B67: =IF(iUI!C67<>"",iUI!C67,"") ->  | C67: =IF(iUI!D67<>"",iUI!D67,"") ->  | I67: 0 | J67: =cTABUI!L67 -> 0
A68: =iUI!B67 -> U57 | B68: =IF(iUI!C68<>"",iUI!C68,"") ->  | C68: =IF(iUI!D68<>"",iUI!D68,"") ->  | I68: 0 | J68: =cTABUI!L68 -> 0
A69: =iUI!B68 -> U58 | B69: =IF(iUI!C69<>"",iUI!C69,"") ->  | C69: =IF(iUI!D69<>"",iUI!D69,"") ->  | I69: 0 | J69: =cTABUI!L69 -> 0
A70: =iUI!B69 -> U59 | B70: =IF(iUI!C70<>"",iUI!C70,"") ->  | C70: =IF(iUI!D70<>"",iUI!D70,"") ->  | I70: 0 | J70: =cTABUI!L70 -> 0
A71: =iUI!B70 -> U60 | B71: =IF(iUI!C71<>"",iUI!C71,"") ->  | C71: =IF(iUI!D71<>"",iUI!D71,"") ->  | I71: 0 | J71: =cTABUI!L71 -> 0
A72: =iUI!B71 -> U61 | B72: =IF(iUI!C72<>"",iUI!C72,"") ->  | C72: =IF(iUI!D72<>"",iUI!D72,"") ->  | I72: 0 | J72: =cTABUI!L72 -> 0
A73: =iUI!B72 -> U62 | B73: =IF(iUI!C73<>"",iUI!C73,"") ->  | C73: =IF(iUI!D73<>"",iUI!D73,"") ->  | I73: 0 | J73: =cTABUI!L73 -> 0
A74: =iUI!B73 -> U63 | B74: =IF(iUI!C74<>"",iUI!C74,"") ->  | C74: =IF(iUI!D74<>"",iUI!D74,"") ->  | I74: 0 | J74: =cTABUI!L74 -> 0
A75: =iUI!B74 -> U64 | B75: =IF(iUI!C75<>"",iUI!C75,"") ->  | C75: =IF(iUI!D75<>"",iUI!D75,"") ->  | I75: 0 | J75: =cTABUI!L75 -> 0
A76: =iUI!B75 -> U65 | B76: =IF(iUI!C76<>"",iUI!C76,"") ->  | C76: =IF(iUI!D76<>"",iUI!D76,"") ->  | I76: =SUM(D76:H76) -> 0 | J76: =cTABUI!L76 -> 0
A77: =iUI!B76 -> U66 | B77: =IF(iUI!C77<>"",iUI!C77,"") ->  | C77: =IF(iUI!D77<>"",iUI!D77,"") ->  | I77: 0 | J77: =cTABUI!L77 -> 0
A78: =iUI!B77 -> U67 | B78: =IF(iUI!C78<>"",iUI!C78,"") ->  | C78: =IF(iUI!D78<>"",iUI!D78,"") ->  | I78: 0 | J78: =cTABUI!L78 -> 0
A79: =iUI!B78 -> U68 | B79: =IF(iUI!C79<>"",iUI!C79,"") ->  | C79: =IF(iUI!D79<>"",iUI!D79,"") ->  | I79: 0 | J79: =cTABUI!L79 -> 0
A80: =iUI!B79 -> U69 | B80: =IF(iUI!C80<>"",iUI!C80,"") ->  | C80: =IF(iUI!D80<>"",iUI!D80,"") ->  | I80: 0 | J80: =cTABUI!L80 -> 0
A81: =iUI!B80 -> U70 | B81: =IF(iUI!C81<>"",iUI!C81,"") ->  | C81: =IF(iUI!D81<>"",iUI!D81,"") ->  | I81: 0 | J81: =cTABUI!L81 -> 0
A82: =iUI!B81 -> U71 | B82: =IF(iUI!C82<>"",iUI!C82,"") ->  | C82: =IF(iUI!D82<>"",iUI!D82,"") ->  | I82: 0 | J82: =cTABUI!L82 -> 0
A83: =iUI!B82 -> U72 | B83: =IF(iUI!C83<>"",iUI!C83,"") ->  | C83: =IF(iUI!D83<>"",iUI!D83,"") ->  | I83: 0 | J83: =cTABUI!L83 -> 0
A84: =iUI!B83 -> U73 | B84: =IF(iUI!C84<>"",iUI!C84,"") ->  | C84: =IF(iUI!D84<>"",iUI!D84,"") ->  | I84: 0 | J84: =cTABUI!L84 -> 0
A85: =iUI!B84 -> U74 | B85: =IF(iUI!C85<>"",iUI!C85,"") ->  | C85: =IF(iUI!D85<>"",iUI!D85,"") ->  | I85: 0 | J85: =cTABUI!L85 -> 0
A86: =iUI!B85 -> U75 | B86: =IF(iUI!C86<>"",iUI!C86,"") ->  | C86: =IF(iUI!D86<>"",iUI!D86,"") ->  | I86: 0 | J86: =cTABUI!L86 -> 0
A87: =iUI!B86 -> U76 | B87: =IF(iUI!C87<>"",iUI!C87,"") ->  | C87: =IF(iUI!D87<>"",iUI!D87,"") ->  | I87: 0 | J87: =cTABUI!L87 -> 0
A88: =iUI!B87 -> U77 | B88: =IF(iUI!C88<>"",iUI!C88,"") ->  | C88: =IF(iUI!D88<>"",iUI!D88,"") ->  | I88: 0 | J88: =cTABUI!L88 -> 0
A89: =iUI!B88 -> U78 | B89: =IF(iUI!C89<>"",iUI!C89,"") ->  | C89: =IF(iUI!D89<>"",iUI!D89,"") ->  | I89: 0 | J89: =cTABUI!L89 -> 0
A90: =iUI!B89 -> U79 | B90: =IF(iUI!C90<>"",iUI!C90,"") ->  | C90: =IF(iUI!D90<>"",iUI!D90,"") ->  | I90: 0 | J90: =cTABUI!L90 -> 0
A91: =iUI!B90 -> U80 | B91: =IF(iUI!C91<>"",iUI!C91,"") ->  | C91: =IF(iUI!D91<>"",iUI!D91,"") ->  | I91: 0 | J91: =cTABUI!L91 -> 0
A92: =iUI!B91 -> U81 | B92: =IF(iUI!C92<>"",iUI!C92,"") ->  | C92: =IF(iUI!D92<>"",iUI!D92,"") ->  | I92: 0 | J92: =cTABUI!L92 -> 0
A93: =iUI!B92 -> U82 | B93: =IF(iUI!C93<>"",iUI!C93,"") ->  | C93: =IF(iUI!D93<>"",iUI!D93,"") ->  | I93: 0 | J93: =cTABUI!L93 -> 0
